Workbook

Sheet portada
G3: Subsecretaría de Agricultura, Pesca y Alimentación.
G8: Subdirección General de Análisis, Coordinación y Estadística
G9: Servicio de Estadísticas Agrarias
C27: AVANCES DE SUPERFICIES Y PRODUCCIONES AGRÍCOLAS
C30: ESTIMACIONES DE ABRIL
E40: 1. COMENTARIO
E42: 2. ÍNDICE
E44: 3. DISPONIBLE EN LA WEB DEL MAPA:
E45: http://www.mapa.es/
H68: FECHA: Madrid, 30/04/2026 | L68: =TODAY() -> 2026-06-26

Sheet índice
A3: ÍNDICE
A7: Resumen de cifras nacionales ....................................................................................................... páginas 13 y 14
A9: Análisis provincial y autonómico ................................................................................................... páginas 16 y 72
D11: página: | I11: página:
A14: trigo de invierno s/r/t | D14: 9 | F14: cebada 2c de primavera s/r/t | I14: 41
A16: trigo de invierno | D16: 10 | F16: cebada 2c de primavera | I16: 42
A18: trigo duro de invierno s/r/t | D18: 11 | F18: cebada 6c de primavera s/r/t | I18: 43
A20: trigo duro de invierno | D20: 12 | F20: cebada 6c de primavera | I20: 44
A22: trigo blando y semi de invierno s/r/t | D22: 13 | F22: cebada total s/r/t | I22: 45
A24: trigo blando y semi de invierno | D24: 14 | F24: cebada total | I24: 46
A26: trigo de primavera s/r/t | D26: 15 | F26: cebada 2 carreras s/r/t | I26: 47
A28: trigo de primavera | D28: 16 | F28: cebada 2 carreras | I28: 48
A30: trigo duro de primavera s/r/t | D30: 17 | F30: cebada 6 carreras s/r/t | I30: 49
A32: trigo duro de primavera | D32: 18 | F32: cebada 6 carreras | I32: 50
A34: trigo blando y semi de primavera s/r/t | D34: 19 | F34: avena s/r/t | I34: 51
A36: trigo blando y semi de primavera | D36: 20 | F36: avena | I36: 52
A38: trigo. resumen general s/r/t | D38: 21 | F38: mezclas de granos distintos del tranquillón s/r/t | I38: 53
A40: trigo. resumen general | D40: 22 | F40: mezclas de granos distintos del tranquillón | I40: 54
A42: trigo duro s/r/t | D42: 23 | F42: avena y otras mezclas de cereales de primavera distintos del tranquillón s/r/t | I42: 55
A44: trigo duro | D44: 24 | F44: avena y otras mezclas de cereales de primavera distintos del tranquillón | I44: 56
A46: trigo semiduro y blando s/r/t | D46: 25 | F46: maíz grano (no incluye forrajero ni dulce) s/r/t | I46: 57
A48: trigo semiduro y blando | D48: 26 | F48: maíz grano (no incluye forrajero ni dulce) | I48: 58
A50: centeno s/r/t | D50: 27 | F50: triticale s/r/t | I50: 59
A52: centeno | D52: 28 | F52: triticale | I52: 60
A54: tranquillón (mezcla de trigo y centeno) s/r/t | D54: 29 | F54: sorgo s/r/t | I54: 61
A56: tranquillón (mezcla de trigo y centeno) | D56: 30 | F56: sorgo | I56: 62
A58: centeno y tranquillón s/r/t | D58: 31 | F58: quinoa s/r/t | I58: 63
A60: centeno y tranquillón | D60: 32 | F60: quinoa | I60: 64
A62: cebada de invierno s/r/t | D62: 33 | F62: arroz indica s/r/t | I62: 65
A64: cebada de invierno | D64: 34 | F64: arroz indica | I64: 66
A66: cebada 2c de invierno s/r/t | D66: 35 | F66: arroz japónica s/r/t | I66: 67
A68: cebada 2c de invierno | D68: 36 | F68: arroz japónica | I68: 68
A70: cebada 6c de invierno s/r/t | D70: 37 | F70: arroz (cáscara) s/r/t | I70: 69
A72: cebada 6c de invierno | D72: 38 | F72: arroz (cáscara) | I72: 70
A74: cebada de primavera s/r/t | D74: 39 | F74: judías secas s/r/t | I74: 71
A76: cebada de primavera | D76: 40 | F76: judías secas | I76: 72
D80: página: | I80: página:
A81: habas secas s/r/t | D81: 73 | F81: girasol | I81: 108
A83: habas secas | D83: 74 | F83: soja s/r/t | I83: 109
A85: lentejas s/r/t | D85: 75 | F85: soja | I85: 110
A87: lentejas | D87: 76 | F87: colza y nabo de invierno s/r/t | I87: 111
A89: garbanzos s/r/t | D89: 77 | F89: colza y nabo de invierno | I89: 112
A91: garbanzos | D91: 78 | F91: colza de invierno s/r/t | I91: 113
A93: guisantes secos s/r/t | D93: 79 | F93: colza de invierno | I93: 114
A95: guisantes secos | D95: 80 | F95: nabo de invierno s/r/t | I95: 115
A97: veza s/r/t | D97: 81 | F97: nabo de invierno | I97: 116
A99: veza | D99: 82 | F99: colza y nabo de primavera s/r/t | I99: 117
A101: altramuz dulce s/r/t | D101: 83 | F101: colza y nabo de primavera | I101: 118
A103: altramuz dulce | D103: 84 | F103: colza de primavera s/r/t | I103: 119
A105: patata extratemprana s/r/t | D105: 85 | F105: colza de primavera | I105: 120
A107: patata extratemprana | D107: 86 | F107: nabo de primavera s/r/t | I107: 121
A109: patata temprana s/r/t | D109: 87 | F109: nabo de primavera | I109: 122
A111: patata temprana | D111: 88 | F111: colza y nabo s/r/t | I111: 123
A113: patata media estación s/r/t | D113: 89 | F113: colza y nabo | I113: 124
A115: patata media estación | D115: 90 | F115: colza s/r/t | I115: 125
A117: patata tardía s/r/t | D117: 91 | F117: colza | I117: 126
A119: patata tardía | D119: 92 | F119: nabo s/r/t | I119: 127
A121: patata total s/r/t | D121: 93 | F121: nabo | I121: 128
A123: patata total | D123: 94 | F123: pimiento para pimentón s/r/t | I123: 129
A125: remolacha azucarera (r. verano) s/r/t | D125: 95 | F125: pimiento para pimentón | I125: 130
A127: remolacha azucarera (r. verano) | D127: 96 | F127: cereal de invierno para forraje s/r/t | I127: 131
A129: remolacha azucarera (r. invierno) s/r/t | D129: 97 | F129: cereal de invierno para forraje | I129: 132
A131: remolacha azucarera (r. invierno) | D131: 98 | F131: maíz forrajero s/r/t | I131: 133
A133: remolacha azucarera s/r/t | D133: 99 | F133: maíz forrajero | I133: 134
A135: remolacha azucarera | D135: 100 | F135: ballico s/r/t | I135: 135
A137: algodón ( bruto ) s/r/t | D137: 101 | F137: ballico | I137: 136
A139: algodón ( bruto ) | D139: 102 | F139: festuca s/r/t | I139: 137
A141: lino textil ( fibra ) s/r/t | D141: 103 | F141: festuca | I141: 138
A143: lino textil ( fibra ) | D143: 104 | F143: alfalfa s/r/t | I143: 139
A145: cáñamo textil ( fibra ) s/r/t | D145: 105 | F145: alfalfa | I145: 140
A147: cáñamo textil ( fibra ) | D147: 106 | F147: trébol s/r/t | I147: 141
A149: girasol s/r/t | D149: 107 | F149: trébol | I149: 142
D153: página: | I153: página:
A154: esparceta s/r/t | D154: 143 | F154: tomate.- resumen general | I154: 178
A156: esparceta | D156: 144 | F156: pimiento s/r/t | I156: 179
A158: veza para forraje s/r/t | D158: 145 | F158: pimiento | I158: 180
A160: veza para forraje | D160: 146 | F160: pimiento consumo en fresco s/r/t | I160: 181
A162: espárrago s/r/t | D162: 147 | F162: pimiento consumo en fresco | I162: 182
A164: espárrago | D164: 148 | F164: pimiento de conserva s/r/t | I164: 183
A166: lechuga resumen general s/r/t | D166: 149 | F166: pimiento de conserva | I166: 184
A168: lechuga resumen general | D168: 150 | F168: pimiento en invernadero s/r/t | I168: 185
A170: lechuga en campo s/r/t | D170: 151 | F170: pimiento en invernadero | I170: 186
A172: lechuga en campo | D172: 152 | F172: ajo s/r/t | I172: 187
A174: lechuga en invernadero s/r/t | D174: 153 | F174: ajo | I174: 188
A176: lechuga en invernadero | D176: 154 | F176: cebolla babosa s/r/t | I176: 189
A178: espinaca s/r/t | D178: 155 | F178: cebolla babosa | I178: 190
A180: espinaca | D180: 156 | F180: cebolla medio grano o liria s/r/t | I180: 191
A182: endivias s/r/t | D182: 157 | F182: cebolla medio grano o liria | I182: 192
A184: endivias | D184: 158 | F184: cebolla grano o valenciana s/r/t | I184: 193
A186: para formar raíz endivia s/r/t | D186: 159 | F186: cebolla grano o valenciana | I186: 194
A188: para formar raíz endivia | D188: 160 | F188: otras cebollas s/r/t | I188: 195
A190: sandía s/r/t | D190: 161 | F190: otras cebollas | I190: 196
A192: sandía | D192: 162 | F192: cebolla.- resumen general s/r/t | I192: 197
A194: calabaza s/r/t | D194: 163 | F194: cebolla.- resumen general | I194: 198
A196: calabaza | D196: 164 | F196: puerro s/r/t | I196: 199
A198: calabacín s/r/t | D198: 165 | F198: puerro | I198: 200
A200: calabacín | D200: 166 | F200: fresa y fresón s/r/t | I200: 201
A202: calabacín en campo s/r/t | D202: 167 | F202: fresa y fresón | I202: 202
A204: calabacín en campo | D204: 168 | F204: fresas en campo s/r/t | I204: 203
A206: calabacín en invernadero s/r/t | D206: 169 | F206: fresas en campo | I206: 204
A208: calabacín en invernadero | D208: 170 | F208: fresas en invernadero s/r/t | I208: 205
A210: pepino en campo s/r/t | D210: 171 | F210: fresas en invernadero | I210: 206
A212: pepino en campo | D212: 172 | F212: champiñon s/r/t | I212: 207
A214: berenjena s/r/t | D214: 173 | F214: champiñon | I214: 208
A216: berenjena | D216: 174 | F216: otras setas s/r/t | I216: 209
A218: tomate de recolección 1-vi al 30 - ix s/r/t | D218: 175 | F218: otras setas | I218: 210
A220: tomate de recolección 1-vi al 30 - ix | D220: 176 | F220: pomelo s/r/t | I220: 211
A222: tomate.- resumen general s/r/t | D222: 177 | F222: pomelo | I222: 212
D225: página: | I225: página:
A226: melocotonero s/r/t | D226: 213
A228: melocotonero | D228: 214
A230: melocotoneros planos (paraguayo) s/r/t | D230: 215
A232: melocotoneros planos (paraguayo) | D232: 216
A234: grosellero s/r/t | D234: 217
A236: grosellero | D236: 218
A238: frambueso s/r/t | D238: 219
A240: frambueso | D240: 220
A242: arándano s/r/t | D242: 221
A244: arándano | D244: 222
A246: almendro (cáscara) s/r/t | D246: 223
A248: almendro (cáscara) | D248: 224
A250: avellano (cáscara) s/r/t | D250: 225
A252: avellano (cáscara) | D252: 226
A254: pistacho s/r/t | D254: 227
A256: pistacho | D256: 228
A258: s/r/t | D258: 229
D260: 230

Sheet resumen nacional
A2: RESUMEN DE LOS AVANCES DE SUPERFICIES Y PRODUCCIONES AGRÍCOLAS | J2: TOTALES NACIONALES | M2: ABRIL 2026 | O2: RESUMEN DE LOS AVANCES DE SUPERFICIES Y PRODUCCIONES AGRÍCOLAS | X2: TOTALES NACIONALES | AA2: ABRIL 2026 | AC2: RESUMEN DE LOS AVANCES DE SUPERFICIES Y PRODUCCIONES AGRÍCOLAS | AL2: TOTALES NACIONALES | AO2: ABRIL 2026 | AQ2: RESUMEN DE LOS AVANCES DE SUPERFICIES Y PRODUCCIONES AGRÍCOLAS | AZ2: TOTALES NACIONALES | BC2: ABRIL 2026
D4: SUPERFICIES (Miles de Hectáreas) | J4: PRODUCCIONES (Miles de Toneladas) | R4: SUPERFICIES (Miles de Hectáreas) | X4: PRODUCCIONES (Miles de Toneladas) | AF4: SUPERFICIES (Miles de Hectáreas) | AL4: PRODUCCIONES (Miles de Toneladas) | AT4: SUPERFICIES (Miles de Hectáreas) | AZ4: PRODUCCIONES (Miles de Toneladas)
A5: CULTIVOS | E5: PROVIS. | F5: PROVIS. | G5: AVANCE | H5: =G6 -> 2026 | K5: PROVIS. | L5: PROVIS. | M5: AVANCE | N5: =M6 -> 2026 | O5: CULTIVOS | S5: PROVIS. | T5: PROVIS. | U5: AVANCE | V5: =U6 -> 2026 | Y5: PROVIS. | Z5: PROVIS. | AA5: AVANCE | AB5: =AA6 -> 2026 | AC5: CULTIVOS | AG5: PROVIS. | AH5: PROVIS. | AI5: AVANCE | AJ5: =AI6 -> 2026 | AM5: PROVIS. | AN5: PROVIS. | AO5: AVANCE | AP5: =AO6 -> 2026 | AQ5: CULTIVOS | AU5: DEFINIT. | AV5: DEFINIT. | AW5: AVANCE | AX5: 2025 | BA5: DEFINIT. | BB5: DEFINIT. | BC5: AVANCE | BD5: 2025
C6: TIPO SUPERFICIE | D6: MES (1) | E6: =G6-2 -> 2024 | F6: =G6-1 -> 2025 | G6: 2026 | H6: =CONCATENATE(F6,"=100") -> 2025=100 | J6: MES (1) | K6: =M6-2 -> 2024 | L6: =M6-1 -> 2025 | M6: 2026 | N6: =CONCATENATE(L6,"=100") -> 2025=100 | Q6: TIPO SUPERFICIE | R6: MES (1) | S6: =U6-2 -> 2024 | T6: =U6-1 -> 2025 | U6: 2026 | V6: =CONCATENATE(T6,"=100") -> 2025=100 | X6: MES (1) | Y6: =AA6-2 -> 2024 | Z6: =AA6-1 -> 2025 | AA6: 2026 | AB6: =CONCATENATE(Z6,"=100") -> 2025=100 | AE6: TIPO SUPERFICIE | AF6: MES (1) | AG6: =AI6-2 -> 2024 | AH6: =AI6-1 -> 2025 | AI6: 2026 | AJ6: =CONCATENATE(AH6,"=100") -> 2025=100 | AL6: MES (1) | AM6: =AO6-2 -> 2024 | AN6: =AO6-1 -> 2025 | AO6: 2026 | AP6: =CONCATENATE(AN6,"=100") -> 2025=100 | AS6: TIPO SUPERFICIE | AT6: MES (1) | AU6: 2023 | AV6: 2024 | AW6: 2025 | AX6: 2024=100 | AZ6: MES (1) | BA6: 2023 | BB6: 2024 | BC6: 2025 | BD6: 2024=100
H7: =IF(AND(F7>0,G7>0),G7*100/F7,"") ->  | N7: =IF(AND(L7>0,M7>0),M7*100/L7,"") ->  | V7: =IF(AND(T7>0,U7>0),U7*100/T7,"") ->  | AB7: =IF(AND(Z7>0,AA7>0),AA7*100/Z7,"") -> 
A8: CEREALES | O8: HORTALIZAS | AC8: FRUTALES | AJ8: =IF(AND(AH8>0,AI8>0),AI8*100/AH8,"") ->  | AP8: =IF(AND(AN8>0,AO8>0),AO8*100/AN8,"") ->  | AQ8: CÍTRICOS
A9: trigo de invierno | C9: cultivada | D9: 4 | E9: 1910.182 | F9: 1992.02224 | G9: 1929.03882 | H9: =IF(AND(F9>0,G9>0),G9*100/F9,"") -> 96.83821703 | J9: 4 | K9: 7048.859 | L9: 8362.167 | M9: 7070.103 | N9: 84.54869414 | O9: col.- resumen general | Q9: cosechada | R9: 3 | S9: 6.237 | T9: 6.393 | V9: =IF(AND(T9>0,U9>0),U9*100/T9,"") ->  | X9: 3 | Y9: 198.912 | Z9: 196.288 | AB9: =IF(AND(Z9>0,AA9>0),AA9*100/Z9,"") ->  | AC9: manzana sidra | AE9: recolectada | AF9: 11 | AG9: 8.06 | AH9: 8.068 | AJ9: =IF(AND(AH9>0,AI9>0),AI9*100/AH9,"") ->  | AL9: 11 | AM9: 70.453 | AN9: 93.119 | AP9: =IF(AND(AN9>0,AO9>0),AO9*100/AN9,"") ->  | AQ9: pomelo | AS9: recolectada | AT9: 4 | AU9: 2.735 | AV9: 2.626 | AW9: 2.933 | AX9: =IF(AND(AV9>0,AW9>0),AW9*100/AV9,"") -> 111.6907845 | AZ9: 4 | BA9: 85.287 | BB9: 85.006 | BC9: 105.242 | BD9: =IF(AND(BB9>0,BC9>0),BC9*100/BB9,"") -> 123.8053784
A10: trigo duro de invierno | C10: cultivada | D10: 4 | E10: 231.517 | F10: 210.69331 | G10: 200.5156 | H10: 95.16941948 | J10: 4 | K10: 722.199 | L10: 649.768 | M10: 624.864 | N10: 96.16724739 | O10: espárrago | Q10: cosechada | R10: 4 | S10: 12.896 | T10: 12.679 | U10: 12.46509 | V10: 98.31287956 | X10: 4 | Y10: 56.487 | Z10: 54.825 | AA10: 63.884 | AB10: 116.5234838 | AC10: manzano mesa | AE10: recolectada | AF10: 12 | AG10: 17.433 | AH10: 16.972 | AL10: 12 | AM10: 474.629 | AN10: 469.501
A11: trigo blando y semi de invierno | C11: cultivada | D11: 4 | E11: 1678.665 | F11: 1781.32793 | G11: 1728.52322 | H11: 97.03565474 | J11: 4 | K11: 6326.66 | L11: 7712.399 | M11: 6445.24 | N11: 83.56984643 | O11: apio | Q11: cosechada | R11: 3 | S11: 2.526 | T11: 2.711 | U11: 2.594 | V11: 95.68424935 | X11: 3 | Y11: 141.824 | Z11: 147.45 | AA11: 141.965 | AB11: 96.28009495 | AC11: manzano total | AE11: recolectada | AF11: 12 | AG11: 25.493 | AH11: 25.04 | AL11: 12 | AM11: 545.082 | AN11: 562.62
A12: trigo de primavera | C12: cultivada | D12: 4 | E12: 15.275 | F12: 11.93156 | G12: 12.45516 | H12: 104.3883616 | J12: 4 | K12: 48.648 | L12: 49.787 | M12: 49.773 | N12: 99.97188021 | O12: lechuga resumen general | Q12: cultivada | R12: 4 | S12: 32.775 | T12: 34.222 | U12: 33.00713 | V12: 96.45003214 | X12: 4 | Y12: 913.527 | Z12: 966.109 | AA12: 903.351 | AB12: 93.50404561 | AC12: manzano para consumo en fresco | AE12: recolectada | AF12: 12 | AG12: 15.548 | AH12: 15.112 | AL12: 12 | AM12: 435.119 | AN12: 411.353 | AQ12: RESUMEN DE LOS AVANCES DE SUPERFICIES Y PRODUCCIONES AGRÍCOLAS | AZ12: TOTALES NACIONALES | BC12: ABRIL 2026
A13: trigo duro de primavera | C13: cultivada | D13: 4 | E13: 2.727 | F13: 2.22706 | G13: 2.54377 | H13: 114.2209909 | J13: 4 | K13: 6.419 | L13: 7.19 | M13: 8.144 | N13: 113.2684284 | O13: lechuga en campo | Q13: cultivada | R13: 4 | S13: 31.906 | T13: 33.297 | U13: 32.06695 | V13: 96.30582335 | X13: 4 | Y13: 890.799 | Z13: 943.432 | AA13: 880.333 | AB13: 93.31175962 | AC13: manzano para transformación | AE13: recolectada | AF13: 12 | AG13: 9.945 | AH13: 9.928 | AL13: 12 | AM13: 109.963 | AN13: 151.267
A14: trigo blando y semi de primavera | C14: cultivada | D14: 4 | E14: 12.548 | F14: 9.7045 | G14: 9.91139 | H14: 102.1318976 | J14: 4 | K14: 42.229 | L14: 42.595 | M14: 41.63 | N14: 97.73447588 | O14: lechuga en invernadero | Q14: cultivada | R14: 4 | S14: 0.869 | T14: 0.925 | U14: 0.94017 | V14: 101.64 | X14: 4 | Y14: 22.728 | Z14: 22.677 | AA14: 23.019 | AB14: 101.508136 | AC14: pera total | AE14: recolectada | AF14: 12 | AG14: 15.997 | AH14: 15.703 | AL14: 12 | AM14: 222.023 | AN14: 261.503
A15: trigo. resumen general | C15: cultivada | D15: 4 | E15: 1925.457 | F15: 2003.95382 | G15: 1941.49398 | H15: 96.88316969 | J15: 4 | K15: 7097.507 | L15: 8410.592 | M15: 7119.877 | N15: 84.6536962 | O15: escarola | Q15: cosechada | R15: 3 | S15: 2.197 | T15: 2.285 | U15: 2.1765 | V15: 95.25164114 | X15: 3 | Y15: 54.857 | Z15: 61.022 | AA15: 58.456 | AB15: 95.7949592 | AC15: peral para consumo en fresco | AE15: recolectada | AF15: 12 | AG15: 14.701 | AH15: 14.426 | AL15: 12 | AM15: 203.643 | AN15: 242.757 | AT15: SUPERFICIES (Miles de Hectáreas) | AZ15: PRODUCCIONES (Miles de Toneladas)
A16: trigo duro | C16: cultivada | D16: 4 | E16: 234.244 | F16: 212.92037 | G16: 203.05937 | H16: 95.36869112 | J16: 4 | K16: 728.618 | L16: 656.958 | M16: 633.008 | N16: 96.35440926 | O16: espinaca | Q16: cultivada | R16: 4 | S16: 4.854 | T16: 5.104 | U16: 4.73474 | V16: 92.76528213 | X16: 4 | Y16: 89.817 | Z16: 90.989 | AA16: 74.378 | AB16: 81.74394707 | AC16: peral para transformación | AE16: recolectada | AF16: 12 | AG16: 1.296 | AH16: 1.277 | AL16: 12 | AM16: 18.38 | AN16: 18.746 | AQ16: CULTIVOS | AU16: PROVIS. | AV16: PROVIS. | AW16: AVANCE | AX16: =AW17 -> 2027 | BA16: PROVIS. | BB16: PROVIS. | BC16: AVANCE | BD16: =BC17 -> 2027
A17: trigo semiduro y blando | C17: cultivada | D17: 4 | E17: 1691.213 | F17: 1791.03245 | G17: 1738.43461 | H17: 97.06326706 | J17: 4 | K17: 6368.889 | L17: 7754.995 | M17: 6486.869 | N17: 83.64762324 | O17: grelo | Q17: cosechada | R17: 3 | S17: 5.611 | T17: 4.056 | U17: 4.05515 | V17: 99.97904339 | X17: 3 | Y17: 64.233 | Z17: 42.558 | AA17: 42.527 | AB17: 99.92715823 | AC17: albaricoquero | AE17: en producción | AF17: 3 | AG17: 16.228 | AH17: 15.274 | AI17: 15.2842 | AJ17: 100.0667801 | AL17: 3 | AM17: 155.567 | AN17: 133.966 | AO17: 151.977 | AP17: 113.4444561 | AS17: TIPO SUPERFICIE(*) | AT17: MES (*) | AU17: =AW17-2 -> 2025 | AV17: =AW17-1 -> 2026 | AW17: 2027 | AX17: =CONCATENATE(AV17,"=100") -> 2026=100 | AZ17: MES (*) | BA17: =BC17-2 -> 2025 | BB17: =BC17-1 -> 2026 | BC17: 2027 | BD17: =CONCATENATE(BB17,"=100") -> 2026=100
A18: centeno | C18: cultivada | D18: 4 | E18: 96.403 | F18: 97.20809 | G18: 95.64339 | H18: 98.39036031 | J18: 4 | K18: 223.309 | L18: 255.823 | M18: 220.61 | N18: 86.23540495 | O18: endivias (7) (12) | Q18: sembrada | R18: 4 | S18: 30 | T18: 30.8 | U18: 26 | V18: 84.41558442 | X18: 1 | Y18: 17.345 | Z18: 16.76 | AC18: cerezo y guindo | AE18: en producción | AF18: 3 | AG18: 25.809 | AH18: 25.777 | AI18: 25.71602 | AJ18: 99.76343252 | AL18: 3 | AM18: 121.429 | AN18: 124.754 | AO18: 131.456 | AP18: 105.3721724 | AX18: =IF(AND(AV18>0,AW18>0),AW18*100/AV18,"") ->  | BD18: =IF(AND(BB18>0,BC18>0),BC18*100/BB18,"") -> 
A19: tranquillón (mezcla de trigo y centeno) | C19: cultivada | D19: 4 | E19: 37.494 | F19: 33.01688 | G19: 32.45372 | H19: 98.29432702 | J19: 4 | K19: 107.889 | L19: 85.201 | M19: 93.314 | N19: 109.5221887 | O19: para formar raíz endivia (7) | Q19: sembrada | R19: 4 | S19: 27.9 | T19: 26.9 | U19: 26 | V19: 96.65427509 | X19: 8 | Y19: 9.094 | Z19: 8.704 | AC19: melocotonero | AE19: en producción | AF19: 4 | AG19: 25.41 | AH19: 24.991 | AI19: 24.498 | AJ19: 98.02728982 | AL19: 4 | AM19: 552.173 | AN19: 586.231 | AO19: 592.56 | AP19: 101.0796086 | AQ19: HORTALIZAS | AX19: =IF(AND(AV19>0,AW19>0),AW19*100/AV19,"") ->  | BD19: =IF(AND(BB19>0,BC19>0),BC19*100/BB19,"") -> 
A20: centeno y tranquillón | C20: cultivada | D20: 4 | E20: 133.897 | F20: 130.22461 | G20: 128.09711 | H20: 98.36628422 | J20: 4 | K20: 331.198 | L20: 342.536 | M20: 313.918 | N20: 91.64525772 | O20: para dar hoja endivia (7) | Q20: cosechada | R20: 1 | S20: 2.1 | T20: 3.8 | X20: 1 | Y20: 8.251 | Z20: 8.056 | AC20: melocotonero para consumo en fresco | AE20: recolectada | AF20: 11 | AG20: 22.932 | AH20: 22.691 | AL20: 11 | AM20: 482.949 | AN20: 524.93
A21: cebada de invierno | C21: cultivada | D21: 4 | E21: 2080.053 | F21: 2157.28691 | G21: 2148.56288 | H21: 99.59560177 | J21: 4 | K21: 6995.533 | L21: 8678.872 | M21: 7440.473 | N21: 85.73087609 | O21: sandía | Q21: cultivada | R21: 4 | S21: 21.792 | T21: 24.081 | U21: 24.18612 | V21: 100.4365267 | X21: 4 | Y21: 1222.713 | Z21: 1302.323 | AA21: 1392.302 | AB21: 106.9091155 | AC21: melocotonero para transformación | AE21: recolectada | AF21: 11 | AG21: 2.283 | AH21: 1.897 | AL21: 11 | AM21: 69.224 | AN21: 61.301 | AQ21: puerro | AS21: sembrada | AT21: 4 | AU21: 2.835 | AV21: 2.73971 | AW21: 2.81774 | AX21: =IF(AND(AV21>0,AW21>0),AW21*100/AV21,"") -> 102.8481117 | AZ21: 3 | BA21: 76.208 | BB21: 76.584 | BD21: =IF(AND(BB21>0,BC21>0),BC21*100/BB21,"") -> 
A22: cebada 2c de invierno | C22: cultivada | D22: 4 | E22: 1899.446 | F22: 1997.64031 | G22: 1991.89579 | H22: 99.71243472 | J22: 4 | K22: 6494.072 | L22: 8181.507 | M22: 6980.421 | N22: 85.31950165 | O22: melón .- resumen general | Q22: sembrada | R22: 3 | S22: 16.927 | T22: 18.555 | U22: 18.291 | V22: 98.57720291 | X22: 11 | Y22: 594.01 | Z22: 601.051 | AC22: nectarina | AE22: en producción | AF22: 3 | AG22: 23.042 | AH22: 23.041 | AI22: 23.0535 | AJ22: 100.0542511 | AL22: 3 | AM22: 525.778 | AN22: 541.069 | AO22: 563.107 | AP22: 104.073048 | AX22: =IF(AND(AV22>0,AW22>0),AW22*100/AV22,"") ->  | BD22: =IF(AND(BB22>0,BC22>0),BC22*100/BB22,"") -> 
A23: cebada 6c de invierno | C23: cultivada | D23: 4 | E23: 180.607 | F23: 159.64647 | G23: 156.66709 | H23: 98.13376393 | J23: 4 | K23: 501.461 | L23: 497.366 | M23: 460.05 | N23: 92.49727565 | O23: calabaza | Q23: sembrada | R23: 4 | S23: 6.638 | T23: 7.296 | U23: 7.127 | V23: 97.68366228 | X23: 12 | Y23: 169.776 | Z23: 171.306 | AC23: nectarina para consumo en fresco | AE23: recolectada | AF23: 11 | AG23: 21.798 | AH23: 21.477 | AL23: 11 | AM23: 491.035 | AN23: 505.871
A24: cebada de primavera | C24: cultivada | D24: 4 | E24: 129.325 | F24: 138.30047 | G24: 141.72925 | H24: 102.4792251 | J24: 4 | K24: 354.814 | L24: 520.518 | M24: 526.807 | N24: 101.2082195 | O24: calabacín | R24: 4 | S24: 11.1 | T24: 11.239 | U24: 11.21993 | V24: 99.83032298 | X24: 4 | Y24: 600.994 | Z24: 624.177 | AA24: 629.64 | AB24: 100.8752325 | AC24: nectarina para transformación | AE24: recolectada | AF24: 11 | AG24: 1.146 | AH24: 1.149 | AL24: 11 | AM24: 34.743 | AN24: 35.198
A25: cebada 2c de primavera | C25: cultivada | D25: 4 | E25: 128.543 | F25: 136.71403 | G25: 139.9226 | H25: 102.3469208 | J25: 4 | K25: 352.696 | L25: 514.095 | M25: 520.358 | N25: 101.2182573 | O25: calabacín en campo | Q25: cultivada | R25: 4 | S25: 2.389 | T25: 2.576 | U25: 2.38747 | V25: 92.68128882 | X25: 4 | Y25: 94.415 | Z25: 96.584 | AA25: 92.075 | AB25: 95.33152489 | AC25: melocotoneros planos (paraguayo) | AE25: en producción | AF25: 4 | AG25: 11.53 | AH25: 11.593 | AI25: 9.842 | AJ25: 84.89605797 | AL25: 4 | AM25: 280.522 | AN25: 275.405 | AO25: 279.193 | AP25: 101.3754289
A26: cebada 6c de primavera | C26: cultivada | D26: 4 | E26: 0.782 | F26: 1.58644 | G26: 1.80665 | H26: 113.8807645 | J26: 4 | K26: 2.118 | L26: 6.424 | M26: 6.451 | N26: 100.4202989 | O26: calabacín en invernadero | Q26: cosechada | R26: 4 | S26: 8.711 | T26: 8.687 | U26: 8.83246 | V26: 101.6744561 | X26: 4 | Y26: 506.579 | Z26: 527.592 | AA26: 537.565 | AB26: 101.8902864 | AC26: melocotonero planos (paraguayo) consumo en fresco | AE26: recolectada | AF26: 11 | AG26: 11.204 | AH26: 11.246 | AL26: 11 | AM26: 275.079 | AN26: 268.032
A27: cebada total | C27: cultivada | D27: 4 | E27: 2209.378 | F27: 2297.44238 | G27: 2290.29214 | H27: 99.68877391 | J27: 4 | K27: 7350.347 | L27: 9199.502 | M27: 7967.28 | N27: 86.60555756 | O27: pepino (*) | R27: 3 | S27: 8.602 | T27: 10.13 | U27: 10.14137 | V27: 100.1122409 | X27: 3 | Y27: 757.641 | Z27: 912.981 | AA27: 902.459 | AB27: 98.84751161 | AC27: melocotonero planos (paraguayo) transformación | AE27: recolectada | AF27: 11 | AG27: 0.201 | AH27: 0.288 | AL27: 11 | AM27: 5.443 | AN27: 7.373
A28: cebada 2 carreras | C28: cultivada | D28: 4 | E28: 2027.989 | F28: 2134.35435 | G28: 2131.8184 | H28: 99.88118421 | J28: 4 | K28: 6846.768 | L28: 8695.601 | M28: 7500.778 | N28: 86.25945464 | O28: pepino en campo | Q28: sembrada | R28: 4 | S28: 0.464 | T28: 0.47 | U28: 0.47587 | V28: 101.2489362 | X28: 10 | Y28: 13.828 | Z28: 14.451 | AC28: nectarinas planas (platerina) | AE28: en producción | AF28: 3 | AG28: 0.953 | AH28: 1.158 | AI28: 1.1994 | AJ28: 103.5751295 | AL28: 3 | AM28: 18.426 | AN28: 24.905 | AO28: 26.142 | AP28: 104.9668741
A29: cebada 6 carreras | C29: cultivada | D29: 4 | E29: 181.389 | F29: 161.23291 | G29: 159.47374 | H29: 98.90892622 | J29: 4 | K29: 503.579 | L29: 503.9 | M29: 466.501 | N29: 92.57809089 | O29: pepino en invernadero | Q29: cultivada | R29: 3 | S29: 8.148 | T29: 9.662 | U29: 9.6655 | V29: 100.0362244 | X29: 3 | Y29: 743.813 | Z29: 898.53 | AA29: 902.459 | AB29: 100.4372698 | AC29: nectarinas planas (platerina) consumo en fresco | AE29: recolectada | AF29: 11 | AG29: 0.94 | AH29: 1.119 | AL29: 11 | AM29: 18.183 | AN29: 24.027
A30: avena | C30: cultivada | D30: 4 | E30: 506.648 | F30: 511.80526 | G30: 496.52317 | H30: 97.0140811 | J30: 4 | K30: 1144.585 | L30: 1317.041 | M30: 1172.501 | N30: 89.0253986 | O30: pepinillo (7) | Q30: cultivada | R30: 3 | S30: 1.2 | T30: 2.2 | U30: 2 | V30: 90.90909091 | X30: 3 | Y30: 0.149 | Z30: 0.515 | AA30: 0.514 | AB30: 99.80582524 | AC30: nectarinas planas (platerina) transformación | AE30: recolectada | AF30: 11 | AG30: 0.01 | AH30: 0.027 | AL30: 11 | AM30: 0.243 | AN30: 0.878
A31: mezclas de granos distintos del tranquillón | C31: cultivada | D31: 4 | E31: 5.522 | F31: 4.68947 | G31: 14.12566 | H31: 301.2208203 | J31: 4 | K31: 11.263 | L31: 16.497 | M31: 20.076 | N31: 121.6948536 | O31: berenjena | Q31: cultivada | R31: 4 | S31: 3.59 | T31: 3.64 | U31: 3.665 | V31: 100.6868132 | X31: 4 | Y31: 297.664 | Z31: 291.742 | AA31: 294.726 | AB31: 101.0228215 | AC31: ciruelo | AE31: en producción | AF31: 3 | AG31: 11.064 | AH31: 11.002 | AI31: 10.944 | AJ31: 99.47282312 | AL31: 3 | AM31: 135.749 | AN31: 154.385 | AO31: 162.115 | AP31: 105.0069631
A32: avena y otras mezclas de cereales de primavera distintos del tranquillón | C32: cultivada | D32: 4 | E32: 512.17 | F32: 516.51419 | G32: 510.64883 | H32: 98.86443391 | J32: 4 | K32: 1155.848 | L32: 1328.434 | M32: 1192.582 | N32: 89.77352281 | O32: tomate de recolección 1-i al 31 - v | Q32: cosechada | R32: 3 | S32: 9.122 | T32: 8.971 | U32: 8.7677 | V32: 97.73380894 | X32: 3 | Y32: 788.061 | Z32: 785.019 | AA32: 798.113 | AB32: 101.6679851 | AC32: higuera | AE32: en producción | AF32: 3 | AG32: 12.883 | AH32: 12.967 | AI32: 12.857 | AJ32: 99.15169276 | AL32: 3 | AM32: 55.417 | AN32: 67.365 | AO32: 68.863 | AP32: 102.2237067
A33: maíz grano (no incluye forrajero ni dulce) | C33: sembrada | D33: 4 | E33: 288.899 | F33: 323.31015 | G33: 323.91491 | H33: 100.1870526 | J33: 2 | K33: 3542.481 | L33: 3984.074 | O33: tomate de recolección 1-vi al 30 - ix | Q33: sembrada | R33: 4 | S33: 41.312 | T33: 35.79 | U33: 39.91177 | V33: 111.5165409 | X33: 12 | Y33: 3350.114 | Z33: 2765.405 | AC33: granado | AE33: recolectada | AF33: 11 | AG33: 4.528 | AH33: 4.367 | AL33: 11 | AM33: 64.809 | AN33: 78.79
A34: triticale | C34: cultivada | D34: 4 | E34: 244.548 | F34: 285.86827 | G34: 284.73566 | H34: 99.60380003 | J34: 4 | K34: 617.828 | L34: 860.09 | M34: 818.788 | N34: 95.1979444 | O34: tomate de recolección 1-x al 31-xii | Q34: cosechada | R34: 12 | S34: 4.964 | T34: 4.942 | X34: 12 | Y34: 436.107 | Z34: 438.323 | AC34: aguacate | AE34: recolectada | AF34: 3 | AG34: 17.609 | AH34: 18.88 | AL34: 3 | AM34: 112.361 | AN34: 142.341
A35: sorgo | C35: sembrada | D35: 4 | E35: 6.503 | F35: 5.82571 | G35: 5.40489 | H35: 92.77650278 | J35: 12 | K35: 27.192 | L35: 20.185 | O35: tomate.- resumen general (*) | R35: 4 | S35: 55.292 | T35: 49.448 | U35: 48.67947 | V35: 98.44578143 | X35: 4 | Y35: 4574.282 | Z35: 3988.747 | AA35: 797.594 | AB35: 19.99610404 | AC35: platanera | AE35: en producción | AF35: 2 | AG35: 8.468 | AH35: 8.339 | AI35: 8.339 | AJ35: 100 | AL35: 2 | AM35: 421.321 | AN35: 375.823 | AO35: 421.142 | AP35: 112.0586021
A36: quinoa | C36: sembrada | D36: 4 | E36: 2.369 | F36: 1.56912 | G36: 1.748 | H36: 111.4000204 | J36: 10 | K36: 3.418 | L36: 2.726 | O36: tomate consumo en fresco | Q36: sembrada | R36: 3 | S36: 20.982 | T36: 20.833 | U36: 15.9699 | V36: 76.65674651 | X36: 12 | Y36: 1650.951 | Z36: 1669.636 | AC36: kiwi | AE36: recolectada | AF36: 12 | AG36: 1.487 | AH36: 1.5 | AL36: 12 | AM36: 29.644 | AN36: 30.573
A37: arroz indica | C37: sembrada | D37: 4 | E37: 35.604 | F37: 44.46709 | G37: 46.04006 | H37: 103.5373801 | J37: 11 | K37: 262.694 | L37: 385.136 | O37: tomate de industría (5) | Q37: sembrada | R37: 3 | S37: 34.502 | T37: 28.903 | U37: 32.716 | V37: 113.1924022 | X37: 12 | Y37: 2923.331 | Z37: 2319.111 | AC37: mango | AE37: en producción | AF37: 3 | AG37: 5.412 | AH37: 5.601 | AI37: 5.603 | AJ37: 100.0357079 | AL37: 3 | AM37: 27.057 | AN37: 48.673 | AO37: 53.772 | AP37: 110.4760339
A38: arroz japónica | C38: sembrada | D38: 4 | E38: 50.336 | F38: 51.3557 | G38: 50.24475 | H38: 97.83675425 | J38: 11 | K38: 349.108 | L38: 349.284 | O38: tomate en invernadero | Q38: sembrada | R38: 3 | S38: 16.71 | T38: 16.43 | U38: 12.89486 | V38: 78.48362751 | W38: =IF(AND(U38>0,V38>0),V38*100/U38,"") -> 608.6427267 | X38: 3 | Y38: 1501.84 | Z38: 1494.817 | AC38: caqui | AE38: recolectada | AF38: 12 | AG38: 14.725 | AH38: 14.873 | AL38: 12 | AM38: 240.429 | AN38: 329.64
A39: arroz (cáscara) | C39: sembrada | D39: 4 | E39: 85.94 | F39: 97.00778 | G39: 96.28481 | H39: 99.25472988 | J39: 11 | K39: 611.802 | L39: 734.42 | O39: pimiento (6) | Q39: sembrada | R39: 4 | S39: 23.224 | T39: 22.787 | U39: 22.813 | V39: 100.1141001 | X39: 12 | Y39: 1514.419 | Z39: 1494.778 | AC39: grosellero | AE39: en producción | AF39: 4 | AG39: 0.009 | AH39: 0.008 | AI39: 0.008 | AJ39: 100 | AL39: 4 | AM39: 0.031 | AN39: 0.032 | AO39: 0.032 | AP39: 100
O40: pimiento consumo en fresco | Q40: sembrada | R40: 4 | S40: 20.977 | T40: 19.166 | U40: 19.18034 | V40: 100.07482 | X40: 11 | Y40: 1424.976 | Z40: 1346.076 | AC40: frambueso | AE40: en producción | AF40: 4 | AG40: 1.675 | AH40: 1.821 | AI40: 1.9 | AJ40: 104.3382757 | AL40: 4 | AM40: 30.231 | AN40: 33.199 | AO40: 33.297 | AP40: 100.2951896
A41: LEGUMINOSAS GRANO | O41: pimiento de conserva | Q41: sembrada | R41: 4 | S41: 2.332 | T41: 3.621 | U41: 3.635 | V41: 100.3866335 | X41: 11 | Y41: 89.443 | Z41: 148.702 | AC41: arándano | AE41: en producción | AF41: 4 | AG41: 4.779 | AH41: 5.137 | AI41: 5.37538 | AJ41: 104.6404516 | AL41: 4 | AM41: 60.951 | AN41: 70.687 | AO41: 70.522 | AP41: 99.7665766
A42: judías secas | C42: sembrada | D42: 4 | E42: 10.619 | F42: 11.35693 | G42: 11.01571 | H42: =IF(AND(F42>0,G42>0),G42*100/F42,"") -> 96.99549086 | J42: 12 | K42: 18.363 | L42: 25.352 | O42: pimiento en invernadero | Q42: sembrada | R42: 4 | S42: 15.699 | T42: 15.94 | U42: 16.30679 | V42: =IF(AND(T42>0,U42>0),U42*100/T42,"") -> 102.3010665 | X42: 12 | Y42: 1216.206 | Z42: 1218.729 | AB42: =IF(AND(Z42>0,AA42>0),AA42*100/Z42,"") ->  | AC42: almendro (cáscara) (8) | AE42: en producción | AF42: 4 | AG42: 663.181 | AH42: 674.442 | AI42: 679.326 | AJ42: 100.7241542 | AL42: 4 | AM42: 369.696 | AN42: 453.004 | AO42: 490.905 | AP42: 108.3665928
A43: habas secas | C43: cultivada | D43: 4 | E43: 31.777 | F43: 31.6068 | G43: 31.90134 | H43: 100.9318881 | J43: 4 | K43: 51.69 | L43: 39.081 | M43: 43.359 | N43: 110.9464957 | O43: alcachofa | Q43: cosechada | R43: 3 | S43: 11.851 | T43: 12.867 | X43: 3 | Y43: 175.608 | Z43: 211.69 | AC43: nogal (cáscara) (8) | AE43: recolectada | AF43: 11 | AG43: 10.66 | AH43: 10.675 | AL43: 11 | AM43: 20.056 | AN43: 21.359
A44: lentejas | C44: cultivada | D44: 4 | E44: 33.168 | F44: 32.61212 | G44: 37.89209 | H44: 116.1902078 | J44: 4 | K44: 26.256 | L44: 27.327 | M44: 34.83 | N44: 127.4563618 | O44: brócoli | Q44: cosechada | R44: 3 | S44: 32.617 | T44: 34.015 | X44: 3 | Y44: 485.228 | Z44: 519.46 | AC44: avellano (cáscara) (8) | AE44: en producción | AF44: 4 | AG44: 8.81 | AH44: 8.319 | AI44: 8.092 | AJ44: 97.27130665 | AL44: 4 | AM44: 3.015 | AN44: 3.288 | AO44: 3.359 | AP44: 102.1593674
A45: garbanzos | C45: cultivada | D45: 4 | E45: 79.984 | F45: 63.37802 | G45: 65.77224 | H45: 103.7776819 | J45: 4 | K45: 82.652 | L45: 56.763 | M45: 61.288 | N45: 107.9717422 | O45: coliflor | Q45: cosechada | R45: 3 | S45: 7.781 | T45: 9.116 | X45: 3 | Y45: 178.82 | Z45: 199.158 | AC45: castaño fruto | AE45: recolectada | AF45: 12 | AG45: 33.587 | AH45: 34.537 | AL45: 12 | AM45: 181.806 | AN45: 160.098
A46: guisantes secos | C46: cultivada | D46: 4 | E46: 191.736 | F46: 184.55133 | G46: 194.29422 | H46: 105.2792304 | J46: 4 | K46: 259.593 | L46: 311.875 | M46: 274.668 | N46: 88.0698998 | O46: ajo | Q46: sembrada | R46: 4 | S46: 22.859 | T46: 24.733 | U46: 24.19399 | V46: 97.82068491 | X46: 8 | Y46: 245.697 | Z46: 248.467 | AC46: pistacho | AE46: en producción | AF46: 4 | AG46: 34.84 | AH46: 39.007 | AI46: 41.255 | AJ46: 105.7630682 | AL46: 4 | AM46: 24.201 | AN46: 34.18 | AO46: 36.895 | AP46: 107.9432417
A47: veza | C47: cultivada | D47: 4 | E47: 71.137 | F47: 76.64128 | G47: 82.0201 | H47: 107.0181761 | J47: 4 | K47: 78.494 | L47: 88.32 | M47: 86.917 | N47: 98.41145833 | O47: cebolla babosa | Q47: cultivada | R47: 4 | S47: 4.615 | T47: 4.326 | U47: 3.42694 | V47: 79.2172908 | X47: 4 | Y47: 230.782 | Z47: 173.543 | AA47: 143.76 | AB47: 82.83825911 | AC47: algarrobo | AE47: recolectada | AF47: 11 | AG47: 35.754 | AH47: 35.301 | AL47: 11 | AM47: 29.06 | AN47: 35.018
A48: altramuz dulce | C48: cultivada | D48: 4 | E48: 2.369 | F48: 2.94014 | G48: 2.35 | H48: 79.92816669 | J48: 4 | K48: 2.066 | L48: 3.197 | M48: 2.128 | N48: 66.56240225 | O48: cebolla medio grano o liria | Q48: sembrada | R48: 4 | S48: 3.573 | T48: 3.087 | U48: 3.333 | V48: 107.9689018 | X48: 10 | Y48: 199.294 | Z48: 170.081
A49: yeros | C49: sembrada | D49: 2 | E49: 90.482 | F49: 104.61965 | G49: 91.21664 | H49: 87.1888216 | J49: 9 | K49: 68.149 | L49: 82.066 | O49: cebolla grano o valenciana | Q49: sembrada | R49: 4 | S49: 8.974 | T49: 9.22 | U49: 9.06624 | V49: 98.33232104 | X49: 10 | Y49: 578.513 | Z49: 582.773 | AC49: VIÑEDO | AJ49: =IF(AND(AH49>0,AI49>0),AI49*100/AH49,"") ->  | AP49: =IF(AND(AN49>0,AO49>0),AO49*100/AN49,"") -> 
O50: otras cebollas | Q50: sembrada | R50: 4 | S50: 7.971 | T50: 7.555 | U50: 7.28246 | V50: 96.39258769 | X50: 12 | Y50: 367.439 | Z50: 322.001 | AC50: viñedo de uva de mesa | AE50: recolectada | AF50: 11 | AG50: 14.08 | AH50: 14.078 | AJ50: =IF(AND(AH50>0,AI50>0),AI50*100/AH50,"") ->  | AL50: 11 | AM50: 363.989 | AN50: 341.439 | AP50: =IF(AND(AN50>0,AO50>0),AO50*100/AN50,"") -> 
A51: TUBÉRCULOS | F51: =IF(AND(D51>0,E51>0),E51*100/D51,"") ->  | O51: cebolla.- resumen general (*) | R51: 4 | S51: 25.04 | T51: 24.12 | U51: 23.10864 | V51: 95.80696517 | X51: 4 | Y51: 1376.028 | Z51: 1248.398 | AA51: 143.76 | AB51: 11.51555834 | AC51: uva mesa destino DRCF | AL51: 11 | AM51: 174.806 | AN51: 147.891
A52: patata extratemprana | C52: cosechada | D52: 4 | E52: 2.123 | F52: 2.236 | G52: 2.39572 | H52: =IF(AND(F52>0,G52>0),G52*100/F52,"") -> 107.1431127 | J52: 4 | K52: 55.09 | L52: 57.285 | M52: 58.502 | N52: =IF(AND(L52>0,M52>0),M52*100/L52,"") -> 102.1244654 | O52: puerro | Q52: cosechada | R52: 3 | S52: 2.601 | T52: 2.831 | U52: 2.81168 | V52: 99.31755563 | X52: 3 | Y52: 66.322 | Z52: 76.208 | AA52: 76.584 | AB52: 100.4933865 | AC52: uva mesa destino DRVM | AL52: 12 | AM52: 4.53
A53: patata temprana | C53: cultivada | D53: 4 | E53: 13.424 | F53: 14.54264 | G53: 14.63525 | H53: =IF(AND(F53>0,G53>0),G53*100/F53,"") -> 100.636817 | J53: 4 | K53: 451.814 | L53: 409.24511 | M53: 419.169 | N53: =IF(AND(L53>0,M53>0),M53*100/L53,"") -> 102.4249257 | O53: zanahoria | Q53: cultivada | R53: 3 | S53: 7.491 | T53: 7.508 | U53: 7.37332 | V53: 98.20618007 | X53: 3 | Y53: 393.741 | Z53: 394.299 | AA53: 384.943 | AB53: 97.6271814 | AC53: viñedo de uva para vinificación (9) | AE53: recolectada | AF53: 3 | AG53: 804.518 | AH53: 798.698 | AL53: 3 | AM53: 5021.888 | AN53: 4482.594
A54: patata media estación | C54: sembrada | D54: 4 | E54: 27.718 | F54: 29.99039 | G54: 28.99046 | H54: =IF(AND(F54>0,G54>0),G54*100/F54,"") -> 96.66583195 | J54: 11 | K54: 778.467 | L54: 715.857 | N54: =IF(AND(L54>0,M54>0),M54*100/L54,"") ->  | O54: rábanos (7) | Q54: cultivada | R54: 3 | S54: 19.7 | T54: 20 | U54: 19.7 | V54: 98.5 | X54: 3 | Y54: 3.216 | Z54: 3.174 | AA54: 3.394 | AB54: 106.931317 | AC54: uva vinificación destino DRCF | AL54: 3 | AM54: 0.037 | AN54: 0.035
A55: patata tardía | C55: sembrada | D55: 4 | E55: 18.115 | F55: 19.92584 | G55: 18.51515 | H55: =IF(AND(F55>0,G55>0),G55*100/F55,"") -> 92.92029847 | J55: 12 | K55: 685.8 | L55: 766.315 | N55: =IF(AND(L55>0,M55>0),M55*100/L55,"") ->  | O55: nabo | Q55: cosechada | R55: 3 | S55: 0.405 | T55: 0.239 | U55: 0.2035 | V55: 85.14644351 | X55: 3 | Y55: 8.011 | Z55: 4.914 | AA55: 4.605 | AB55: 93.71184371 | AC55: uva vinificación destino DRVM | AL55: 3 | AM55: 5020.196 | AN55: 4480.589
A56: patata total (*) | D56: 4 | E56: 60.947 | F56: 66.66024 | G56: 64.53658 | H56: =IF(AND(F56>0,G56>0),G56*100/F56,"") -> 96.81420289 | J56: 4 | K56: 1971.171 | L56: 1947.962 | M56: 477.671 | N56: =IF(AND(L56>0,M56>0),M56*100/L56,"") -> 24.52157691 | O56: judías verdes (con vaina) | Q56: sembrada | R56: 3 | S56: 5.973 | T56: 6.059 | U56: 6.01218 | V56: 99.22726523 | X56: 11 | Y56: 116.224 | Z56: 112.275 | AC56: viñedo de uva para pasificación (10) | AE56: recolectada | AF56: 11 | AG56: 1.392 | AH56: 0.764 | AL56: 11 | AM56: 1.392 | AN56: 0.615
O57: guisantes verdes. en grano (sin vaina) | Q57: cultivada | R57: 3 | S57: 13.65 | T57: 14.754 | U57: 14.02039 | V57: 95.0277213 | X57: 3 | Y57: 98 | Z57: 89.756 | AA57: 102.987 | AB57: 114.7410758 | AC57: total viñedo | AE57: recolectada | AF57: 3 | AG57: 819.99 | AH57: 813.54 | AL57: 3 | AM57: 5387.269 | AN57: 4824.648
A58: CULTIVOS INDUSTRIALES | O58: habas verdes. en grano (sin vaina) | Q58: cultivada | R58: 3 | S58: 3.585 | T58: 3.368 | U58: 3.214 | V58: 95.42755344 | X58: 3 | Y58: 28.539 | Z58: 25.545 | AA58: 23.147 | AB58: 90.61264435 | AC58: total viñedo destino DRCF | AL58: 3 | AM58: 174.843 | AN58: 147.926
A59: remolacha azucarera (r. verano) | C59: cultivada | D59: 4 | E59: 9.892 | F59: 6.02015 | G59: 5.996 | H59: =IF(AND(F59>0,G59>0),G59*100/F59,"") -> 99.5988472 | J59: 4 | K59: 767.581 | L59: 426.009 | M59: 386.316 | N59: =IF(AND(L59>0,M59>0),M59*100/L59,"") -> 90.68259121 | O59: fresa y fresón | Q59: cosechada | R59: 4 | S59: 6.92 | T59: 7.04 | U59: 7.27989 | V59: 103.4075284 | X59: 4 | Y59: 323.541 | Z59: 332.052 | AA59: 339.92 | AB59: 102.3695084 | AC59: total viñedo destino DRDM | AL59: 3 | AM59: 5024.726 | AN59: 4480.589
A60: remolacha azucarera (r. invierno) | C60: sembrada | D60: 4 | E60: 35.801 | F60: 19.95512 | G60: 18.445 | H60: 92.43241835 | J60: 3 | K60: 2754.655 | L60: 1792.721 | O60: fresas en campo | Q60: cosechada | R60: 4 | S60: 0.216 | T60: 0.19 | U60: 0.14411 | V60: 75.84736842 | X60: 4 | Y60: 4.07 | Z60: 3.583 | AA60: 2.983 | AB60: 83.25425621 | AC60: total vino | AL60: 3 | AM60: 30770.702 | AN60: 27564.183
A61: remolacha azucarera (*) | D61: 4 | E61: 45.676 | F61: 25.86732 | G61: 24.44132 | H61: 94.48725264 | J61: 4 | K61: 3522.236 | L61: 2218.67 | M61: 386.316 | N61: 17.41205317 | O61: fresas en invernadero | Q61: cosechada | R61: 4 | S61: 6.704 | T61: 6.85 | U61: 7.13577 | V61: 104.1718248 | X61: 4 | Y61: 319.471 | Z61: 328.469 | AA61: 337.1 | AB61: 102.6276452 | AC61: total en mosto equivalente | AL61: 3 | AM61: 6043.21 | AN61: 5010.597
A62: algodón ( bruto ) (2) | C62: sembrada | D62: 4 | E62: 51.08 | F62: 46.80984 | G62: 47.02841 | H62: 100.4669317 | J62: 12 | K62: 112.348 | L62: 133.37 | O62: champiñon (7) | Q62: cosechada | R62: 4 | S62: 45.071 | T62: 45.224 | U62: 45.3 | V62: 100.1680524 | X62: 4 | Y62: 145.009 | Z62: 142.288 | AA62: 142.342 | AB62: 100.0379512 | AC62: total producto vitivinicolas (vino + mosto) (11) | AL62: 3 | AM62: 36813.912 | AN62: 32574.78
A63: lino textil ( fibra ) | C63: cosechada | D63: 9 | E63: 0.02 | F63: 0.001 | J63: 9 | K63: 0.072 | L63: 0.003 | O63: otras setas (7) | Q63: cosechada | R63: 4 | S63: 9.221 | T63: 9.392 | U63: 9.559 | V63: 101.778109 | X63: 4 | Y63: 16.89 | Z63: 17.29 | AA63: 17.865 | AB63: 103.3256217
A64: cáñamo textil ( fibra ) | C64: sembrada | D64: 4 | E64: 0.053 | F64: 0.033 | G64: 0.034 | H64: 103.030303 | J64: 9 | K64: 0.147 | L64: 0.174 | AC64: OLIVAR | AJ64: =IF(AND(AH64>0,AI64>0),AI64*100/AH64,"") ->  | AP64: =IF(AND(AN64>0,AO64>0),AO64*100/AN64,"") -> 
A65: girasol | C65: sembrada | D65: 4 | E65: 754.433 | F65: 665.48892 | G65: 722.432 | H65: 108.5565782 | J65: 11 | K65: 832.702 | L65: 786.957 | O65: CÍTRICOS | AC65: olivar de aceituna de mesa | AE65: recolectada | AF65: 11 | AG65: 108.522 | AH65: 109.691 | AJ65: =IF(AND(AH65>0,AI65>0),AI65*100/AH65,"") ->  | AL65: 11 | AM65: 304.14 | AN65: 319.946 | AP65: =IF(AND(AN65>0,AO65>0),AO65*100/AN65,"") -> 
A66: soja | C66: sembrada | D66: 4 | E66: 3.116 | F66: 2.78221 | G66: 2.529 | H66: 90.89896162 | J66: 11 | K66: 10.724 | L66: 8.75 | O66: naranja dulce | Q66: recolectada | R66: 2 | S66: 133.304 | T66: 132.547 | V66: =IF(AND(T66>0,U66>0),U66*100/T66,"") ->  | X66: 2 | Y66: 2897.832 | Z66: 2947.031 | AB66: =IF(AND(Z66>0,AA66>0),AA66*100/Z66,"") ->  | AC66: aceituna de mesa destino DAAD | AL66: 11 | AM66: 301.058 | AN66: 318.55
A67: colza y nabo de invierno | C67: cultivada | D67: 4 | E67: 97.767 | F67: 102.24282 | G67: 76.295 | H67: 74.62137684 | J67: 4 | K67: 225.676 | L67: 268.228 | M67: 189.148 | N67: 70.51761934 | O67: naranja amargo | Q67: recolectada | R67: 2 | S67: 0.298 | T67: 0.286 | X67: 2 | Y67: 7.11 | Z67: 5.768 | AC67: aceituna de mesa destino DACE | AL67: 11 | AM67: 2.98 | AN67: 1.308
A68: colza de invierno | C68: cultivada | D68: 4 | E68: 97.767 | F68: 101.98844 | G68: 76.295 | H68: 74.80749779 | J68: 4 | K68: 225.676 | L68: 267.463 | M68: 189.148 | N68: 70.71931445 | O68: satsuma | Q68: recolectada | R68: 1 | S68: 4.786 | T68: 4.542 | X68: 1 | Y68: 103.209 | Z68: 90.984 | AC68: olivar de aceituna de almazara | AE68: recolectada | AF68: 3 | AG68: 2052.505 | AH68: 1968.056 | AL68: 3 | AM68: 7021.422 | AN68: 6225.716
A69: nabo de invierno | C69: cultivada | D69: 4 | F69: 0.24978 | J69: 8 | L69: 0.764 | O69: clementinas | Q69: recolectada | R69: 1 | S69: 48.432 | T69: 47.245 | X69: 1 | Y69: 851.956 | Z69: 873.833 | AC69: aceituna de almazara destino DAAD | AL69: 3 | AM69: 1.012 | AN69: 0.109
A70: colza y nabo de primavera | C70: cultivada | D70: 4 | E70: 0.005 | J70: 12 | K70: 0.006 | O70: otras mandarinas | Q70: recolectada | R70: 1 | S70: 35.032 | T70: 36.099 | X70: 1 | Y70: 860.349 | Z70: 833.27 | AC70: aceituna de almazara destino DACE | AL70: 3 | AM70: 7018.878 | AN70: 6222.903
A71: colza de primavera | C71: cultivada | D71: 4 | E71: 0.005 | J71: 12 | K71: 0.006 | O71: total mandarino | R71: 1 | S71: 88.25 | T71: 87.886 | X71: 1 | Y71: 1815.514 | Z71: 1798.087 | AC71: olivar de doble aptitud | AE71: recolectada | AF71: 3 | AG71: 353.591 | AH71: 348.954 | AL71: 3 | AM71: 1109.91 | AN71: 1017.691
A72: nabo de primavera | O72: limonero | Q72: recolectada | R72: 2 | S72: 43.495 | T72: 45.038 | X72: 2 | Y72: 915.488 | Z72: 818.87 | AC72: aceituna doble aptitud destino DAAD | AL72: 3 | AM72: 370.657 | AN72: 202.998
A73: colza y nabo | C73: cultivada | D73: 4 | E73: 97.772 | F73: 102.25382 | G73: 76.295 | H73: =IF(AND(F73>0,G73>0),G73*100/F73,"") -> 74.61334941 | J73: 4 | K73: 225.682 | L73: 268.228 | M73: 189.148 | N73: =IF(AND(L73>0,M73>0),M73*100/L73,"") -> 70.51761934 | O73: limero | Q73: recolectada | R73: 1 | S73: 0.298 | T73: 0.359 | X73: 1 | Y73: 4.025 | Z73: 4.617 | AC73: aceituna doble aptitud destino DACE | AL73: 3 | AM73: 739.146 | AN73: 814.27
A74: colza | C74: cultivada | D74: 4 | E74: 97.772 | F74: 101.99344 | G74: 76.295 | H74: =IF(AND(F74>0,G74>0),G74*100/F74,"") -> 74.80383052 | J74: 4 | K74: 225.682 | L74: 267.463 | M74: 189.148 | N74: =IF(AND(L74>0,M74>0),M74*100/L74,"") -> 70.71931445 | O74: pomelo | Q74: recolectada | R74: 4 | S74: 2.626 | T74: 2.933 | X74: 4 | Y74: 85.006 | Z74: 105.242 | AC74: total olivar | AF74: 3 | AG74: 2514.618 | AH74: 2426.701 | AL74: 3 | AM74: 8435.472 | AN74: 7563.353
A75: nabo | C75: cultivada | D75: 4 | F75: 0.26038 | G75: 0.006 | H75: =IF(AND(F75>0,G75>0),G75*100/F75,"") -> 2.304324449 | J75: 8 | L75: 0.764 | N75: =IF(AND(L75>0,M75>0),M75*100/L75,"") ->  | AC75: total olivar destino DAAD | AL75: 3 | AM75: 672.727 | AN75: 521.657
A76: pimiento para pimentón | C76: sembrada | D76: 4 | E76: 1.979 | F76: 2.035 | G76: 1.741 | H76: =IF(AND(F76>0,G76>0),G76*100/F76,"") -> 85.55282555 | J76: 10 | K76: 6.625 | L76: 7.611 | N76: =IF(AND(L76>0,M76>0),M76*100/L76,"") ->  | O76: (1) Mes al que corresponde la última estimación | AC76: total olivar destino DACE | AL76: 3 | AM76: 7761.004 | AN76: 7038.481
A77: tabaco (3) | C77: cosechada | D77: 11 | E77: 6.182 | F77: 6.5 | H77: =IF(AND(F77>0,G77>0),G77*100/F77,"") ->  | J77: 11 | K77: 19.409 | L77: 20.769 | N77: =IF(AND(L77>0,M77>0),M77*100/L77,"") ->  | O77: (2) Producción bruta para fibra | AC77: aceite de oliva total | AL77: 3 | AM77: 1401.354 | AN77: 1189.685
O78: (3) Tabaco seco no fermentado | AJ78: =IF(AND(AH78>0,AI78>0),AI78*100/AH78,"") ->  | AP78: =IF(AND(AN78>0,AO78>0),AO78*100/AN78,"") -> 
A79: CULTIVOS FORRAJEROS (4) | O79: (4) Producción en verde | AC79: Nota: En leñosos, la producción total puede diferir en algunos casos del sumatorio de secano y regadío, al incluirse la producción estimada de árboles diseminados.
A80: cereal de invierno para forraje | C80: cosechada | D80: 4 | E80: 274.225 | F80: 255.63229 | G80: 224.948 | H80: =IF(AND(F80>0,G80>0),G80*100/F80,"") -> 87.99670808 | J80: 4 | K80: 3417.639 | L80: 3490.997 | M80: 2387.616 | N80: =IF(AND(L80>0,M80>0),M80*100/L80,"") -> 68.39352769 | O80: (5) Incluido en el tomate "de verano" (rec. 1-vi/30-ix) | AC80: (*) La producción de remolacha azucarera total por calendario, en abril solo incluye la remolacha azucarera de verano
A81: maíz forrajero | C81: sembrada | D81: 4 | E81: 116.057 | F81: 134.48803 | G81: 126.77145 | H81: 94.26225516 | J81: 11 | K81: 4164.135 | L81: 4941.403 | O81: (6) Incluye el de conserva | AC81: (*) En pepino, la comparativa del valor de producción total del cultivo no es representativa, al comparar el total de la campaña anterior con un valor parcial de la actual (solo dato de invernadero hasta la fecha).
A82: ballico | C82: cosechada | D82: 4 | E82: 119.715 | F82: 119.27479 | G82: 126.06003 | H82: 105.6887461 | J82: 4 | K82: 2647.184 | L82: 2652.821 | M82: 2865.964 | N82: 108.034579 | O82: (7) La superficie se expresa en miles de áreas | V82: =IF(AND(T82>0,U82>0),U82*100/T82,"") ->  | AB82: =IF(AND(Z82>0,AA82>0),AA82*100/Z82,"") -> 
A83: festuca | C83: cosechada | D83: 4 | E83: 11.569 | F83: 19.00894 | G83: 18.92803 | H83: 99.57435817 | J83: 4 | K83: 434.844 | L83: 532.037 | M83: 833.681 | N83: 156.6960569 | O83: (8) Los datos se dan con cáscara, no en grano. Coeficientes de conversión, según variedades: Almendra y Nuez: 3´3 - 4 , Avellana: 2 - 2´3 | AC83: (*) El valor de producción de la patata total no incluye por calendario, el dato de patata media estación ni de patata tardía. El valor de tomate resumen general por calendario, solo incluye al tomate de recolección 1-I al 31-V y de recolección 1-VI al 30-IX en superficie y en producción el tomate de recolección 1-I al 31-V El valor de producción de la cebolla total por calendario, de momento solo incluye, el valor de producción de la cebolla babosa
A84: alfalfa | C84: cosechada | D84: 4 | E84: 199.927 | F84: 210.89775 | G84: 213.12418 | H84: 101.0556917 | J84: 4 | K84: 7908.462 | L84: 7734.42 | M84: 8444.901 | N84: 109.1859635 | O84: (9) Datos de ccaa de uva de vinificación producida.
A85: trébol | C85: cosechada | D85: 4 | E85: 2.253 | F85: 2.87801 | G85: 2.33195 | H85: 81.02647315 | J85: 4 | K85: 36.975 | L85: 38.115 | M85: 32.247 | N85: 84.60448642 | O85: (10) Producción de uva, no de pasa
A86: esparceta | C86: cosechada | D86: 4 | E86: 19.582 | F86: 31.24625 | G86: 32.2455 | H86: 103.1979838 | J86: 4 | K86: 233.156 | L86: 307.901 | M86: 305.13 | N86: 99.1000354 | O86: (11) Producción total de Vino y Mosto en miles de Hectolitros. Incluye a los pequeños productores (autoconsumo) y los mostos concentrados convertidos a mosto natural,
A87: veza para forraje | C87: cosechada | D87: 4 | E87: 150.609 | F87: 174.27583 | G87: 177.15923 | H87: 101.6545037 | J87: 4 | K87: 2565.13 | L87: 3086.592 | M87: 2861.082 | N87: 92.69388374 | O87: con coeficiente 3´5
O88: (12) La superficie de endivia indica la superficie de raíz de endivia mientras que la producción de endivia recoge la endivia de hoja por lo que no tienen que estar ligadas.
N227: =IF(AND(L227>0,M227>0),M227*100/L227,"") -> 
H234: =IF(AND(F234>0,G234>0),G234*100/F234,"") ->  | N234: =IF(AND(L234>0,M234>0),M234*100/L234,"") -> 

Sheet Tri0rno-SRT
A1: AVANCES DE SUPERFICIE Y PRODUCCIÓN
A2: TRIGO DE INVIERNO S/R/T | K2: 2026 ABRIL
A3: SUPERFICIE CULTIVADA(*)
A4: PROVINCIAS | B4: SUPERFICIES (HA) | E4: SUPERFICIES (HA) | H4: SUPERFICIES (HA) | L4: PRODUCCIONES (1000 TM) | O4: PRODUCCIONES (1000 TM) | R4: PRODUCCIONES (1000 TM)
A5: Y | B5: SECANO | E5: REGADIO | H5: TOTAL | L5: SECANO | O5: REGADIO | R5: TOTAL
A6: CC-AA | B6: =J6-2 -> 2024 | C6: =J6-1 -> 2025 | D6: =J6 -> 2026 | E6: =J6-2 -> 2024 | F6: =J6-1 -> 2025 | G6: =J6 -> 2026 | H6: =J6-2 -> 2024 | I6: =J6-1 -> 2025 | J6: 2026 | L6: =T6-2 -> 2024 | M6: =T6-1 -> 2025 | N6: =T6 -> 2026 | O6: =T6-2 -> 2024 | P6: =T6-1 -> 2025 | Q6: =T6 -> 2026 | R6: =T6-2 -> 2024 | S6: =T6-1 -> 2025 | T6: 2026
B7: DEFINITIVO | C7: PROVISIONAL | D7: PROVISIONAL | E7: DEFINITIVO | F7: PROVISIONAL | H7: DEFINITIVO | I7: PROVISIONAL | L7: DEFINITIVO | M7: PROVISIONAL | O7: DEFINITIVO | P7: PROVISIONAL | R7: DEFINITIVO | S7: PROVISIONAL
A10: 15 Coruña (La) | B10: 1016 | C10: 1873.48 | D10: 1326.83 | H10: 1016 | I10: 1873.48 | J10: 1326.83 | L10: 2.337 | M10: 8.214 | N10: 6.166 | R10: 2.336 | S10: 8.214 | T10: 6.166
A11: 27 Lugo | B11: 1962 | C11: 2806.4 | D11: 2186.86 | H11: 1962 | I11: 2806.4 | J11: 2186.86 | L11: 4.316 | M11: 7.869 | N11: 4.971 | R11: 4.316 | S11: 7.869 | T11: 4.971
A12: 32 Orense | B12: 5136 | C12: 5370.44 | D12: 4972.27 | H12: 5136 | I12: 5370.44 | J12: 4972.27 | L12: 15.408 | M12: 17.32 | N12: 10.389 | R12: 15.408 | S12: 17.32 | T12: 10.389
A13: 36 Pontevedra | B13: 175 | C13: 333.44 | D13: 313.52 | H13: 175 | I13: 333.44 | J13: 313.52 | L13: 0.394 | M13: 1.362 | N13: 0.882 | R13: 0.394 | S13: 1.362 | T13: 0.882
A14: GALICIA | B14: 8289 | C14: 10383.76 | D14: 8799.48 | H14: 8289 | I14: 10383.76 | J14: 8799.48 | L14: 22.455 | M14: 34.765 | N14: 22.408 | R14: 22.454 | S14: 34.765 | T14: 22.408
A16: 33 P. DE ASTURIAS | C16: 61 | D16: 65 | I16: 61 | J16: 65 | M16: 0.11 | N16: 0.124 | S16: 0.11 | T16: 0.124
A18: 39 CANTABRIA | B18: 733 | C18: 740 | D18: 745 | E18: 115 | F18: 115 | G18: 130 | H18: 848 | I18: 855 | J18: 875 | L18: 1.613 | M18: 1.484 | N18: 2.235 | O18: 0.518 | P18: 0.46 | Q18: 0.52 | R18: 2.131 | S18: 1.944 | T18: 2.755
A20: 01 Alava | B20: 19717 | C20: 17217 | D20: 18524 | H20: 19717 | I20: 17217 | J20: 18524 | L20: 138.019 | M20: 103.302 | N20: 101.882 | R20: 138.019 | S20: 103.302 | T20: 101.882
A21: 20 Guipúzcoa | B21: 1 | H21: 1 | L21: 0.006 | R21: 0.006
A22: 48 Vizcaya
A23: PAIS VASCO | B23: 19718 | C23: 17217 | D23: 18524 | H23: 19718 | I23: 17217 | J23: 18524 | L23: 138.025 | M23: 103.302 | N23: 101.882 | R23: 138.025 | S23: 103.302 | T23: 101.882
A25: 31 NAVARRA | B25: 62619 | C25: 67327 | D25: 66141 | E25: 15151 | F25: 13911 | G25: 13643 | H25: 77770 | I25: 81238 | J25: 79784 | L25: 325.055 | M25: 341.647 | N25: 335.053 | O25: 107.966 | P25: 81.895 | Q25: 80.305 | R25: 433.002 | S25: 423.542 | T25: 415.358
A27: 26 LA RIOJA | B27: 17354 | C27: 16294 | D27: 16182 | E27: 7444 | F27: 6818 | G27: 6915 | H27: 24798 | I27: 23112 | J27: 23097 | L27: 46.717 | M27: 100.065 | N27: 67.046 | O27: 32.009 | P27: 43.157 | Q27: 35.84 | R27: 78.726 | S27: 143.222 | T27: 102.886
A29: 22 Huesca | B29: 56907 | C29: 56123.17 | D29: 59050 | E29: 23581 | F29: 19051.95 | G29: 18600 | H29: 80488 | I29: 75175.12 | J29: 77650 | L29: 206.401 | M29: 244.316 | N29: 206.025 | O29: 139.057 | P29: 112.633 | Q29: 96.2 | R29: 345.437 | S29: 356.949 | T29: 302.225
A30: 44 Teruel | B30: 30818 | C30: 34637 | D30: 35896 | E30: 4072 | F30: 3302 | G30: 3562 | H30: 34890 | I30: 37939 | J30: 39422 | L30: 30.387 | M30: 84.437 | N30: 78.45 | O30: 12.367 | P30: 13.902 | Q30: 13.605 | R30: 42.744 | S30: 98.339 | T30: 92.055
A31: 50 Zaragoza | B31: 72048 | C31: 68211 | D31: 75790.96 | E31: 30988 | F31: 29195.01 | G31: 32437.03 | H31: 103036 | I31: 97406.01 | J31: 108227.99 | L31: 89.844 | M31: 214.521 | N31: 238.35 | O31: 157.791 | P31: 168.747 | Q31: 187.483 | R31: 247.633 | S31: 383.267 | T31: 425.833
A32: ARAGON | B32: 159773 | C32: 158971.17 | D32: 170736.96 | E32: 58641 | F32: 51548.96 | G32: 54599.03 | H32: 218414 | I32: 210520.13 | J32: 225299.99 | L32: 326.632 | M32: 543.274 | N32: 522.825 | O32: 309.215 | P32: 295.282 | Q32: 297.288 | R32: 635.814 | S32: 838.555 | T32: 820.113
A34: 08 Barcelona | B34: 21430 | C34: 20918 | D34: 21442 | E34: 370 | F34: 558 | G34: 604 | H34: 21800 | I34: 21476 | J34: 22046 | L34: 48.26 | M34: 99.541 | N34: 83.592 | O34: 2.017 | P34: 3.279 | Q34: 3.5 | R34: 50.278 | S34: 102.82 | T34: 87.092
A35: 17 Girona | B35: 10050 | C35: 9307 | D35: 8118 | E35: 2693 | F35: 4291 | G35: 4399 | H35: 12743 | I35: 13598 | J35: 12517 | L35: 23.899 | M35: 40.927 | N35: 32.472 | O35: 9.986 | P35: 20.563 | Q35: 19.357 | R35: 33.882 | S35: 61.49 | T35: 51.829
A36: 25 Lleida | B36: 41616 | C36: 32573 | D36: 34103 | E36: 20748 | F36: 15848 | G36: 15518 | H36: 62364 | I36: 48421 | J36: 49621 | L36: 83.274 | M36: 130.292 | N36: 154.09 | O36: 123.451 | P36: 118.851 | Q36: 105.122 | R36: 206.706 | S36: 249.143 | T36: 259.212
A37: 43 Tarragona | B37: 6868 | C37: 6432 | D37: 6670 | E37: 56 | F37: 69 | G37: 62 | H37: 6924 | I37: 6501 | J37: 6732 | L37: 8.194 | M37: 27.975 | N37: 30.025 | O37: 0.12 | P37: 0.331 | Q37: 0.244 | R37: 8.314 | S37: 28.306 | T37: 30.269
A38: CATALUÑA | B38: 79964 | C38: 69230 | D38: 70333 | E38: 23867 | F38: 20766 | G38: 20583 | H38: 103831 | I38: 89996 | J38: 90916 | L38: 163.627 | M38: 298.735 | N38: 300.179 | O38: 135.574 | P38: 143.024 | Q38: 128.223 | R38: 299.18 | S38: 441.759 | T38: 428.402
A40: 07 BALEARES | B40: 3733 | C40: 3707 | D40: 3845 | H40: 3733 | I40: 3707 | J40: 3845 | L40: 5.189 | M40: 5.252 | N40: 7.49 | R40: 5.189 | S40: 5.252 | T40: 7.49
A42: 05 Avila | B42: 28655 | C42: 34781 | D42: 34797 | E42: 2332 | F42: 1593 | G42: 1750 | H42: 30987 | I42: 36374 | J42: 36547 | L42: 54.616 | M42: 124.892 | N42: 85.242 | O42: 8.37 | P42: 8.08 | Q42: 7.875 | R42: 62.998 | S42: 132.972 | T42: 93.117
A43: 09 Burgos | B43: 179988 | C43: 191795 | D43: 188123 | E43: 5941 | F43: 6516 | G43: 6443 | H43: 185929 | I43: 198311 | J43: 194566 | L43: 965.096 | M43: 1019.414 | N43: 779.011 | O43: 42.318 | P43: 46.114 | Q43: 45.635 | R43: 1007.404 | S43: 1065.528 | T43: 824.646
A44: 24 León | B44: 24023 | C44: 34896 | D44: 32005 | E44: 12194 | F44: 17325 | G44: 18020 | H44: 36217 | I44: 52221 | J44: 50025 | L44: 83.576 | M44: 130.858 | N44: 86.412 | O44: 79.822 | P44: 114.285 | Q44: 117.12 | R44: 163.4 | S44: 245.143 | T44: 203.532
A45: 34 Palencia | B45: 97617 | C45: 111413 | D45: 102379 | E45: 22666 | F45: 23102 | G45: 20961 | H45: 120283 | I45: 134515 | J45: 123340 | L45: 434.786 | M45: 566.423 | N45: 367.647 | O45: 141.391 | P45: 142.291 | Q45: 120.18 | R45: 576.149 | S45: 708.714 | T45: 487.827
A46: 37 Salamanca | B46: 61057 | C46: 62014 | D46: 60025 | E46: 7312 | F46: 7991 | G46: 7010 | H46: 68369 | I46: 70005 | J46: 67035 | L46: 207.594 | M46: 260.14 | N46: 210.08 | O46: 42.41 | P46: 46.341 | Q46: 40.652 | R46: 249.992 | S46: 306.481 | T46: 250.732
A47: 40 Segovia | B47: 60209 | C47: 75609 | D47: 73815 | E47: 2882 | F47: 3742 | G47: 2980 | H47: 63091 | I47: 79351 | J47: 76795 | L47: 169.247 | M47: 306.795 | N47: 201.414 | O47: 14.355 | P47: 19.017 | Q47: 13.479 | R47: 183.594 | S47: 325.812 | T47: 214.893
A48: 42 Soria | B48: 83858 | C48: 101958 | D48: 80000 | E48: 3858 | F48: 4928 | G48: 4000 | H48: 87716 | I48: 106886 | J48: 84000 | L48: 319.247 | M48: 378.568 | N48: 240 | O48: 19.282 | P48: 25.616 | Q48: 20 | R48: 338.518 | S48: 404.184 | T48: 260
A49: 47 Valladolid | B49: 101400 | C49: 102163 | D49: 102162 | E49: 20313 | F49: 21588 | G49: 21588 | H49: 121713 | I49: 123751 | J49: 123750 | L49: 414.625 | M49: 542.981 | N49: 369.411 | O49: 135.325 | P49: 157.287 | Q49: 124.637 | R49: 549.945 | S49: 700.268 | T49: 494.048
A50: 49 Zamora | B50: 48769 | C50: 60592 | D50: 52235.17 | E50: 9027 | F50: 9547 | G50: 8580 | H50: 57796 | I50: 70139 | J50: 60815.17 | L50: 160.352 | M50: 237.887 | N50: 173.328 | O50: 46.354 | P50: 66.829 | Q50: 50.778 | R50: 206.696 | S50: 304.716 | T50: 224.106
A51: CASTILLA Y LEON | B51: 685576 | C51: 775221 | D51: 725541.17 | E51: 86525 | F51: 96332 | G51: 91332 | H51: 772101 | I51: 871553 | J51: 816873.17 | L51: 2809.139 | M51: 3567.958 | N51: 2512.545 | O51: 529.627 | P51: 625.86 | Q51: 540.356 | R51: 3338.696 | S51: 4193.818 | T51: 3052.901
A53: 28 MADRID | B53: 17029 | C53: 17036 | D53: 16923 | E53: 2020 | F53: 1639 | G53: 2649 | H53: 19049 | I53: 18675 | J53: 19572 | L53: 49.418 | M53: 54.287 | N53: 52.806 | O53: 9.124 | P53: 7.804 | Q53: 8.907 | R53: 58.541 | S53: 62.091 | T53: 61.713
A55: 02 Albacete | B55: 42857 | C55: 41559 | D55: 43000 | E55: 11871 | F55: 12572 | G55: 12749 | H55: 54728 | I55: 54131 | J55: 55749 | L55: 42.145 | M55: 94.547 | N55: 98.891 | O55: 85.946 | P55: 96.176 | Q55: 98.773 | R55: 128.081 | S55: 190.723 | T55: 197.664
A56: 13 Ciudad Real | B56: 41209 | C56: 39743 | D56: 38700 | E56: 7795 | F56: 8407 | G56: 8870 | H56: 49004 | I56: 48150 | J56: 47570 | L56: 90.454 | M56: 135.015 | N56: 131.46 | O56: 40.363 | P56: 46.151 | Q56: 48.695 | R56: 130.821 | S56: 181.166 | T56: 180.155
A57: 16 Cuenca | B57: 46861 | C57: 57675 | D57: 48033 | E57: 3082 | F57: 3400 | G57: 3762 | H57: 49943 | I57: 61075 | J57: 51795 | L57: 132.358 | M57: 175.85 | N57: 139.23 | O57: 15.853 | P57: 17.307 | Q57: 18.77 | R57: 148.223 | S57: 193.157 | T57: 158
A58: 19 Guadalajara | B58: 66442 | C58: 65952 | D58: 73471 | E58: 2056 | F58: 2037 | G58: 1995 | H58: 68498 | I58: 67989 | J58: 75466 | L58: 230.502 | M58: 250.51 | N58: 293.884 | O58: 12.183 | P58: 11.191 | Q58: 10.966 | R58: 242.655 | S58: 261.701 | T58: 304.85
A59: 45 Toledo | B59: 48552 | C59: 55205 | D59: 55205 | E59: 4070 | F59: 5728 | G59: 5728 | H59: 52622 | I59: 60933 | J59: 60933 | L59: 121.137 | M59: 139.979 | N59: 193.218 | O59: 18.677 | P59: 27.494 | Q59: 26.922 | R59: 139.793 | S59: 167.473 | T59: 220.14
A60: CASTILLA-MANCHA | B60: 245921 | C60: 260134 | D60: 258409 | E60: 28874 | F60: 32144 | G60: 33104 | H60: 274795 | I60: 292278 | J60: 291513 | L60: 616.596 | M60: 795.901 | N60: 856.683 | O60: 173.022 | P60: 198.319 | Q60: 204.126 | R60: 789.573 | S60: 994.22 | T60: 1060.809
A62: 03 Alicante | B62: 855 | C62: 1171 | D62: 1001 | E62: 430 | F62: 390 | G62: 355 | H62: 1285 | I62: 1561 | J62: 1356 | L62: 0.205 | M62: 2.128 | N62: 2.332 | O62: 0.735 | P62: 2.044 | Q62: 1.884 | R62: 0.94 | S62: 4.172 | T62: 4.216
A63: 12 Castellón | B63: 579 | C63: 674 | D63: 746 | E63: 17 | F63: 17 | G63: 35 | H63: 596 | I63: 691 | J63: 781 | L63: 0.087 | M63: 1.445 | N63: 1.599 | O63: 0.082 | P63: 0.082 | Q63: 0.168 | R63: 0.169 | S63: 1.527 | T63: 1.767
A64: 46 Valencia | B64: 2483 | C64: 2213 | D64: 2647 | E64: 238 | F64: 37 | G64: 48 | H64: 2721 | I64: 2250 | J64: 2695 | L64: 1.072 | M64: 6.418 | N64: 7.677 | O64: 0.98 | P64: 0.162 | Q64: 0.21 | R64: 2.052 | S64: 6.58 | T64: 7.887
A65: C. VALENCIANA | B65: 3917 | C65: 4058 | D65: 4394 | E65: 685 | F65: 444 | G65: 438 | H65: 4602 | I65: 4502 | J65: 4832 | L65: 1.364 | M65: 9.991 | N65: 11.608 | O65: 1.797 | P65: 2.288 | Q65: 2.262 | R65: 3.161 | S65: 12.279 | T65: 13.87
A67: 30 R. DE MURCIA | B67: 6341 | C67: 6425 | D67: 7923 | E67: 694 | F67: 602 | G67: 1030 | H67: 7035 | I67: 7027 | J67: 8953 | L67: 2.455 | M67: 0.433 | N67: 0.498 | O67: 2.404 | P67: 3.741 | Q67: 3.853 | R67: 4.858 | S67: 4.174 | T67: 4.351
A69: 06 Badajoz | B69: 65215 | C69: 66166 | D69: 62510 | E69: 11381 | F69: 11388 | G69: 11115 | H69: 76596 | I69: 77554 | J69: 73625 | L69: 205.753 | M69: 179.024 | N69: 132.891 | O69: 46.526 | P69: 40.27 | Q69: 37.935 | R69: 252.281 | S69: 219.294 | T69: 170.826
A70: 10 Cáceres | B70: 2481 | C70: 2036 | D70: 2180 | E70: 1230 | F70: 1543 | G70: 1520 | H70: 3711 | I70: 3579 | J70: 3700 | L70: 5.245 | M70: 4.347 | N70: 3.231 | O70: 3.426 | P70: 4.252 | Q70: 3.694 | R70: 8.671 | S70: 8.599 | T70: 6.925
A71: EXTREMADURA | B71: 67696 | C71: 68202 | D71: 64690 | E71: 12611 | F71: 12931 | G71: 12635 | H71: 80307 | I71: 81133 | J71: 77325 | L71: 210.998 | M71: 183.371 | N71: 136.122 | O71: 49.952 | P71: 44.522 | Q71: 41.629 | R71: 260.952 | S71: 227.893 | T71: 177.751
A73: 04 Almería | B73: 1849 | C73: 1626 | D73: 1635 | E73: 94 | F73: 24 | G73: 25 | H73: 1943 | I73: 1650 | J73: 1660 | L73: 0.016 | M73: 4.127 | N73: 2.453 | O73: 0.083 | P73: 0.076 | Q73: 0.06 | R73: 0.099 | S73: 4.203 | T73: 2.513
A74: 11 Cádiz | B74: 51345 | C74: 45692.96 | D74: 43630.06 | E74: 5887 | F74: 4522.39 | G74: 4530.66 | H74: 57232 | I74: 50215.35 | J74: 48160.72 | L74: 145.166 | M74: 130.55 | N74: 124.32 | O74: 20.681 | P74: 13.312 | Q74: 15.634 | R74: 165.82 | S74: 143.862 | T74: 139.954
A75: 14 Córdoba | B75: 50225 | C75: 48080 | D75: 48080 | E75: 9951 | F75: 8790 | G75: 8790 | H75: 60176 | I75: 56870 | J75: 56870 | L75: 181.061 | M75: 144.24 | N75: 144.24 | O75: 35.346 | P75: 26.37 | Q75: 26.37 | R75: 216.426 | S75: 170.61 | T75: 170.61
A76: 18 Granada | B76: 8151 | C76: 8854 | D76: 8556.6 | E76: 1494 | F76: 1492 | G76: 1257.86 | H76: 9645 | I76: 10346 | J76: 9814.46 | L76: 11.488 | M76: 18.542 | N76: 18.518 | O76: 5.807 | P76: 7.115 | Q76: 5.802 | R76: 17.292 | S76: 25.657 | T76: 24.32
A77: 21 Huelva | B77: 12710 | C77: 13085 | D77: 13085 | E77: 950 | F77: 885 | G77: 885 | H77: 13660 | I77: 13970 | J77: 13970 | L77: 45.324 | M77: 46.802 | N77: 50.516 | O77: 3.982 | P77: 3.928 | Q77: 3.54 | R77: 49.3 | S77: 50.73 | T77: 54.056
A78: 23 Jaén | B78: 5595 | C78: 4765 | D78: 4768 | E78: 1877 | F78: 2057 | G78: 2057 | H78: 7472 | I78: 6822 | J78: 6825 | L78: 17.445 | M78: 13.901 | N78: 13.909 | O78: 7.508 | P78: 8.166 | Q78: 8.165 | R78: 24.952 | S78: 22.067 | T78: 22.074
A79: 29 Málaga | B79: 13303 | C79: 14555 | D79: 14569 | E79: 1675 | F79: 1670 | G79: 1670 | H79: 14978 | I79: 16225 | J79: 16239 | L79: 31.901 | M79: 32.287 | N79: 40.564 | O79: 7.8 | P79: 9.682 | Q79: 2.717 | R79: 39.702 | S79: 41.969 | T79: 43.281
A80: 41 Sevilla | B80: 106130 | C80: 105050 | D80: 90000 | E80: 23430 | F80: 18390 | G80: 15000 | H80: 129560 | I80: 123440 | J80: 105000 | L80: 371.349 | M80: 342.305 | N80: 295 | O80: 93.369 | P80: 73.606 | Q80: 45.25 | R80: 464.734 | S80: 415.911 | T80: 340.25
A81: ANDALUCIA | B81: 249308 | C81: 241707.96 | D81: 224323.66 | E81: 45358 | F81: 37830.39 | G81: 34215.52 | H81: 294666 | I81: 279538.35 | J81: 258539.18 | L81: 803.75 | M81: 732.754 | N81: 689.52 | O81: 174.576 | P81: 142.255 | Q81: 107.538 | R81: 978.325 | S81: 875.009 | T81: 797.058
A83: 35 Palmas (Las) | B83: 88 | C83: 88 | D83: 88 | E83: 1 | F83: 1 | G83: 1 | H83: 89 | I83: 89 | J83: 89 | L83: 0.088 | M83: 0.088 | N83: 0.088 | O83: 0.001 | P83: 0.001 | Q83: 0.001 | R83: 0.089 | S83: 0.089 | T83: 0.089
A84: 38 S. C. Tenerife | B84: 114 | C84: 114 | D84: 114 | E84: 23 | F84: 23 | G84: 23 | H84: 137 | I84: 137 | J84: 137 | L84: 0.108 | M84: 0.108 | N84: 0.108 | O84: 0.035 | P84: 0.035 | Q84: 0.035 | R84: 0.143 | S84: 0.143 | T84: 0.143
A85: CANARIAS | B85: 202 | C85: 202 | D85: 202 | E85: 24 | F85: 24 | G85: 24 | H85: 226 | I85: 226 | J85: 226 | L85: 0.196 | M85: 0.196 | N85: 0.196 | O85: 0.036 | P85: 0.036 | Q85: 0.036 | R85: 0.232 | S85: 0.232 | T85: 0.232
A88: ESPAÑA | B88: 3256346 | C88: 1716916.89 | D88: 1657777.27 | E88: 282009 | F88: 275105.35 | G88: 271297.55 | H88: 1910182 | I88: 1992022.24 | J88: 1929038.82 | L88: 5523.229 | M88: 6773.525 | N88: 5619.22 | O88: 1525.82 | P88: 1588.643 | Q88: 1450.883 | R88: 7048.859 | S88: 8362.167 | T88: 7070.103
B96: 221 | C96: 231 | E96: 221 | F96: 231 | H96: 221 | I96: 231

Sheet Tri0rno
A1: AVANCES DE SUPERFICIE Y PRODUCCIÓN
A2: TRIGO DE INVIERNO | J2: 2026 ABRIL
A3: SUPERFICIE CULTIVADA(*)
A4: PROVINCIAS | C4: SUPERFICIES (HA) | H4: PRODUCCIONES (1000 TM)
A5: Y
A6: CC-AA | C6: =E6-2 -> 2024 | D6: =E6-1 -> 2025 | E6: 2026 | F6: =E6 -> 2026 | H6: =J6-2 -> 2024 | I6: =J6-1 -> 2025 | J6: 2026 | K6: =J6 -> 2026
C7: DEFINITIVO | D7: PROVISIONAL | H7: DEFINITIVO | I7: PROVISIONAL
F8: =CONCATENATE(D6,"=100") -> 2025=100 | K8: =CONCATENATE(I6,"=100") -> 2025=100
A10: 15 A Coruña | C10: 1016 | D10: 1873.48 | E10: 1326.83 | H10: 2.336 | I10: 8.214 | J10: 6.166
A11: 27 Lugo | C11: 1962 | D11: 2806.4 | E11: 2186.86 | H11: 4.316 | I11: 7.869 | J11: 4.971
A12: 32 Ourense | C12: 5136 | D12: 5370.44 | E12: 4972.27 | H12: 15.408 | I12: 17.32 | J12: 10.389
A13: 36 Pontevedra | C13: 175 | D13: 333.44 | E13: 313.52 | H13: 0.394 | I13: 1.362 | J13: 0.882
A14: GALICIA | C14: 8289 | D14: 10383.76 | E14: 8799.48 | F14: 84.74271362 | H14: 22.454 | I14: 34.765 | J14: 22.408 | K14: 64.45563066
A16: 33 P. DE ASTURIAS | D16: 61 | E16: 65 | F16: 106.557377 | I16: 0.11 | J16: 0.124 | K16: 112.7272727
A18: 39 CANTABRIA | C18: 848 | D18: 855 | E18: 875 | F18: 102.3391813 | H18: 2.131 | I18: 1.944 | J18: 2.755 | K18: 141.718107
A20: 1 Álava | C20: 19717 | D20: 17217 | E20: 18524 | H20: 138.019 | I20: 103.302 | J20: 101.882
A21: 20 Guipúzcoa | C21: 1 | H21: 0.006
A22: 48 Vizcaya
A23: PAIS VASCO | C23: 19718 | D23: 17217 | E23: 18524 | F23: 107.5913341 | H23: 138.025 | I23: 103.302 | J23: 101.882 | K23: 98.62538963
A25: 31 NAVARRA | C25: 77770 | D25: 81238 | E25: 79784 | F25: 98.2101972 | H25: 433.002 | I25: 423.542 | J25: 415.358 | K25: 98.0677241
A27: 26 LA RIOJA | C27: 24798 | D27: 23112 | E27: 23097 | F27: 99.93509865 | H27: 78.726 | I27: 143.222 | J27: 102.886 | K27: 71.83672899
A29: 22 Huesca | C29: 80488 | D29: 75175.12 | E29: 77650 | H29: 345.437 | I29: 356.949 | J29: 302.225
A30: 44 Teruel | C30: 34890 | D30: 37939 | E30: 39422 | H30: 42.744 | I30: 98.339 | J30: 92.055
A31: 50 Zaragoza | C31: 103036 | D31: 97406.01 | E31: 108227.99 | H31: 247.633 | I31: 383.267 | J31: 425.833
A32: ARAGÓN | C32: 218414 | D32: 210520.13 | E32: 225299.99 | F32: 107.0206398 | H32: 635.814 | I32: 838.555 | J32: 820.113 | K32: 97.80074056
A34: 8 Barcelona | C34: 21800 | D34: 21476 | E34: 22046 | H34: 50.278 | I34: 102.82 | J34: 87.092
A35: 17 Girona | C35: 12743 | D35: 13598 | E35: 12517 | H35: 33.882 | I35: 61.49 | J35: 51.829
A36: 25 Lleida | C36: 62364 | D36: 48421 | E36: 49621 | H36: 206.706 | I36: 249.143 | J36: 259.212
A37: 43 Tarragona | C37: 6924 | D37: 6501 | E37: 6732 | H37: 8.314 | I37: 28.306 | J37: 30.269
A38: CATALUÑA | C38: 103831 | D38: 89996 | E38: 90916 | F38: 101.0222677 | H38: 299.18 | I38: 441.759 | J38: 428.402 | K38: 96.97640569
A40: 7 BALEARES | C40: 3733 | D40: 3707 | E40: 3845 | F40: 103.7226868 | H40: 5.189 | I40: 5.252 | J40: 7.49 | K40: 142.6123382
A42: 5 Ávila | C42: 30987 | D42: 36374 | E42: 36547 | H42: 62.998 | I42: 132.972 | J42: 93.117
A43: 9 Burgos | C43: 185929 | D43: 198311 | E43: 194566 | H43: 1007.404 | I43: 1065.528 | J43: 824.646
A44: 24 León | C44: 36217 | D44: 52221 | E44: 50025 | H44: 163.4 | I44: 245.143 | J44: 203.532
A45: 34 Palencia | C45: 120283 | D45: 134515 | E45: 123340 | H45: 576.149 | I45: 708.714 | J45: 487.827
A46: 37 Salamanca | C46: 68369 | D46: 70005 | E46: 67035 | H46: 249.992 | I46: 306.481 | J46: 250.732
A47: 40 Segovia | C47: 63091 | D47: 79351 | E47: 76795 | H47: 183.594 | I47: 325.812 | J47: 214.893
A48: 42 Soria | C48: 87716 | D48: 106886 | E48: 84000 | H48: 338.518 | I48: 404.184 | J48: 260
A49: 47 Valladolid | C49: 121713 | D49: 123751 | E49: 123750 | H49: 549.945 | I49: 700.268 | J49: 494.048
A50: 49 Zamora | C50: 57796 | D50: 70139 | E50: 60815.17 | H50: 206.696 | I50: 304.716 | J50: 224.106
A51: CASTILLA Y LEÓN | C51: 772101 | D51: 871553 | E51: 816873.17 | F51: 93.72616123 | H51: 3338.696 | I51: 4193.818 | J51: 3052.901 | K51: 72.79526675
A53: 28 MADRID | C53: 19049 | D53: 18675 | E53: 19572 | F53: 104.8032129 | H53: 58.541 | I53: 62.091 | J53: 61.713 | K53: 99.39121612
A55: 2 Albacete | C55: 54728 | D55: 54131 | E55: 55749 | H55: 128.081 | I55: 190.723 | J55: 197.664
A56: 13 Ciudad Real | C56: 49004 | D56: 48150 | E56: 47570 | H56: 130.821 | I56: 181.166 | J56: 180.155
A57: 16 Cuenca | C57: 49943 | D57: 61075 | E57: 51795 | H57: 148.223 | I57: 193.157 | J57: 158
A58: 19 Guadalajara | C58: 68498 | D58: 67989 | E58: 75466 | H58: 242.655 | I58: 261.701 | J58: 304.85
A59: 45 Toledo | C59: 52622 | D59: 60933 | E59: 60933 | H59: 139.793 | I59: 167.473 | J59: 220.14
A60: CASTILLA-MANCHA | C60: 274795 | D60: 292278 | E60: 291513 | F60: 99.73826289 | H60: 789.573 | I60: 994.22 | J60: 1060.809 | K60: 106.6976122
A62: 3 Alicante | C62: 1285 | D62: 1561 | E62: 1356 | H62: 0.94 | I62: 4.172 | J62: 4.216
A63: 12 Castellón | C63: 596 | D63: 691 | E63: 781 | H63: 0.169 | I63: 1.527 | J63: 1.767
A64: 46 Valencia | C64: 2721 | D64: 2250 | E64: 2695 | H64: 2.052 | I64: 6.58 | J64: 7.887
A65: C. VALENCIANA | C65: 4602 | D65: 4502 | E65: 4832 | F65: 107.3300755 | H65: 3.161 | I65: 12.279 | J65: 13.87 | K65: 112.9570812
A67: 30 R. DE MURCIA | C67: 7035 | D67: 7027 | E67: 8953 | F67: 127.408567 | H67: 4.858 | I67: 4.174 | J67: 4.351 | K67: 104.2405367
A69: 6 Badajoz | C69: 76596 | D69: 77554 | E69: 73625 | H69: 252.281 | I69: 219.294 | J69: 170.826
A70: 10 Cáceres | C70: 3711 | D70: 3579 | E70: 3700 | H70: 8.671 | I70: 8.599 | J70: 6.925
A71: EXTREMADURA | C71: 80307 | D71: 81133 | E71: 77325 | F71: 95.30647209 | H71: 260.952 | I71: 227.893 | J71: 177.751 | K71: 77.99756903
A73: 4 Almería | C73: 1943 | D73: 1650 | E73: 1660 | H73: 0.099 | I73: 4.203 | J73: 2.513
A74: 11 Cádiz | C74: 57232 | D74: 50215.35 | E74: 48160.72 | H74: 165.82 | I74: 143.862 | J74: 139.954
A75: 14 Córdoba | C75: 60176 | D75: 56870 | E75: 56870 | H75: 216.426 | I75: 170.61 | J75: 170.61
A76: 18 Granada | C76: 9645 | D76: 10346 | E76: 9814.46 | H76: 17.292 | I76: 25.657 | J76: 24.32
A77: 21 Huelva | C77: 13660 | D77: 13970 | E77: 13970 | H77: 49.3 | I77: 50.73 | J77: 54.056
A78: 23 Jaén | C78: 7472 | D78: 6822 | E78: 6825 | H78: 24.952 | I78: 22.067 | J78: 22.074
A79: 29 Málaga | C79: 14978 | D79: 16225 | E79: 16239 | H79: 39.702 | I79: 41.969 | J79: 43.281
A80: 41 Sevilla | C80: 129560 | D80: 123440 | E80: 105000 | H80: 464.734 | I80: 415.911 | J80: 340.25
A81: ANDALUCÍA | C81: 294666 | D81: 279538.35 | E81: 258539.18 | F81: 92.48791087 | H81: 978.325 | I81: 875.009 | J81: 797.058 | K81: 91.09140592
A83: 35 Palmas (Las) | C83: 89 | D83: 89 | E83: 89 | H83: 0.089 | I83: 0.089 | J83: 0.089
A84: 38 S. C. Tenerife | C84: 137 | D84: 137 | E84: 137 | H84: 0.143 | I84: 0.143 | J84: 0.143
A85: CANARIAS | C85: 226 | D85: 226 | E85: 226 | F85: 100 | H85: 0.232 | I85: 0.232 | J85: 0.232 | K85: 100
A88: ESPAÑA | C88: 1910182 | D88: 1992022.24 | E88: 1929038.82 | F88: 96.83821703 | H88: 7048.859 | I88: 8362.167 | J88: 7070.103 | K88: 84.54869414
A91: (*)Tipo de Superficie de mes/año solicitado

Sheet Tri1rno-SRT
A1: AVANCES DE SUPERFICIE Y PRODUCCIÓN
A2: TRIGO DURO DE INVIERNO S/R/T | K2: 2026 ABRIL
A3: SUPERFICIE CULTIVADA(*)
A4: PROVINCIAS | B4: SUPERFICIES (HA) | E4: SUPERFICIES (HA) | H4: SUPERFICIES (HA) | L4: PRODUCCIONES (1000 TM) | O4: PRODUCCIONES (1000 TM) | R4: PRODUCCIONES (1000 TM)
A5: Y | B5: SECANO | E5: REGADIO | H5: TOTAL | L5: SECANO | O5: REGADIO | R5: TOTAL
A6: CC-AA | B6: =J6-2 -> 2024 | C6: =J6-1 -> 2025 | D6: =J6 -> 2026 | E6: =J6-2 -> 2024 | F6: =J6-1 -> 2025 | G6: =J6 -> 2026 | H6: =J6-2 -> 2024 | I6: =J6-1 -> 2025 | J6: 2026 | L6: =T6-2 -> 2024 | M6: =T6-1 -> 2025 | N6: =T6 -> 2026 | O6: =T6-2 -> 2024 | P6: =T6-1 -> 2025 | Q6: =T6 -> 2026 | R6: =T6-2 -> 2024 | S6: =T6-1 -> 2025 | T6: 2026
B7: DEFINITIVO | C7: PROVISIONAL | D7: PROVISIONAL | E7: DEFINITIVO | F7: PROVISIONAL | H7: DEFINITIVO | I7: PROVISIONAL | L7: DEFINITIVO | M7: PROVISIONAL | O7: DEFINITIVO | P7: PROVISIONAL | R7: DEFINITIVO | S7: PROVISIONAL
A10: 15 Coruña (La) | B10: 8 | H10: 8 | L10: 0.018 | R10: 0.018
A11: 27 Lugo | B11: 130 | H11: 130 | L11: 0.286 | R11: 0.286
A12: 32 Orense | B12: 8 | H12: 8 | L12: 0.024 | R12: 0.024
A13: 36 Pontevedra | B13: 3 | H13: 3 | L13: 0.007 | R13: 0.007
A14: GALICIA | B14: 149 | H14: 149 | L14: 0.335 | R14: 0.335
A16: 33 P. DE ASTURIAS
A18: 39 CANTABRIA
A20: 01 Alava
A21: 20 Guipúzcoa
A22: 48 Vizcaya
A23: PAIS VASCO
A25: 31 NAVARRA | B25: 775 | C25: 816 | D25: 1039 | E25: 510 | F25: 491 | G25: 494 | H25: 1285 | I25: 1307 | J25: 1533 | L25: 0.851 | M25: 2.038 | N25: 2.595 | O25: 3.399 | P25: 2.687 | Q25: 2.703 | R25: 4.25 | S25: 4.725 | T25: 5.298
A27: 26 LA RIOJA | D27: 2 | F27: 10 | G27: 8 | I27: 10 | J27: 10 | N27: 0.012 | P27: 0.045 | Q27: 0.048 | S27: 0.045 | T27: 0.06
A29: 22 Huesca | B29: 794 | C29: 656.64 | D29: 650 | E29: 692 | F29: 450.06 | G29: 400 | H29: 1486 | I29: 1106.7 | J29: 1050 | L29: 1.821 | M29: 2.482 | N29: 1.625 | O29: 3.065 | P29: 2.696 | Q29: 1.56 | R29: 4.886 | S29: 5.178 | T29: 3.185
A30: 44 Teruel | B30: 680 | C30: 652 | D30: 685 | E30: 92 | F30: 53 | G30: 57 | H30: 772 | I30: 705 | J30: 742 | L30: 0.315 | M30: 1.174 | N30: 1.109 | O30: 0.221 | P30: 0.182 | Q30: 0.175 | R30: 0.536 | S30: 1.356 | T30: 1.284
A31: 50 Zaragoza | B31: 30873 | C31: 27697.5 | D31: 30773.92 | E31: 13101 | F31: 13336.11 | G31: 14817.08 | H31: 43974 | I31: 41033.61 | J31: 45591 | L31: 31.182 | M31: 66.889 | N31: 74.316 | O31: 66.553 | P31: 74.989 | Q31: 83.328 | R31: 97.735 | S31: 141.878 | T31: 157.644
A32: ARAGON | B32: 32347 | C32: 29006.14 | D32: 32108.92 | E32: 13885 | F32: 13839.17 | G32: 15274.08 | H32: 46232 | I32: 42845.31 | J32: 47383 | L32: 33.318 | M32: 70.545 | N32: 77.05 | O32: 69.839 | P32: 77.867 | Q32: 85.063 | R32: 103.157 | S32: 148.412 | T32: 162.113
A34: 08 Barcelona | B34: 11 | C34: 36 | D34: 23 | F34: 2 | G34: 4 | H34: 11 | I34: 38 | J34: 27 | L34: 0.025 | M34: 0.174 | N34: 0.092 | P34: 0.014 | Q34: 0.02 | R34: 0.025 | S34: 0.188 | T34: 0.112
A35: 17 Girona | B35: 8 | C35: 16 | D35: 16 | E35: 12 | F35: 14 | G35: 14 | H35: 20 | I35: 30 | J35: 30 | L35: 0.015 | M35: 0.064 | N35: 0.064 | O35: 0.035 | P35: 0.06 | Q35: 0.063 | R35: 0.05 | S35: 0.124 | T35: 0.127
A36: 25 Lleida | B36: 28 | C36: 23 | D36: 23 | E36: 30 | F36: 18 | G36: 18 | H36: 58 | I36: 41 | J36: 41 | L36: 0.047 | M36: 0.092 | N36: 0.09 | O36: 0.148 | P36: 0.126 | Q36: 0.122 | R36: 0.195 | S36: 0.218 | T36: 0.212
A37: 43 Tarragona | B37: 7 | C37: 13 | D37: 11 | E37: 1 | F37: 1 | G37: 1 | H37: 8 | I37: 14 | J37: 12 | L37: 0.003 | M37: 0.032 | N37: 0.025 | O37: 0.004 | P37: 0.005 | Q37: 0.004 | R37: 0.007 | S37: 0.037 | T37: 0.029
A38: CATALUÑA | B38: 54 | C38: 88 | D38: 73 | E38: 43 | F38: 35 | G38: 37 | H38: 97 | I38: 123 | J38: 110 | L38: 0.09 | M38: 0.362 | N38: 0.271 | O38: 0.187 | P38: 0.205 | Q38: 0.209 | R38: 0.277 | S38: 0.567 | T38: 0.48
A40: 07 BALEARES | B40: 39 | C40: 37 | D40: 45 | H40: 39 | I40: 37 | J40: 45 | L40: 0.054 | M40: 0.052 | N40: 0.09 | R40: 0.054 | S40: 0.052 | T40: 0.09
A42: 05 Avila | B42: 17 | C42: 33 | D42: 30 | H42: 17 | I42: 33 | J42: 30 | L42: 0.015 | M42: 0.077 | N42: 0.063 | R42: 0.015 | S42: 0.077 | T42: 0.063
A43: 09 Burgos | B43: 329 | C43: 301 | D43: 301 | E43: 117 | F43: 56 | G43: 56 | H43: 446 | I43: 357 | J43: 357 | L43: 1.394 | M43: 1.24 | N43: 1.24 | O43: 0.759 | P43: 0.364 | Q43: 0.364 | R43: 2.153 | S43: 1.604 | T43: 1.604
A44: 24 León | B44: 2 | C44: 3 | D44: 5 | E44: 9 | F44: 23 | G44: 20 | H44: 11 | I44: 26 | J44: 25 | L44: 0.006 | M44: 0.009 | N44: 0.012 | O44: 0.05 | P44: 0.092 | Q44: 0.12 | R44: 0.056 | S44: 0.101 | T44: 0.132
A45: 34 Palencia | B45: 25 | C45: 4 | D45: 4 | E45: 5 | F45: 15 | G45: 14 | H45: 30 | I45: 19 | J45: 18 | L45: 0.082 | M45: 0.02 | N45: 0.018 | O45: 0.033 | P45: 0.075 | Q45: 0.07 | R45: 0.115 | S45: 0.095 | T45: 0.088
A46: 37 Salamanca | B46: 54 | C46: 15 | D46: 25 | E46: 1 | F46: 11 | G46: 10 | H46: 55 | I46: 26 | J46: 35 | L46: 0.173 | M46: 0.054 | N46: 0.08 | O46: 0.005 | P46: 0.057 | Q46: 0.052 | R46: 0.178 | S46: 0.111 | T46: 0.132
A47: 40 Segovia | B47: 52 | C47: 43 | D47: 45 | E47: 9 | H47: 61 | I47: 43 | J47: 45 | L47: 0.136 | M47: 0.148 | N47: 0.096 | O47: 0.032 | R47: 0.168 | S47: 0.148 | T47: 0.096
A48: 42 Soria | B48: 15 | C48: 2 | E48: 23 | H48: 38 | I48: 2 | L48: 0.047 | M48: 0.005 | O48: 0.106 | R48: 0.153 | S48: 0.005
A49: 47 Valladolid | B49: 17 | C49: 25 | D49: 25 | E49: 188 | F49: 62 | G49: 62 | H49: 205 | I49: 87 | J49: 87 | L49: 0.066 | M49: 0.118 | N49: 0.084 | O49: 0.949 | P49: 0.427 | Q49: 0.324 | R49: 1.015 | S49: 0.545 | T49: 0.408
A50: 49 Zamora | B50: 32 | C50: 41 | D50: 41.17 | E50: 7 | F50: 5 | G50: 30 | H50: 39 | I50: 46 | J50: 71.17 | L50: 0.098 | M50: 0.103 | N50: 0.096 | O50: 0.033 | P50: 0.035 | Q50: 0.196 | R50: 0.131 | S50: 0.138 | T50: 0.292
A51: CASTILLA Y LEON | B51: 543 | C51: 467 | D51: 476.17 | E51: 359 | F51: 172 | G51: 192 | H51: 902 | I51: 639 | J51: 668.17 | L51: 2.017 | M51: 1.774 | N51: 1.689 | O51: 1.967 | P51: 1.05 | Q51: 1.126 | R51: 3.984 | S51: 2.824 | T51: 2.815
A53: 28 MADRID | B53: 69 | C53: 72 | D53: 31 | E53: 127 | F53: 95 | G53: 135 | H53: 196 | I53: 167 | J53: 166 | L53: 0.079 | M53: 0.324 | N53: 0.06 | O53: 0.508 | P53: 0.325 | Q53: 0.573 | R53: 0.587 | S53: 0.649 | T53: 0.633
A55: 02 Albacete | B55: 227 | C55: 162 | D55: 172 | E55: 1221 | F55: 619 | G55: 637 | H55: 1448 | I55: 781 | J55: 809 | L55: 0.22 | M55: 0.36 | N55: 0.387 | O55: 8.73 | P55: 4.7 | Q55: 4.905 | R55: 8.95 | S55: 5.06 | T55: 5.292
A56: 13 Ciudad Real | B56: 73 | C56: 93 | D56: 100 | E56: 141 | F56: 97 | G56: 100 | H56: 214 | I56: 190 | J56: 200 | L56: 0.08 | M56: 0.205 | N56: 0.22 | O56: 0.564 | P56: 0.446 | Q56: 0.46 | R56: 0.644 | S56: 0.651 | T56: 0.68
A57: 16 Cuenca | B57: 325 | C57: 366 | D57: 355 | E57: 62 | F57: 80 | G57: 185 | H57: 387 | I57: 446 | J57: 540 | L57: 0.788 | M57: 1.06 | N57: 0.96 | O57: 0.31 | P57: 0.377 | Q57: 0.89 | R57: 1.098 | S57: 1.437 | T57: 1.85
A58: 19 Guadalajara | B58: 200 | C58: 180 | D58: 106 | E58: 29 | F58: 26 | G58: 13 | H58: 229 | I58: 206 | J58: 119 | L58: 0.27 | M58: 0.576 | N58: 0.424 | O58: 0.117 | P58: 0.13 | Q58: 0.065 | R58: 0.387 | S58: 0.706 | T58: 0.489
A59: 45 Toledo | B59: 877 | C59: 900 | D59: 900 | E59: 115 | F59: 154 | G59: 154 | H59: 992 | I59: 1054 | J59: 1054 | L59: 1.929 | M59: 3.15 | N59: 3.15 | O59: 0.483 | P59: 0.739 | Q59: 0.724 | R59: 2.412 | S59: 3.889 | T59: 3.874
A60: CASTILLA-MANCHA | B60: 1702 | C60: 1701 | D60: 1633 | E60: 1568 | F60: 976 | G60: 1089 | H60: 3270 | I60: 2677 | J60: 2722 | L60: 3.287 | M60: 5.351 | N60: 5.141 | O60: 10.204 | P60: 6.392 | Q60: 7.044 | R60: 13.491 | S60: 11.743 | T60: 12.185
A62: 03 Alicante | B62: 65 | C62: 78 | D62: 66 | E62: 40 | F62: 25 | G62: 24 | H62: 105 | I62: 103 | J62: 90 | L62: 0.017 | M62: 0.165 | N62: 0.155 | O62: 0.082 | P62: 0.068 | Q62: 0.129 | R62: 0.099 | S62: 0.233 | T62: 0.284
A63: 12 Castellón | B63: 24 | C63: 24 | D63: 26 | H63: 24 | I63: 24 | J63: 26 | L63: 0.003 | M63: 0.047 | N63: 0.051 | R63: 0.003 | S63: 0.047 | T63: 0.051
A64: 46 Valencia | B64: 59 | C64: 90 | D64: 132 | E64: 1 | G64: 1 | H64: 60 | I64: 90 | J64: 133 | L64: 0.012 | M64: 0.261 | N64: 0.383 | O64: 0.005 | Q64: 0.004 | R64: 0.017 | S64: 0.261 | T64: 0.387
A65: C. VALENCIANA | B65: 148 | C65: 192 | D65: 224 | E65: 41 | F65: 25 | G65: 25 | H65: 189 | I65: 217 | J65: 249 | L65: 0.032 | M65: 0.473 | N65: 0.589 | O65: 0.087 | P65: 0.068 | Q65: 0.133 | R65: 0.119 | S65: 0.541 | T65: 0.722
A67: 30 R. DE MURCIA | B67: 90 | C67: 101 | D67: 267 | E67: 95 | F67: 76 | G67: 10 | H67: 185 | I67: 177 | J67: 277 | L67: 0.019 | M67: 0.023 | N67: 0.027 | O67: 0.314 | P67: 0.251 | Q67: 0.258 | R67: 0.333 | S67: 0.274 | T67: 0.285
A69: 06 Badajoz | B69: 2316 | C69: 2818 | D69: 2660 | E69: 763 | F69: 754 | G69: 665 | H69: 3079 | I69: 3572 | J69: 3325 | L69: 6.557 | M69: 9.282 | N69: 5.171 | O69: 2.809 | P69: 3.228 | Q69: 1.423 | R69: 9.366 | S69: 12.51 | T69: 6.594
A70: 10 Cáceres | B70: 175 | C70: 180 | D70: 180 | E70: 15 | F70: 17 | G70: 20 | H70: 190 | I70: 197 | J70: 200 | L70: 0.291 | M70: 0.416 | N70: 0.288 | O70: 0.032 | P70: 0.051 | Q70: 0.045 | R70: 0.324 | S70: 0.467 | T70: 0.333
A71: EXTREMADURA | B71: 2491 | C71: 2998 | D71: 2840 | E71: 778 | F71: 771 | G71: 685 | H71: 3269 | I71: 3769 | J71: 3525 | L71: 6.848 | M71: 9.698 | N71: 5.459 | O71: 2.841 | P71: 3.279 | Q71: 1.468 | R71: 9.69 | S71: 12.977 | T71: 6.927
A73: 04 Almería | B73: 86 | C73: 72 | D73: 75 | E73: 29 | F73: 4 | G73: 5 | H73: 115 | I73: 76 | J73: 80 | M73: 0.143 | N73: 0.113 | P73: 0.012 | Q73: 0.01 | S73: 0.155 | T73: 0.123
A74: 11 Cádiz | B74: 42270 | C74: 34813.58 | D74: 32947.6 | E74: 4240 | F74: 3185.42 | G74: 3181.98 | H74: 46510 | I74: 37999 | J74: 36129.58 | L74: 129.285 | M74: 87.034 | N74: 93.617 | O74: 14.222 | P74: 7.964 | Q74: 10.981 | R74: 143.507 | S74: 94.998 | T74: 104.598
A75: 14 Córdoba | B75: 29065 | C75: 27750 | D75: 27750 | E75: 7873 | F75: 6400 | G75: 6400 | H75: 36938 | I75: 34150 | J75: 34150 | L75: 101.728 | M75: 83.25 | N75: 83.25 | O75: 27.556 | P75: 19.2 | Q75: 19.2 | R75: 129.283 | S75: 102.45 | T75: 102.45
A76: 18 Granada | B76: 1039 | C76: 1344 | D76: 1246.05 | E76: 678 | F76: 645 | G76: 528.8 | H76: 1717 | I76: 1989 | J76: 1774.85 | L76: 1.682 | M76: 3.099 | N76: 2.662 | O76: 3.302 | P76: 3.077 | Q76: 2.694 | R76: 4.984 | S76: 6.176 | T76: 5.356
A77: 21 Huelva | B77: 8550 | C77: 8980 | D77: 8980 | E77: 610 | F77: 610 | G77: 610 | H77: 9160 | I77: 9590 | J77: 9590 | L77: 29.925 | M77: 31.779 | N77: 35.328 | O77: 2.655 | P77: 2.745 | Q77: 2.44 | R77: 32.58 | S77: 34.524 | T77: 37.768
A78: 23 Jaén | B78: 3293 | C78: 2796 | D78: 2794 | E78: 1675 | F78: 1901 | G78: 1899 | H78: 4968 | I78: 4697 | J78: 4693 | L78: 10.538 | M78: 8.388 | N78: 8.382 | O78: 6.7 | P78: 7.604 | Q78: 7.596 | R78: 17.238 | S78: 15.992 | T78: 15.978
A79: 29 Málaga | B79: 8844 | C79: 9123 | D79: 9130 | E79: 1362 | F79: 1281 | G79: 1280 | H79: 10206 | I79: 10404 | J79: 10410 | L79: 22.11 | M79: 18.164 | N79: 26.966 | O79: 6.47 | P79: 7.776 | Q79: 0.767 | R79: 28.58 | S79: 25.94 | T79: 27.733
A80: 41 Sevilla | B80: 53480 | C80: 50740 | D80: 40000 | E80: 12610 | F80: 9080 | G80: 7000 | H80: 66090 | I80: 59820 | J80: 47000 | L80: 181.832 | M80: 152.22 | N80: 120 | O80: 47.918 | P80: 34.504 | Q80: 19.25 | R80: 229.75 | S80: 186.724 | T80: 139.25
A81: ANDALUCIA | B81: 146627 | C81: 135618.58 | D81: 122922.65 | E81: 29077 | F81: 23106.42 | G81: 20904.78 | H81: 175704 | I81: 158725 | J81: 143827.43 | L81: 477.1 | M81: 384.077 | N81: 370.318 | O81: 108.823 | P81: 82.882 | Q81: 62.938 | R81: 585.922 | S81: 466.959 | T81: 433.256
A83: 35 Palmas (Las)
A84: 38 S. C. Tenerife
A85: CANARIAS
A88: ESPAÑA | B88: 370068 | C88: 171096.72 | D88: 161661.74 | E88: 46483 | F88: 39596.59 | G88: 38853.86 | H88: 231517 | I88: 210693.31 | J88: 200515.6 | L88: 524.03 | M88: 474.717 | N88: 463.301 | O88: 198.169 | P88: 175.051 | Q88: 161.563 | R88: 722.199 | S88: 649.768 | T88: 624.864
B96: 221 | C96: 231 | E96: 221 | F96: 231 | H96: 221 | I96: 231

Sheet Tri1rno
A1: AVANCES DE SUPERFICIE Y PRODUCCIÓN
A2: TRIGO DURO DE INVIERNO | J2: 2026 ABRIL
A3: SUPERFICIE CULTIVADA(*)
A4: PROVINCIAS | C4: SUPERFICIES (HA) | H4: PRODUCCIONES (1000 TM)
A5: Y
A6: CC-AA | C6: =E6-2 -> 2024 | D6: =E6-1 -> 2025 | E6: 2026 | F6: =E6 -> 2026 | H6: =J6-2 -> 2024 | I6: =J6-1 -> 2025 | J6: 2026 | K6: =J6 -> 2026
C7: DEFINITIVO | D7: PROVISIONAL | H7: DEFINITIVO | I7: PROVISIONAL
F8: =CONCATENATE(D6,"=100") -> 2025=100 | K8: =CONCATENATE(I6,"=100") -> 2025=100
A10: 15 A Coruña | C10: 8 | H10: 0.018
A11: 27 Lugo | C11: 130 | H11: 0.286
A12: 32 Ourense | C12: 8 | H12: 0.024
A13: 36 Pontevedra | C13: 3 | H13: 0.007
A14: GALICIA | C14: 149 | H14: 0.335
A16: 33 P. DE ASTURIAS
A18: 39 CANTABRIA
A20: 1 Álava
A21: 20 Guipúzcoa
A22: 48 Vizcaya
A23: PAIS VASCO
A25: 31 NAVARRA | C25: 1285 | D25: 1307 | E25: 1533 | F25: 117.2915073 | H25: 4.25 | I25: 4.725 | J25: 5.298 | K25: 112.1269841
A27: 26 LA RIOJA | D27: 10 | E27: 10 | F27: 100 | I27: 0.045 | J27: 0.06 | K27: 133.3333333
A29: 22 Huesca | C29: 1486 | D29: 1106.7 | E29: 1050 | H29: 4.886 | I29: 5.178 | J29: 3.185
A30: 44 Teruel | C30: 772 | D30: 705 | E30: 742 | H30: 0.536 | I30: 1.356 | J30: 1.284
A31: 50 Zaragoza | C31: 43974 | D31: 41033.61 | E31: 45591 | H31: 97.735 | I31: 141.878 | J31: 157.644
A32: ARAGÓN | C32: 46232 | D32: 42845.31 | E32: 47383 | F32: 110.5908675 | H32: 103.157 | I32: 148.412 | J32: 162.113 | K32: 109.2317333
A34: 8 Barcelona | C34: 11 | D34: 38 | E34: 27 | H34: 0.025 | I34: 0.188 | J34: 0.112
A35: 17 Girona | C35: 20 | D35: 30 | E35: 30 | H35: 0.05 | I35: 0.124 | J35: 0.127
A36: 25 Lleida | C36: 58 | D36: 41 | E36: 41 | H36: 0.195 | I36: 0.218 | J36: 0.212
A37: 43 Tarragona | C37: 8 | D37: 14 | E37: 12 | H37: 0.007 | I37: 0.037 | J37: 0.029
A38: CATALUÑA | C38: 97 | D38: 123 | E38: 110 | F38: 89.43089431 | H38: 0.277 | I38: 0.567 | J38: 0.48 | K38: 84.65608466
A40: 7 BALEARES | C40: 39 | D40: 37 | E40: 45 | F40: 121.6216216 | H40: 0.054 | I40: 0.052 | J40: 0.09 | K40: 173.0769231
A42: 5 Ávila | C42: 17 | D42: 33 | E42: 30 | H42: 0.015 | I42: 0.077 | J42: 0.063
A43: 9 Burgos | C43: 446 | D43: 357 | E43: 357 | H43: 2.153 | I43: 1.604 | J43: 1.604
A44: 24 León | C44: 11 | D44: 26 | E44: 25 | H44: 0.056 | I44: 0.101 | J44: 0.132
A45: 34 Palencia | C45: 30 | D45: 19 | E45: 18 | H45: 0.115 | I45: 0.095 | J45: 0.088
A46: 37 Salamanca | C46: 55 | D46: 26 | E46: 35 | H46: 0.178 | I46: 0.111 | J46: 0.132
A47: 40 Segovia | C47: 61 | D47: 43 | E47: 45 | H47: 0.168 | I47: 0.148 | J47: 0.096
A48: 42 Soria | C48: 38 | D48: 2 | H48: 0.153 | I48: 0.005
A49: 47 Valladolid | C49: 205 | D49: 87 | E49: 87 | H49: 1.015 | I49: 0.545 | J49: 0.408
A50: 49 Zamora | C50: 39 | D50: 46 | E50: 71.17 | H50: 0.131 | I50: 0.138 | J50: 0.292
A51: CASTILLA Y LEÓN | C51: 902 | D51: 639 | E51: 668.17 | F51: 104.5649452 | H51: 3.984 | I51: 2.824 | J51: 2.815 | K51: 99.68130312
A53: 28 MADRID | C53: 196 | D53: 167 | E53: 166 | F53: 99.4011976 | H53: 0.587 | I53: 0.649 | J53: 0.633 | K53: 97.53466872
A55: 2 Albacete | C55: 1448 | D55: 781 | E55: 809 | H55: 8.95 | I55: 5.06 | J55: 5.292
A56: 13 Ciudad Real | C56: 214 | D56: 190 | E56: 200 | H56: 0.644 | I56: 0.651 | J56: 0.68
A57: 16 Cuenca | C57: 387 | D57: 446 | E57: 540 | H57: 1.098 | I57: 1.437 | J57: 1.85
A58: 19 Guadalajara | C58: 229 | D58: 206 | E58: 119 | H58: 0.387 | I58: 0.706 | J58: 0.489
A59: 45 Toledo | C59: 992 | D59: 1054 | E59: 1054 | H59: 2.412 | I59: 3.889 | J59: 3.874
A60: CASTILLA-MANCHA | C60: 3270 | D60: 2677 | E60: 2722 | F60: 101.6809862 | H60: 13.491 | I60: 11.743 | J60: 12.185 | K60: 103.7639445
A62: 3 Alicante | C62: 105 | D62: 103 | E62: 90 | H62: 0.099 | I62: 0.233 | J62: 0.284
A63: 12 Castellón | C63: 24 | D63: 24 | E63: 26 | H63: 0.003 | I63: 0.047 | J63: 0.051
A64: 46 Valencia | C64: 60 | D64: 90 | E64: 133 | H64: 0.017 | I64: 0.261 | J64: 0.387
A65: C. VALENCIANA | C65: 189 | D65: 217 | E65: 249 | F65: 114.7465438 | H65: 0.119 | I65: 0.541 | J65: 0.722 | K65: 133.4565619
A67: 30 R. DE MURCIA | C67: 185 | D67: 177 | E67: 277 | F67: 156.4971751 | H67: 0.333 | I67: 0.274 | J67: 0.285 | K67: 104.0145985
A69: 6 Badajoz | C69: 3079 | D69: 3572 | E69: 3325 | H69: 9.366 | I69: 12.51 | J69: 6.594
A70: 10 Cáceres | C70: 190 | D70: 197 | E70: 200 | H70: 0.324 | I70: 0.467 | J70: 0.333
A71: EXTREMADURA | C71: 3269 | D71: 3769 | E71: 3525 | F71: 93.52613425 | H71: 9.69 | I71: 12.977 | J71: 6.927 | K71: 53.37905525
A73: 4 Almería | C73: 115 | D73: 76 | E73: 80 | I73: 0.155 | J73: 0.123
A74: 11 Cádiz | C74: 46510 | D74: 37999 | E74: 36129.58 | H74: 143.507 | I74: 94.998 | J74: 104.598
A75: 14 Córdoba | C75: 36938 | D75: 34150 | E75: 34150 | H75: 129.283 | I75: 102.45 | J75: 102.45
A76: 18 Granada | C76: 1717 | D76: 1989 | E76: 1774.85 | H76: 4.984 | I76: 6.176 | J76: 5.356
A77: 21 Huelva | C77: 9160 | D77: 9590 | E77: 9590 | H77: 32.58 | I77: 34.524 | J77: 37.768
A78: 23 Jaén | C78: 4968 | D78: 4697 | E78: 4693 | H78: 17.238 | I78: 15.992 | J78: 15.978
A79: 29 Málaga | C79: 10206 | D79: 10404 | E79: 10410 | H79: 28.58 | I79: 25.94 | J79: 27.733
A80: 41 Sevilla | C80: 66090 | D80: 59820 | E80: 47000 | H80: 229.75 | I80: 186.724 | J80: 139.25
A81: ANDALUCÍA | C81: 175704 | D81: 158725 | E81: 143827.43 | F81: 90.61422586 | H81: 585.922 | I81: 466.959 | J81: 433.256 | K81: 92.78244985
A83: 35 Palmas (Las)
A84: 38 S. C. Tenerife
A85: CANARIAS
A88: ESPAÑA | C88: 231517 | D88: 210693.31 | E88: 200515.6 | F88: 95.16941948 | H88: 722.199 | I88: 649.768 | J88: 624.864 | K88: 96.16724739
A91: (*)Tipo de Superficie de mes/año solicitado

Sheet Tri2rno-SRT
A1: AVANCES DE SUPERFICIE Y PRODUCCIÓN
A2: TRIGO BLANDO Y SEMI DE INVIERNO S/R/T | K2: 2026 ABRIL
A3: SUPERFICIE CULTIVADA(*)
A4: PROVINCIAS | B4: SUPERFICIES (HA) | E4: SUPERFICIES (HA) | H4: SUPERFICIES (HA) | L4: PRODUCCIONES (1000 TM) | O4: PRODUCCIONES (1000 TM) | R4: PRODUCCIONES (1000 TM)
A5: Y | B5: SECANO | E5: REGADIO | H5: TOTAL | L5: SECANO | O5: REGADIO | R5: TOTAL
A6: CC-AA | B6: =J6-2 -> 2024 | C6: =J6-1 -> 2025 | D6: =J6 -> 2026 | E6: =J6-2 -> 2024 | F6: =J6-1 -> 2025 | G6: =J6 -> 2026 | H6: =J6-2 -> 2024 | I6: =J6-1 -> 2025 | J6: 2026 | L6: =T6-2 -> 2024 | M6: =T6-1 -> 2025 | N6: =T6 -> 2026 | O6: =T6-2 -> 2024 | P6: =T6-1 -> 2025 | Q6: =T6 -> 2026 | R6: =T6-2 -> 2024 | S6: =T6-1 -> 2025 | T6: 2026
B7: DEFINITIVO | C7: PROVISIONAL | D7: PROVISIONAL | E7: DEFINITIVO | F7: PROVISIONAL | H7: DEFINITIVO | I7: PROVISIONAL | L7: DEFINITIVO | M7: PROVISIONAL | O7: DEFINITIVO | P7: PROVISIONAL | R7: DEFINITIVO | S7: PROVISIONAL
A10: 15 Coruña (La) | B10: 1008 | C10: 1873.48 | D10: 1326.83 | H10: 1008 | I10: 1873.48 | J10: 1326.83 | L10: 2.318 | M10: 8.214 | N10: 6.166 | R10: 2.318 | S10: 8.214 | T10: 6.166
A11: 27 Lugo | B11: 1832 | C11: 2806.4 | D11: 2186.86 | H11: 1832 | I11: 2806.4 | J11: 2186.86 | L11: 4.03 | M11: 7.869 | N11: 4.971 | R11: 4.03 | S11: 7.869 | T11: 4.971
A12: 32 Orense | B12: 5128 | C12: 5370.44 | D12: 4972.27 | H12: 5128 | I12: 5370.44 | J12: 4972.27 | L12: 15.384 | M12: 17.32 | N12: 10.389 | R12: 15.384 | S12: 17.32 | T12: 10.389
A13: 36 Pontevedra | B13: 172 | C13: 333.44 | D13: 313.52 | H13: 172 | I13: 333.44 | J13: 313.52 | L13: 0.387 | M13: 1.362 | N13: 0.882 | R13: 0.387 | S13: 1.362 | T13: 0.882
A14: GALICIA | B14: 8140 | C14: 10383.76 | D14: 8799.48 | H14: 8140 | I14: 10383.76 | J14: 8799.48 | L14: 22.119 | M14: 34.765 | N14: 22.408 | R14: 22.119 | S14: 34.765 | T14: 22.408
A16: 33 P. DE ASTURIAS | C16: 61 | D16: 65 | I16: 61 | J16: 65 | M16: 0.11 | N16: 0.124 | S16: 0.11 | T16: 0.124
A18: 39 CANTABRIA | B18: 733 | C18: 740 | D18: 745 | E18: 115 | F18: 115 | G18: 130 | H18: 848 | I18: 855 | J18: 875 | L18: 1.613 | M18: 1.484 | N18: 2.235 | O18: 0.518 | P18: 0.46 | Q18: 0.52 | R18: 2.131 | S18: 1.944 | T18: 2.755
A20: 01 Alava | B20: 19717 | C20: 17217 | D20: 18524 | H20: 19717 | I20: 17217 | J20: 18524 | L20: 138.019 | M20: 103.302 | N20: 101.882 | R20: 138.019 | S20: 103.302 | T20: 101.882
A21: 20 Guipúzcoa | B21: 1 | H21: 1 | L21: 0.006 | R21: 0.006
A22: 48 Vizcaya
A23: PAIS VASCO | B23: 19718 | C23: 17217 | D23: 18524 | H23: 19718 | I23: 17217 | J23: 18524 | L23: 138.025 | M23: 103.302 | N23: 101.882 | R23: 138.025 | S23: 103.302 | T23: 101.882
A25: 31 NAVARRA | B25: 61844 | C25: 66511 | D25: 65102 | E25: 14641 | F25: 13420 | G25: 13149 | H25: 76485 | I25: 79931 | J25: 78251 | L25: 324.186 | M25: 339.609 | N25: 332.458 | O25: 104.566 | P25: 79.208 | Q25: 77.602 | R25: 428.752 | S25: 418.817 | T25: 410.06
A27: 26 LA RIOJA | B27: 17354 | C27: 16294 | D27: 16180 | E27: 7444 | F27: 6808 | G27: 6907 | H27: 24798 | I27: 23102 | J27: 23087 | L27: 46.717 | M27: 100.065 | N27: 67.034 | O27: 32.009 | P27: 43.112 | Q27: 35.792 | R27: 78.726 | S27: 143.177 | T27: 102.826
A29: 22 Huesca | B29: 56113 | C29: 55466.53 | D29: 58400 | E29: 22889 | F29: 18601.89 | G29: 18200 | H29: 79002 | I29: 74068.42 | J29: 76600 | L29: 204.567 | M29: 241.834 | N29: 204.4 | O29: 135.984 | P29: 109.937 | Q29: 94.64 | R29: 340.551 | S29: 351.771 | T29: 299.04
A30: 44 Teruel | B30: 30138 | C30: 33985 | D30: 35211 | E30: 3980 | F30: 3249 | G30: 3469 | H30: 34118 | I30: 37234 | J30: 38680 | L30: 30.061 | M30: 83.263 | N30: 77.341 | O30: 12.147 | P30: 13.72 | Q30: 13.43 | R30: 42.208 | S30: 96.983 | T30: 90.771
A31: 50 Zaragoza | B31: 41175 | C31: 40513.5 | D31: 45017.04 | E31: 17887 | F31: 15858.9 | G31: 17619.95 | H31: 59062 | I31: 56372.4 | J31: 62636.99 | L31: 58.674 | M31: 147.631 | N31: 164.034 | O31: 91.224 | P31: 93.758 | Q31: 104.155 | R31: 149.898 | S31: 241.389 | T31: 268.189
A32: ARAGON | B32: 127426 | C32: 129965.03 | D32: 138628.04 | E32: 44756 | F32: 37709.79 | G32: 39288.95 | H32: 172182 | I32: 167674.82 | J32: 177916.99 | L32: 293.302 | M32: 472.728 | N32: 445.775 | O32: 239.355 | P32: 217.415 | Q32: 212.225 | R32: 532.657 | S32: 690.143 | T32: 658
A34: 08 Barcelona | B34: 21419 | C34: 20882 | D34: 21419 | E34: 370 | F34: 556 | G34: 600 | H34: 21789 | I34: 21438 | J34: 22019 | L34: 48.236 | M34: 99.367 | N34: 83.5 | O34: 2.017 | P34: 3.265 | Q34: 3.48 | R34: 50.253 | S34: 102.632 | T34: 86.98
A35: 17 Girona | B35: 10042 | C35: 9291 | D35: 8102 | E35: 2681 | F35: 4277 | G35: 4385 | H35: 12723 | I35: 13568 | J35: 12487 | L35: 23.88 | M35: 40.863 | N35: 32.408 | O35: 9.952 | P35: 20.503 | Q35: 19.294 | R35: 33.832 | S35: 61.366 | T35: 51.702
A36: 25 Lleida | B36: 41588 | C36: 32550 | D36: 34080 | E36: 20718 | F36: 15830 | G36: 15500 | H36: 62306 | I36: 48380 | J36: 49580 | L36: 83.218 | M36: 130.2 | N36: 154 | O36: 123.293 | P36: 118.725 | Q36: 105 | R36: 206.511 | S36: 248.925 | T36: 259
A37: 43 Tarragona | B37: 6861 | C37: 6418 | D37: 6659 | E37: 55 | F37: 68 | G37: 61 | H37: 6916 | I37: 6486 | J37: 6720 | L37: 8.192 | M37: 27.943 | N37: 30 | O37: 0.115 | P37: 0.326 | Q37: 0.24 | R37: 8.307 | S37: 28.269 | T37: 30.24
A38: CATALUÑA | B38: 79910 | C38: 69141 | D38: 70260 | E38: 23824 | F38: 20731 | G38: 20546 | H38: 103734 | I38: 89872 | J38: 90806 | L38: 163.526 | M38: 298.373 | N38: 299.908 | O38: 135.377 | P38: 142.819 | Q38: 128.014 | R38: 298.903 | S38: 441.192 | T38: 427.922
A40: 07 BALEARES | B40: 3694 | C40: 3670 | D40: 3800 | H40: 3694 | I40: 3670 | J40: 3800 | L40: 5.135 | M40: 5.2 | N40: 7.4 | R40: 5.135 | S40: 5.2 | T40: 7.4
A42: 05 Avila | B42: 28638 | C42: 34748 | D42: 34767 | E42: 2332 | F42: 1593 | G42: 1750 | H42: 30970 | I42: 36341 | J42: 36517 | L42: 54.613 | M42: 124.815 | N42: 85.179 | O42: 8.37 | P42: 8.08 | Q42: 7.875 | R42: 62.983 | S42: 132.895 | T42: 93.054
A43: 09 Burgos | B43: 179659 | C43: 191494 | D43: 187822 | E43: 5824 | F43: 6460 | G43: 6387 | H43: 185483 | I43: 197954 | J43: 194209 | L43: 963.691 | M43: 1018.174 | N43: 777.771 | O43: 41.56 | P43: 45.75 | Q43: 45.271 | R43: 1005.251 | S43: 1063.924 | T43: 823.042
A44: 24 León | B44: 24021 | C44: 34893 | D44: 32000 | E44: 12185 | F44: 17302 | G44: 18000 | H44: 36206 | I44: 52195 | J44: 50000 | L44: 83.569 | M44: 130.849 | N44: 86.4 | O44: 79.775 | P44: 114.193 | Q44: 117 | R44: 163.344 | S44: 245.042 | T44: 203.4
A45: 34 Palencia | B45: 97592 | C45: 111409 | D45: 102375 | E45: 22661 | F45: 23087 | G45: 20947 | H45: 120253 | I45: 134496 | J45: 123322 | L45: 434.675 | M45: 566.403 | N45: 367.629 | O45: 141.359 | P45: 142.216 | Q45: 120.11 | R45: 576.034 | S45: 708.619 | T45: 487.739
A46: 37 Salamanca | B46: 61003 | C46: 61999 | D46: 60000 | E46: 7311 | F46: 7980 | G46: 7000 | H46: 68314 | I46: 69979 | J46: 67000 | L46: 207.41 | M46: 260.086 | N46: 210 | O46: 42.404 | P46: 46.284 | Q46: 40.6 | R46: 249.814 | S46: 306.37 | T46: 250.6
A47: 40 Segovia | B47: 60157 | C47: 75566 | D47: 73770 | E47: 2873 | F47: 3742 | G47: 2980 | H47: 63030 | I47: 79308 | J47: 76750 | L47: 169.101 | M47: 306.647 | N47: 201.318 | O47: 14.325 | P47: 19.017 | Q47: 13.479 | R47: 183.426 | S47: 325.664 | T47: 214.797
A48: 42 Soria | B48: 83843 | C48: 101956 | D48: 80000 | E48: 3835 | F48: 4928 | G48: 4000 | H48: 87678 | I48: 106884 | J48: 84000 | L48: 319.19 | M48: 378.563 | N48: 240 | O48: 19.175 | P48: 25.616 | Q48: 20 | R48: 338.365 | S48: 404.179 | T48: 260
A49: 47 Valladolid | B49: 101383 | C49: 102138 | D49: 102137 | E49: 20125 | F49: 21526 | G49: 21526 | H49: 121508 | I49: 123664 | J49: 123663 | L49: 414.555 | M49: 542.863 | N49: 369.327 | O49: 134.375 | P49: 156.86 | Q49: 124.313 | R49: 548.93 | S49: 699.723 | T49: 493.64
A50: 49 Zamora | B50: 48737 | C50: 60551 | D50: 52194 | E50: 9020 | F50: 9542 | G50: 8550 | H50: 57757 | I50: 70093 | J50: 60744 | L50: 160.247 | M50: 237.784 | N50: 173.232 | O50: 46.318 | P50: 66.794 | Q50: 50.582 | R50: 206.565 | S50: 304.578 | T50: 223.814
A51: CASTILLA Y LEON | B51: 685033 | C51: 774754 | D51: 725065 | E51: 86166 | F51: 96160 | G51: 91140 | H51: 771199 | I51: 870914 | J51: 816205 | L51: 2807.051 | M51: 3566.184 | N51: 2510.856 | O51: 527.661 | P51: 624.81 | Q51: 539.23 | R51: 3334.712 | S51: 4190.994 | T51: 3050.086
A53: 28 MADRID | B53: 16960 | C53: 16964 | D53: 16892 | E53: 1893 | F53: 1544 | G53: 2514 | H53: 18853 | I53: 18508 | J53: 19406 | L53: 49.337 | M53: 53.963 | N53: 52.746 | O53: 8.617 | P53: 7.479 | Q53: 8.334 | R53: 57.954 | S53: 61.442 | T53: 61.08
A55: 02 Albacete | B55: 42630 | C55: 41397 | D55: 42828 | E55: 10650 | F55: 11953 | G55: 12112 | H55: 53280 | I55: 53350 | J55: 54940 | L55: 41.918 | M55: 94.187 | N55: 98.504 | O55: 77.213 | P55: 91.476 | Q55: 93.868 | R55: 119.131 | S55: 185.663 | T55: 192.372
A56: 13 Ciudad Real | B56: 41136 | C56: 39650 | D56: 38600 | E56: 7654 | F56: 8310 | G56: 8770 | H56: 48790 | I56: 47960 | J56: 47370 | L56: 90.376 | M56: 134.81 | N56: 131.24 | O56: 39.801 | P56: 45.705 | Q56: 48.235 | R56: 130.177 | S56: 180.515 | T56: 179.475
A57: 16 Cuenca | B57: 46536 | C57: 57309 | D57: 47678 | E57: 3020 | F57: 3320 | G57: 3577 | H57: 49556 | I57: 60629 | J57: 51255 | L57: 131.582 | M57: 174.79 | N57: 138.27 | O57: 15.543 | P57: 16.93 | Q57: 17.88 | R57: 147.125 | S57: 191.72 | T57: 156.15
A58: 19 Guadalajara | B58: 66242 | C58: 65772 | D58: 73365 | E58: 2027 | F58: 2011 | G58: 1982 | H58: 68269 | I58: 67783 | J58: 75347 | L58: 230.202 | M58: 249.934 | N58: 293.46 | O58: 12.066 | P58: 11.061 | Q58: 10.901 | R58: 242.268 | S58: 260.995 | T58: 304.361
A59: 45 Toledo | B59: 47675 | C59: 54305 | D59: 54305 | E59: 3955 | F59: 5574 | G59: 5574 | H59: 51630 | I59: 59879 | J59: 59879 | L59: 119.188 | M59: 136.829 | N59: 190.068 | O59: 18.193 | P59: 26.755 | Q59: 26.198 | R59: 137.381 | S59: 163.584 | T59: 216.266
A60: CASTILLA-MANCHA | B60: 244219 | C60: 258433 | D60: 256776 | E60: 27306 | F60: 31168 | G60: 32015 | H60: 271525 | I60: 289601 | J60: 288791 | L60: 613.266 | M60: 790.55 | N60: 851.542 | O60: 162.816 | P60: 191.927 | Q60: 197.082 | R60: 776.082 | S60: 982.477 | T60: 1048.624
A62: 03 Alicante | B62: 790 | C62: 1093 | D62: 935 | E62: 390 | F62: 365 | G62: 331 | H62: 1180 | I62: 1458 | J62: 1266 | L62: 0.188 | M62: 1.963 | N62: 2.177 | O62: 0.653 | P62: 1.976 | Q62: 1.755 | R62: 0.841 | S62: 3.939 | T62: 3.932
A63: 12 Castellón | B63: 555 | C63: 650 | D63: 720 | E63: 17 | F63: 17 | G63: 35 | H63: 572 | I63: 667 | J63: 755 | L63: 0.084 | M63: 1.398 | N63: 1.548 | O63: 0.082 | P63: 0.082 | Q63: 0.168 | R63: 0.166 | S63: 1.48 | T63: 1.716
A64: 46 Valencia | B64: 2424 | C64: 2123 | D64: 2515 | E64: 237 | F64: 37 | G64: 47 | H64: 2661 | I64: 2160 | J64: 2562 | L64: 1.06 | M64: 6.157 | N64: 7.294 | O64: 0.975 | P64: 0.162 | Q64: 0.206 | R64: 2.035 | S64: 6.319 | T64: 7.5
A65: C. VALENCIANA | B65: 3769 | C65: 3866 | D65: 4170 | E65: 644 | F65: 419 | G65: 413 | H65: 4413 | I65: 4285 | J65: 4583 | L65: 1.332 | M65: 9.518 | N65: 11.019 | O65: 1.71 | P65: 2.22 | Q65: 2.129 | R65: 3.042 | S65: 11.738 | T65: 13.148
A67: 30 R. DE MURCIA | B67: 6251 | C67: 6324 | D67: 7656 | E67: 599 | F67: 526 | G67: 1020 | H67: 6850 | I67: 6850 | J67: 8676 | L67: 2.434 | M67: 0.41 | N67: 0.472 | O67: 2.091 | P67: 3.49 | Q67: 3.595 | R67: 4.525 | S67: 3.9 | T67: 4.066
A69: 06 Badajoz | B69: 62899 | C69: 63348 | D69: 59850 | E69: 10618 | F69: 10634 | G69: 10450 | H69: 73517 | I69: 73982 | J69: 70300 | L69: 199.201 | M69: 169.742 | N69: 127.72 | O69: 43.714 | P69: 37.042 | Q69: 36.512 | R69: 242.915 | S69: 206.784 | T69: 164.232
A70: 10 Cáceres | B70: 2306 | C70: 1856 | D70: 2000 | E70: 1215 | F70: 1526 | G70: 1500 | H70: 3521 | I70: 3382 | J70: 3500 | L70: 4.953 | M70: 3.931 | N70: 2.943 | O70: 3.393 | P70: 4.201 | Q70: 3.65 | R70: 8.347 | S70: 8.132 | T70: 6.592
A71: EXTREMADURA | B71: 65205 | C71: 65204 | D71: 61850 | E71: 11833 | F71: 12160 | G71: 11950 | H71: 77038 | I71: 77364 | J71: 73800 | L71: 204.154 | M71: 173.673 | N71: 130.663 | O71: 47.107 | P71: 41.243 | Q71: 40.162 | R71: 251.262 | S71: 214.916 | T71: 170.824
A73: 04 Almería | B73: 1763 | C73: 1554 | D73: 1560 | E73: 65 | F73: 20 | G73: 20 | H73: 1828 | I73: 1574 | J73: 1580 | L73: 0.016 | M73: 3.984 | N73: 2.34 | O73: 0.083 | P73: 0.064 | Q73: 0.05 | R73: 0.099 | S73: 4.048 | T73: 2.39
A74: 11 Cádiz | B74: 9075 | C74: 10879.38 | D74: 10682.46 | E74: 1647 | F74: 1336.97 | G74: 1348.68 | H74: 10722 | I74: 12216.35 | J74: 12031.14 | L74: 15.855 | M74: 43.516 | N74: 30.703 | O74: 6.458 | P74: 5.348 | Q74: 4.653 | R74: 22.313 | S74: 48.864 | T74: 35.356
A75: 14 Córdoba | B75: 21160 | C75: 20330 | D75: 20330 | E75: 2078 | F75: 2390 | G75: 2390 | H75: 23238 | I75: 22720 | J75: 22720 | L75: 79.35 | M75: 60.99 | N75: 60.99 | O75: 7.793 | P75: 7.17 | Q75: 7.17 | R75: 87.143 | S75: 68.16 | T75: 68.16
A76: 18 Granada | B76: 7112 | C76: 7510 | D76: 7310.55 | E76: 816 | F76: 847 | G76: 729.06 | H76: 7928 | I76: 8357 | J76: 8039.61 | L76: 9.803 | M76: 15.443 | N76: 15.857 | O76: 2.504 | P76: 4.039 | Q76: 3.108 | R76: 12.308 | S76: 19.481 | T76: 18.965
A77: 21 Huelva | B77: 4160 | C77: 4105 | D77: 4105 | E77: 340 | F77: 275 | G77: 275 | H77: 4500 | I77: 4380 | J77: 4380 | L77: 15.392 | M77: 15.023 | N77: 15.188 | O77: 1.328 | P77: 1.183 | Q77: 1.1 | R77: 16.72 | S77: 16.206 | T77: 16.288
A78: 23 Jaén | B78: 2302 | C78: 1969 | D78: 1974 | E78: 202 | F78: 156 | G78: 158 | H78: 2504 | I78: 2125 | J78: 2132 | L78: 6.906 | M78: 5.513 | N78: 5.527 | O78: 0.808 | P78: 0.562 | Q78: 0.569 | R78: 7.714 | S78: 6.075 | T78: 6.096
A79: 29 Málaga | B79: 4459 | C79: 5432 | D79: 5439 | E79: 313 | F79: 389 | G79: 390 | H79: 4772 | I79: 5821 | J79: 5829 | L79: 9.792 | M79: 14.123 | N79: 13.598 | O79: 1.33 | P79: 1.906 | Q79: 1.95 | R79: 11.122 | S79: 16.029 | T79: 15.548
A80: 41 Sevilla | B80: 52650 | C80: 54310 | D80: 50000 | E80: 10820 | F80: 9310 | G80: 8000 | H80: 63470 | I80: 63620 | J80: 58000 | L80: 189.54 | M80: 190.085 | N80: 175 | O80: 45.444 | P80: 39.102 | Q80: 26 | R80: 234.984 | S80: 229.187 | T80: 201
A81: ANDALUCIA | B81: 102681 | C81: 106089.38 | D81: 101401.01 | E81: 16281 | F81: 14723.97 | G81: 13310.74 | H81: 118962 | I81: 120813.35 | J81: 114711.75 | L81: 326.654 | M81: 348.677 | N81: 319.203 | O81: 65.748 | P81: 59.374 | Q81: 44.6 | R81: 392.403 | S81: 408.05 | T81: 363.803
A83: 35 Palmas (Las) | B83: 88 | C83: 88 | D83: 88 | E83: 1 | F83: 1 | G83: 1 | H83: 89 | I83: 89 | J83: 89 | L83: 0.088 | M83: 0.088 | N83: 0.088 | O83: 0.001 | P83: 0.001 | Q83: 0.001 | R83: 0.089 | S83: 0.089 | T83: 0.089
A84: 38 S. C. Tenerife | B84: 114 | C84: 114 | D84: 114 | E84: 23 | F84: 23 | G84: 23 | H84: 137 | I84: 137 | J84: 137 | L84: 0.108 | M84: 0.108 | N84: 0.108 | O84: 0.035 | P84: 0.035 | Q84: 0.035 | R84: 0.143 | S84: 0.143 | T84: 0.143
A85: CANARIAS | B85: 202 | C85: 202 | D85: 202 | E85: 24 | F85: 24 | G85: 24 | H85: 226 | I85: 226 | J85: 226 | L85: 0.196 | M85: 0.196 | N85: 0.196 | O85: 0.036 | P85: 0.036 | Q85: 0.036 | R85: 0.232 | S85: 0.232 | T85: 0.232
A88: ESPAÑA | B88: 2886278 | C88: 1545819.17 | D88: 1496115.53 | E88: 235526 | F88: 235508.76 | G88: 232407.69 | H88: 1678665 | I88: 1781327.93 | J88: 1728523.22 | L88: 4999.047 | M88: 6298.807 | N88: 5155.921 | O88: 1327.611 | P88: 1413.593 | Q88: 1289.321 | R88: 6326.66 | S88: 7712.399 | T88: 6445.24
B96: 221 | C96: 231 | E96: 221 | F96: 231 | H96: 221 | I96: 231

Sheet Tri2rno
A1: AVANCES DE SUPERFICIE Y PRODUCCIÓN
A2: TRIGO BLANDO Y SEMI DE INVIERNO | J2: 2026 ABRIL
A3: SUPERFICIE CULTIVADA(*)
A4: PROVINCIAS | C4: SUPERFICIES (HA) | H4: PRODUCCIONES (1000 TM)
A5: Y
A6: CC-AA | C6: =E6-2 -> 2024 | D6: =E6-1 -> 2025 | E6: 2026 | F6: =E6 -> 2026 | H6: =J6-2 -> 2024 | I6: =J6-1 -> 2025 | J6: 2026 | K6: =J6 -> 2026
C7: DEFINITIVO | D7: PROVISIONAL | H7: DEFINITIVO | I7: PROVISIONAL
F8: =CONCATENATE(D6,"=100") -> 2025=100 | K8: =CONCATENATE(I6,"=100") -> 2025=100
A10: 15 A Coruña | C10: 1008 | D10: 1873.48 | E10: 1326.83 | H10: 2.318 | I10: 8.214 | J10: 6.166
A11: 27 Lugo | C11: 1832 | D11: 2806.4 | E11: 2186.86 | H11: 4.03 | I11: 7.869 | J11: 4.971
A12: 32 Ourense | C12: 5128 | D12: 5370.44 | E12: 4972.27 | H12: 15.384 | I12: 17.32 | J12: 10.389
A13: 36 Pontevedra | C13: 172 | D13: 333.44 | E13: 313.52 | H13: 0.387 | I13: 1.362 | J13: 0.882
A14: GALICIA | C14: 8140 | D14: 10383.76 | E14: 8799.48 | F14: 84.74271362 | H14: 22.119 | I14: 34.765 | J14: 22.408 | K14: 64.45563066
A16: 33 P. DE ASTURIAS | D16: 61 | E16: 65 | F16: 106.557377 | I16: 0.11 | J16: 0.124 | K16: 112.7272727
A18: 39 CANTABRIA | C18: 848 | D18: 855 | E18: 875 | F18: 102.3391813 | H18: 2.131 | I18: 1.944 | J18: 2.755 | K18: 141.718107
A20: 1 Álava | C20: 19717 | D20: 17217 | E20: 18524 | H20: 138.019 | I20: 103.302 | J20: 101.882
A21: 20 Guipúzcoa | C21: 1 | H21: 0.006
A22: 48 Vizcaya
A23: PAIS VASCO | C23: 19718 | D23: 17217 | E23: 18524 | F23: 107.5913341 | H23: 138.025 | I23: 103.302 | J23: 101.882 | K23: 98.62538963
A25: 31 NAVARRA | C25: 76485 | D25: 79931 | E25: 78251 | F25: 97.89818719 | H25: 428.752 | I25: 418.817 | J25: 410.06 | K25: 97.90911066
A27: 26 LA RIOJA | C27: 24798 | D27: 23102 | E27: 23087 | F27: 99.93507056 | H27: 78.726 | I27: 143.177 | J27: 102.826 | K27: 71.81740084
A29: 22 Huesca | C29: 79002 | D29: 74068.42 | E29: 76600 | H29: 340.551 | I29: 351.771 | J29: 299.04
A30: 44 Teruel | C30: 34118 | D30: 37234 | E30: 38680 | H30: 42.208 | I30: 96.983 | J30: 90.771
A31: 50 Zaragoza | C31: 59062 | D31: 56372.4 | E31: 62636.99 | H31: 149.898 | I31: 241.389 | J31: 268.189
A32: ARAGÓN | C32: 172182 | D32: 167674.82 | E32: 177916.99 | F32: 106.1083531 | H32: 532.657 | I32: 690.143 | J32: 658 | K32: 95.34255944
A34: 8 Barcelona | C34: 21789 | D34: 21438 | E34: 22019 | H34: 50.253 | I34: 102.632 | J34: 86.98
A35: 17 Girona | C35: 12723 | D35: 13568 | E35: 12487 | H35: 33.832 | I35: 61.366 | J35: 51.702
A36: 25 Lleida | C36: 62306 | D36: 48380 | E36: 49580 | H36: 206.511 | I36: 248.925 | J36: 259
A37: 43 Tarragona | C37: 6916 | D37: 6486 | E37: 6720 | H37: 8.307 | I37: 28.269 | J37: 30.24
A38: CATALUÑA | C38: 103734 | D38: 89872 | E38: 90806 | F38: 101.0392558 | H38: 298.903 | I38: 441.192 | J38: 427.922 | K38: 96.99223921
A40: 7 BALEARES | C40: 3694 | D40: 3670 | E40: 3800 | F40: 103.5422343 | H40: 5.135 | I40: 5.2 | J40: 7.4 | K40: 142.3076923
A42: 5 Ávila | C42: 30970 | D42: 36341 | E42: 36517 | H42: 62.983 | I42: 132.895 | J42: 93.054
A43: 9 Burgos | C43: 185483 | D43: 197954 | E43: 194209 | H43: 1005.251 | I43: 1063.924 | J43: 823.042
A44: 24 León | C44: 36206 | D44: 52195 | E44: 50000 | H44: 163.344 | I44: 245.042 | J44: 203.4
A45: 34 Palencia | C45: 120253 | D45: 134496 | E45: 123322 | H45: 576.034 | I45: 708.619 | J45: 487.739
A46: 37 Salamanca | C46: 68314 | D46: 69979 | E46: 67000 | H46: 249.814 | I46: 306.37 | J46: 250.6
A47: 40 Segovia | C47: 63030 | D47: 79308 | E47: 76750 | H47: 183.426 | I47: 325.664 | J47: 214.797
A48: 42 Soria | C48: 87678 | D48: 106884 | E48: 84000 | H48: 338.365 | I48: 404.179 | J48: 260
A49: 47 Valladolid | C49: 121508 | D49: 123664 | E49: 123663 | H49: 548.93 | I49: 699.723 | J49: 493.64
A50: 49 Zamora | C50: 57757 | D50: 70093 | E50: 60744 | H50: 206.565 | I50: 304.578 | J50: 223.814
A51: CASTILLA Y LEÓN | C51: 771199 | D51: 870914 | E51: 816205 | F51: 93.71820869 | H51: 3334.712 | I51: 4190.994 | J51: 3050.086 | K51: 72.77715024
A53: 28 MADRID | C53: 18853 | D53: 18508 | E53: 19406 | F53: 104.8519559 | H53: 57.954 | I53: 61.442 | J53: 61.08 | K53: 99.41082647
A55: 2 Albacete | C55: 53280 | D55: 53350 | E55: 54940 | H55: 119.131 | I55: 185.663 | J55: 192.372
A56: 13 Ciudad Real | C56: 48790 | D56: 47960 | E56: 47370 | H56: 130.177 | I56: 180.515 | J56: 179.475
A57: 16 Cuenca | C57: 49556 | D57: 60629 | E57: 51255 | H57: 147.125 | I57: 191.72 | J57: 156.15
A58: 19 Guadalajara | C58: 68269 | D58: 67783 | E58: 75347 | H58: 242.268 | I58: 260.995 | J58: 304.361
A59: 45 Toledo | C59: 51630 | D59: 59879 | E59: 59879 | H59: 137.381 | I59: 163.584 | J59: 216.266
A60: CASTILLA-MANCHA | C60: 271525 | D60: 289601 | E60: 288791 | F60: 99.72030483 | H60: 776.082 | I60: 982.477 | J60: 1048.624 | K60: 106.7326767
A62: 3 Alicante | C62: 1180 | D62: 1458 | E62: 1266 | H62: 0.841 | I62: 3.939 | J62: 3.932
A63: 12 Castellón | C63: 572 | D63: 667 | E63: 755 | H63: 0.166 | I63: 1.48 | J63: 1.716
A64: 46 Valencia | C64: 2661 | D64: 2160 | E64: 2562 | H64: 2.035 | I64: 6.319 | J64: 7.5
A65: C. VALENCIANA | C65: 4413 | D65: 4285 | E65: 4583 | F65: 106.9544924 | H65: 3.042 | I65: 11.738 | J65: 13.148 | K65: 112.0122678
A67: 30 R. DE MURCIA | C67: 6850 | D67: 6850 | E67: 8676 | F67: 126.6569343 | H67: 4.525 | I67: 3.9 | J67: 4.066 | K67: 104.2564103
A69: 6 Badajoz | C69: 73517 | D69: 73982 | E69: 70300 | H69: 242.915 | I69: 206.784 | J69: 164.232
A70: 10 Cáceres | C70: 3521 | D70: 3382 | E70: 3500 | H70: 8.347 | I70: 8.132 | J70: 6.592
A71: EXTREMADURA | C71: 77038 | D71: 77364 | E71: 73800 | F71: 95.39320614 | H71: 251.262 | I71: 214.916 | J71: 170.824 | K71: 79.4840775
A73: 4 Almería | C73: 1828 | D73: 1574 | E73: 1580 | H73: 0.099 | I73: 4.048 | J73: 2.39
A74: 11 Cádiz | C74: 10722 | D74: 12216.35 | E74: 12031.14 | H74: 22.313 | I74: 48.864 | J74: 35.356
A75: 14 Córdoba | C75: 23238 | D75: 22720 | E75: 22720 | H75: 87.143 | I75: 68.16 | J75: 68.16
A76: 18 Granada | C76: 7928 | D76: 8357 | E76: 8039.61 | H76: 12.308 | I76: 19.481 | J76: 18.965
A77: 21 Huelva | C77: 4500 | D77: 4380 | E77: 4380 | H77: 16.72 | I77: 16.206 | J77: 16.288
A78: 23 Jaén | C78: 2504 | D78: 2125 | E78: 2132 | H78: 7.714 | I78: 6.075 | J78: 6.096
A79: 29 Málaga | C79: 4772 | D79: 5821 | E79: 5829 | H79: 11.122 | I79: 16.029 | J79: 15.548
A80: 41 Sevilla | C80: 63470 | D80: 63620 | E80: 58000 | H80: 234.984 | I80: 229.187 | J80: 201
A81: ANDALUCÍA | C81: 118962 | D81: 120813.35 | E81: 114711.75 | F81: 94.94956476 | H81: 392.403 | I81: 408.05 | J81: 363.803 | K81: 89.15647592
A83: 35 Palmas (Las) | C83: 89 | D83: 89 | E83: 89 | H83: 0.089 | I83: 0.089 | J83: 0.089
A84: 38 S. C. Tenerife | C84: 137 | D84: 137 | E84: 137 | H84: 0.143 | I84: 0.143 | J84: 0.143
A85: CANARIAS | C85: 226 | D85: 226 | E85: 226 | F85: 100 | H85: 0.232 | I85: 0.232 | J85: 0.232 | K85: 100
A88: ESPAÑA | C88: 1678665 | D88: 1781327.93 | E88: 1728523.22 | F88: 97.03565474 | H88: 6326.66 | I88: 7712.399 | J88: 6445.24 | K88: 83.56984643
A91: (*)Tipo de Superficie de mes/año solicitado

Sheet Tri3era-SRT
A1: AVANCES DE SUPERFICIE Y PRODUCCIÓN
A2: TRIGO DE PRIMAVERA S/R/T | K2: 2026 ABRIL
A3: SUPERFICIE CULTIVADA(*)
A4: PROVINCIAS | B4: SUPERFICIES (HA) | E4: SUPERFICIES (HA) | H4: SUPERFICIES (HA) | L4: PRODUCCIONES (1000 TM) | O4: PRODUCCIONES (1000 TM) | R4: PRODUCCIONES (1000 TM)
A5: Y | B5: SECANO | E5: REGADIO | H5: TOTAL | L5: SECANO | O5: REGADIO | R5: TOTAL
A6: CC-AA | B6: =J6-2 -> 2024 | C6: =J6-1 -> 2025 | D6: =J6 -> 2026 | E6: =J6-2 -> 2024 | F6: =J6-1 -> 2025 | G6: =J6 -> 2026 | H6: =J6-2 -> 2024 | I6: =J6-1 -> 2025 | J6: 2026 | L6: =T6-2 -> 2024 | M6: =T6-1 -> 2025 | N6: =T6 -> 2026 | O6: =T6-2 -> 2024 | P6: =T6-1 -> 2025 | Q6: =T6 -> 2026 | R6: =T6-2 -> 2024 | S6: =T6-1 -> 2025 | T6: 2026
B7: DEFINITIVO | C7: PROVISIONAL | D7: PROVISIONAL | E7: DEFINITIVO | F7: PROVISIONAL | H7: DEFINITIVO | I7: PROVISIONAL | L7: DEFINITIVO | M7: PROVISIONAL | O7: DEFINITIVO | P7: PROVISIONAL | R7: DEFINITIVO | S7: PROVISIONAL
A10: 15 Coruña (La) | B10: 733 | C10: 263.53 | D10: 187.07 | H10: 733 | I10: 263.53 | J10: 187.07 | L10: 1.686 | M10: 1.155 | N10: 0.857 | R10: 1.686 | S10: 1.155 | T10: 0.857
A11: 27 Lugo | B11: 1308 | C11: 456.29 | D11: 346.72 | H11: 1308 | I11: 456.29 | J11: 346.72 | L11: 2.878 | M11: 1.112 | N11: 0.774 | R11: 2.877 | S11: 1.112 | T11: 0.774
A12: 32 Orense | B12: 3404 | C12: 757.72 | D12: 792.6 | H12: 3404 | I12: 757.72 | J12: 792.6 | L12: 9.872 | M12: 2.414 | N12: 1.677 | R12: 9.872 | S12: 2.414 | T12: 1.677
A13: 36 Pontevedra | B13: 113 | C13: 50.78 | D13: 49.33 | H13: 113 | I13: 50.78 | J13: 49.33 | L13: 0.254 | M13: 0.018 | N13: 0.131 | R13: 0.254 | S13: 0.018 | T13: 0.131
A14: GALICIA | B14: 5558 | C14: 1528.32 | D14: 1375.72 | H14: 5558 | I14: 1528.32 | J14: 1375.72 | L14: 14.69 | M14: 4.699 | N14: 3.439 | R14: 14.689 | S14: 4.699 | T14: 3.439
A16: 33 P. DE ASTURIAS
A18: 39 CANTABRIA
A20: 01 Alava
A21: 20 Guipúzcoa
A22: 48 Vizcaya
A23: PAIS VASCO
A25: 31 NAVARRA
A27: 26 LA RIOJA
A29: 22 Huesca | B29: 1186 | C29: 1169.08 | D29: 1240 | E29: 504 | F29: 403.94 | G29: 500 | H29: 1690 | I29: 1573.02 | J29: 1740 | L29: 4.08 | M29: 5.077 | N29: 3.94 | O29: 2.807 | P29: 2.389 | Q29: 2.435 | R29: 6.886 | S29: 7.466 | T29: 6.375
A30: 44 Teruel | C30: 686 | D30: 733 | F30: 68 | G30: 72 | I30: 754 | J30: 805 | M30: 1.673 | N30: 1.608 | P30: 0.285 | Q30: 0.273 | S30: 1.958 | T30: 1.881
A31: 50 Zaragoza | B31: 2466 | C31: 2284.57 | D31: 2538.85 | E31: 1055 | F31: 1216.65 | G31: 1352.59 | H31: 3521 | I31: 3501.22 | J31: 3891.44 | L31: 2.497 | M31: 6.485 | N31: 7.204 | O31: 4.825 | P31: 7.032 | Q31: 7.817 | R31: 7.323 | S31: 13.518 | T31: 15.021
A32: ARAGON | B32: 3652 | C32: 4139.65 | D32: 4511.85 | E32: 1559 | F32: 1688.59 | G32: 1924.59 | H32: 5211 | I32: 5828.24 | J32: 6436.44 | L32: 6.577 | M32: 13.235 | N32: 12.752 | O32: 7.632 | P32: 9.706 | Q32: 10.525 | R32: 14.209 | S32: 22.942 | T32: 23.277
A34: 08 Barcelona
A35: 17 Girona
A36: 25 Lleida
A37: 43 Tarragona
A38: CATALUÑA
A40: 07 BALEARES | B40: 1244 | C40: 1243 | D40: 1210 | H40: 1244 | I40: 1243 | J40: 1210 | L40: 1.729 | M40: 1.718 | N40: 2.36 | R40: 1.729 | S40: 1.718 | T40: 2.36
A42: 05 Avila
A43: 09 Burgos
A44: 24 León
A45: 34 Palencia
A46: 37 Salamanca
A47: 40 Segovia
A48: 42 Soria
A49: 47 Valladolid
A50: 49 Zamora
A51: CASTILLA Y LEON
A53: 28 MADRID | B53: 911 | C53: 897 | D53: 891 | E53: 107 | F53: 86 | G53: 139 | H53: 1018 | I53: 983 | J53: 1030 | L53: 2.643 | M53: 2.857 | N53: 2.779 | O53: 0.483 | P53: 0.411 | Q53: 0.469 | R53: 3.127 | S53: 3.268 | T53: 3.248
A55: 02 Albacete | E55: 2095 | F55: 2200 | G55: 2250 | H55: 2095 | I55: 2200 | J55: 2250 | O55: 14.854 | P55: 16.83 | Q55: 17.1 | R55: 14.853 | S55: 16.83 | T55: 17.1
A56: 13 Ciudad Real
A57: 16 Cuenca
A58: 19 Guadalajara
A59: 45 Toledo
A60: CASTILLA-MANCHA | E60: 2095 | F60: 2200 | G60: 2250 | H60: 2095 | I60: 2200 | J60: 2250 | O60: 14.854 | P60: 16.83 | Q60: 17.1 | R60: 14.853 | S60: 16.83 | T60: 17.1
A62: 03 Alicante
A63: 12 Castellón | B63: 145 | C63: 145 | D63: 145 | E63: 4 | F63: 4 | G63: 8 | H63: 149 | I63: 149 | J63: 153 | L63: 0.022 | M63: 0.311 | N63: 0.311 | O63: 0.019 | P63: 0.019 | Q63: 0.038 | R63: 0.041 | S63: 0.33 | T63: 0.349
A64: 46 Valencia
A65: C. VALENCIANA | B65: 145 | C65: 145 | D65: 145 | E65: 4 | F65: 4 | G65: 8 | H65: 149 | I65: 149 | J65: 153 | L65: 0.022 | M65: 0.311 | N65: 0.311 | O65: 0.019 | P65: 0.019 | Q65: 0.038 | R65: 0.041 | S65: 0.33 | T65: 0.349
A67: 30 R. DE MURCIA
A69: 06 Badajoz
A70: 10 Cáceres
A71: EXTREMADURA
A73: 04 Almería
A74: 11 Cádiz
A75: 14 Córdoba
A76: 18 Granada
A77: 21 Huelva
A78: 23 Jaén
A79: 29 Málaga
A80: 41 Sevilla
A81: ANDALUCIA
A83: 35 Palmas (Las)
A84: 38 S. C. Tenerife
A85: CANARIAS
A88: ESPAÑA | B88: 23020 | C88: 7952.97 | D88: 8133.57 | E88: 3765 | F88: 3978.59 | G88: 4321.59 | H88: 15275 | I88: 11931.56 | J88: 12455.16 | L88: 25.661 | M88: 22.82 | N88: 21.641 | O88: 22.988 | P88: 26.966 | Q88: 28.132 | R88: 48.648 | S88: 49.787 | T88: 49.773
B96: 221 | C96: 231 | E96: 221 | F96: 231 | H96: 221 | I96: 231

Sheet Tri3era
A1: AVANCES DE SUPERFICIE Y PRODUCCIÓN
A2: TRIGO DE PRIMAVERA | J2: 2026 ABRIL
A3: SUPERFICIE CULTIVADA(*)
A4: PROVINCIAS | C4: SUPERFICIES (HA) | H4: PRODUCCIONES (1000 TM)
A5: Y
A6: CC-AA | C6: =E6-2 -> 2024 | D6: =E6-1 -> 2025 | E6: 2026 | F6: =E6 -> 2026 | H6: =J6-2 -> 2024 | I6: =J6-1 -> 2025 | J6: 2026 | K6: =J6 -> 2026
C7: DEFINITIVO | D7: PROVISIONAL | H7: DEFINITIVO | I7: PROVISIONAL
F8: =CONCATENATE(D6,"=100") -> 2025=100 | K8: =CONCATENATE(I6,"=100") -> 2025=100
A10: 15 A Coruña | C10: 733 | D10: 263.53 | E10: 187.07 | H10: 1.686 | I10: 1.155 | J10: 0.857
A11: 27 Lugo | C11: 1308 | D11: 456.29 | E11: 346.72 | H11: 2.877 | I11: 1.112 | J11: 0.774
A12: 32 Ourense | C12: 3404 | D12: 757.72 | E12: 792.6 | H12: 9.872 | I12: 2.414 | J12: 1.677
A13: 36 Pontevedra | C13: 113 | D13: 50.78 | E13: 49.33 | H13: 0.254 | I13: 0.018 | J13: 0.131
A14: GALICIA | C14: 5558 | D14: 1528.32 | E14: 1375.72 | F14: 90.01518007 | H14: 14.689 | I14: 4.699 | J14: 3.439 | K14: 73.18578421
A16: 33 P. DE ASTURIAS
A18: 39 CANTABRIA
A20: 1 Álava
A21: 20 Guipúzcoa
A22: 48 Vizcaya
A23: PAIS VASCO
A25: 31 NAVARRA
A27: 26 LA RIOJA
A29: 22 Huesca | C29: 1690 | D29: 1573.02 | E29: 1740 | H29: 6.886 | I29: 7.466 | J29: 6.375
A30: 44 Teruel | D30: 754 | E30: 805 | I30: 1.958 | J30: 1.881
A31: 50 Zaragoza | C31: 3521 | D31: 3501.22 | E31: 3891.44 | H31: 7.323 | I31: 13.518 | J31: 15.021
A32: ARAGÓN | C32: 5211 | D32: 5828.24 | E32: 6436.44 | F32: 110.4353973 | H32: 14.209 | I32: 22.942 | J32: 23.277 | K32: 101.460204
A34: 8 Barcelona
A35: 17 Girona
A36: 25 Lleida
A37: 43 Tarragona
A38: CATALUÑA
A40: 7 BALEARES | C40: 1244 | D40: 1243 | E40: 1210 | F40: 97.34513274 | H40: 1.729 | I40: 1.718 | J40: 2.36 | K40: 137.3690338
A42: 5 Ávila
A43: 9 Burgos
A44: 24 León
A45: 34 Palencia
A46: 37 Salamanca
A47: 40 Segovia
A48: 42 Soria
A49: 47 Valladolid
A50: 49 Zamora
A51: CASTILLA Y LEÓN
A53: 28 MADRID | C53: 1018 | D53: 983 | E53: 1030 | F53: 104.7812818 | H53: 3.127 | I53: 3.268 | J53: 3.248 | K53: 99.3880049
A55: 2 Albacete | C55: 2095 | D55: 2200 | E55: 2250 | H55: 14.853 | I55: 16.83 | J55: 17.1
A56: 13 Ciudad Real
A57: 16 Cuenca
A58: 19 Guadalajara
A59: 45 Toledo
A60: CASTILLA-MANCHA | C60: 2095 | D60: 2200 | E60: 2250 | F60: 102.2727273 | H60: 14.853 | I60: 16.83 | J60: 17.1 | K60: 101.6042781
A62: 3 Alicante
A63: 12 Castellón | C63: 149 | D63: 149 | E63: 153 | H63: 0.041 | I63: 0.33 | J63: 0.349
A64: 46 Valencia
A65: C. VALENCIANA | C65: 149 | D65: 149 | E65: 153 | F65: 102.6845638 | H65: 0.041 | I65: 0.33 | J65: 0.349 | K65: 105.7575758
A67: 30 R. DE MURCIA
A69: 6 Badajoz
A70: 10 Cáceres
A71: EXTREMADURA
A73: 4 Almería
A74: 11 Cádiz
A75: 14 Córdoba
A76: 18 Granada
A77: 21 Huelva
A78: 23 Jaén
A79: 29 Málaga
A80: 41 Sevilla
A81: ANDALUCÍA
A83: 35 Palmas (Las)
A84: 38 S. C. Tenerife
A85: CANARIAS
A88: ESPAÑA | C88: 15275 | D88: 11931.56 | E88: 12455.16 | F88: 104.3883616 | H88: 48.648 | I88: 49.787 | J88: 49.773 | K88: 99.97188021
A91: (*)Tipo de Superficie de mes/año solicitado

Sheet Tri4era-SRT
A1: AVANCES DE SUPERFICIE Y PRODUCCIÓN
A2: TRIGO DURO DE PRIMAVERA S/R/T | K2: 2026 ABRIL
A3: SUPERFICIE CULTIVADA(*)
A4: PROVINCIAS | B4: SUPERFICIES (HA) | E4: SUPERFICIES (HA) | H4: SUPERFICIES (HA) | L4: PRODUCCIONES (1000 TM) | O4: PRODUCCIONES (1000 TM) | R4: PRODUCCIONES (1000 TM)
A5: Y | B5: SECANO | E5: REGADIO | H5: TOTAL | L5: SECANO | O5: REGADIO | R5: TOTAL
A6: CC-AA | B6: =J6-2 -> 2024 | C6: =J6-1 -> 2025 | D6: =J6 -> 2026 | E6: =J6-2 -> 2024 | F6: =J6-1 -> 2025 | G6: =J6 -> 2026 | H6: =J6-2 -> 2024 | I6: =J6-1 -> 2025 | J6: 2026 | L6: =T6-2 -> 2024 | M6: =T6-1 -> 2025 | N6: =T6 -> 2026 | O6: =T6-2 -> 2024 | P6: =T6-1 -> 2025 | Q6: =T6 -> 2026 | R6: =T6-2 -> 2024 | S6: =T6-1 -> 2025 | T6: 2026
B7: DEFINITIVO | C7: PROVISIONAL | D7: PROVISIONAL | E7: DEFINITIVO | F7: PROVISIONAL | H7: DEFINITIVO | I7: PROVISIONAL | L7: DEFINITIVO | M7: PROVISIONAL | O7: DEFINITIVO | P7: PROVISIONAL | R7: DEFINITIVO | S7: PROVISIONAL
A10: 15 Coruña (La) | B10: 4 | C10: 8.04 | D10: 6.14 | H10: 4 | I10: 8.04 | J10: 6.14 | L10: 0.009 | M10: 0.016 | N10: 0.016 | R10: 0.009 | S10: 0.016 | T10: 0.016
A11: 27 Lugo | B11: 86 | C11: 73.61 | D11: 48.55 | H11: 86 | I11: 73.61 | J11: 48.55 | L11: 0.189 | M11: 0.149 | N11: 0.097 | R11: 0.189 | S11: 0.149 | T11: 0.097
A12: 32 Orense | C12: 25.4 | D12: 114.6 | I12: 25.4 | J12: 114.6 | M12: 0.052 | N12: 0.311 | S12: 0.052 | T12: 0.311
A13: 36 Pontevedra | C13: 5.32 | D13: 6.48 | I13: 5.32 | J13: 6.48 | M13: 0.009 | N13: 0.011 | S13: 0.009 | T13: 0.011
A14: GALICIA | B14: 90 | C14: 112.37 | D14: 175.77 | H14: 90 | I14: 112.37 | J14: 175.77 | L14: 0.198 | M14: 0.226 | N14: 0.435 | R14: 0.198 | S14: 0.226 | T14: 0.435
A16: 33 P. DE ASTURIAS
A18: 39 CANTABRIA
A20: 01 Alava
A21: 20 Guipúzcoa
A22: 48 Vizcaya
A23: PAIS VASCO
A25: 31 NAVARRA
A27: 26 LA RIOJA
A29: 22 Huesca | B29: 41 | C29: 34.96 | D29: 40 | E29: 36 | F29: 23.3 | G29: 50 | H29: 77 | I29: 58.26 | J29: 90 | L29: 0.085 | M29: 0.132 | N29: 0.1 | O29: 0.134 | P29: 0.14 | Q29: 0.185 | R29: 0.219 | S29: 0.272 | T29: 0.285
A30: 44 Teruel | C30: 13 | D30: 14 | F30: 2 | G30: 1 | I30: 15 | J30: 15 | M30: 0.024 | N30: 0.023 | P30: 0.007 | Q30: 0.003 | S30: 0.031 | T30: 0.026
A31: 50 Zaragoza | B31: 1625 | C31: 1457.76 | D31: 1620.76 | E31: 690 | F31: 555.67 | G31: 617.24 | H31: 2315 | I31: 2013.43 | J31: 2238 | L31: 1.437 | M31: 3.472 | N31: 3.86 | O31: 3.007 | P31: 3.125 | Q31: 3.473 | R31: 4.445 | S31: 6.597 | T31: 7.333
A32: ARAGON | B32: 1666 | C32: 1505.72 | D32: 1674.76 | E32: 726 | F32: 580.97 | G32: 668.24 | H32: 2392 | I32: 2086.69 | J32: 2343 | L32: 1.522 | M32: 3.628 | N32: 3.983 | O32: 3.141 | P32: 3.272 | Q32: 3.661 | R32: 4.664 | S32: 6.9 | T32: 7.644
A34: 08 Barcelona
A35: 17 Girona
A36: 25 Lleida
A37: 43 Tarragona
A38: CATALUÑA
A40: 07 BALEARES | B40: 13 | C40: 13 | D40: 10 | H40: 13 | I40: 13 | J40: 10 | L40: 0.018 | M40: 0.018 | N40: 0.02 | R40: 0.018 | S40: 0.018 | T40: 0.02
A42: 05 Avila
A43: 09 Burgos
A44: 24 León
A45: 34 Palencia
A46: 37 Salamanca
A47: 40 Segovia
A48: 42 Soria
A49: 47 Valladolid
A50: 49 Zamora
A51: CASTILLA Y LEON
A53: 28 MADRID | B53: 4 | C53: 4 | D53: 2 | E53: 7 | F53: 5 | G53: 7 | H53: 11 | I53: 9 | J53: 9 | L53: 0.005 | M53: 0.017 | N53: 0.003 | O53: 0.028 | P53: 0.017 | Q53: 0.03 | R53: 0.033 | S53: 0.034 | T53: 0.033
A55: 02 Albacete | E55: 215 | H55: 215 | O55: 1.505 | R55: 1.505
A56: 13 Ciudad Real
A57: 16 Cuenca
A58: 19 Guadalajara
A59: 45 Toledo
A60: CASTILLA-MANCHA | E60: 215 | H60: 215 | O60: 1.505 | R60: 1.505
A62: 03 Alicante
A63: 12 Castellón | B63: 6 | C63: 6 | D63: 6 | H63: 6 | I63: 6 | J63: 6 | L63: 0.001 | M63: 0.012 | N63: 0.012 | R63: 0.001 | S63: 0.012 | T63: 0.012
A64: 46 Valencia
A65: C. VALENCIANA | B65: 6 | C65: 6 | D65: 6 | H65: 6 | I65: 6 | J65: 6 | L65: 0.001 | M65: 0.012 | N65: 0.012 | R65: 0.001 | S65: 0.012 | T65: 0.012
A67: 30 R. DE MURCIA
A69: 06 Badajoz
A70: 10 Cáceres
A71: EXTREMADURA
A73: 04 Almería
A74: 11 Cádiz
A75: 14 Córdoba
A76: 18 Granada
A77: 21 Huelva
A78: 23 Jaén
A79: 29 Málaga
A80: 41 Sevilla
A81: ANDALUCIA
A83: 35 Palmas (Las)
A84: 38 S. C. Tenerife
A85: CANARIAS
A88: ESPAÑA | B88: 3558 | C88: 1641.09 | D88: 1868.53 | E88: 948 | F88: 585.97 | G88: 675.24 | H88: 2727 | I88: 2227.06 | J88: 2543.77 | L88: 1.744 | M88: 3.901 | N88: 4.453 | O88: 4.674 | P88: 3.289 | Q88: 3.691 | R88: 6.419 | S88: 7.19 | T88: 8.144
B96: 221 | C96: 231 | E96: 221 | F96: 231 | H96: 221 | I96: 231

Sheet Tri4era
A1: AVANCES DE SUPERFICIE Y PRODUCCIÓN
A2: TRIGO DURO DE PRIMAVERA | J2: 2026 ABRIL
A3: SUPERFICIE CULTIVADA(*)
A4: PROVINCIAS | C4: SUPERFICIES (HA) | H4: PRODUCCIONES (1000 TM)
A5: Y
A6: CC-AA | C6: =E6-2 -> 2024 | D6: =E6-1 -> 2025 | E6: 2026 | F6: =E6 -> 2026 | H6: =J6-2 -> 2024 | I6: =J6-1 -> 2025 | J6: 2026 | K6: =J6 -> 2026
C7: DEFINITIVO | D7: PROVISIONAL | H7: DEFINITIVO | I7: PROVISIONAL
F8: =CONCATENATE(D6,"=100") -> 2025=100 | K8: =CONCATENATE(I6,"=100") -> 2025=100
A10: 15 A Coruña | C10: 4 | D10: 8.04 | E10: 6.14 | H10: 0.009 | I10: 0.016 | J10: 0.016
A11: 27 Lugo | C11: 86 | D11: 73.61 | E11: 48.55 | H11: 0.189 | I11: 0.149 | J11: 0.097
A12: 32 Ourense | D12: 25.4 | E12: 114.6 | I12: 0.052 | J12: 0.311
A13: 36 Pontevedra | D13: 5.32 | E13: 6.48 | I13: 0.009 | J13: 0.011
A14: GALICIA | C14: 90 | D14: 112.37 | E14: 175.77 | F14: 156.4207529 | H14: 0.198 | I14: 0.226 | J14: 0.435 | K14: 192.4778761
A16: 33 P. DE ASTURIAS
A18: 39 CANTABRIA
A20: 1 Álava
A21: 20 Guipúzcoa
A22: 48 Vizcaya
A23: PAIS VASCO
A25: 31 NAVARRA
A27: 26 LA RIOJA
A29: 22 Huesca | C29: 77 | D29: 58.26 | E29: 90 | H29: 0.219 | I29: 0.272 | J29: 0.285
A30: 44 Teruel | D30: 15 | E30: 15 | I30: 0.031 | J30: 0.026
A31: 50 Zaragoza | C31: 2315 | D31: 2013.43 | E31: 2238 | H31: 4.445 | I31: 6.597 | J31: 7.333
A32: ARAGÓN | C32: 2392 | D32: 2086.69 | E32: 2343 | F32: 112.2830895 | H32: 4.664 | I32: 6.9 | J32: 7.644 | K32: 110.7826087
A34: 8 Barcelona
A35: 17 Girona
A36: 25 Lleida
A37: 43 Tarragona
A38: CATALUÑA
A40: 7 BALEARES | C40: 13 | D40: 13 | E40: 10 | F40: 76.92307692 | H40: 0.018 | I40: 0.018 | J40: 0.02 | K40: 111.1111111
A42: 5 Ávila
A43: 9 Burgos
A44: 24 León
A45: 34 Palencia
A46: 37 Salamanca
A47: 40 Segovia
A48: 42 Soria
A49: 47 Valladolid
A50: 49 Zamora
A51: CASTILLA Y LEÓN
A53: 28 MADRID | C53: 11 | D53: 9 | E53: 9 | F53: 100 | H53: 0.033 | I53: 0.034 | J53: 0.033 | K53: 97.05882353
A55: 2 Albacete | C55: 215 | H55: 1.505
A56: 13 Ciudad Real
A57: 16 Cuenca
A58: 19 Guadalajara
A59: 45 Toledo
A60: CASTILLA-MANCHA | C60: 215 | H60: 1.505
A62: 3 Alicante
A63: 12 Castellón | C63: 6 | D63: 6 | E63: 6 | H63: 0.001 | I63: 0.012 | J63: 0.012
A64: 46 Valencia
A65: C. VALENCIANA | C65: 6 | D65: 6 | E65: 6 | F65: 100 | H65: 0.001 | I65: 0.012 | J65: 0.012 | K65: 100
A67: 30 R. DE MURCIA
A69: 6 Badajoz
A70: 10 Cáceres
A71: EXTREMADURA
A73: 4 Almería
A74: 11 Cádiz
A75: 14 Córdoba
A76: 18 Granada
A77: 21 Huelva
A78: 23 Jaén
A79: 29 Málaga
A80: 41 Sevilla
A81: ANDALUCÍA
A83: 35 Palmas (Las)
A84: 38 S. C. Tenerife
A85: CANARIAS
A88: ESPAÑA | C88: 2727 | D88: 2227.06 | E88: 2543.77 | F88: 114.2209909 | H88: 6.419 | I88: 7.19 | J88: 8.144 | K88: 113.2684284
A91: (*)Tipo de Superficie de mes/año solicitado

Sheet Tri5era-SRT
A1: AVANCES DE SUPERFICIE Y PRODUCCIÓN
A2: TRIGO BLANDO Y SEMI DE PRIMAVERA S/R/T | K2: 2026 ABRIL
A3: SUPERFICIE CULTIVADA(*)
A4: PROVINCIAS | B4: SUPERFICIES (HA) | E4: SUPERFICIES (HA) | H4: SUPERFICIES (HA) | L4: PRODUCCIONES (1000 TM) | O4: PRODUCCIONES (1000 TM) | R4: PRODUCCIONES (1000 TM)
A5: Y | B5: SECANO | E5: REGADIO | H5: TOTAL | L5: SECANO | O5: REGADIO | R5: TOTAL
A6: CC-AA | B6: =J6-2 -> 2024 | C6: =J6-1 -> 2025 | D6: =J6 -> 2026 | E6: =J6-2 -> 2024 | F6: =J6-1 -> 2025 | G6: =J6 -> 2026 | H6: =J6-2 -> 2024 | I6: =J6-1 -> 2025 | J6: 2026 | L6: =T6-2 -> 2024 | M6: =T6-1 -> 2025 | N6: =T6 -> 2026 | O6: =T6-2 -> 2024 | P6: =T6-1 -> 2025 | Q6: =T6 -> 2026 | R6: =T6-2 -> 2024 | S6: =T6-1 -> 2025 | T6: 2026
B7: DEFINITIVO | C7: PROVISIONAL | D7: PROVISIONAL | E7: DEFINITIVO | F7: PROVISIONAL | H7: DEFINITIVO | I7: PROVISIONAL | L7: DEFINITIVO | M7: PROVISIONAL | O7: DEFINITIVO | P7: PROVISIONAL | R7: DEFINITIVO | S7: PROVISIONAL
A10: 15 Coruña (La) | B10: 729 | C10: 255.49 | D10: 180.93 | H10: 729 | I10: 255.49 | J10: 180.93 | L10: 1.677 | M10: 1.138 | N10: 0.841 | R10: 1.677 | S10: 1.138 | T10: 0.841
A11: 27 Lugo | B11: 1222 | C11: 382.68 | D11: 298.17 | H11: 1222 | I11: 382.68 | J11: 298.17 | L11: 2.688 | M11: 0.962 | N11: 0.678 | R11: 2.688 | S11: 0.962 | T11: 0.678
A12: 32 Orense | B12: 3404 | C12: 732.32 | D12: 678 | H12: 3404 | I12: 732.32 | J12: 678 | L12: 9.872 | M12: 2.362 | N12: 1.366 | R12: 9.872 | S12: 2.362 | T12: 1.366
A13: 36 Pontevedra | B13: 113 | C13: 45.46 | D13: 42.85 | H13: 113 | I13: 45.46 | J13: 42.85 | L13: 0.254 | M13: 0.009 | N13: 0.12 | R13: 0.254 | S13: 0.009 | T13: 0.12
A14: GALICIA | B14: 5468 | C14: 1415.95 | D14: 1199.95 | H14: 5468 | I14: 1415.95 | J14: 1199.95 | L14: 14.491 | M14: 4.471 | N14: 3.005 | R14: 14.491 | S14: 4.471 | T14: 3.005
A16: 33 P. DE ASTURIAS
A18: 39 CANTABRIA
A20: 01 Alava
A21: 20 Guipúzcoa
A22: 48 Vizcaya
A23: PAIS VASCO
A25: 31 NAVARRA
A27: 26 LA RIOJA
A29: 22 Huesca | B29: 1145 | C29: 1134.13 | D29: 1200 | E29: 468 | F29: 380.63 | G29: 450 | H29: 1613 | I29: 1514.76 | J29: 1650 | L29: 3.994 | M29: 4.945 | N29: 3.84 | O29: 2.673 | P29: 2.25 | Q29: 2.25 | R29: 6.667 | S29: 7.194 | T29: 6.09
A30: 44 Teruel | C30: 673 | D30: 719 | F30: 66 | G30: 71 | I30: 739 | J30: 790 | M30: 1.649 | N30: 1.585 | P30: 0.278 | Q30: 0.27 | S30: 1.927 | T30: 1.855
A31: 50 Zaragoza | B31: 841 | C31: 826.81 | D31: 918.09 | E31: 365 | F31: 660.98 | G31: 735.35 | H31: 1206 | I31: 1487.79 | J31: 1653.44 | L31: 1.06 | M31: 3.013 | N31: 3.344 | O31: 1.818 | P31: 3.908 | Q31: 4.344 | R31: 2.878 | S31: 6.921 | T31: 7.688
A32: ARAGON | B32: 1986 | C32: 2633.94 | D32: 2837.09 | E32: 833 | F32: 1107.61 | G32: 1256.35 | H32: 2819 | I32: 3741.55 | J32: 4093.44 | L32: 5.054 | M32: 9.607 | N32: 8.769 | O32: 4.491 | P32: 6.436 | Q32: 6.864 | R32: 9.545 | S32: 16.042 | T32: 15.633
A34: 08 Barcelona
A35: 17 Girona
A36: 25 Lleida
A37: 43 Tarragona
A38: CATALUÑA
A40: 07 BALEARES | B40: 1231 | C40: 1230 | D40: 1200 | H40: 1231 | I40: 1230 | J40: 1200 | L40: 1.711 | M40: 1.7 | N40: 2.34 | R40: 1.711 | S40: 1.7 | T40: 2.34
A42: 05 Avila
A43: 09 Burgos
A44: 24 León
A45: 34 Palencia
A46: 37 Salamanca
A47: 40 Segovia
A48: 42 Soria
A49: 47 Valladolid
A50: 49 Zamora
A51: CASTILLA Y LEON
A53: 28 MADRID | B53: 907 | C53: 893 | D53: 889 | E53: 100 | F53: 81 | G53: 132 | H53: 1007 | I53: 974 | J53: 1021 | L53: 2.638 | M53: 2.84 | N53: 2.776 | O53: 0.455 | P53: 0.394 | Q53: 0.439 | R53: 3.094 | S53: 3.234 | T53: 3.215
A55: 02 Albacete | E55: 1880 | F55: 2200 | G55: 2250 | H55: 1880 | I55: 2200 | J55: 2250 | O55: 13.348 | P55: 16.83 | Q55: 17.1 | R55: 13.348 | S55: 16.83 | T55: 17.1
A56: 13 Ciudad Real
A57: 16 Cuenca
A58: 19 Guadalajara
A59: 45 Toledo
A60: CASTILLA-MANCHA | E60: 1880 | F60: 2200 | G60: 2250 | H60: 1880 | I60: 2200 | J60: 2250 | O60: 13.348 | P60: 16.83 | Q60: 17.1 | R60: 13.348 | S60: 16.83 | T60: 17.1
A62: 03 Alicante
A63: 12 Castellón | B63: 139 | C63: 139 | D63: 139 | E63: 4 | F63: 4 | G63: 8 | H63: 143 | I63: 143 | J63: 147 | L63: 0.021 | M63: 0.299 | N63: 0.299 | O63: 0.019 | P63: 0.019 | Q63: 0.038 | R63: 0.04 | S63: 0.318 | T63: 0.337
A64: 46 Valencia
A65: C. VALENCIANA | B65: 139 | C65: 139 | D65: 139 | E65: 4 | F65: 4 | G65: 8 | H65: 143 | I65: 143 | J65: 147 | L65: 0.021 | M65: 0.299 | N65: 0.299 | O65: 0.019 | P65: 0.019 | Q65: 0.038 | R65: 0.04 | S65: 0.318 | T65: 0.337
A67: 30 R. DE MURCIA
A69: 06 Badajoz
A70: 10 Cáceres
A71: EXTREMADURA
A73: 04 Almería
A74: 11 Cádiz
A75: 14 Córdoba
A76: 18 Granada
A77: 21 Huelva
A78: 23 Jaén
A79: 29 Málaga
A80: 41 Sevilla
A81: ANDALUCIA
A83: 35 Palmas (Las)
A84: 38 S. C. Tenerife
A85: CANARIAS
A88: ESPAÑA | B88: 19462 | C88: 6311.89 | D88: 6265.04 | E88: 2817 | F88: 3392.61 | G88: 3646.35 | H88: 12548 | I88: 9704.5 | J88: 9911.39 | L88: 23.915 | M88: 18.917 | N88: 17.189 | O88: 18.313 | P88: 23.679 | Q88: 24.441 | R88: 42.229 | S88: 42.595 | T88: 41.63
B96: 221 | C96: 231 | E96: 221 | F96: 231 | H96: 221 | I96: 231

Sheet Tri5era
A1: AVANCES DE SUPERFICIE Y PRODUCCIÓN
A2: TRIGO BLANDO Y SEMI DE PRIMAVERA | J2: 2026 ABRIL
A3: SUPERFICIE CULTIVADA(*)
A4: PROVINCIAS | C4: SUPERFICIES (HA) | H4: PRODUCCIONES (1000 TM)
A5: Y
A6: CC-AA | C6: =E6-2 -> 2024 | D6: =E6-1 -> 2025 | E6: 2026 | F6: =E6 -> 2026 | H6: =J6-2 -> 2024 | I6: =J6-1 -> 2025 | J6: 2026 | K6: =J6 -> 2026
C7: DEFINITIVO | D7: PROVISIONAL | H7: DEFINITIVO | I7: PROVISIONAL
F8: =CONCATENATE(D6,"=100") -> 2025=100 | K8: =CONCATENATE(I6,"=100") -> 2025=100
A10: 15 A Coruña | C10: 729 | D10: 255.49 | E10: 180.93 | H10: 1.677 | I10: 1.138 | J10: 0.841
A11: 27 Lugo | C11: 1222 | D11: 382.68 | E11: 298.17 | H11: 2.688 | I11: 0.962 | J11: 0.678
A12: 32 Ourense | C12: 3404 | D12: 732.32 | E12: 678 | H12: 9.872 | I12: 2.362 | J12: 1.366
A13: 36 Pontevedra | C13: 113 | D13: 45.46 | E13: 42.85 | H13: 0.254 | I13: 0.009 | J13: 0.12
A14: GALICIA | C14: 5468 | D14: 1415.95 | E14: 1199.95 | F14: 84.74522405 | H14: 14.491 | I14: 4.471 | J14: 3.005 | K14: 67.21091478
A16: 33 P. DE ASTURIAS
A18: 39 CANTABRIA
A20: 1 Álava
A21: 20 Guipúzcoa
A22: 48 Vizcaya
A23: PAIS VASCO
A25: 31 NAVARRA
A27: 26 LA RIOJA
A29: 22 Huesca | C29: 1613 | D29: 1514.76 | E29: 1650 | H29: 6.667 | I29: 7.194 | J29: 6.09
A30: 44 Teruel | D30: 739 | E30: 790 | I30: 1.927 | J30: 1.855
A31: 50 Zaragoza | C31: 1206 | D31: 1487.79 | E31: 1653.44 | H31: 2.878 | I31: 6.921 | J31: 7.688
A32: ARAGÓN | C32: 2819 | D32: 3741.55 | E32: 4093.44 | F32: 109.4049258 | H32: 9.545 | I32: 16.042 | J32: 15.633 | K32: 97.45044259
A34: 8 Barcelona
A35: 17 Girona
A36: 25 Lleida
A37: 43 Tarragona
A38: CATALUÑA
A40: 7 BALEARES | C40: 1231 | D40: 1230 | E40: 1200 | F40: 97.56097561 | H40: 1.711 | I40: 1.7 | J40: 2.34 | K40: 137.6470588
A42: 5 Ávila
A43: 9 Burgos
A44: 24 León
A45: 34 Palencia
A46: 37 Salamanca
A47: 40 Segovia
A48: 42 Soria
A49: 47 Valladolid
A50: 49 Zamora
A51: CASTILLA Y LEÓN
A53: 28 MADRID | C53: 1007 | D53: 974 | E53: 1021 | F53: 104.825462 | H53: 3.094 | I53: 3.234 | J53: 3.215 | K53: 99.41249227
A55: 2 Albacete | C55: 1880 | D55: 2200 | E55: 2250 | H55: 13.348 | I55: 16.83 | J55: 17.1
A56: 13 Ciudad Real
A57: 16 Cuenca
A58: 19 Guadalajara
A59: 45 Toledo
A60: CASTILLA-MANCHA | C60: 1880 | D60: 2200 | E60: 2250 | F60: 102.2727273 | H60: 13.348 | I60: 16.83 | J60: 17.1 | K60: 101.6042781
A62: 3 Alicante
A63: 12 Castellón | C63: 143 | D63: 143 | E63: 147 | H63: 0.04 | I63: 0.318 | J63: 0.337
A64: 46 Valencia
A65: C. VALENCIANA | C65: 143 | D65: 143 | E65: 147 | F65: 102.7972028 | H65: 0.04 | I65: 0.318 | J65: 0.337 | K65: 105.9748428
A67: 30 R. DE MURCIA
A69: 6 Badajoz
A70: 10 Cáceres
A71: EXTREMADURA
A73: 4 Almería
A74: 11 Cádiz
A75: 14 Córdoba
A76: 18 Granada
A77: 21 Huelva
A78: 23 Jaén
A79: 29 Málaga
A80: 41 Sevilla
A81: ANDALUCÍA
A83: 35 Palmas (Las)
A84: 38 S. C. Tenerife
A85: CANARIAS
A88: ESPAÑA | C88: 12548 | D88: 9704.5 | E88: 9911.39 | F88: 102.1318976 | H88: 42.229 | I88: 42.595 | J88: 41.63 | K88: 97.73447588
A91: (*)Tipo de Superficie de mes/año solicitado

Sheet Tri6ral-SRT
A1: AVANCES DE SUPERFICIE Y PRODUCCIÓN
A2: TRIGO. RESUMEN GENERAL S/R/T | K2: 2026 ABRIL
A3: SUPERFICIE CULTIVADA(*)
A4: PROVINCIAS | B4: SUPERFICIES (HA) | E4: SUPERFICIES (HA) | H4: SUPERFICIES (HA) | L4: PRODUCCIONES (1000 TM) | O4: PRODUCCIONES (1000 TM) | R4: PRODUCCIONES (1000 TM)
A5: Y | B5: SECANO | E5: REGADIO | H5: TOTAL | L5: SECANO | O5: REGADIO | R5: TOTAL
A6: CC-AA | B6: =J6-2 -> 2024 | C6: =J6-1 -> 2025 | D6: =J6 -> 2026 | E6: =J6-2 -> 2024 | F6: =J6-1 -> 2025 | G6: =J6 -> 2026 | H6: =J6-2 -> 2024 | I6: =J6-1 -> 2025 | J6: 2026 | L6: =T6-2 -> 2024 | M6: =T6-1 -> 2025 | N6: =T6 -> 2026 | O6: =T6-2 -> 2024 | P6: =T6-1 -> 2025 | Q6: =T6 -> 2026 | R6: =T6-2 -> 2024 | S6: =T6-1 -> 2025 | T6: 2026
B7: DEFINITIVO | C7: PROVISIONAL | D7: PROVISIONAL | E7: DEFINITIVO | F7: PROVISIONAL | H7: DEFINITIVO | I7: PROVISIONAL | L7: DEFINITIVO | M7: PROVISIONAL | O7: DEFINITIVO | P7: PROVISIONAL | R7: DEFINITIVO | S7: PROVISIONAL
A10: 15 Coruña (La) | B10: 1749 | C10: 2137.01 | D10: 1513.9 | H10: 1749 | I10: 2137.01 | J10: 1513.9 | L10: 4.023 | M10: 9.369 | N10: 7.023 | R10: 4.022 | S10: 9.369 | T10: 7.023
A11: 27 Lugo | B11: 3270 | C11: 3262.7 | D11: 2533.58 | H11: 3270 | I11: 3262.7 | J11: 2533.58 | L11: 7.194 | M11: 8.981 | N11: 5.746 | R11: 7.193 | S11: 8.981 | T11: 5.746
A12: 32 Orense | B12: 8540 | C12: 6128.17 | D12: 5764.87 | H12: 8540 | I12: 6128.17 | J12: 5764.87 | L12: 25.278 | M12: 19.734 | N12: 12.066 | R12: 25.28 | S12: 19.734 | T12: 12.066
A13: 36 Pontevedra | B13: 288 | C13: 384.22 | D13: 362.85 | H13: 288 | I13: 384.22 | J13: 362.85 | L13: 0.648 | M13: 0.018 | N13: 1.013 | R13: 0.648 | S13: 0.018 | T13: 1.013
A14: GALICIA | B14: 13847 | C14: 11912.1 | D14: 10175.2 | H14: 13847 | I14: 11912.1 | J14: 10175.2 | L14: 37.143 | M14: 38.102 | N14: 25.848 | R14: 37.143 | S14: 38.102 | T14: 25.848
A16: 33 P. DE ASTURIAS | C16: 61 | D16: 65 | I16: 61 | J16: 65 | M16: 0.11 | N16: 0.124 | S16: 0.11 | T16: 0.124
A18: 39 CANTABRIA | B18: 733 | C18: 740 | D18: 745 | E18: 115 | F18: 115 | G18: 130 | H18: 848 | I18: 855 | J18: 875 | L18: 1.613 | M18: 1.484 | N18: 2.235 | O18: 0.518 | P18: 0.46 | Q18: 0.52 | R18: 2.131 | S18: 1.944 | T18: 2.755
A20: 01 Alava | B20: 19717 | C20: 17217 | D20: 18524 | H20: 19717 | I20: 17217 | J20: 18524 | L20: 138.019 | M20: 103.302 | N20: 101.882 | R20: 138.019 | S20: 103.302 | T20: 101.882
A21: 20 Guipúzcoa | B21: 1 | H21: 1 | L21: 0.006 | R21: 0.006
A22: 48 Vizcaya
A23: PAIS VASCO | B23: 19718 | C23: 17217 | D23: 18524 | H23: 19718 | I23: 17217 | J23: 18524 | L23: 138.025 | M23: 103.302 | N23: 101.882 | R23: 138.025 | S23: 103.302 | T23: 101.882
A25: 31 NAVARRA | B25: 62619 | C25: 67327 | D25: 66141 | E25: 15151 | F25: 13911 | G25: 13643 | H25: 77770 | I25: 81238 | J25: 79784 | L25: 325.055 | M25: 341.647 | N25: 335.053 | O25: 107.966 | P25: 81.895 | Q25: 80.305 | R25: 433.002 | S25: 423.542 | T25: 415.358
A27: 26 LA RIOJA | B27: 17354 | C27: 16294 | D27: 16182 | E27: 7444 | F27: 6818 | G27: 6915 | H27: 24798 | I27: 23112 | J27: 23097 | L27: 46.717 | M27: 100.065 | N27: 67.046 | O27: 32.009 | P27: 43.157 | Q27: 35.84 | R27: 78.726 | S27: 143.222 | T27: 102.886
A29: 22 Huesca | B29: 58093 | C29: 57292.25 | D29: 60290 | E29: 24085 | F29: 19455.89 | G29: 19100 | H29: 82178 | I29: 76748.14 | J29: 79390 | L29: 210.474 | M29: 249.393 | N29: 209.965 | O29: 141.861 | P29: 115.022 | Q29: 98.635 | R29: 352.323 | S29: 364.415 | T29: 308.6
A30: 44 Teruel | B30: 30818 | C30: 35323 | D30: 36629 | E30: 4072 | F30: 3370 | G30: 3598 | H30: 34890 | I30: 38693 | J30: 40227 | L30: 30.387 | M30: 86.11 | N30: 80.058 | O30: 12.367 | P30: 14.187 | Q30: 13.878 | R30: 42.744 | S30: 100.297 | T30: 93.936
A31: 50 Zaragoza | B31: 74514 | C31: 70495.57 | D31: 78329.81 | E31: 32043 | F31: 30411.66 | G31: 33789.62 | H31: 106557 | I31: 100907.23 | J31: 112119.43 | L31: 92.322 | M31: 221.006 | N31: 245.554 | O31: 162.613 | P31: 175.779 | Q31: 195.3 | R31: 254.956 | S31: 396.785 | T31: 440.854
A32: ARAGON | B32: 163425 | C32: 163110.82 | D32: 175248.81 | E32: 60200 | F32: 53237.55 | G32: 56487.62 | H32: 223625 | I32: 216348.37 | J32: 231736.43 | L32: 333.183 | M32: 556.509 | N32: 535.577 | O32: 316.841 | P32: 304.988 | Q32: 307.813 | R32: 650.023 | S32: 861.497 | T32: 843.39
A34: 08 Barcelona | B34: 21430 | C34: 20918 | D34: 21442 | E34: 370 | F34: 558 | G34: 604 | H34: 21800 | I34: 21476 | J34: 22046 | L34: 48.26 | M34: 99.541 | N34: 83.592 | O34: 2.017 | P34: 3.279 | Q34: 3.5 | R34: 50.278 | S34: 102.82 | T34: 87.092
A35: 17 Girona | B35: 10050 | C35: 9307 | D35: 8118 | E35: 2693 | F35: 4291 | G35: 4399 | H35: 12743 | I35: 13598 | J35: 12517 | L35: 23.899 | M35: 40.927 | N35: 32.472 | O35: 9.986 | P35: 20.563 | Q35: 19.357 | R35: 33.882 | S35: 61.49 | T35: 51.829
A36: 25 Lleida | B36: 41616 | C36: 32573 | D36: 34103 | E36: 20748 | F36: 15848 | G36: 15518 | H36: 62364 | I36: 48421 | J36: 49621 | L36: 83.274 | M36: 130.292 | N36: 154.09 | O36: 123.451 | P36: 118.851 | Q36: 105.122 | R36: 206.706 | S36: 249.143 | T36: 259.212
A37: 43 Tarragona | B37: 6868 | C37: 6432 | D37: 6670 | E37: 56 | F37: 69 | G37: 62 | H37: 6924 | I37: 6501 | J37: 6732 | L37: 8.194 | M37: 27.975 | N37: 30.025 | O37: 0.12 | P37: 0.331 | Q37: 0.244 | R37: 8.314 | S37: 28.306 | T37: 30.269
A38: CATALUÑA | B38: 79964 | C38: 69230 | D38: 70333 | E38: 23867 | F38: 20766 | G38: 20583 | H38: 103831 | I38: 89996 | J38: 90916 | L38: 163.627 | M38: 298.735 | N38: 300.179 | O38: 135.574 | P38: 143.024 | Q38: 128.223 | R38: 299.18 | S38: 441.759 | T38: 428.402
A40: 07 BALEARES | B40: 4977 | C40: 4950 | D40: 5055 | H40: 4977 | I40: 4950 | J40: 5055 | L40: 6.918 | M40: 6.97 | N40: 9.85 | R40: 6.918 | S40: 6.97 | T40: 9.85
A42: 05 Avila | B42: 28655 | C42: 34781 | D42: 34797 | E42: 2332 | F42: 1593 | G42: 1750 | H42: 30987 | I42: 36374 | J42: 36547 | L42: 54.616 | M42: 124.892 | N42: 85.242 | O42: 8.37 | P42: 8.08 | Q42: 7.875 | R42: 62.998 | S42: 132.972 | T42: 93.117
A43: 09 Burgos | B43: 179988 | C43: 191795 | D43: 188123 | E43: 5941 | F43: 6516 | G43: 6443 | H43: 185929 | I43: 198311 | J43: 194566 | L43: 965.096 | M43: 1019.414 | N43: 779.011 | O43: 42.318 | P43: 46.114 | Q43: 45.635 | R43: 1007.404 | S43: 1065.528 | T43: 824.646
A44: 24 León | B44: 24023 | C44: 34896 | D44: 32005 | E44: 12194 | F44: 17325 | G44: 18020 | H44: 36217 | I44: 52221 | J44: 50025 | L44: 83.576 | M44: 130.858 | N44: 86.412 | O44: 79.822 | P44: 114.285 | Q44: 117.12 | R44: 163.4 | S44: 245.143 | T44: 203.532
A45: 34 Palencia | B45: 97617 | C45: 111413 | D45: 102379 | E45: 22666 | F45: 23102 | G45: 20961 | H45: 120283 | I45: 134515 | J45: 123340 | L45: 434.786 | M45: 566.423 | N45: 367.647 | O45: 141.391 | P45: 142.291 | Q45: 120.18 | R45: 576.149 | S45: 708.714 | T45: 487.827
A46: 37 Salamanca | B46: 61057 | C46: 62014 | D46: 60025 | E46: 7312 | F46: 7991 | G46: 7010 | H46: 68369 | I46: 70005 | J46: 67035 | L46: 207.594 | M46: 260.14 | N46: 210.08 | O46: 42.41 | P46: 46.341 | Q46: 40.652 | R46: 249.992 | S46: 306.481 | T46: 250.732
A47: 40 Segovia | B47: 60209 | C47: 75609 | D47: 73815 | E47: 2882 | F47: 3742 | G47: 2980 | H47: 63091 | I47: 79351 | J47: 76795 | L47: 169.247 | M47: 306.795 | N47: 201.414 | O47: 14.355 | P47: 19.017 | Q47: 13.479 | R47: 183.594 | S47: 325.812 | T47: 214.893
A48: 42 Soria | B48: 83858 | C48: 101958 | D48: 80000 | E48: 3858 | F48: 4928 | G48: 4000 | H48: 87716 | I48: 106886 | J48: 84000 | L48: 319.247 | M48: 378.568 | N48: 240 | O48: 19.282 | P48: 25.616 | Q48: 20 | R48: 338.518 | S48: 404.184 | T48: 260
A49: 47 Valladolid | B49: 101400 | C49: 102163 | D49: 102162 | E49: 20313 | F49: 21588 | G49: 21588 | H49: 121713 | I49: 123751 | J49: 123750 | L49: 414.625 | M49: 542.981 | N49: 369.411 | O49: 135.325 | P49: 157.287 | Q49: 124.637 | R49: 549.945 | S49: 700.268 | T49: 494.048
A50: 49 Zamora | B50: 48769 | C50: 60592 | D50: 52235.17 | E50: 9027 | F50: 9547 | G50: 8580 | H50: 57796 | I50: 70139 | J50: 60815.17 | L50: 160.352 | M50: 237.887 | N50: 173.328 | O50: 46.354 | P50: 66.829 | Q50: 50.778 | R50: 206.696 | S50: 304.716 | T50: 224.106
A51: CASTILLA Y LEON | B51: 685576 | C51: 775221 | D51: 725541.17 | E51: 86525 | F51: 96332 | G51: 91332 | H51: 772101 | I51: 871553 | J51: 816873.17 | L51: 2809.139 | M51: 3567.958 | N51: 2512.545 | O51: 529.627 | P51: 625.86 | Q51: 540.356 | R51: 3338.696 | S51: 4193.818 | T51: 3052.901
A53: 28 MADRID | B53: 17940 | C53: 17933 | D53: 17814 | E53: 2127 | F53: 1725 | G53: 2788 | H53: 20067 | I53: 19658 | J53: 20602 | L53: 52.062 | M53: 57.144 | N53: 55.585 | O53: 9.608 | P53: 8.215 | Q53: 9.376 | R53: 61.668 | S53: 65.359 | T53: 64.961
A55: 02 Albacete | B55: 42857 | C55: 41559 | D55: 43000 | E55: 13966 | F55: 14772 | G55: 14999 | H55: 56823 | I55: 56331 | J55: 57999 | L55: 42.145 | M55: 94.547 | N55: 98.891 | O55: 100.807 | P55: 113.006 | Q55: 115.873 | R55: 142.934 | S55: 207.553 | T55: 214.764
A56: 13 Ciudad Real | B56: 41209 | C56: 39743 | D56: 38700 | E56: 7795 | F56: 8407 | G56: 8870 | H56: 49004 | I56: 48150 | J56: 47570 | L56: 90.454 | M56: 135.015 | N56: 131.46 | O56: 40.363 | P56: 46.151 | Q56: 48.695 | R56: 130.821 | S56: 181.166 | T56: 180.155
A57: 16 Cuenca | B57: 46861 | C57: 57675 | D57: 48033 | E57: 3082 | F57: 3400 | G57: 3762 | H57: 49943 | I57: 61075 | J57: 51795 | L57: 132.358 | M57: 175.85 | N57: 139.23 | O57: 15.853 | P57: 17.307 | Q57: 18.77 | R57: 148.223 | S57: 193.157 | T57: 158
A58: 19 Guadalajara | B58: 66442 | C58: 65952 | D58: 73471 | E58: 2056 | F58: 2037 | G58: 1995 | H58: 68498 | I58: 67989 | J58: 75466 | L58: 230.502 | M58: 250.51 | N58: 293.884 | O58: 12.183 | P58: 11.191 | Q58: 10.966 | R58: 242.655 | S58: 261.701 | T58: 304.85
A59: 45 Toledo | B59: 48552 | C59: 55205 | D59: 55205 | E59: 4070 | F59: 5728 | G59: 5728 | H59: 52622 | I59: 60933 | J59: 60933 | L59: 121.137 | M59: 139.979 | N59: 193.218 | O59: 18.677 | P59: 27.494 | Q59: 26.922 | R59: 139.793 | S59: 167.473 | T59: 220.14
A60: CASTILLA-MANCHA | B60: 245921 | C60: 260134 | D60: 258409 | E60: 30969 | F60: 34344 | G60: 35354 | H60: 276890 | I60: 294478 | J60: 293763 | L60: 616.596 | M60: 795.901 | N60: 856.683 | O60: 187.883 | P60: 215.149 | Q60: 221.226 | R60: 804.426 | S60: 1011.05 | T60: 1077.909
A62: 03 Alicante | B62: 855 | C62: 1171 | D62: 1001 | E62: 430 | F62: 390 | G62: 355 | H62: 1285 | I62: 1561 | J62: 1356 | L62: 0.205 | M62: 2.128 | N62: 2.332 | O62: 0.735 | P62: 2.044 | Q62: 1.884 | R62: 0.94 | S62: 4.172 | T62: 4.216
A63: 12 Castellón | B63: 724 | C63: 819 | D63: 891 | E63: 21 | F63: 21 | G63: 43 | H63: 745 | I63: 840 | J63: 934 | L63: 0.109 | M63: 1.756 | N63: 1.91 | O63: 0.101 | P63: 0.101 | Q63: 0.206 | R63: 0.21 | S63: 1.857 | T63: 2.116
A64: 46 Valencia | B64: 2483 | C64: 2213 | D64: 2647 | E64: 238 | F64: 37 | G64: 48 | H64: 2721 | I64: 2250 | J64: 2695 | L64: 1.072 | M64: 6.418 | N64: 7.677 | O64: 0.98 | P64: 0.162 | Q64: 0.21 | R64: 2.052 | S64: 6.58 | T64: 7.887
A65: C. VALENCIANA | B65: 4062 | C65: 4203 | D65: 4539 | E65: 689 | F65: 448 | G65: 446 | H65: 4751 | I65: 4651 | J65: 4985 | L65: 1.386 | M65: 10.302 | N65: 11.919 | O65: 1.816 | P65: 2.307 | Q65: 2.3 | R65: 3.202 | S65: 12.609 | T65: 14.219
A67: 30 R. DE MURCIA | B67: 6341 | C67: 6425 | D67: 7923 | E67: 694 | F67: 602 | G67: 1030 | H67: 7035 | I67: 7027 | J67: 8953 | L67: 2.455 | M67: 0.433 | N67: 0.498 | O67: 2.404 | P67: 3.741 | Q67: 3.853 | R67: 4.858 | S67: 4.174 | T67: 4.351
A69: 06 Badajoz | B69: 65215 | C69: 66166 | D69: 62510 | E69: 11381 | F69: 11388 | G69: 11115 | H69: 76596 | I69: 77554 | J69: 73625 | L69: 205.753 | M69: 179.024 | N69: 132.891 | O69: 46.526 | P69: 40.27 | Q69: 37.935 | R69: 252.281 | S69: 219.294 | T69: 170.826
A70: 10 Cáceres | B70: 2481 | C70: 2036 | D70: 2180 | E70: 1230 | F70: 1543 | G70: 1520 | H70: 3711 | I70: 3579 | J70: 3700 | L70: 5.245 | M70: 4.347 | N70: 3.231 | O70: 3.426 | P70: 4.252 | Q70: 3.694 | R70: 8.671 | S70: 8.599 | T70: 6.925
A71: EXTREMADURA | B71: 67696 | C71: 68202 | D71: 64690 | E71: 12611 | F71: 12931 | G71: 12635 | H71: 80307 | I71: 81133 | J71: 77325 | L71: 210.998 | M71: 183.371 | N71: 136.122 | O71: 49.952 | P71: 44.522 | Q71: 41.629 | R71: 260.952 | S71: 227.893 | T71: 177.751
A73: 04 Almería | B73: 1849 | C73: 1626 | D73: 1635 | E73: 94 | F73: 24 | G73: 25 | H73: 1943 | I73: 1650 | J73: 1660 | L73: 0.016 | M73: 4.127 | N73: 2.453 | O73: 0.083 | P73: 0.076 | Q73: 0.06 | R73: 0.099 | S73: 4.203 | T73: 2.513
A74: 11 Cádiz | B74: 51345 | C74: 45692.96 | D74: 43630.06 | E74: 5887 | F74: 4522.39 | G74: 4530.66 | H74: 57232 | I74: 50215.35 | J74: 48160.72 | L74: 145.166 | M74: 130.55 | N74: 124.32 | O74: 20.681 | P74: 13.312 | Q74: 15.634 | R74: 165.82 | S74: 143.862 | T74: 139.954
A75: 14 Córdoba | B75: 50225 | C75: 48080 | D75: 48080 | E75: 9951 | F75: 8790 | G75: 8790 | H75: 60176 | I75: 56870 | J75: 56870 | L75: 181.061 | M75: 144.24 | N75: 144.24 | O75: 35.346 | P75: 26.37 | Q75: 26.37 | R75: 216.426 | S75: 170.61 | T75: 170.61
A76: 18 Granada | B76: 8151 | C76: 8854 | D76: 8556.6 | E76: 1494 | F76: 1492 | G76: 1257.86 | H76: 9645 | I76: 10346 | J76: 9814.46 | L76: 11.488 | M76: 18.542 | N76: 18.518 | O76: 5.807 | P76: 7.115 | Q76: 5.802 | R76: 17.292 | S76: 25.657 | T76: 24.32
A77: 21 Huelva | B77: 12710 | C77: 13085 | D77: 13085 | E77: 950 | F77: 885 | G77: 885 | H77: 13660 | I77: 13970 | J77: 13970 | L77: 45.324 | M77: 46.802 | N77: 50.516 | O77: 3.982 | P77: 3.928 | Q77: 3.54 | R77: 49.3 | S77: 50.73 | T77: 54.056
A78: 23 Jaén | B78: 5595 | C78: 4765 | D78: 4768 | E78: 1877 | F78: 2057 | G78: 2057 | H78: 7472 | I78: 6822 | J78: 6825 | L78: 17.445 | M78: 13.901 | N78: 13.909 | O78: 7.508 | P78: 8.166 | Q78: 8.165 | R78: 24.952 | S78: 22.067 | T78: 22.074
A79: 29 Málaga | B79: 13303 | C79: 14555 | D79: 14569 | E79: 1675 | F79: 1670 | G79: 1670 | H79: 14978 | I79: 16225 | J79: 16239 | L79: 31.901 | M79: 32.287 | N79: 40.564 | O79: 7.8 | P79: 9.682 | Q79: 2.717 | R79: 39.702 | S79: 41.969 | T79: 43.281
A80: 41 Sevilla | B80: 106130 | C80: 105050 | D80: 90000 | E80: 23430 | F80: 18390 | G80: 15000 | H80: 129560 | I80: 123440 | J80: 105000 | L80: 371.349 | M80: 342.305 | N80: 295 | O80: 93.369 | P80: 73.606 | Q80: 45.25 | R80: 464.734 | S80: 415.911 | T80: 340.25
A81: ANDALUCIA | B81: 249308 | C81: 241707.96 | D81: 224323.66 | E81: 45358 | F81: 37830.39 | G81: 34215.52 | H81: 294666 | I81: 279538.35 | J81: 258539.18 | L81: 803.75 | M81: 732.754 | N81: 689.52 | O81: 174.576 | P81: 142.255 | Q81: 107.538 | R81: 978.325 | S81: 875.009 | T81: 797.058
A83: 35 Palmas (Las) | B83: 88 | C83: 88 | D83: 88 | E83: 1 | F83: 1 | G83: 1 | H83: 89 | I83: 89 | J83: 89 | L83: 0.088 | M83: 0.088 | N83: 0.088 | O83: 0.001 | P83: 0.001 | Q83: 0.001 | R83: 0.089 | S83: 0.089 | T83: 0.089
A84: 38 S. C. Tenerife | B84: 114 | C84: 114 | D84: 114 | E84: 23 | F84: 23 | G84: 23 | H84: 137 | I84: 137 | J84: 137 | L84: 0.108 | M84: 0.108 | N84: 0.108 | O84: 0.035 | P84: 0.035 | Q84: 0.035 | R84: 0.143 | S84: 0.143 | T84: 0.143
A85: CANARIAS | B85: 202 | C85: 202 | D85: 202 | E85: 24 | F85: 24 | G85: 24 | H85: 226 | I85: 226 | J85: 226 | L85: 0.196 | M85: 0.196 | N85: 0.196 | O85: 0.036 | P85: 0.036 | Q85: 0.036 | R85: 0.232 | S85: 0.232 | T85: 0.232
A88: ESPAÑA | B88: 3279366 | C88: 1724869.88 | D88: 1665910.84 | E88: 285774 | F88: 279083.94 | G88: 275583.14 | H88: 1925457 | I88: 2003953.82 | J88: 1941493.98 | L88: 5548.863 | M88: 6794.983 | N88: 5640.862 | O88: 1548.81 | P88: 1615.609 | Q88: 1479.015 | R88: 7097.507 | S88: 8410.592 | T88: 7119.877
B96: 221 | C96: 231 | E96: 221 | F96: 231 | H96: 221 | I96: 231

Sheet Tri6ral
A1: AVANCES DE SUPERFICIE Y PRODUCCIÓN
A2: TRIGO. RESUMEN GENERAL | J2: 2026 ABRIL
A3: SUPERFICIE CULTIVADA(*)
A4: PROVINCIAS | C4: SUPERFICIES (HA) | H4: PRODUCCIONES (1000 TM)
A5: Y
A6: CC-AA | C6: =E6-2 -> 2024 | D6: =E6-1 -> 2025 | E6: 2026 | F6: =E6 -> 2026 | H6: =J6-2 -> 2024 | I6: =J6-1 -> 2025 | J6: 2026 | K6: =J6 -> 2026
C7: DEFINITIVO | D7: PROVISIONAL | H7: DEFINITIVO | I7: PROVISIONAL
F8: =CONCATENATE(D6,"=100") -> 2025=100 | K8: =CONCATENATE(I6,"=100") -> 2025=100
A10: 15 A Coruña | C10: 1749 | D10: 2137.01 | E10: 1513.9 | H10: 4.022 | I10: 9.369 | J10: 7.023
A11: 27 Lugo | C11: 3270 | D11: 3262.7 | E11: 2533.58 | H11: 7.193 | I11: 8.981 | J11: 5.746
A12: 32 Ourense | C12: 8540 | D12: 6128.17 | E12: 5764.87 | H12: 25.28 | I12: 19.734 | J12: 12.066
A13: 36 Pontevedra | C13: 288 | D13: 384.22 | E13: 362.85 | H13: 0.648 | I13: 0.018 | J13: 1.013
A14: GALICIA | C14: 13847 | D14: 11912.1 | E14: 10175.2 | F14: 85.41902771 | H14: 37.143 | I14: 38.102 | J14: 25.848 | K14: 67.83895858
A16: 33 P. DE ASTURIAS | D16: 61 | E16: 65 | F16: 106.557377 | I16: 0.11 | J16: 0.124 | K16: 112.7272727
A18: 39 CANTABRIA | C18: 848 | D18: 855 | E18: 875 | F18: 102.3391813 | H18: 2.131 | I18: 1.944 | J18: 2.755 | K18: 141.718107
A20: 1 Álava | C20: 19717 | D20: 17217 | E20: 18524 | H20: 138.019 | I20: 103.302 | J20: 101.882
A21: 20 Guipúzcoa | C21: 1 | H21: 0.006
A22: 48 Vizcaya
A23: PAIS VASCO | C23: 19718 | D23: 17217 | E23: 18524 | F23: 107.5913341 | H23: 138.025 | I23: 103.302 | J23: 101.882 | K23: 98.62538963
A25: 31 NAVARRA | C25: 77770 | D25: 81238 | E25: 79784 | F25: 98.2101972 | H25: 433.002 | I25: 423.542 | J25: 415.358 | K25: 98.0677241
A27: 26 LA RIOJA | C27: 24798 | D27: 23112 | E27: 23097 | F27: 99.93509865 | H27: 78.726 | I27: 143.222 | J27: 102.886 | K27: 71.83672899
A29: 22 Huesca | C29: 82178 | D29: 76748.14 | E29: 79390 | H29: 352.323 | I29: 364.415 | J29: 308.6
A30: 44 Teruel | C30: 34890 | D30: 38693 | E30: 40227 | H30: 42.744 | I30: 100.297 | J30: 93.936
A31: 50 Zaragoza | C31: 106557 | D31: 100907.23 | E31: 112119.43 | H31: 254.956 | I31: 396.785 | J31: 440.854
A32: ARAGÓN | C32: 223625 | D32: 216348.37 | E32: 231736.43 | F32: 107.1126304 | H32: 650.023 | I32: 861.497 | J32: 843.39 | K32: 97.89819349
A34: 8 Barcelona | C34: 21800 | D34: 21476 | E34: 22046 | H34: 50.278 | I34: 102.82 | J34: 87.092
A35: 17 Girona | C35: 12743 | D35: 13598 | E35: 12517 | H35: 33.882 | I35: 61.49 | J35: 51.829
A36: 25 Lleida | C36: 62364 | D36: 48421 | E36: 49621 | H36: 206.706 | I36: 249.143 | J36: 259.212
A37: 43 Tarragona | C37: 6924 | D37: 6501 | E37: 6732 | H37: 8.314 | I37: 28.306 | J37: 30.269
A38: CATALUÑA | C38: 103831 | D38: 89996 | E38: 90916 | F38: 101.0222677 | H38: 299.18 | I38: 441.759 | J38: 428.402 | K38: 96.97640569
A40: 7 BALEARES | C40: 4977 | D40: 4950 | E40: 5055 | F40: 102.1212121 | H40: 6.918 | I40: 6.97 | J40: 9.85 | K40: 141.3199426
A42: 5 Ávila | C42: 30987 | D42: 36374 | E42: 36547 | H42: 62.998 | I42: 132.972 | J42: 93.117
A43: 9 Burgos | C43: 185929 | D43: 198311 | E43: 194566 | H43: 1007.404 | I43: 1065.528 | J43: 824.646
A44: 24 León | C44: 36217 | D44: 52221 | E44: 50025 | H44: 163.4 | I44: 245.143 | J44: 203.532
A45: 34 Palencia | C45: 120283 | D45: 134515 | E45: 123340 | H45: 576.149 | I45: 708.714 | J45: 487.827
A46: 37 Salamanca | C46: 68369 | D46: 70005 | E46: 67035 | H46: 249.992 | I46: 306.481 | J46: 250.732
A47: 40 Segovia | C47: 63091 | D47: 79351 | E47: 76795 | H47: 183.594 | I47: 325.812 | J47: 214.893
A48: 42 Soria | C48: 87716 | D48: 106886 | E48: 84000 | H48: 338.518 | I48: 404.184 | J48: 260
A49: 47 Valladolid | C49: 121713 | D49: 123751 | E49: 123750 | H49: 549.945 | I49: 700.268 | J49: 494.048
A50: 49 Zamora | C50: 57796 | D50: 70139 | E50: 60815.17 | H50: 206.696 | I50: 304.716 | J50: 224.106
A51: CASTILLA Y LEÓN | C51: 772101 | D51: 871553 | E51: 816873.17 | F51: 93.72616123 | H51: 3338.696 | I51: 4193.818 | J51: 3052.901 | K51: 72.79526675
A53: 28 MADRID | C53: 20067 | D53: 19658 | E53: 20602 | F53: 104.8021162 | H53: 61.668 | I53: 65.359 | J53: 64.961 | K53: 99.39105555
A55: 2 Albacete | C55: 56823 | D55: 56331 | E55: 57999 | H55: 142.934 | I55: 207.553 | J55: 214.764
A56: 13 Ciudad Real | C56: 49004 | D56: 48150 | E56: 47570 | H56: 130.821 | I56: 181.166 | J56: 180.155
A57: 16 Cuenca | C57: 49943 | D57: 61075 | E57: 51795 | H57: 148.223 | I57: 193.157 | J57: 158
A58: 19 Guadalajara | C58: 68498 | D58: 67989 | E58: 75466 | H58: 242.655 | I58: 261.701 | J58: 304.85
A59: 45 Toledo | C59: 52622 | D59: 60933 | E59: 60933 | H59: 139.793 | I59: 167.473 | J59: 220.14
A60: CASTILLA-MANCHA | C60: 276890 | D60: 294478 | E60: 293763 | F60: 99.75719748 | H60: 804.426 | I60: 1011.05 | J60: 1077.909 | K60: 106.6128282
A62: 3 Alicante | C62: 1285 | D62: 1561 | E62: 1356 | H62: 0.94 | I62: 4.172 | J62: 4.216
A63: 12 Castellón | C63: 745 | D63: 840 | E63: 934 | H63: 0.21 | I63: 1.857 | J63: 2.116
A64: 46 Valencia | C64: 2721 | D64: 2250 | E64: 2695 | H64: 2.052 | I64: 6.58 | J64: 7.887
A65: C. VALENCIANA | C65: 4751 | D65: 4651 | E65: 4985 | F65: 107.1812513 | H65: 3.202 | I65: 12.609 | J65: 14.219 | K65: 112.7686573
A67: 30 R. DE MURCIA | C67: 7035 | D67: 7027 | E67: 8953 | F67: 127.408567 | H67: 4.858 | I67: 4.174 | J67: 4.351 | K67: 104.2405367
A69: 6 Badajoz | C69: 76596 | D69: 77554 | E69: 73625 | H69: 252.281 | I69: 219.294 | J69: 170.826
A70: 10 Cáceres | C70: 3711 | D70: 3579 | E70: 3700 | H70: 8.671 | I70: 8.599 | J70: 6.925
A71: EXTREMADURA | C71: 80307 | D71: 81133 | E71: 77325 | F71: 95.30647209 | H71: 260.952 | I71: 227.893 | J71: 177.751 | K71: 77.99756903
A73: 4 Almería | C73: 1943 | D73: 1650 | E73: 1660 | H73: 0.099 | I73: 4.203 | J73: 2.513
A74: 11 Cádiz | C74: 57232 | D74: 50215.35 | E74: 48160.72 | H74: 165.82 | I74: 143.862 | J74: 139.954
A75: 14 Córdoba | C75: 60176 | D75: 56870 | E75: 56870 | H75: 216.426 | I75: 170.61 | J75: 170.61
A76: 18 Granada | C76: 9645 | D76: 10346 | E76: 9814.46 | H76: 17.292 | I76: 25.657 | J76: 24.32
A77: 21 Huelva | C77: 13660 | D77: 13970 | E77: 13970 | H77: 49.3 | I77: 50.73 | J77: 54.056
A78: 23 Jaén | C78: 7472 | D78: 6822 | E78: 6825 | H78: 24.952 | I78: 22.067 | J78: 22.074
A79: 29 Málaga | C79: 14978 | D79: 16225 | E79: 16239 | H79: 39.702 | I79: 41.969 | J79: 43.281
A80: 41 Sevilla | C80: 129560 | D80: 123440 | E80: 105000 | H80: 464.734 | I80: 415.911 | J80: 340.25
A81: ANDALUCÍA | C81: 294666 | D81: 279538.35 | E81: 258539.18 | F81: 92.48791087 | H81: 978.325 | I81: 875.009 | J81: 797.058 | K81: 91.09140592
A83: 35 Palmas (Las) | C83: 89 | D83: 89 | E83: 89 | H83: 0.089 | I83: 0.089 | J83: 0.089
A84: 38 S. C. Tenerife | C84: 137 | D84: 137 | E84: 137 | H84: 0.143 | I84: 0.143 | J84: 0.143
A85: CANARIAS | C85: 226 | D85: 226 | E85: 226 | F85: 100 | H85: 0.232 | I85: 0.232 | J85: 0.232 | K85: 100
A88: ESPAÑA | C88: 1925457 | D88: 2003953.82 | E88: 1941493.98 | F88: 96.88316969 | H88: 7097.507 | I88: 8410.592 | J88: 7119.877 | K88: 84.6536962
A91: (*)Tipo de Superficie de mes/año solicitado

Sheet Tri7uro-SRT
A1: AVANCES DE SUPERFICIE Y PRODUCCIÓN
A2: TRIGO DURO S/R/T | K2: 2026 ABRIL
A3: SUPERFICIE CULTIVADA(*)
A4: PROVINCIAS | B4: SUPERFICIES (HA) | E4: SUPERFICIES (HA) | H4: SUPERFICIES (HA) | L4: PRODUCCIONES (1000 TM) | O4: PRODUCCIONES (1000 TM) | R4: PRODUCCIONES (1000 TM)
A5: Y | B5: SECANO | E5: REGADIO | H5: TOTAL | L5: SECANO | O5: REGADIO | R5: TOTAL
A6: CC-AA | B6: =J6-2 -> 2024 | C6: =J6-1 -> 2025 | D6: =J6 -> 2026 | E6: =J6-2 -> 2024 | F6: =J6-1 -> 2025 | G6: =J6 -> 2026 | H6: =J6-2 -> 2024 | I6: =J6-1 -> 2025 | J6: 2026 | L6: =T6-2 -> 2024 | M6: =T6-1 -> 2025 | N6: =T6 -> 2026 | O6: =T6-2 -> 2024 | P6: =T6-1 -> 2025 | Q6: =T6 -> 2026 | R6: =T6-2 -> 2024 | S6: =T6-1 -> 2025 | T6: 2026
B7: DEFINITIVO | C7: PROVISIONAL | D7: PROVISIONAL | E7: DEFINITIVO | F7: PROVISIONAL | H7: DEFINITIVO | I7: PROVISIONAL | L7: DEFINITIVO | M7: PROVISIONAL | O7: DEFINITIVO | P7: PROVISIONAL | R7: DEFINITIVO | S7: PROVISIONAL
A10: 15 Coruña (La) | B10: 12 | C10: 8.04 | D10: 6.14 | H10: 12 | I10: 8.04 | J10: 6.14 | L10: 0.028 | M10: 0.016 | N10: 0.016 | R10: 0.027 | S10: 0.016 | T10: 0.016
A11: 27 Lugo | B11: 216 | C11: 73.61 | D11: 48.55 | H11: 216 | I11: 73.61 | J11: 48.55 | L11: 0.475 | M11: 0.149 | N11: 0.097 | R11: 0.475 | S11: 0.149 | T11: 0.097
A12: 32 Orense | B12: 8 | C12: 25.4 | D12: 114.6 | H12: 8 | I12: 25.4 | J12: 114.6 | L12: 0.024 | M12: 0.052 | N12: 0.311 | R12: 0.024 | S12: 0.052 | T12: 0.311
A13: 36 Pontevedra | B13: 3 | C13: 5.32 | D13: 6.48 | H13: 3 | I13: 5.32 | J13: 6.48 | L13: 0.007 | M13: 0.009 | N13: 0.011 | R13: 0.007 | S13: 0.009 | T13: 0.011
A14: GALICIA | B14: 239 | C14: 112.37 | D14: 175.77 | H14: 239 | I14: 112.37 | J14: 175.77 | L14: 0.534 | M14: 0.226 | N14: 0.435 | R14: 0.533 | S14: 0.226 | T14: 0.435
A16: 33 P. DE ASTURIAS
A18: 39 CANTABRIA
A20: 01 Alava
A21: 20 Guipúzcoa
A22: 48 Vizcaya
A23: PAIS VASCO
A25: 31 NAVARRA | B25: 775 | C25: 816 | D25: 1039 | E25: 510 | F25: 491 | G25: 494 | H25: 1285 | I25: 1307 | J25: 1533 | L25: 0.851 | M25: 2.038 | N25: 2.595 | O25: 3.399 | P25: 2.687 | Q25: 2.703 | R25: 4.25 | S25: 4.725 | T25: 5.298
A27: 26 LA RIOJA | D27: 2 | F27: 10 | G27: 8 | I27: 10 | J27: 10 | N27: 0.012 | P27: 0.045 | Q27: 0.048 | S27: 0.045 | T27: 0.06
A29: 22 Huesca | B29: 835 | C29: 691.6 | D29: 690 | E29: 728 | F29: 473.37 | G29: 450 | H29: 1563 | I29: 1164.96 | J29: 1140 | L29: 1.906 | M29: 2.614 | N29: 1.725 | O29: 3.199 | P29: 2.835 | Q29: 1.745 | R29: 5.105 | S29: 5.45 | T29: 3.47
A30: 44 Teruel | B30: 680 | C30: 665 | D30: 699 | E30: 92 | F30: 55 | G30: 58 | H30: 772 | I30: 720 | J30: 757 | L30: 0.315 | M30: 1.198 | N30: 1.132 | O30: 0.221 | P30: 0.189 | Q30: 0.178 | R30: 0.536 | S30: 1.387 | T30: 1.31
A31: 50 Zaragoza | B31: 32498 | C31: 29155.26 | D31: 32394.68 | E31: 13791 | F31: 13891.78 | G31: 15434.32 | H31: 46289 | I31: 43047.04 | J31: 47829 | L31: 32.627 | M31: 70.362 | N31: 78.176 | O31: 69.557 | P31: 78.113 | Q31: 86.801 | R31: 102.18 | S31: 148.475 | T31: 164.977
A32: ARAGON | B32: 34013 | C32: 30511.86 | D32: 33783.68 | E32: 14611 | F32: 14420.15 | G32: 15942.32 | H32: 48624 | I32: 44932 | J32: 49726 | L32: 34.848 | M32: 74.174 | N32: 81.033 | O32: 72.977 | P32: 81.137 | Q32: 88.724 | R32: 107.821 | S32: 155.312 | T32: 169.757
A34: 08 Barcelona | B34: 11 | C34: 36 | D34: 23 | F34: 2 | G34: 4 | H34: 11 | I34: 38 | J34: 27 | L34: 0.025 | M34: 0.174 | N34: 0.092 | P34: 0.014 | Q34: 0.02 | R34: 0.025 | S34: 0.188 | T34: 0.112
A35: 17 Girona | B35: 8 | C35: 16 | D35: 16 | E35: 12 | F35: 14 | G35: 14 | H35: 20 | I35: 30 | J35: 30 | L35: 0.015 | M35: 0.064 | N35: 0.064 | O35: 0.035 | P35: 0.06 | Q35: 0.063 | R35: 0.05 | S35: 0.124 | T35: 0.127
A36: 25 Lleida | B36: 28 | C36: 23 | D36: 23 | E36: 30 | F36: 18 | G36: 18 | H36: 58 | I36: 41 | J36: 41 | L36: 0.047 | M36: 0.092 | N36: 0.09 | O36: 0.148 | P36: 0.126 | Q36: 0.122 | R36: 0.195 | S36: 0.218 | T36: 0.212
A37: 43 Tarragona | B37: 7 | C37: 13 | D37: 11 | E37: 1 | F37: 1 | G37: 1 | H37: 8 | I37: 14 | J37: 12 | L37: 0.003 | M37: 0.032 | N37: 0.025 | O37: 0.004 | P37: 0.005 | Q37: 0.004 | R37: 0.007 | S37: 0.037 | T37: 0.029
A38: CATALUÑA | B38: 54 | C38: 88 | D38: 73 | E38: 43 | F38: 35 | G38: 37 | H38: 97 | I38: 123 | J38: 110 | L38: 0.09 | M38: 0.362 | N38: 0.271 | O38: 0.187 | P38: 0.205 | Q38: 0.209 | R38: 0.277 | S38: 0.567 | T38: 0.48
A40: 07 BALEARES | B40: 52 | C40: 50 | D40: 55 | H40: 52 | I40: 50 | J40: 55 | L40: 0.072 | M40: 0.07 | N40: 0.11 | R40: 0.072 | S40: 0.07 | T40: 0.11
A42: 05 Avila | B42: 17 | C42: 33 | D42: 30 | H42: 17 | I42: 33 | J42: 30 | L42: 0.015 | M42: 0.077 | N42: 0.063 | R42: 0.015 | S42: 0.077 | T42: 0.063
A43: 09 Burgos | B43: 329 | C43: 301 | D43: 301 | E43: 117 | F43: 56 | G43: 56 | H43: 446 | I43: 357 | J43: 357 | L43: 1.394 | M43: 1.24 | N43: 1.24 | O43: 0.759 | P43: 0.364 | Q43: 0.364 | R43: 2.153 | S43: 1.604 | T43: 1.604
A44: 24 León | B44: 2 | C44: 3 | D44: 5 | E44: 9 | F44: 23 | G44: 20 | H44: 11 | I44: 26 | J44: 25 | L44: 0.006 | M44: 0.009 | N44: 0.012 | O44: 0.05 | P44: 0.092 | Q44: 0.12 | R44: 0.056 | S44: 0.101 | T44: 0.132
A45: 34 Palencia | B45: 25 | C45: 4 | D45: 4 | E45: 5 | F45: 15 | G45: 14 | H45: 30 | I45: 19 | J45: 18 | L45: 0.082 | M45: 0.02 | N45: 0.018 | O45: 0.033 | P45: 0.075 | Q45: 0.07 | R45: 0.115 | S45: 0.095 | T45: 0.088
A46: 37 Salamanca | B46: 54 | C46: 15 | D46: 25 | E46: 1 | F46: 11 | G46: 10 | H46: 55 | I46: 26 | J46: 35 | L46: 0.173 | M46: 0.054 | N46: 0.08 | O46: 0.005 | P46: 0.057 | Q46: 0.052 | R46: 0.178 | S46: 0.111 | T46: 0.132
A47: 40 Segovia | B47: 52 | C47: 43 | D47: 45 | E47: 9 | H47: 61 | I47: 43 | J47: 45 | L47: 0.136 | M47: 0.148 | N47: 0.096 | O47: 0.032 | R47: 0.168 | S47: 0.148 | T47: 0.096
A48: 42 Soria | B48: 15 | C48: 2 | E48: 23 | H48: 38 | I48: 2 | L48: 0.047 | M48: 0.005 | O48: 0.106 | R48: 0.153 | S48: 0.005
A49: 47 Valladolid | B49: 17 | C49: 25 | D49: 25 | E49: 188 | F49: 62 | G49: 62 | H49: 205 | I49: 87 | J49: 87 | L49: 0.066 | M49: 0.118 | N49: 0.084 | O49: 0.949 | P49: 0.427 | Q49: 0.324 | R49: 1.015 | S49: 0.545 | T49: 0.408
A50: 49 Zamora | B50: 32 | C50: 41 | D50: 41.17 | E50: 7 | F50: 5 | G50: 30 | H50: 39 | I50: 46 | J50: 71.17 | L50: 0.098 | M50: 0.103 | N50: 0.096 | O50: 0.033 | P50: 0.035 | Q50: 0.196 | R50: 0.131 | S50: 0.138 | T50: 0.292
A51: CASTILLA Y LEON | B51: 543 | C51: 467 | D51: 476.17 | E51: 359 | F51: 172 | G51: 192 | H51: 902 | I51: 639 | J51: 668.17 | L51: 2.017 | M51: 1.774 | N51: 1.689 | O51: 1.967 | P51: 1.05 | Q51: 1.126 | R51: 3.984 | S51: 2.824 | T51: 2.815
A53: 28 MADRID | B53: 73 | C53: 76 | D53: 33 | E53: 134 | F53: 100 | G53: 142 | H53: 207 | I53: 176 | J53: 175 | L53: 0.084 | M53: 0.341 | N53: 0.063 | O53: 0.536 | P53: 0.342 | Q53: 0.603 | R53: 0.62 | S53: 0.683 | T53: 0.666
A55: 02 Albacete | B55: 227 | C55: 162 | D55: 172 | E55: 1436 | F55: 619 | G55: 637 | H55: 1663 | I55: 781 | J55: 809 | L55: 0.22 | M55: 0.36 | N55: 0.387 | O55: 10.236 | P55: 4.7 | Q55: 4.905 | R55: 10.455 | S55: 5.06 | T55: 5.292
A56: 13 Ciudad Real | B56: 73 | C56: 93 | D56: 100 | E56: 141 | F56: 97 | G56: 100 | H56: 214 | I56: 190 | J56: 200 | L56: 0.08 | M56: 0.205 | N56: 0.22 | O56: 0.564 | P56: 0.446 | Q56: 0.46 | R56: 0.644 | S56: 0.651 | T56: 0.68
A57: 16 Cuenca | B57: 325 | C57: 366 | D57: 355 | E57: 62 | F57: 80 | G57: 185 | H57: 387 | I57: 446 | J57: 540 | L57: 0.788 | M57: 1.06 | N57: 0.96 | O57: 0.31 | P57: 0.377 | Q57: 0.89 | R57: 1.098 | S57: 1.437 | T57: 1.85
A58: 19 Guadalajara | B58: 200 | C58: 180 | D58: 106 | E58: 29 | F58: 26 | G58: 13 | H58: 229 | I58: 206 | J58: 119 | L58: 0.27 | M58: 0.576 | N58: 0.424 | O58: 0.117 | P58: 0.13 | Q58: 0.065 | R58: 0.387 | S58: 0.706 | T58: 0.489
A59: 45 Toledo | B59: 877 | C59: 900 | D59: 900 | E59: 115 | F59: 154 | G59: 154 | H59: 992 | I59: 1054 | J59: 1054 | L59: 1.929 | M59: 3.15 | N59: 3.15 | O59: 0.483 | P59: 0.739 | Q59: 0.724 | R59: 2.412 | S59: 3.889 | T59: 3.874
A60: CASTILLA-MANCHA | B60: 1702 | C60: 1701 | D60: 1633 | E60: 1783 | F60: 976 | G60: 1089 | H60: 3485 | I60: 2677 | J60: 2722 | L60: 3.287 | M60: 5.351 | N60: 5.141 | O60: 11.71 | P60: 6.392 | Q60: 7.044 | R60: 14.996 | S60: 11.743 | T60: 12.185
A62: 03 Alicante | B62: 65 | C62: 78 | D62: 66 | E62: 40 | F62: 25 | G62: 24 | H62: 105 | I62: 103 | J62: 90 | L62: 0.017 | M62: 0.165 | N62: 0.155 | O62: 0.082 | P62: 0.068 | Q62: 0.129 | R62: 0.099 | S62: 0.233 | T62: 0.284
A63: 12 Castellón | B63: 30 | C63: 30 | D63: 32 | H63: 30 | I63: 30 | J63: 32 | L63: 0.004 | M63: 0.059 | N63: 0.063 | R63: 0.004 | S63: 0.059 | T63: 0.063
A64: 46 Valencia | B64: 59 | C64: 90 | D64: 132 | E64: 1 | G64: 1 | H64: 60 | I64: 90 | J64: 133 | L64: 0.012 | M64: 0.261 | N64: 0.383 | O64: 0.005 | Q64: 0.004 | R64: 0.017 | S64: 0.261 | T64: 0.387
A65: C. VALENCIANA | B65: 154 | C65: 198 | D65: 230 | E65: 41 | F65: 25 | G65: 25 | H65: 195 | I65: 223 | J65: 255 | L65: 0.033 | M65: 0.485 | N65: 0.601 | O65: 0.087 | P65: 0.068 | Q65: 0.133 | R65: 0.12 | S65: 0.553 | T65: 0.734
A67: 30 R. DE MURCIA | B67: 90 | C67: 101 | D67: 267 | E67: 95 | F67: 76 | G67: 10 | H67: 185 | I67: 177 | J67: 277 | L67: 0.019 | M67: 0.023 | N67: 0.027 | O67: 0.314 | P67: 0.251 | Q67: 0.258 | R67: 0.333 | S67: 0.274 | T67: 0.285
A69: 06 Badajoz | B69: 2316 | C69: 2818 | D69: 2660 | E69: 763 | F69: 754 | G69: 665 | H69: 3079 | I69: 3572 | J69: 3325 | L69: 6.557 | M69: 9.282 | N69: 5.171 | O69: 2.809 | P69: 3.228 | Q69: 1.423 | R69: 9.366 | S69: 12.51 | T69: 6.594
A70: 10 Cáceres | B70: 175 | C70: 180 | D70: 180 | E70: 15 | F70: 17 | G70: 20 | H70: 190 | I70: 197 | J70: 200 | L70: 0.291 | M70: 0.416 | N70: 0.288 | O70: 0.032 | P70: 0.051 | Q70: 0.045 | R70: 0.324 | S70: 0.467 | T70: 0.333
A71: EXTREMADURA | B71: 2491 | C71: 2998 | D71: 2840 | E71: 778 | F71: 771 | G71: 685 | H71: 3269 | I71: 3769 | J71: 3525 | L71: 6.848 | M71: 9.698 | N71: 5.459 | O71: 2.841 | P71: 3.279 | Q71: 1.468 | R71: 9.69 | S71: 12.977 | T71: 6.927
A73: 04 Almería | B73: 86 | C73: 72 | D73: 75 | E73: 29 | F73: 4 | G73: 5 | H73: 115 | I73: 76 | J73: 80 | M73: 0.143 | N73: 0.113 | P73: 0.012 | Q73: 0.01 | S73: 0.155 | T73: 0.123
A74: 11 Cádiz | B74: 42270 | C74: 34813.58 | D74: 32947.6 | E74: 4240 | F74: 3185.42 | G74: 3181.98 | H74: 46510 | I74: 37999 | J74: 36129.58 | L74: 129.285 | M74: 87.034 | N74: 93.617 | O74: 14.222 | P74: 7.964 | Q74: 10.981 | R74: 143.507 | S74: 94.998 | T74: 104.598
A75: 14 Córdoba | B75: 29065 | C75: 27750 | D75: 27750 | E75: 7873 | F75: 6400 | G75: 6400 | H75: 36938 | I75: 34150 | J75: 34150 | L75: 101.728 | M75: 83.25 | N75: 83.25 | O75: 27.556 | P75: 19.2 | Q75: 19.2 | R75: 129.283 | S75: 102.45 | T75: 102.45
A76: 18 Granada | B76: 1039 | C76: 1344 | D76: 1246.05 | E76: 678 | F76: 645 | G76: 528.8 | H76: 1717 | I76: 1989 | J76: 1774.85 | L76: 1.682 | M76: 3.099 | N76: 2.662 | O76: 3.302 | P76: 3.077 | Q76: 2.694 | R76: 4.984 | S76: 6.176 | T76: 5.356
A77: 21 Huelva | B77: 8550 | C77: 8980 | D77: 8980 | E77: 610 | F77: 610 | G77: 610 | H77: 9160 | I77: 9590 | J77: 9590 | L77: 29.925 | M77: 31.779 | N77: 35.328 | O77: 2.655 | P77: 2.745 | Q77: 2.44 | R77: 32.58 | S77: 34.524 | T77: 37.768
A78: 23 Jaén | B78: 3293 | C78: 2796 | D78: 2794 | E78: 1675 | F78: 1901 | G78: 1899 | H78: 4968 | I78: 4697 | J78: 4693 | L78: 10.538 | M78: 8.388 | N78: 8.382 | O78: 6.7 | P78: 7.604 | Q78: 7.596 | R78: 17.238 | S78: 15.992 | T78: 15.978
A79: 29 Málaga | B79: 8844 | C79: 9123 | D79: 9130 | E79: 1362 | F79: 1281 | G79: 1280 | H79: 10206 | I79: 10404 | J79: 10410 | L79: 22.11 | M79: 18.164 | N79: 26.966 | O79: 6.47 | P79: 7.776 | Q79: 0.767 | R79: 28.58 | S79: 25.94 | T79: 27.733
A80: 41 Sevilla | B80: 53480 | C80: 50740 | D80: 40000 | E80: 12610 | F80: 9080 | G80: 7000 | H80: 66090 | I80: 59820 | J80: 47000 | L80: 181.832 | M80: 152.22 | N80: 120 | O80: 47.918 | P80: 34.504 | Q80: 19.25 | R80: 229.75 | S80: 186.724 | T80: 139.25
A81: ANDALUCIA | B81: 146627 | C81: 135618.58 | D81: 122922.65 | E81: 29077 | F81: 23106.42 | G81: 20904.78 | H81: 175704 | I81: 158725 | J81: 143827.43 | L81: 477.1 | M81: 384.077 | N81: 370.318 | O81: 108.823 | P81: 82.882 | Q81: 62.938 | R81: 585.922 | S81: 466.959 | T81: 433.256
A83: 35 Palmas (Las)
A84: 38 S. C. Tenerife
A85: CANARIAS
A88: ESPAÑA | B88: 373626 | C88: 172737.81 | D88: 163530.27 | E88: 47431 | F88: 40182.57 | G88: 39529.1 | H88: 234244 | I88: 212920.37 | J88: 203059.37 | L88: 525.783 | M88: 478.619 | N88: 467.754 | O88: 202.841 | P88: 178.338 | Q88: 165.254 | R88: 728.618 | S88: 656.958 | T88: 633.008
B96: 221 | C96: 231 | E96: 221 | F96: 231 | H96: 221 | I96: 231

Sheet Tri7uro
A1: AVANCES DE SUPERFICIE Y PRODUCCIÓN
A2: TRIGO DURO | J2: 2026 ABRIL
A3: SUPERFICIE CULTIVADA(*)
A4: PROVINCIAS | C4: SUPERFICIES (HA) | H4: PRODUCCIONES (1000 TM)
A5: Y
A6: CC-AA | C6: =E6-2 -> 2024 | D6: =E6-1 -> 2025 | E6: 2026 | F6: =E6 -> 2026 | H6: =J6-2 -> 2024 | I6: =J6-1 -> 2025 | J6: 2026 | K6: =J6 -> 2026
C7: DEFINITIVO | D7: PROVISIONAL | H7: DEFINITIVO | I7: PROVISIONAL
F8: =CONCATENATE(D6,"=100") -> 2025=100 | K8: =CONCATENATE(I6,"=100") -> 2025=100
A10: 15 A Coruña | C10: 12 | D10: 8.04 | E10: 6.14 | H10: 0.027 | I10: 0.016 | J10: 0.016
A11: 27 Lugo | C11: 216 | D11: 73.61 | E11: 48.55 | H11: 0.475 | I11: 0.149 | J11: 0.097
A12: 32 Ourense | C12: 8 | D12: 25.4 | E12: 114.6 | H12: 0.024 | I12: 0.052 | J12: 0.311
A13: 36 Pontevedra | C13: 3 | D13: 5.32 | E13: 6.48 | H13: 0.007 | I13: 0.009 | J13: 0.011
A14: GALICIA | C14: 239 | D14: 112.37 | E14: 175.77 | F14: 156.4207529 | H14: 0.533 | I14: 0.226 | J14: 0.435 | K14: 192.4778761
A16: 33 P. DE ASTURIAS
A18: 39 CANTABRIA
A20: 1 Álava
A21: 20 Guipúzcoa
A22: 48 Vizcaya
A23: PAIS VASCO
A25: 31 NAVARRA | C25: 1285 | D25: 1307 | E25: 1533 | F25: 117.2915073 | H25: 4.25 | I25: 4.725 | J25: 5.298 | K25: 112.1269841
A27: 26 LA RIOJA | D27: 10 | E27: 10 | F27: 100 | I27: 0.045 | J27: 0.06 | K27: 133.3333333
A29: 22 Huesca | C29: 1563 | D29: 1164.96 | E29: 1140 | H29: 5.105 | I29: 5.45 | J29: 3.47
A30: 44 Teruel | C30: 772 | D30: 720 | E30: 757 | H30: 0.536 | I30: 1.387 | J30: 1.31
A31: 50 Zaragoza | C31: 46289 | D31: 43047.04 | E31: 47829 | H31: 102.18 | I31: 148.475 | J31: 164.977
A32: ARAGÓN | C32: 48624 | D32: 44932 | E32: 49726 | F32: 110.6694561 | H32: 107.821 | I32: 155.312 | J32: 169.757 | K32: 109.3006336
A34: 8 Barcelona | C34: 11 | D34: 38 | E34: 27 | H34: 0.025 | I34: 0.188 | J34: 0.112
A35: 17 Girona | C35: 20 | D35: 30 | E35: 30 | H35: 0.05 | I35: 0.124 | J35: 0.127
A36: 25 Lleida | C36: 58 | D36: 41 | E36: 41 | H36: 0.195 | I36: 0.218 | J36: 0.212
A37: 43 Tarragona | C37: 8 | D37: 14 | E37: 12 | H37: 0.007 | I37: 0.037 | J37: 0.029
A38: CATALUÑA | C38: 97 | D38: 123 | E38: 110 | F38: 89.43089431 | H38: 0.277 | I38: 0.567 | J38: 0.48 | K38: 84.65608466
A40: 7 BALEARES | C40: 52 | D40: 50 | E40: 55 | F40: 110 | H40: 0.072 | I40: 0.07 | J40: 0.11 | K40: 157.1428571
A42: 5 Ávila | C42: 17 | D42: 33 | E42: 30 | H42: 0.015 | I42: 0.077 | J42: 0.063
A43: 9 Burgos | C43: 446 | D43: 357 | E43: 357 | H43: 2.153 | I43: 1.604 | J43: 1.604
A44: 24 León | C44: 11 | D44: 26 | E44: 25 | H44: 0.056 | I44: 0.101 | J44: 0.132
A45: 34 Palencia | C45: 30 | D45: 19 | E45: 18 | H45: 0.115 | I45: 0.095 | J45: 0.088
A46: 37 Salamanca | C46: 55 | D46: 26 | E46: 35 | H46: 0.178 | I46: 0.111 | J46: 0.132
A47: 40 Segovia | C47: 61 | D47: 43 | E47: 45 | H47: 0.168 | I47: 0.148 | J47: 0.096
A48: 42 Soria | C48: 38 | D48: 2 | H48: 0.153 | I48: 0.005
A49: 47 Valladolid | C49: 205 | D49: 87 | E49: 87 | H49: 1.015 | I49: 0.545 | J49: 0.408
A50: 49 Zamora | C50: 39 | D50: 46 | E50: 71.17 | H50: 0.131 | I50: 0.138 | J50: 0.292
A51: CASTILLA Y LEÓN | C51: 902 | D51: 639 | E51: 668.17 | F51: 104.5649452 | H51: 3.984 | I51: 2.824 | J51: 2.815 | K51: 99.68130312
A53: 28 MADRID | C53: 207 | D53: 176 | E53: 175 | F53: 99.43181818 | H53: 0.62 | I53: 0.683 | J53: 0.666 | K53: 97.51098097
A55: 2 Albacete | C55: 1663 | D55: 781 | E55: 809 | H55: 10.455 | I55: 5.06 | J55: 5.292
A56: 13 Ciudad Real | C56: 214 | D56: 190 | E56: 200 | H56: 0.644 | I56: 0.651 | J56: 0.68
A57: 16 Cuenca | C57: 387 | D57: 446 | E57: 540 | H57: 1.098 | I57: 1.437 | J57: 1.85
A58: 19 Guadalajara | C58: 229 | D58: 206 | E58: 119 | H58: 0.387 | I58: 0.706 | J58: 0.489
A59: 45 Toledo | C59: 992 | D59: 1054 | E59: 1054 | H59: 2.412 | I59: 3.889 | J59: 3.874
A60: CASTILLA-MANCHA | C60: 3485 | D60: 2677 | E60: 2722 | F60: 101.6809862 | H60: 14.996 | I60: 11.743 | J60: 12.185 | K60: 103.7639445
A62: 3 Alicante | C62: 105 | D62: 103 | E62: 90 | H62: 0.099 | I62: 0.233 | J62: 0.284
A63: 12 Castellón | C63: 30 | D63: 30 | E63: 32 | H63: 0.004 | I63: 0.059 | J63: 0.063
A64: 46 Valencia | C64: 60 | D64: 90 | E64: 133 | H64: 0.017 | I64: 0.261 | J64: 0.387
A65: C. VALENCIANA | C65: 195 | D65: 223 | E65: 255 | F65: 114.3497758 | H65: 0.12 | I65: 0.553 | J65: 0.734 | K65: 132.7305606
A67: 30 R. DE MURCIA | C67: 185 | D67: 177 | E67: 277 | F67: 156.4971751 | H67: 0.333 | I67: 0.274 | J67: 0.285 | K67: 104.0145985
A69: 6 Badajoz | C69: 3079 | D69: 3572 | E69: 3325 | H69: 9.366 | I69: 12.51 | J69: 6.594
A70: 10 Cáceres | C70: 190 | D70: 197 | E70: 200 | H70: 0.324 | I70: 0.467 | J70: 0.333
A71: EXTREMADURA | C71: 3269 | D71: 3769 | E71: 3525 | F71: 93.52613425 | H71: 9.69 | I71: 12.977 | J71: 6.927 | K71: 53.37905525
A73: 4 Almería | C73: 115 | D73: 76 | E73: 80 | I73: 0.155 | J73: 0.123
A74: 11 Cádiz | C74: 46510 | D74: 37999 | E74: 36129.58 | H74: 143.507 | I74: 94.998 | J74: 104.598
A75: 14 Córdoba | C75: 36938 | D75: 34150 | E75: 34150 | H75: 129.283 | I75: 102.45 | J75: 102.45
A76: 18 Granada | C76: 1717 | D76: 1989 | E76: 1774.85 | H76: 4.984 | I76: 6.176 | J76: 5.356
A77: 21 Huelva | C77: 9160 | D77: 9590 | E77: 9590 | H77: 32.58 | I77: 34.524 | J77: 37.768
A78: 23 Jaén | C78: 4968 | D78: 4697 | E78: 4693 | H78: 17.238 | I78: 15.992 | J78: 15.978
A79: 29 Málaga | C79: 10206 | D79: 10404 | E79: 10410 | H79: 28.58 | I79: 25.94 | J79: 27.733
A80: 41 Sevilla | C80: 66090 | D80: 59820 | E80: 47000 | H80: 229.75 | I80: 186.724 | J80: 139.25
A81: ANDALUCÍA | C81: 175704 | D81: 158725 | E81: 143827.43 | F81: 90.61422586 | H81: 585.922 | I81: 466.959 | J81: 433.256 | K81: 92.78244985
A83: 35 Palmas (Las)
A84: 38 S. C. Tenerife
A85: CANARIAS
A88: ESPAÑA | C88: 234244 | D88: 212920.37 | E88: 203059.37 | F88: 95.36869112 | H88: 728.618 | I88: 656.958 | J88: 633.008 | K88: 96.35440926
A91: (*)Tipo de Superficie de mes/año solicitado

Sheet Tri8ndo-SRT
A1: AVANCES DE SUPERFICIE Y PRODUCCIÓN
A2: TRIGO SEMIDURO Y BLANDO S/R/T | K2: 2026 ABRIL
A3: SUPERFICIE CULTIVADA(*)
A4: PROVINCIAS | B4: SUPERFICIES (HA) | E4: SUPERFICIES (HA) | H4: SUPERFICIES (HA) | L4: PRODUCCIONES (1000 TM) | O4: PRODUCCIONES (1000 TM) | R4: PRODUCCIONES (1000 TM)
A5: Y | B5: SECANO | E5: REGADIO | H5: TOTAL | L5: SECANO | O5: REGADIO | R5: TOTAL
A6: CC-AA | B6: =J6-2 -> 2024 | C6: =J6-1 -> 2025 | D6: =J6 -> 2026 | E6: =J6-2 -> 2024 | F6: =J6-1 -> 2025 | G6: =J6 -> 2026 | H6: =J6-2 -> 2024 | I6: =J6-1 -> 2025 | J6: 2026 | L6: =T6-2 -> 2024 | M6: =T6-1 -> 2025 | N6: =T6 -> 2026 | O6: =T6-2 -> 2024 | P6: =T6-1 -> 2025 | Q6: =T6 -> 2026 | R6: =T6-2 -> 2024 | S6: =T6-1 -> 2025 | T6: 2026
B7: DEFINITIVO | C7: PROVISIONAL | D7: PROVISIONAL | E7: DEFINITIVO | F7: PROVISIONAL | H7: DEFINITIVO | I7: PROVISIONAL | L7: DEFINITIVO | M7: PROVISIONAL | O7: DEFINITIVO | P7: PROVISIONAL | R7: DEFINITIVO | S7: PROVISIONAL
A10: 15 Coruña (La) | B10: 1737 | C10: 2128.97 | D10: 1507.76 | H10: 1737 | I10: 2128.97 | J10: 1507.76 | L10: 3.995 | M10: 9.352 | N10: 7.007 | R10: 3.995 | S10: 9.352 | T10: 7.007
A11: 27 Lugo | B11: 3054 | C11: 3189.09 | D11: 2485.03 | H11: 3054 | I11: 3189.09 | J11: 2485.03 | L11: 6.719 | M11: 8.831 | N11: 5.649 | R11: 6.718 | S11: 8.831 | T11: 5.649
A12: 32 Orense | B12: 8532 | C12: 6102.77 | D12: 5650.27 | H12: 8532 | I12: 6102.77 | J12: 5650.27 | L12: 25.255 | M12: 19.682 | N12: 11.754 | R12: 25.256 | S12: 19.682 | T12: 11.754
A13: 36 Pontevedra | B13: 285 | C13: 378.9 | D13: 356.37 | H13: 285 | I13: 378.9 | J13: 356.37 | L13: 0.641 | M13: 1.371 | N13: 1.002 | R13: 0.641 | S13: 1.371 | T13: 1.002
A14: GALICIA | B14: 13608 | C14: 11799.73 | D14: 9999.43 | H14: 13608 | I14: 11799.73 | J14: 9999.43 | L14: 36.61 | M14: 39.236 | N14: 25.412 | R14: 36.61 | S14: 39.236 | T14: 25.412
A16: 33 P. DE ASTURIAS | C16: 61 | D16: 65 | I16: 61 | J16: 65 | M16: 0.11 | N16: 0.124 | S16: 0.11 | T16: 0.124
A18: 39 CANTABRIA | B18: 733 | C18: 740 | D18: 745 | E18: 115 | F18: 115 | G18: 130 | H18: 848 | I18: 855 | J18: 875 | L18: 1.613 | M18: 1.484 | N18: 2.235 | O18: 0.518 | P18: 0.46 | Q18: 0.52 | R18: 2.131 | S18: 1.944 | T18: 2.755
A20: 01 Alava | B20: 19717 | C20: 17217 | D20: 18524 | H20: 19717 | I20: 17217 | J20: 18524 | L20: 138.019 | M20: 103.302 | N20: 101.882 | R20: 138.019 | S20: 103.302 | T20: 101.882
A21: 20 Guipúzcoa | B21: 1 | H21: 1 | L21: 0.006 | R21: 0.006
A22: 48 Vizcaya
A23: PAIS VASCO | B23: 19718 | C23: 17217 | D23: 18524 | H23: 19718 | I23: 17217 | J23: 18524 | L23: 138.025 | M23: 103.302 | N23: 101.882 | R23: 138.025 | S23: 103.302 | T23: 101.882
A25: 31 NAVARRA | B25: 61844 | C25: 66511 | D25: 65102 | E25: 14641 | F25: 13420 | G25: 13149 | H25: 76485 | I25: 79931 | J25: 78251 | L25: 324.186 | M25: 339.609 | N25: 332.458 | O25: 104.566 | P25: 79.208 | Q25: 77.602 | R25: 428.752 | S25: 418.817 | T25: 410.06
A27: 26 LA RIOJA | B27: 17354 | C27: 16294 | D27: 16180 | E27: 7444 | F27: 6808 | G27: 6907 | H27: 24798 | I27: 23102 | J27: 23087 | L27: 46.717 | M27: 100.065 | N27: 67.034 | O27: 32.009 | P27: 43.112 | Q27: 35.792 | R27: 78.726 | S27: 143.177 | T27: 102.826
A29: 22 Huesca | B29: 57258 | C29: 56600.66 | D29: 59600 | E29: 23357 | F29: 18982.53 | G29: 18650 | H29: 80615 | I29: 75583.18 | J29: 78250 | L29: 208.572 | M29: 246.779 | N29: 208.24 | O29: 138.647 | P29: 112.187 | Q29: 96.89 | R29: 347.218 | S29: 358.966 | T29: 305.13
A30: 44 Teruel | B30: 30138 | C30: 34658 | D30: 35930 | E30: 3980 | F30: 3315 | G30: 3540 | H30: 34118 | I30: 37973 | J30: 39470 | L30: 30.061 | M30: 84.912 | N30: 78.926 | O30: 12.147 | P30: 13.998 | Q30: 13.7 | R30: 42.208 | S30: 98.91 | T30: 92.626
A31: 50 Zaragoza | B31: 42016 | C31: 41340.31 | D31: 45935.13 | E31: 18252 | F31: 16519.88 | G31: 18355.3 | H31: 60268 | I31: 57860.19 | J31: 64290.43 | L31: 59.747 | M31: 150.644 | N31: 167.378 | O31: 93.049 | P31: 97.666 | Q31: 108.499 | R31: 152.776 | S31: 248.31 | T31: 275.877
A32: ARAGON | B32: 129412 | C32: 132598.97 | D32: 141465.13 | E32: 45589 | F32: 38817.41 | G32: 40545.3 | H32: 175001 | I32: 171416.37 | J32: 182010.43 | L32: 298.38 | M32: 482.335 | N32: 454.544 | O32: 243.843 | P32: 223.851 | Q32: 219.089 | R32: 542.202 | S32: 706.186 | T32: 673.633
A34: 08 Barcelona | B34: 21419 | C34: 20882 | D34: 21419 | E34: 370 | F34: 556 | G34: 600 | H34: 21789 | I34: 21438 | J34: 22019 | L34: 48.236 | M34: 99.367 | N34: 83.5 | O34: 2.017 | P34: 3.265 | Q34: 3.48 | R34: 50.253 | S34: 102.632 | T34: 86.98
A35: 17 Girona | B35: 10042 | C35: 9291 | D35: 8102 | E35: 2681 | F35: 4277 | G35: 4385 | H35: 12723 | I35: 13568 | J35: 12487 | L35: 23.88 | M35: 40.863 | N35: 32.408 | O35: 9.952 | P35: 20.503 | Q35: 19.294 | R35: 33.832 | S35: 61.366 | T35: 51.702
A36: 25 Lleida | B36: 41588 | C36: 32550 | D36: 34080 | E36: 20718 | F36: 15830 | G36: 15500 | H36: 62306 | I36: 48380 | J36: 49580 | L36: 83.218 | M36: 130.2 | N36: 154 | O36: 123.293 | P36: 118.725 | Q36: 105 | R36: 206.511 | S36: 248.925 | T36: 259
A37: 43 Tarragona | B37: 6861 | C37: 6418 | D37: 6659 | E37: 55 | F37: 68 | G37: 61 | H37: 6916 | I37: 6486 | J37: 6720 | L37: 8.192 | M37: 27.943 | N37: 30 | O37: 0.115 | P37: 0.326 | Q37: 0.24 | R37: 8.307 | S37: 28.269 | T37: 30.24
A38: CATALUÑA | B38: 79910 | C38: 69141 | D38: 70260 | E38: 23824 | F38: 20731 | G38: 20546 | H38: 103734 | I38: 89872 | J38: 90806 | L38: 163.526 | M38: 298.373 | N38: 299.908 | O38: 135.377 | P38: 142.819 | Q38: 128.014 | R38: 298.903 | S38: 441.192 | T38: 427.922
A40: 07 BALEARES | B40: 4925 | C40: 4900 | D40: 5000 | H40: 4925 | I40: 4900 | J40: 5000 | L40: 6.846 | M40: 6.9 | N40: 9.74 | R40: 6.846 | S40: 6.9 | T40: 9.74
A42: 05 Avila | B42: 28638 | C42: 34748 | D42: 34767 | E42: 2332 | F42: 1593 | G42: 1750 | H42: 30970 | I42: 36341 | J42: 36517 | L42: 54.613 | M42: 124.815 | N42: 85.179 | O42: 8.37 | P42: 8.08 | Q42: 7.875 | R42: 62.983 | S42: 132.895 | T42: 93.054
A43: 09 Burgos | B43: 179659 | C43: 191494 | D43: 187822 | E43: 5824 | F43: 6460 | G43: 6387 | H43: 185483 | I43: 197954 | J43: 194209 | L43: 963.691 | M43: 1018.174 | N43: 777.771 | O43: 41.56 | P43: 45.75 | Q43: 45.271 | R43: 1005.251 | S43: 1063.924 | T43: 823.042
A44: 24 León | B44: 24021 | C44: 34893 | D44: 32000 | E44: 12185 | F44: 17302 | G44: 18000 | H44: 36206 | I44: 52195 | J44: 50000 | L44: 83.569 | M44: 130.849 | N44: 86.4 | O44: 79.775 | P44: 114.193 | Q44: 117 | R44: 163.344 | S44: 245.042 | T44: 203.4
A45: 34 Palencia | B45: 97592 | C45: 111409 | D45: 102375 | E45: 22661 | F45: 23087 | G45: 20947 | H45: 120253 | I45: 134496 | J45: 123322 | L45: 434.675 | M45: 566.403 | N45: 367.629 | O45: 141.359 | P45: 142.216 | Q45: 120.11 | R45: 576.034 | S45: 708.619 | T45: 487.739
A46: 37 Salamanca | B46: 61003 | C46: 61999 | D46: 60000 | E46: 7311 | F46: 7980 | G46: 7000 | H46: 68314 | I46: 69979 | J46: 67000 | L46: 207.41 | M46: 260.086 | N46: 210 | O46: 42.404 | P46: 46.284 | Q46: 40.6 | R46: 249.814 | S46: 306.37 | T46: 250.6
A47: 40 Segovia | B47: 60157 | C47: 75566 | D47: 73770 | E47: 2873 | F47: 3742 | G47: 2980 | H47: 63030 | I47: 79308 | J47: 76750 | L47: 169.101 | M47: 306.647 | N47: 201.318 | O47: 14.325 | P47: 19.017 | Q47: 13.479 | R47: 183.426 | S47: 325.664 | T47: 214.797
A48: 42 Soria | B48: 83843 | C48: 101956 | D48: 80000 | E48: 3835 | F48: 4928 | G48: 4000 | H48: 87678 | I48: 106884 | J48: 84000 | L48: 319.19 | M48: 378.563 | N48: 240 | O48: 19.175 | P48: 25.616 | Q48: 20 | R48: 338.365 | S48: 404.179 | T48: 260
A49: 47 Valladolid | B49: 101383 | C49: 102138 | D49: 102137 | E49: 20125 | F49: 21526 | G49: 21526 | H49: 121508 | I49: 123664 | J49: 123663 | L49: 414.555 | M49: 542.863 | N49: 369.327 | O49: 134.375 | P49: 156.86 | Q49: 124.313 | R49: 548.93 | S49: 699.723 | T49: 493.64
A50: 49 Zamora | B50: 48737 | C50: 60551 | D50: 52194 | E50: 9020 | F50: 9542 | G50: 8550 | H50: 57757 | I50: 70093 | J50: 60744 | L50: 160.247 | M50: 237.784 | N50: 173.232 | O50: 46.318 | P50: 66.794 | Q50: 50.582 | R50: 206.565 | S50: 304.578 | T50: 223.814
A51: CASTILLA Y LEON | B51: 685033 | C51: 774754 | D51: 725065 | E51: 86166 | F51: 96160 | G51: 91140 | H51: 771199 | I51: 870914 | J51: 816205 | L51: 2807.051 | M51: 3566.184 | N51: 2510.856 | O51: 527.661 | P51: 624.81 | Q51: 539.23 | R51: 3334.712 | S51: 4190.994 | T51: 3050.086
A53: 28 MADRID | B53: 17867 | C53: 17857 | D53: 17781 | E53: 1993 | F53: 1625 | G53: 2646 | H53: 19860 | I53: 19482 | J53: 20427 | L53: 51.975 | M53: 56.803 | N53: 55.522 | O53: 9.072 | P53: 7.873 | Q53: 8.773 | R53: 61.048 | S53: 64.676 | T53: 64.295
A55: 02 Albacete | B55: 42630 | C55: 41397 | D55: 42828 | E55: 12530 | F55: 14153 | G55: 14362 | H55: 55160 | I55: 55550 | J55: 57190 | L55: 41.918 | M55: 94.187 | N55: 98.504 | O55: 90.567 | P55: 108.306 | Q55: 110.968 | R55: 132.479 | S55: 202.493 | T55: 209.472
A56: 13 Ciudad Real | B56: 41136 | C56: 39650 | D56: 38600 | E56: 7654 | F56: 8310 | G56: 8770 | H56: 48790 | I56: 47960 | J56: 47370 | L56: 90.376 | M56: 134.81 | N56: 131.24 | O56: 39.801 | P56: 45.705 | Q56: 48.235 | R56: 130.177 | S56: 180.515 | T56: 179.475
A57: 16 Cuenca | B57: 46536 | C57: 57309 | D57: 47678 | E57: 3020 | F57: 3320 | G57: 3577 | H57: 49556 | I57: 60629 | J57: 51255 | L57: 131.582 | M57: 174.79 | N57: 138.27 | O57: 15.543 | P57: 16.93 | Q57: 17.88 | R57: 147.125 | S57: 191.72 | T57: 156.15
A58: 19 Guadalajara | B58: 66242 | C58: 65772 | D58: 73365 | E58: 2027 | F58: 2011 | G58: 1982 | H58: 68269 | I58: 67783 | J58: 75347 | L58: 230.202 | M58: 249.934 | N58: 293.46 | O58: 12.066 | P58: 11.061 | Q58: 10.901 | R58: 242.268 | S58: 260.995 | T58: 304.361
A59: 45 Toledo | B59: 47675 | C59: 54305 | D59: 54305 | E59: 3955 | F59: 5574 | G59: 5574 | H59: 51630 | I59: 59879 | J59: 59879 | L59: 119.188 | M59: 136.829 | N59: 190.068 | O59: 18.193 | P59: 26.755 | Q59: 26.198 | R59: 137.381 | S59: 163.584 | T59: 216.266
A60: CASTILLA-MANCHA | B60: 244219 | C60: 258433 | D60: 256776 | E60: 29186 | F60: 33368 | G60: 34265 | H60: 273405 | I60: 291801 | J60: 291041 | L60: 613.266 | M60: 790.55 | N60: 851.542 | O60: 176.17 | P60: 208.757 | Q60: 214.182 | R60: 789.43 | S60: 999.307 | T60: 1065.724
A62: 03 Alicante | B62: 790 | C62: 1093 | D62: 935 | E62: 390 | F62: 365 | G62: 331 | H62: 1180 | I62: 1458 | J62: 1266 | L62: 0.188 | M62: 1.963 | N62: 2.177 | O62: 0.653 | P62: 1.976 | Q62: 1.755 | R62: 0.841 | S62: 3.939 | T62: 3.932
A63: 12 Castellón | B63: 694 | C63: 789 | D63: 859 | E63: 21 | F63: 21 | G63: 43 | H63: 715 | I63: 810 | J63: 902 | L63: 0.105 | M63: 1.697 | N63: 1.847 | O63: 0.101 | P63: 0.101 | Q63: 0.206 | R63: 0.206 | S63: 1.798 | T63: 2.053
A64: 46 Valencia | B64: 2424 | C64: 2123 | D64: 2515 | E64: 237 | F64: 37 | G64: 47 | H64: 2661 | I64: 2160 | J64: 2562 | L64: 1.06 | M64: 6.157 | N64: 7.294 | O64: 0.975 | P64: 0.162 | Q64: 0.206 | R64: 2.035 | S64: 6.319 | T64: 7.5
A65: C. VALENCIANA | B65: 3908 | C65: 4005 | D65: 4309 | E65: 648 | F65: 423 | G65: 421 | H65: 4556 | I65: 4428 | J65: 4730 | L65: 1.353 | M65: 9.817 | N65: 11.318 | O65: 1.729 | P65: 2.239 | Q65: 2.167 | R65: 3.082 | S65: 12.056 | T65: 13.485
A67: 30 R. DE MURCIA | B67: 6251 | C67: 6324 | D67: 7656 | E67: 599 | F67: 526 | G67: 1020 | H67: 6850 | I67: 6850 | J67: 8676 | L67: 2.434 | M67: 0.41 | N67: 0.472 | O67: 2.091 | P67: 3.49 | Q67: 3.595 | R67: 4.525 | S67: 3.9 | T67: 4.066
A69: 06 Badajoz | B69: 62899 | C69: 63348 | D69: 59850 | E69: 10618 | F69: 10634 | G69: 10450 | H69: 73517 | I69: 73982 | J69: 70300 | L69: 199.201 | M69: 169.742 | N69: 127.72 | O69: 43.714 | P69: 37.042 | Q69: 36.512 | R69: 242.915 | S69: 206.784 | T69: 164.232
A70: 10 Cáceres | B70: 2306 | C70: 1856 | D70: 2000 | E70: 1215 | F70: 1526 | G70: 1500 | H70: 3521 | I70: 3382 | J70: 3500 | L70: 4.953 | M70: 3.931 | N70: 2.943 | O70: 3.393 | P70: 4.201 | Q70: 3.65 | R70: 8.347 | S70: 8.132 | T70: 6.592
A71: EXTREMADURA | B71: 65205 | C71: 65204 | D71: 61850 | E71: 11833 | F71: 12160 | G71: 11950 | H71: 77038 | I71: 77364 | J71: 73800 | L71: 204.154 | M71: 173.673 | N71: 130.663 | O71: 47.107 | P71: 41.243 | Q71: 40.162 | R71: 251.262 | S71: 214.916 | T71: 170.824
A73: 04 Almería | B73: 1763 | C73: 1554 | D73: 1560 | E73: 65 | F73: 20 | G73: 20 | H73: 1828 | I73: 1574 | J73: 1580 | L73: 0.016 | M73: 3.984 | N73: 2.34 | O73: 0.083 | P73: 0.064 | Q73: 0.05 | R73: 0.099 | S73: 4.048 | T73: 2.39
A74: 11 Cádiz | B74: 9075 | C74: 10879.38 | D74: 10682.46 | E74: 1647 | F74: 1336.97 | G74: 1348.68 | H74: 10722 | I74: 12216.35 | J74: 12031.14 | L74: 15.855 | M74: 43.516 | N74: 30.703 | O74: 6.458 | P74: 5.348 | Q74: 4.653 | R74: 22.313 | S74: 48.864 | T74: 35.356
A75: 14 Córdoba | B75: 21160 | C75: 20330 | D75: 20330 | E75: 2078 | F75: 2390 | G75: 2390 | H75: 23238 | I75: 22720 | J75: 22720 | L75: 79.35 | M75: 60.99 | N75: 60.99 | O75: 7.793 | P75: 7.17 | Q75: 7.17 | R75: 87.143 | S75: 68.16 | T75: 68.16
A76: 18 Granada | B76: 7112 | C76: 7510 | D76: 7310.55 | E76: 816 | F76: 847 | G76: 729.06 | H76: 7928 | I76: 8357 | J76: 8039.61 | L76: 9.803 | M76: 15.443 | N76: 15.857 | O76: 2.504 | P76: 4.039 | Q76: 3.108 | R76: 12.308 | S76: 19.481 | T76: 18.965
A77: 21 Huelva | B77: 4160 | C77: 4105 | D77: 4105 | E77: 340 | F77: 275 | G77: 275 | H77: 4500 | I77: 4380 | J77: 4380 | L77: 15.392 | M77: 15.023 | N77: 15.188 | O77: 1.328 | P77: 1.183 | Q77: 1.1 | R77: 16.72 | S77: 16.206 | T77: 16.288
A78: 23 Jaén | B78: 2302 | C78: 1969 | D78: 1974 | E78: 202 | F78: 156 | G78: 158 | H78: 2504 | I78: 2125 | J78: 2132 | L78: 6.906 | M78: 5.513 | N78: 5.527 | O78: 0.808 | P78: 0.562 | Q78: 0.569 | R78: 7.714 | S78: 6.075 | T78: 6.096
A79: 29 Málaga | B79: 4459 | C79: 5432 | D79: 5439 | E79: 313 | F79: 389 | G79: 390 | H79: 4772 | I79: 5821 | J79: 5829 | L79: 9.792 | M79: 14.123 | N79: 13.598 | O79: 1.33 | P79: 1.906 | Q79: 1.95 | R79: 11.122 | S79: 16.029 | T79: 15.548
A80: 41 Sevilla | B80: 52650 | C80: 54310 | D80: 50000 | E80: 10820 | F80: 9310 | G80: 8000 | H80: 63470 | I80: 63620 | J80: 58000 | L80: 189.54 | M80: 190.085 | N80: 175 | O80: 45.444 | P80: 39.102 | Q80: 26 | R80: 234.984 | S80: 229.187 | T80: 201
A81: ANDALUCIA | B81: 102681 | C81: 106089.38 | D81: 101401.01 | E81: 16281 | F81: 14723.97 | G81: 13310.74 | H81: 118962 | I81: 120813.35 | J81: 114711.75 | L81: 326.654 | M81: 348.677 | N81: 319.203 | O81: 65.748 | P81: 59.374 | Q81: 44.6 | R81: 392.403 | S81: 408.05 | T81: 363.803
A83: 35 Palmas (Las) | B83: 88 | C83: 88 | D83: 88 | E83: 1 | F83: 1 | G83: 1 | H83: 89 | I83: 89 | J83: 89 | L83: 0.088 | M83: 0.088 | N83: 0.088 | O83: 0.001 | P83: 0.001 | Q83: 0.001 | R83: 0.089 | S83: 0.089 | T83: 0.089
A84: 38 S. C. Tenerife | B84: 114 | C84: 114 | D84: 114 | E84: 23 | F84: 23 | G84: 23 | H84: 137 | I84: 137 | J84: 137 | L84: 0.108 | M84: 0.108 | N84: 0.108 | O84: 0.035 | P84: 0.035 | Q84: 0.035 | R84: 0.143 | S84: 0.143 | T84: 0.143
A85: CANARIAS | B85: 202 | C85: 202 | D85: 202 | E85: 24 | F85: 24 | G85: 24 | H85: 226 | I85: 226 | J85: 226 | L85: 0.196 | M85: 0.196 | N85: 0.196 | O85: 0.036 | P85: 0.036 | Q85: 0.036 | R85: 0.232 | S85: 0.232 | T85: 0.232
A88: ESPAÑA | B88: 2905740 | C88: 1552131.08 | D88: 1502380.57 | E88: 238343 | F88: 238901.38 | G88: 236054.04 | H88: 1691213 | I88: 1791032.45 | J88: 1738434.61 | L88: 5022.986 | M88: 6317.724 | N88: 5173.109 | O88: 1345.927 | P88: 1437.272 | Q88: 1313.762 | R88: 6368.889 | S88: 7754.995 | T88: 6486.869
B96: 221 | C96: 231 | E96: 221 | F96: 231 | H96: 221 | I96: 231

Sheet Tri8ndo
A1: AVANCES DE SUPERFICIE Y PRODUCCIÓN
A2: TRIGO SEMIDURO Y BLANDO | J2: 2026 ABRIL
A3: SUPERFICIE CULTIVADA(*)
A4: PROVINCIAS | C4: SUPERFICIES (HA) | H4: PRODUCCIONES (1000 TM)
A5: Y
A6: CC-AA | C6: =E6-2 -> 2024 | D6: =E6-1 -> 2025 | E6: 2026 | F6: =E6 -> 2026 | H6: =J6-2 -> 2024 | I6: =J6-1 -> 2025 | J6: 2026 | K6: =J6 -> 2026
C7: DEFINITIVO | D7: PROVISIONAL | H7: DEFINITIVO | I7: PROVISIONAL
F8: =CONCATENATE(D6,"=100") -> 2025=100 | K8: =CONCATENATE(I6,"=100") -> 2025=100
A10: 15 A Coruña | C10: 1737 | D10: 2128.97 | E10: 1507.76 | H10: 3.995 | I10: 9.352 | J10: 7.007
A11: 27 Lugo | C11: 3054 | D11: 3189.09 | E11: 2485.03 | H11: 6.718 | I11: 8.831 | J11: 5.649
A12: 32 Ourense | C12: 8532 | D12: 6102.77 | E12: 5650.27 | H12: 25.256 | I12: 19.682 | J12: 11.754
A13: 36 Pontevedra | C13: 285 | D13: 378.9 | E13: 356.37 | H13: 0.641 | I13: 1.371 | J13: 1.002
A14: GALICIA | C14: 13608 | D14: 11799.73 | E14: 9999.43 | F14: 84.74287124 | H14: 36.61 | I14: 39.236 | J14: 25.412 | K14: 64.76705067
A16: 33 P. DE ASTURIAS | D16: 61 | E16: 65 | F16: 106.557377 | I16: 0.11 | J16: 0.124 | K16: 112.7272727
A18: 39 CANTABRIA | C18: 848 | D18: 855 | E18: 875 | F18: 102.3391813 | H18: 2.131 | I18: 1.944 | J18: 2.755 | K18: 141.718107
A20: 1 Álava | C20: 19717 | D20: 17217 | E20: 18524 | H20: 138.019 | I20: 103.302 | J20: 101.882
A21: 20 Guipúzcoa | C21: 1 | H21: 0.006
A22: 48 Vizcaya
A23: PAIS VASCO | C23: 19718 | D23: 17217 | E23: 18524 | F23: 107.5913341 | H23: 138.025 | I23: 103.302 | J23: 101.882 | K23: 98.62538963
A25: 31 NAVARRA | C25: 76485 | D25: 79931 | E25: 78251 | F25: 97.89818719 | H25: 428.752 | I25: 418.817 | J25: 410.06 | K25: 97.90911066
A27: 26 LA RIOJA | C27: 24798 | D27: 23102 | E27: 23087 | F27: 99.93507056 | H27: 78.726 | I27: 143.177 | J27: 102.826 | K27: 71.81740084
A29: 22 Huesca | C29: 80615 | D29: 75583.18 | E29: 78250 | H29: 347.218 | I29: 358.966 | J29: 305.13
A30: 44 Teruel | C30: 34118 | D30: 37973 | E30: 39470 | H30: 42.208 | I30: 98.91 | J30: 92.626
A31: 50 Zaragoza | C31: 60268 | D31: 57860.19 | E31: 64290.43 | H31: 152.776 | I31: 248.31 | J31: 275.877
A32: ARAGÓN | C32: 175001 | D32: 171416.37 | E32: 182010.43 | F32: 106.1803082 | H32: 542.202 | I32: 706.186 | J32: 673.633 | K32: 95.39030794
A34: 8 Barcelona | C34: 21789 | D34: 21438 | E34: 22019 | H34: 50.253 | I34: 102.632 | J34: 86.98
A35: 17 Girona | C35: 12723 | D35: 13568 | E35: 12487 | H35: 33.832 | I35: 61.366 | J35: 51.702
A36: 25 Lleida | C36: 62306 | D36: 48380 | E36: 49580 | H36: 206.511 | I36: 248.925 | J36: 259
A37: 43 Tarragona | C37: 6916 | D37: 6486 | E37: 6720 | H37: 8.307 | I37: 28.269 | J37: 30.24
A38: CATALUÑA | C38: 103734 | D38: 89872 | E38: 90806 | F38: 101.0392558 | H38: 298.903 | I38: 441.192 | J38: 427.922 | K38: 96.99223921
A40: 7 BALEARES | C40: 4925 | D40: 4900 | E40: 5000 | F40: 102.0408163 | H40: 6.846 | I40: 6.9 | J40: 9.74 | K40: 141.1594203
A42: 5 Ávila | C42: 30970 | D42: 36341 | E42: 36517 | H42: 62.983 | I42: 132.895 | J42: 93.054
A43: 9 Burgos | C43: 185483 | D43: 197954 | E43: 194209 | H43: 1005.251 | I43: 1063.924 | J43: 823.042
A44: 24 León | C44: 36206 | D44: 52195 | E44: 50000 | H44: 163.344 | I44: 245.042 | J44: 203.4
A45: 34 Palencia | C45: 120253 | D45: 134496 | E45: 123322 | H45: 576.034 | I45: 708.619 | J45: 487.739
A46: 37 Salamanca | C46: 68314 | D46: 69979 | E46: 67000 | H46: 249.814 | I46: 306.37 | J46: 250.6
A47: 40 Segovia | C47: 63030 | D47: 79308 | E47: 76750 | H47: 183.426 | I47: 325.664 | J47: 214.797
A48: 42 Soria | C48: 87678 | D48: 106884 | E48: 84000 | H48: 338.365 | I48: 404.179 | J48: 260
A49: 47 Valladolid | C49: 121508 | D49: 123664 | E49: 123663 | H49: 548.93 | I49: 699.723 | J49: 493.64
A50: 49 Zamora | C50: 57757 | D50: 70093 | E50: 60744 | H50: 206.565 | I50: 304.578 | J50: 223.814
A51: CASTILLA Y LEÓN | C51: 771199 | D51: 870914 | E51: 816205 | F51: 93.71820869 | H51: 3334.712 | I51: 4190.994 | J51: 3050.086 | K51: 72.77715024
A53: 28 MADRID | C53: 19860 | D53: 19482 | E53: 20427 | F53: 104.8506314 | H53: 61.048 | I53: 64.676 | J53: 64.295 | K53: 99.41090977
A55: 2 Albacete | C55: 55160 | D55: 55550 | E55: 57190 | H55: 132.479 | I55: 202.493 | J55: 209.472
A56: 13 Ciudad Real | C56: 48790 | D56: 47960 | E56: 47370 | H56: 130.177 | I56: 180.515 | J56: 179.475
A57: 16 Cuenca | C57: 49556 | D57: 60629 | E57: 51255 | H57: 147.125 | I57: 191.72 | J57: 156.15
A58: 19 Guadalajara | C58: 68269 | D58: 67783 | E58: 75347 | H58: 242.268 | I58: 260.995 | J58: 304.361
A59: 45 Toledo | C59: 51630 | D59: 59879 | E59: 59879 | H59: 137.381 | I59: 163.584 | J59: 216.266
A60: CASTILLA-MANCHA | C60: 273405 | D60: 291801 | E60: 291041 | F60: 99.73954853 | H60: 789.43 | I60: 999.307 | J60: 1065.724 | K60: 106.6463059
A62: 3 Alicante | C62: 1180 | D62: 1458 | E62: 1266 | H62: 0.841 | I62: 3.939 | J62: 3.932
A63: 12 Castellón | C63: 715 | D63: 810 | E63: 902 | H63: 0.206 | I63: 1.798 | J63: 2.053
A64: 46 Valencia | C64: 2661 | D64: 2160 | E64: 2562 | H64: 2.035 | I64: 6.319 | J64: 7.5
A65: C. VALENCIANA | C65: 4556 | D65: 4428 | E65: 4730 | F65: 106.8202349 | H65: 3.082 | I65: 12.056 | J65: 13.485 | K65: 111.8530192
A67: 30 R. DE MURCIA | C67: 6850 | D67: 6850 | E67: 8676 | F67: 126.6569343 | H67: 4.525 | I67: 3.9 | J67: 4.066 | K67: 104.2564103
A69: 6 Badajoz | C69: 73517 | D69: 73982 | E69: 70300 | H69: 242.915 | I69: 206.784 | J69: 164.232
A70: 10 Cáceres | C70: 3521 | D70: 3382 | E70: 3500 | H70: 8.347 | I70: 8.132 | J70: 6.592
A71: EXTREMADURA | C71: 77038 | D71: 77364 | E71: 73800 | F71: 95.39320614 | H71: 251.262 | I71: 214.916 | J71: 170.824 | K71: 79.4840775
A73: 4 Almería | C73: 1828 | D73: 1574 | E73: 1580 | H73: 0.099 | I73: 4.048 | J73: 2.39
A74: 11 Cádiz | C74: 10722 | D74: 12216.35 | E74: 12031.14 | H74: 22.313 | I74: 48.864 | J74: 35.356
A75: 14 Córdoba | C75: 23238 | D75: 22720 | E75: 22720 | H75: 87.143 | I75: 68.16 | J75: 68.16
A76: 18 Granada | C76: 7928 | D76: 8357 | E76: 8039.61 | H76: 12.308 | I76: 19.481 | J76: 18.965
A77: 21 Huelva | C77: 4500 | D77: 4380 | E77: 4380 | H77: 16.72 | I77: 16.206 | J77: 16.288
A78: 23 Jaén | C78: 2504 | D78: 2125 | E78: 2132 | H78: 7.714 | I78: 6.075 | J78: 6.096
A79: 29 Málaga | C79: 4772 | D79: 5821 | E79: 5829 | H79: 11.122 | I79: 16.029 | J79: 15.548
A80: 41 Sevilla | C80: 63470 | D80: 63620 | E80: 58000 | H80: 234.984 | I80: 229.187 | J80: 201
A81: ANDALUCÍA | C81: 118962 | D81: 120813.35 | E81: 114711.75 | F81: 94.94956476 | H81: 392.403 | I81: 408.05 | J81: 363.803 | K81: 89.15647592
A83: 35 Palmas (Las) | C83: 89 | D83: 89 | E83: 89 | H83: 0.089 | I83: 0.089 | J83: 0.089
A84: 38 S. C. Tenerife | C84: 137 | D84: 137 | E84: 137 | H84: 0.143 | I84: 0.143 | J84: 0.143
A85: CANARIAS | C85: 226 | D85: 226 | E85: 226 | F85: 100 | H85: 0.232 | I85: 0.232 | J85: 0.232 | K85: 100
A88: ESPAÑA | C88: 1691213 | D88: 1791032.45 | E88: 1738434.61 | F88: 97.06326706 | H88: 6368.889 | I88: 7754.995 | J88: 6486.869 | K88: 83.64762324
A91: (*)Tipo de Superficie de mes/año solicitado

Sheet Cen9eno-SRT
A1: AVANCES DE SUPERFICIE Y PRODUCCIÓN
A2: CENTENO S/R/T | K2: 2026 ABRIL
A3: SUPERFICIE CULTIVADA(*)
A4: PROVINCIAS | B4: SUPERFICIES (HA) | E4: SUPERFICIES (HA) | H4: SUPERFICIES (HA) | L4: PRODUCCIONES (1000 TM) | O4: PRODUCCIONES (1000 TM) | R4: PRODUCCIONES (1000 TM)
A5: Y | B5: SECANO | E5: REGADIO | H5: TOTAL | L5: SECANO | O5: REGADIO | R5: TOTAL
A6: CC-AA | B6: =J6-2 -> 2024 | C6: =J6-1 -> 2025 | D6: =J6 -> 2026 | E6: =J6-2 -> 2024 | F6: =J6-1 -> 2025 | G6: =J6 -> 2026 | H6: =J6-2 -> 2024 | I6: =J6-1 -> 2025 | J6: 2026 | L6: =T6-2 -> 2024 | M6: =T6-1 -> 2025 | N6: =T6 -> 2026 | O6: =T6-2 -> 2024 | P6: =T6-1 -> 2025 | Q6: =T6 -> 2026 | R6: =T6-2 -> 2024 | S6: =T6-1 -> 2025 | T6: 2026
B7: DEFINITIVO | C7: PROVISIONAL | D7: PROVISIONAL | E7: DEFINITIVO | F7: PROVISIONAL | H7: DEFINITIVO | I7: PROVISIONAL | L7: DEFINITIVO | M7: PROVISIONAL | O7: DEFINITIVO | P7: PROVISIONAL | R7: DEFINITIVO | S7: PROVISIONAL
A10: 15 Coruña (La) | B10: 112 | C10: 106.08 | D10: 66.91 | H10: 112 | I10: 106.08 | J10: 66.91 | L10: 0.367 | M10: 0.24 | N10: 0.176 | R10: 0.367 | S10: 0.24 | T10: 0.176
A11: 27 Lugo | B11: 417 | C11: 464.04 | D11: 230.22 | H11: 417 | I11: 464.04 | J11: 230.22 | L11: 1.422 | M11: 1.434 | N11: 0.66 | R11: 1.423 | S11: 1.434 | T11: 0.66
A12: 32 Orense | B12: 3585 | C12: 2950.59 | D12: 2502.73 | H12: 3585 | I12: 2950.59 | J12: 2502.73 | L12: 13.766 | M12: 8.748 | N12: 7.859 | R12: 13.767 | S12: 8.748 | T12: 7.859
A13: 36 Pontevedra | B13: 40 | C13: 15.3 | D13: 21.35 | H13: 40 | I13: 15.3 | J13: 21.35 | L13: 0.176 | M13: 0.058 | N13: 0.053 | R13: 0.176 | S13: 0.058 | T13: 0.053
A14: GALICIA | B14: 4154 | C14: 3536.01 | D14: 2821.21 | H14: 4154 | I14: 3536.01 | J14: 2821.21 | L14: 15.731 | M14: 10.48 | N14: 8.748 | R14: 15.733 | S14: 10.48 | T14: 8.748
A16: 33 P. DE ASTURIAS
A18: 39 CANTABRIA | B18: 30 | C18: 33 | D18: 23 | H18: 30 | I18: 33 | J18: 23 | L18: 0.028 | M18: 0.032 | N18: 0.036 | R18: 0.028 | S18: 0.032 | T18: 0.036
A20: 01 Alava | B20: 271 | C20: 262 | D20: 153 | H20: 271 | I20: 262 | J20: 153 | L20: 1.626 | M20: 1.31 | N20: 0.668 | R20: 1.626 | S20: 1.31 | T20: 0.668
A21: 20 Guipúzcoa
A22: 48 Vizcaya
A23: PAIS VASCO | B23: 271 | C23: 262 | D23: 153 | H23: 271 | I23: 262 | J23: 153 | L23: 1.626 | M23: 1.31 | N23: 0.668 | R23: 1.626 | S23: 1.31 | T23: 0.668
A25: 31 NAVARRA | B25: 159 | C25: 199 | D25: 131 | E25: 33 | F25: 45 | G25: 41 | H25: 192 | I25: 244 | J25: 172 | L25: 0.21 | M25: 0.388 | N25: 0.255 | O25: 0.072 | P25: 0.139 | Q25: 0.126 | R25: 0.282 | S25: 0.527 | T25: 0.381
A27: 26 LA RIOJA | B27: 148 | C27: 119 | D27: 133 | E27: 69 | F27: 10 | G27: 5 | H27: 217 | I27: 129 | J27: 138 | L27: 0.176 | M27: 0.3 | N27: 0.34 | O27: 0.214 | P27: 0.03 | Q27: 0.012 | R27: 0.39 | S27: 0.33 | T27: 0.352
A29: 22 Huesca | B29: 262 | C29: 115.9 | D29: 120 | E29: 40 | F29: 155.8 | G29: 160 | H29: 302 | I29: 271.7 | J29: 280 | L29: 0.339 | M29: 0.424 | N29: 0.3 | O29: 0.129 | P29: 0.653 | Q29: 0.608 | R29: 0.468 | S29: 1.077 | T29: 0.908
A30: 44 Teruel | B30: 3002 | C30: 3629 | D30: 6320 | E30: 165 | F30: 203 | G30: 213 | H30: 3167 | I30: 3832 | J30: 6533 | L30: 2.652 | M30: 8.22 | N30: 12.928 | O30: 0.449 | P30: 0.647 | Q30: 0.611 | R30: 3.101 | S30: 8.867 | T30: 13.539
A31: 50 Zaragoza | B31: 3908 | C31: 2817.71 | D31: 3134.06 | E31: 115 | F31: 63.44 | G31: 70.49 | H31: 4023 | I31: 2881.15 | J31: 3204.55 | L31: 5.745 | M31: 3.316 | N31: 3.689 | O31: 0.494 | P31: 0.243 | Q31: 0.27 | R31: 6.238 | S31: 3.56 | T31: 3.959
A32: ARAGON | B32: 7172 | C32: 6562.61 | D32: 9574.06 | E32: 320 | F32: 422.24 | G32: 443.49 | H32: 7492 | I32: 6984.85 | J32: 10017.55 | L32: 8.736 | M32: 11.96 | N32: 16.917 | O32: 1.072 | P32: 1.543 | Q32: 1.489 | R32: 9.807 | S32: 13.504 | T32: 18.406
A34: 08 Barcelona | B34: 146 | C34: 209 | D34: 61 | F34: 1 | G34: 5 | H34: 146 | I34: 210 | J34: 66 | L34: 0.199 | M34: 0.69 | N34: 0.18 | P34: 0.004 | Q34: 0.02 | R34: 0.199 | S34: 0.694 | T34: 0.2
A35: 17 Girona | B35: 209 | C35: 166 | D35: 744 | E35: 49 | F35: 78 | G35: 231 | H35: 258 | I35: 244 | J35: 975 | L35: 0.561 | M35: 0.364 | N35: 2.009 | O35: 0.186 | P35: 0.255 | Q35: 0.97 | R35: 0.747 | S35: 0.619 | T35: 2.979
A36: 25 Lleida | B36: 375 | C36: 610 | D36: 590 | E36: 270 | F36: 235 | G36: 245 | H36: 645 | I36: 845 | J36: 835 | L36: 0.785 | M36: 1.83 | N36: 1.95 | O36: 1.279 | P36: 1.786 | Q36: 1.5 | R36: 2.064 | S36: 3.616 | T36: 3.45
A37: 43 Tarragona | B37: 38 | C37: 96 | D37: 96 | E37: 11 | F37: 15 | G37: 7 | H37: 49 | I37: 111 | J37: 103 | L37: 0.019 | M37: 0.192 | N37: 0.25 | O37: 0.01 | P37: 0.04 | Q37: 0.02 | R37: 0.029 | S37: 0.232 | T37: 0.27
A38: CATALUÑA | B38: 768 | C38: 1081 | D38: 1491 | E38: 330 | F38: 329 | G38: 488 | H38: 1098 | I38: 1410 | J38: 1979 | L38: 1.564 | M38: 3.076 | N38: 4.389 | O38: 1.475 | P38: 2.085 | Q38: 2.51 | R38: 3.039 | S38: 5.161 | T38: 6.899
A40: 07 BALEARES | B40: 3 | C40: 3 | D40: 10 | H40: 3 | I40: 3 | J40: 10 | L40: 0.002 | M40: 0.003 | N40: 0.009 | R40: 0.002 | S40: 0.003 | T40: 0.009
A42: 05 Avila | B42: 8183 | C42: 8978 | D42: 9878 | E42: 76 | F42: 37 | G42: 40 | H42: 8259 | I42: 9015 | J42: 9918 | L42: 10.139 | M42: 20.156 | N42: 15.805 | O42: 0.187 | P42: 0.147 | Q42: 0.152 | R42: 10.326 | S42: 20.303 | T42: 15.957
A43: 09 Burgos | B43: 3535 | C43: 2927 | D43: 2937 | E43: 322 | F43: 332 | G43: 323 | H43: 3857 | I43: 3259 | J43: 3260 | L43: 11.425 | M43: 10.871 | N43: 8.274 | O43: 1.55 | P43: 1.583 | Q43: 1.542 | R43: 12.975 | S43: 12.454 | T43: 9.816
A44: 24 León | B44: 8647 | C44: 8839 | D44: 9000 | E44: 1376 | F44: 1270 | G44: 1000 | H44: 10023 | I44: 10109 | J44: 10000 | L44: 23.347 | M44: 24.042 | N44: 18.9 | O44: 4.266 | P44: 4.115 | Q44: 3.1 | R44: 27.613 | S44: 28.157 | T44: 22
A45: 34 Palencia | B45: 14049 | C45: 11285 | D45: 10970 | E45: 532 | F45: 609 | G45: 585 | H45: 14581 | I45: 11894 | J45: 11555 | L45: 42.793 | M45: 25.278 | N45: 27.941 | O45: 2.169 | P45: 1.885 | Q45: 1.571 | R45: 44.962 | S45: 27.163 | T45: 29.512
A46: 37 Salamanca | B46: 4444 | C46: 5094 | D46: 4000 | E46: 257 | F46: 361 | G46: 250 | H46: 4701 | I46: 5455 | J46: 4250 | L46: 11.554 | M46: 15.282 | N46: 10 | O46: 0.977 | P46: 1.372 | Q46: 0.95 | R46: 12.531 | S46: 16.654 | T46: 10.95
A47: 40 Segovia | B47: 5751 | C47: 8616 | D47: 8500 | E47: 361 | F47: 357 | G47: 500 | H47: 6112 | I47: 8973 | J47: 9000 | L47: 8.627 | M47: 29.829 | N47: 18.904 | O47: 1.372 | P47: 1.607 | Q47: 1.75 | R47: 9.999 | S47: 31.436 | T47: 20.654
A48: 42 Soria | B48: 11502 | C48: 9505 | D48: 9000 | E48: 221 | F48: 187 | G48: 150 | H48: 11723 | I48: 9692 | J48: 9150 | L48: 23.004 | M48: 23.763 | N48: 20.7 | O48: 0.774 | P48: 0.655 | Q48: 0.57 | R48: 23.778 | S48: 24.418 | T48: 21.27
A49: 47 Valladolid | B49: 6126 | C49: 5953 | D49: 5953 | E49: 1033 | F49: 1011 | G49: 1011 | H49: 7159 | I49: 6964 | J49: 6964 | L49: 16.902 | M49: 20.02 | N49: 13.126 | O49: 4.713 | P49: 4.7 | Q49: 4.348 | R49: 21.615 | S49: 24.72 | T49: 17.474
A50: 49 Zamora | B50: 2359 | C50: 5964 | D50: 2966 | E50: 481 | F50: 367 | G50: 330 | H50: 2840 | I50: 6331 | J50: 3296 | L50: 5.499 | M50: 12.328 | N50: 5.102 | O50: 1.84 | P50: 1.288 | Q50: 0.964 | R50: 7.339 | S50: 13.616 | T50: 6.066
A51: CASTILLA Y LEON | B51: 64596 | C51: 67161 | D51: 63204 | E51: 4659 | F51: 4531 | G51: 4189 | H51: 69255 | I51: 71692 | J51: 67393 | L51: 153.29 | M51: 181.569 | N51: 138.752 | O51: 17.848 | P51: 17.352 | Q51: 14.947 | R51: 171.138 | S51: 198.921 | T51: 153.699
A53: 28 MADRID | B53: 463 | C53: 726 | D53: 700 | E53: 28 | G53: 27 | H53: 491 | I53: 726 | J53: 727 | L53: 0.561 | M53: 0.82 | N53: 0.857 | O53: 0.091 | Q53: 0.093 | R53: 0.653 | S53: 0.82 | T53: 0.95
A55: 02 Albacete | B55: 990 | C55: 1020 | D55: 1100 | E55: 37 | F55: 92 | G55: 90 | H55: 1027 | I55: 1112 | J55: 1190 | L55: 0.751 | M55: 1.428 | N55: 1.65 | O55: 0.189 | P55: 0.483 | Q55: 0.477 | R55: 0.94 | S55: 1.911 | T55: 2.127
A56: 13 Ciudad Real | B56: 1259 | C56: 1100 | D56: 1250 | E56: 166 | F56: 100 | G56: 150 | H56: 1425 | I56: 1200 | J56: 1400 | L56: 2.014 | M56: 1.87 | N56: 2.125 | O56: 0.481 | P56: 0.3 | Q56: 0.45 | R56: 2.495 | S56: 2.17 | T56: 2.575
A57: 16 Cuenca | B57: 406 | C57: 358 | D57: 470 | E57: 17 | F57: 23 | G57: 24 | H57: 423 | I57: 381 | J57: 494 | L57: 0.95 | M57: 0.896 | N57: 1.128 | O57: 0.065 | P57: 0.1 | Q57: 0.1 | R57: 1.015 | S57: 0.996 | T57: 1.228
A58: 19 Guadalajara | B58: 2108 | C58: 2108 | D58: 1740 | E58: 15 | F58: 15 | G58: 4 | H58: 2123 | I58: 2123 | J58: 1744 | L58: 5.902 | M58: 5.273 | N58: 4.872 | O58: 0.053 | P58: 0.057 | Q58: 0.015 | R58: 5.955 | S58: 5.33 | T58: 4.887
A59: 45 Toledo | B59: 6810 | C59: 5837 | D59: 5837 | E59: 122 | F59: 110 | G59: 110 | H59: 6932 | I59: 5947 | J59: 5947 | L59: 8.853 | M59: 11.267 | N59: 16.927 | O59: 0.403 | P59: 0.363 | Q59: 0.363 | R59: 9.256 | S59: 11.63 | T59: 17.29
A60: CASTILLA-MANCHA | B60: 11573 | C60: 10423 | D60: 10397 | E60: 357 | F60: 340 | G60: 378 | H60: 11930 | I60: 10763 | J60: 10775 | L60: 18.47 | M60: 20.734 | N60: 26.702 | O60: 1.191 | P60: 1.303 | Q60: 1.405 | R60: 19.661 | S60: 22.037 | T60: 28.107
A62: 03 Alicante | B62: 11 | C62: 10 | D62: 8 | E62: 2 | F62: 2 | G62: 2 | H62: 13 | I62: 12 | J62: 10 | L62: 0.001 | M62: 0.007 | N62: 0.007 | O62: 0.003 | P62: 0.003 | Q62: 0.003 | R62: 0.004 | S62: 0.01 | T62: 0.011
A63: 12 Castellón | B63: 290 | C63: 363 | D63: 363 | H63: 290 | I63: 363 | J63: 363 | L63: 0.036 | M63: 0.454 | N63: 0.454 | R63: 0.036 | S63: 0.454 | T63: 0.454
A64: 46 Valencia | B64: 56 | C64: 44 | D64: 49 | E64: 1 | F64: 36 | G64: 40 | H64: 57 | I64: 80 | J64: 89 | L64: 0.045 | M64: 0.109 | N64: 0.121 | O64: 0.005 | P64: 0.148 | Q64: 0.164 | R64: 0.05 | S64: 0.257 | T64: 0.285
A65: C. VALENCIANA | B65: 357 | C65: 417 | D65: 420 | E65: 3 | F65: 38 | G65: 42 | H65: 360 | I65: 455 | J65: 462 | L65: 0.082 | M65: 0.57 | N65: 0.582 | O65: 0.008 | P65: 0.151 | Q65: 0.167 | R65: 0.09 | S65: 0.721 | T65: 0.75
A67: 30 R. DE MURCIA | B67: 51 | C67: 51 | D67: 39 | E67: 1 | F67: 1 | G67: 1 | H67: 52 | I67: 52 | J67: 40 | L67: 0.046 | M67: 0.049 | N67: 0.056 | O67: 0.002 | P67: 0.001 | Q67: 0.001 | R67: 0.048 | S67: 0.05 | T67: 0.057
A69: 06 Badajoz | B69: 33 | C69: 33 | D69: 38 | E69: 13 | G69: 10 | H69: 46 | I69: 33 | J69: 48 | L69: 0.042 | M69: 0.04 | N69: 0.046 | O69: 0.022 | Q69: 0.016 | R69: 0.064 | S69: 0.04 | T69: 0.062
A70: 10 Cáceres | B70: 26 | C70: 13 | D70: 30 | E70: 21 | F70: 32 | G70: 20 | H70: 47 | I70: 45 | J70: 50 | L70: 0.031 | M70: 0.012 | N70: 0.035 | O70: 0.032 | P70: 0.038 | Q70: 0.03 | R70: 0.063 | S70: 0.05 | T70: 0.065
A71: EXTREMADURA | B71: 59 | C71: 46 | D71: 68 | E71: 34 | F71: 32 | G71: 30 | H71: 93 | I71: 78 | J71: 98 | L71: 0.073 | M71: 0.052 | N71: 0.081 | O71: 0.054 | P71: 0.038 | Q71: 0.046 | R71: 0.127 | S71: 0.09 | T71: 0.127
A73: 04 Almería | B73: 138 | C73: 117 | D73: 120 | E73: 1 | H73: 139 | I73: 117 | J73: 120 | M73: 0.295 | N73: 0.18 | S73: 0.295 | T73: 0.18
A74: 11 Cádiz | B74: 5 | C74: 28.23 | D74: 28.23 | H74: 5 | I74: 28.23 | J74: 28.23 | L74: 0.01 | M74: 0.011 | N74: 0.056 | R74: 0.01 | S74: 0.011 | T74: 0.056
A75: 14 Córdoba | B75: 265 | C75: 292 | D75: 292 | F75: 13 | G75: 13 | H75: 265 | I75: 305 | J75: 305 | L75: 0.53 | M75: 0.73 | N75: 0.73 | P75: 0.033 | Q75: 0.032 | R75: 0.53 | S75: 0.763 | T75: 0.762
A76: 18 Granada | B76: 252 | C76: 302 | D76: 296.4 | E76: 7 | F76: 8 | G76: 5 | H76: 259 | I76: 310 | J76: 301.4 | L76: 0.036 | M76: 0.57 | N76: 0.234 | O76: 0.016 | P76: 0.02 | Q76: 0.012 | R76: 0.052 | S76: 0.59 | T76: 0.246
A77: 21 Huelva | B77: 2 | C77: 2 | D77: 2 | H77: 2 | I77: 2 | J77: 2 | L77: 0.003 | M77: 0.003 | N77: 0.003 | R77: 0.003 | S77: 0.003 | T77: 0.003
A78: 23 Jaén
A79: 29 Málaga | C79: 1 | D79: 1 | I79: 1 | J79: 1 | M79: 0.003 | N79: 0.003 | S79: 0.003 | T79: 0.003
A80: 41 Sevilla | B80: 11 | C80: 53 | D80: 53 | E80: 2 | F80: 7 | G80: 7 | H80: 13 | I80: 60 | J80: 60 | L80: 0.029 | M80: 0.138 | N80: 0.138 | O80: 0.006 | P80: 0.022 | Q80: 0.021 | R80: 0.035 | S80: 0.16 | T80: 0.159
A81: ANDALUCIA | B81: 673 | C81: 795.23 | D81: 792.63 | E81: 10 | F81: 28 | G81: 25 | H81: 683 | I81: 823.23 | J81: 817.63 | L81: 0.608 | M81: 1.75 | N81: 1.344 | O81: 0.022 | P81: 0.075 | Q81: 0.065 | R81: 0.63 | S81: 1.825 | T81: 1.409
A83: 35 Palmas (Las) | B83: 16 | C83: 16 | D83: 16 | E83: 1 | F83: 1 | G83: 1 | H83: 17 | I83: 17 | J83: 17 | L83: 0.009 | M83: 0.009 | N83: 0.009 | O83: 0.003 | P83: 0.003 | Q83: 0.003 | R83: 0.012 | S83: 0.012 | T83: 0.012
A84: 38 S. C. Tenerife | B84: 63 | E84: 2 | H84: 65 | L84: 0.041 | O84: 0.002 | R84: 0.043
A85: CANARIAS | B85: 79 | C85: 16 | D85: 16 | E85: 3 | F85: 1 | G85: 1 | H85: 82 | I85: 17 | J85: 17 | L85: 0.05 | M85: 0.009 | N85: 0.009 | O85: 0.005 | P85: 0.003 | Q85: 0.003 | R85: 0.055 | S85: 0.012 | T85: 0.012
A88: ESPAÑA | B88: 181112 | C88: 91430.85 | D88: 89972.9 | E88: 5847 | F88: 5777.24 | G88: 5670.49 | H88: 96403 | I88: 97208.09 | J88: 95643.39 | L88: 201.253 | M88: 233.102 | N88: 199.745 | O88: 22.054 | P88: 22.72 | Q88: 20.864 | R88: 223.309 | S88: 255.823 | T88: 220.61
B96: 221 | C96: 231 | E96: 221 | F96: 231 | H96: 221 | I96: 231

Sheet Cen9eno
A1: AVANCES DE SUPERFICIE Y PRODUCCIÓN
A2: CENTENO | J2: 2026 ABRIL
A3: SUPERFICIE CULTIVADA(*)
A4: PROVINCIAS | C4: SUPERFICIES (HA) | H4: PRODUCCIONES (1000 TM)
A5: Y
A6: CC-AA | C6: =E6-2 -> 2024 | D6: =E6-1 -> 2025 | E6: 2026 | F6: =E6 -> 2026 | H6: =J6-2 -> 2024 | I6: =J6-1 -> 2025 | J6: 2026 | K6: =J6 -> 2026
C7: DEFINITIVO | D7: PROVISIONAL | H7: DEFINITIVO | I7: PROVISIONAL
F8: =CONCATENATE(D6,"=100") -> 2025=100 | K8: =CONCATENATE(I6,"=100") -> 2025=100
A10: 15 A Coruña | C10: 112 | D10: 106.08 | E10: 66.91 | H10: 0.367 | I10: 0.24 | J10: 0.176
A11: 27 Lugo | C11: 417 | D11: 464.04 | E11: 230.22 | H11: 1.423 | I11: 1.434 | J11: 0.66
A12: 32 Ourense | C12: 3585 | D12: 2950.59 | E12: 2502.73 | H12: 13.767 | I12: 8.748 | J12: 7.859
A13: 36 Pontevedra | C13: 40 | D13: 15.3 | E13: 21.35 | H13: 0.176 | I13: 0.058 | J13: 0.053
A14: GALICIA | C14: 4154 | D14: 3536.01 | E14: 2821.21 | F14: 79.78512504 | H14: 15.733 | I14: 10.48 | J14: 8.748 | K14: 83.47328244
A16: 33 P. DE ASTURIAS
A18: 39 CANTABRIA | C18: 30 | D18: 33 | E18: 23 | F18: 69.6969697 | H18: 0.028 | I18: 0.032 | J18: 0.036 | K18: 112.5
A20: 1 Álava | C20: 271 | D20: 262 | E20: 153 | H20: 1.626 | I20: 1.31 | J20: 0.668
A21: 20 Guipúzcoa
A22: 48 Vizcaya
A23: PAIS VASCO | C23: 271 | D23: 262 | E23: 153 | F23: 58.39694656 | H23: 1.626 | I23: 1.31 | J23: 0.668 | K23: 50.99236641
A25: 31 NAVARRA | C25: 192 | D25: 244 | E25: 172 | F25: 70.49180328 | H25: 0.282 | I25: 0.527 | J25: 0.381 | K25: 72.29601518
A27: 26 LA RIOJA | C27: 217 | D27: 129 | E27: 138 | F27: 106.9767442 | H27: 0.39 | I27: 0.33 | J27: 0.352 | K27: 106.6666667
A29: 22 Huesca | C29: 302 | D29: 271.7 | E29: 280 | H29: 0.468 | I29: 1.077 | J29: 0.908
A30: 44 Teruel | C30: 3167 | D30: 3832 | E30: 6533 | H30: 3.101 | I30: 8.867 | J30: 13.539
A31: 50 Zaragoza | C31: 4023 | D31: 2881.15 | E31: 3204.55 | H31: 6.238 | I31: 3.56 | J31: 3.959
A32: ARAGÓN | C32: 7492 | D32: 6984.85 | E32: 10017.55 | F32: 143.4182552 | H32: 9.807 | I32: 13.504 | J32: 18.406 | K32: 136.3003555
A34: 8 Barcelona | C34: 146 | D34: 210 | E34: 66 | H34: 0.199 | I34: 0.694 | J34: 0.2
A35: 17 Girona | C35: 258 | D35: 244 | E35: 975 | H35: 0.747 | I35: 0.619 | J35: 2.979
A36: 25 Lleida | C36: 645 | D36: 845 | E36: 835 | H36: 2.064 | I36: 3.616 | J36: 3.45
A37: 43 Tarragona | C37: 49 | D37: 111 | E37: 103 | H37: 0.029 | I37: 0.232 | J37: 0.27
A38: CATALUÑA | C38: 1098 | D38: 1410 | E38: 1979 | F38: 140.3546099 | H38: 3.039 | I38: 5.161 | J38: 6.899 | K38: 133.6756443
A40: 7 BALEARES | C40: 3 | D40: 3 | E40: 10 | F40: 333.3333333 | H40: 0.002 | I40: 0.003 | J40: 0.009 | K40: 300
A42: 5 Ávila | C42: 8259 | D42: 9015 | E42: 9918 | H42: 10.326 | I42: 20.303 | J42: 15.957
A43: 9 Burgos | C43: 3857 | D43: 3259 | E43: 3260 | H43: 12.975 | I43: 12.454 | J43: 9.816
A44: 24 León | C44: 10023 | D44: 10109 | E44: 10000 | H44: 27.613 | I44: 28.157 | J44: 22
A45: 34 Palencia | C45: 14581 | D45: 11894 | E45: 11555 | H45: 44.962 | I45: 27.163 | J45: 29.512
A46: 37 Salamanca | C46: 4701 | D46: 5455 | E46: 4250 | H46: 12.531 | I46: 16.654 | J46: 10.95
A47: 40 Segovia | C47: 6112 | D47: 8973 | E47: 9000 | H47: 9.999 | I47: 31.436 | J47: 20.654
A48: 42 Soria | C48: 11723 | D48: 9692 | E48: 9150 | H48: 23.778 | I48: 24.418 | J48: 21.27
A49: 47 Valladolid | C49: 7159 | D49: 6964 | E49: 6964 | H49: 21.615 | I49: 24.72 | J49: 17.474
A50: 49 Zamora | C50: 2840 | D50: 6331 | E50: 3296 | H50: 7.339 | I50: 13.616 | J50: 6.066
A51: CASTILLA Y LEÓN | C51: 69255 | D51: 71692 | E51: 67393 | F51: 94.00351504 | H51: 171.138 | I51: 198.921 | J51: 153.699 | K51: 77.26635197
A53: 28 MADRID | C53: 491 | D53: 726 | E53: 727 | F53: 100.137741 | H53: 0.653 | I53: 0.82 | J53: 0.95 | K53: 115.8536585
A55: 2 Albacete | C55: 1027 | D55: 1112 | E55: 1190 | H55: 0.94 | I55: 1.911 | J55: 2.127
A56: 13 Ciudad Real | C56: 1425 | D56: 1200 | E56: 1400 | H56: 2.495 | I56: 2.17 | J56: 2.575
A57: 16 Cuenca | C57: 423 | D57: 381 | E57: 494 | H57: 1.015 | I57: 0.996 | J57: 1.228
A58: 19 Guadalajara | C58: 2123 | D58: 2123 | E58: 1744 | H58: 5.955 | I58: 5.33 | J58: 4.887
A59: 45 Toledo | C59: 6932 | D59: 5947 | E59: 5947 | H59: 9.256 | I59: 11.63 | J59: 17.29
A60: CASTILLA-MANCHA | C60: 11930 | D60: 10763 | E60: 10775 | F60: 100.1114931 | H60: 19.661 | I60: 22.037 | J60: 28.107 | K60: 127.5445841
A62: 3 Alicante | C62: 13 | D62: 12 | E62: 10 | H62: 0.004 | I62: 0.01 | J62: 0.011
A63: 12 Castellón | C63: 290 | D63: 363 | E63: 363 | H63: 0.036 | I63: 0.454 | J63: 0.454
A64: 46 Valencia | C64: 57 | D64: 80 | E64: 89 | H64: 0.05 | I64: 0.257 | J64: 0.285
A65: C. VALENCIANA | C65: 360 | D65: 455 | E65: 462 | F65: 101.5384615 | H65: 0.09 | I65: 0.721 | J65: 0.75 | K65: 104.0221914
A67: 30 R. DE MURCIA | C67: 52 | D67: 52 | E67: 40 | F67: 76.92307692 | H67: 0.048 | I67: 0.05 | J67: 0.057 | K67: 114
A69: 6 Badajoz | C69: 46 | D69: 33 | E69: 48 | H69: 0.064 | I69: 0.04 | J69: 0.062
A70: 10 Cáceres | C70: 47 | D70: 45 | E70: 50 | H70: 0.063 | I70: 0.05 | J70: 0.065
A71: EXTREMADURA | C71: 93 | D71: 78 | E71: 98 | F71: 125.6410256 | H71: 0.127 | I71: 0.09 | J71: 0.127 | K71: 141.1111111
A73: 4 Almería | C73: 139 | D73: 117 | E73: 120 | I73: 0.295 | J73: 0.18
A74: 11 Cádiz | C74: 5 | D74: 28.23 | E74: 28.23 | H74: 0.01 | I74: 0.011 | J74: 0.056
A75: 14 Córdoba | C75: 265 | D75: 305 | E75: 305 | H75: 0.53 | I75: 0.763 | J75: 0.762
A76: 18 Granada | C76: 259 | D76: 310 | E76: 301.4 | H76: 0.052 | I76: 0.59 | J76: 0.246
A77: 21 Huelva | C77: 2 | D77: 2 | E77: 2 | H77: 0.003 | I77: 0.003 | J77: 0.003
A78: 23 Jaén
A79: 29 Málaga | D79: 1 | E79: 1 | I79: 0.003 | J79: 0.003
A80: 41 Sevilla | C80: 13 | D80: 60 | E80: 60 | H80: 0.035 | I80: 0.16 | J80: 0.159
A81: ANDALUCÍA | C81: 683 | D81: 823.23 | E81: 817.63 | F81: 99.31975268 | H81: 0.63 | I81: 1.825 | J81: 1.409 | K81: 77.20547945
A83: 35 Palmas (Las) | C83: 17 | D83: 17 | E83: 17 | H83: 0.012 | I83: 0.012 | J83: 0.012
A84: 38 S. C. Tenerife | C84: 65 | H84: 0.043
A85: CANARIAS | C85: 82 | D85: 17 | E85: 17 | F85: 100 | H85: 0.055 | I85: 0.012 | J85: 0.012 | K85: 100
A88: ESPAÑA | C88: 96403 | D88: 97208.09 | E88: 95643.39 | F88: 98.39036031 | H88: 223.309 | I88: 255.823 | J88: 220.61 | K88: 86.23540495
A91: (*)Tipo de Superficie de mes/año solicitado

Sheet Tra10no)-SRT
A1: AVANCES DE SUPERFICIE Y PRODUCCIÓN
A2: TRANQUILLÓN (MEZCLA DE TRIGO Y CENTENO) S/R/T | K2: 2026 ABRIL
A3: SUPERFICIE CULTIVADA(*)
A4: PROVINCIAS | B4: SUPERFICIES (HA) | E4: SUPERFICIES (HA) | H4: SUPERFICIES (HA) | L4: PRODUCCIONES (1000 TM) | O4: PRODUCCIONES (1000 TM) | R4: PRODUCCIONES (1000 TM)
A5: Y | B5: SECANO | E5: REGADIO | H5: TOTAL | L5: SECANO | O5: REGADIO | R5: TOTAL
A6: CC-AA | B6: =J6-2 -> 2024 | C6: =J6-1 -> 2025 | D6: =J6 -> 2026 | E6: =J6-2 -> 2024 | F6: =J6-1 -> 2025 | G6: =J6 -> 2026 | H6: =J6-2 -> 2024 | I6: =J6-1 -> 2025 | J6: 2026 | L6: =T6-2 -> 2024 | M6: =T6-1 -> 2025 | N6: =T6 -> 2026 | O6: =T6-2 -> 2024 | P6: =T6-1 -> 2025 | Q6: =T6 -> 2026 | R6: =T6-2 -> 2024 | S6: =T6-1 -> 2025 | T6: 2026
B7: DEFINITIVO | C7: PROVISIONAL | D7: PROVISIONAL | E7: DEFINITIVO | F7: PROVISIONAL | H7: DEFINITIVO | I7: PROVISIONAL | L7: DEFINITIVO | M7: PROVISIONAL | O7: DEFINITIVO | P7: PROVISIONAL | R7: DEFINITIVO | S7: PROVISIONAL
A10: 15 Coruña (La)
A11: 27 Lugo | C11: 5.04 | I11: 5.04 | M11: 0.015 | S11: 0.015
A12: 32 Orense
A13: 36 Pontevedra
A14: GALICIA | C14: 5.04 | I14: 5.04 | M14: 0.015 | S14: 0.015
A16: 33 P. DE ASTURIAS
A18: 39 CANTABRIA
A20: 01 Alava
A21: 20 Guipúzcoa
A22: 48 Vizcaya
A23: PAIS VASCO
A25: 31 NAVARRA
A27: 26 LA RIOJA
A29: 22 Huesca | E29: 10 | H29: 10 | O29: 0.028 | R29: 0.028
A30: 44 Teruel | B30: 5 | C30: 19 | D30: 19 | H30: 5 | I30: 19 | J30: 19 | L30: 0.005 | M30: 0.049 | N30: 0.049 | R30: 0.005 | S30: 0.049 | T30: 0.049
A31: 50 Zaragoza
A32: ARAGON | B32: 5 | C32: 19 | D32: 19 | E32: 10 | H32: 15 | I32: 19 | J32: 19 | L32: 0.005 | M32: 0.049 | N32: 0.049 | O32: 0.028 | R32: 0.033 | S32: 0.049 | T32: 0.049
A34: 08 Barcelona | C34: 1 | D34: 5 | I34: 1 | J34: 5 | M34: 0.001 | N34: 0.02 | S34: 0.001 | T34: 0.02
A35: 17 Girona | B35: 55 | E35: 14 | H35: 69 | L35: 0.165 | O35: 0.049 | R35: 0.214
A36: 25 Lleida
A37: 43 Tarragona
A38: CATALUÑA | B38: 55 | C38: 1 | D38: 5 | E38: 14 | H38: 69 | I38: 1 | J38: 5 | L38: 0.165 | M38: 0.001 | N38: 0.02 | O38: 0.049 | R38: 0.214 | S38: 0.001 | T38: 0.02
A40: 07 BALEARES | B40: 3 | C40: 2 | H40: 3 | I40: 2 | L40: 0.003 | M40: 0.002 | R40: 0.003 | S40: 0.002
A42: 05 Avila
A43: 09 Burgos
A44: 24 León
A45: 34 Palencia
A46: 37 Salamanca
A47: 40 Segovia
A48: 42 Soria
A49: 47 Valladolid
A50: 49 Zamora
A51: CASTILLA Y LEON
A53: 28 MADRID | B53: 16 | C53: 6 | D53: 6 | H53: 16 | I53: 6 | J53: 6 | L53: 0.021 | M53: 0.008 | N53: 0.01 | R53: 0.021 | S53: 0.008 | T53: 0.01
A55: 02 Albacete | B55: 294 | C55: 315 | D55: 300 | E55: 70 | H55: 364 | I55: 315 | J55: 300 | L55: 0.193 | M55: 0.394 | N55: 0.42 | O55: 0.336 | R55: 0.529 | S55: 0.394 | T55: 0.42
A56: 13 Ciudad Real | B56: 5469 | C56: 5223 | D56: 5750 | E56: 415 | F56: 353 | G56: 380 | H56: 5884 | I56: 5576 | J56: 6130 | L56: 10.938 | M56: 11.491 | N56: 12.65 | O56: 1.919 | P56: 1.659 | Q56: 1.786 | R56: 12.857 | S56: 13.15 | T56: 14.436
A57: 16 Cuenca | B57: 22 | C57: 17 | D57: 34 | H57: 22 | I57: 17 | J57: 34 | L57: 0.053 | M57: 0.042 | N57: 0.08 | R57: 0.053 | S57: 0.042 | T57: 0.08
A58: 19 Guadalajara | B58: 2 | C58: 2 | H58: 2 | I58: 2 | L58: 0.002 | M58: 0.006 | R58: 0.002 | S58: 0.006
A59: 45 Toledo | B59: 921 | C59: 760 | D59: 760 | E59: 35 | F59: 46 | G59: 46 | H59: 956 | I59: 806 | J59: 806 | L59: 1.013 | M59: 2.204 | N59: 2.204 | O59: 0.126 | P59: 0.166 | Q59: 0.166 | R59: 1.139 | S59: 2.37 | T59: 2.37
A60: CASTILLA-MANCHA | B60: 6708 | C60: 6317 | D60: 6844 | E60: 520 | F60: 399 | G60: 426 | H60: 7228 | I60: 6716 | J60: 7270 | L60: 12.199 | M60: 14.137 | N60: 15.354 | O60: 2.381 | P60: 1.825 | Q60: 1.952 | R60: 14.58 | S60: 15.962 | T60: 17.306
A62: 03 Alicante
A63: 12 Castellón
A64: 46 Valencia
A65: C. VALENCIANA
A67: 30 R. DE MURCIA
A69: 06 Badajoz | B69: 3482 | C69: 3679 | D69: 3468 | E69: 55 | F69: 53 | G69: 48 | H69: 3537 | I69: 3732 | J69: 3516 | L69: 7.128 | M69: 7.358 | N69: 5.618 | O69: 0.146 | P69: 0.138 | Q69: 0.102 | R69: 7.274 | S69: 7.496 | T69: 5.72
A70: 10 Cáceres | B70: 77 | C70: 135 | D70: 150 | E70: 44 | F70: 46 | G70: 50 | H70: 121 | I70: 181 | J70: 200 | L70: 0.121 | M70: 0.203 | N70: 0.225 | O70: 0.09 | P70: 0.092 | Q70: 0.1 | R70: 0.211 | S70: 0.295 | T70: 0.325
A71: EXTREMADURA | B71: 3559 | C71: 3814 | D71: 3618 | E71: 99 | F71: 99 | G71: 98 | H71: 3658 | I71: 3913 | J71: 3716 | L71: 7.249 | M71: 7.561 | N71: 5.843 | O71: 0.236 | P71: 0.23 | Q71: 0.202 | R71: 7.485 | S71: 7.791 | T71: 6.045
A73: 04 Almería
A74: 11 Cádiz | B74: 2636 | C74: 2546.95 | D74: 1642.35 | E74: 233 | F74: 213.89 | G74: 212.07 | H74: 2869 | I74: 2760.84 | J74: 1854.42 | L74: 2.636 | M74: 2.547 | N74: 1.642 | O74: 0.303 | P74: 0.278 | Q74: 0.276 | R74: 2.939 | S74: 2.825 | T74: 1.918
A75: 14 Córdoba | B75: 21928 | C75: 18300 | D75: 18300 | E75: 552 | F75: 600 | G75: 600 | H75: 22480 | I75: 18900 | J75: 18900 | L75: 76.748 | M75: 54.9 | N75: 64.05 | O75: 1.932 | P75: 1.8 | Q75: 2.1 | R75: 78.68 | S75: 56.7 | T75: 66.15
A76: 18 Granada | C76: 28 | D76: 27.3 | I76: 28 | J76: 27.3 | M76: 0.042 | N76: 0.022 | S76: 0.042 | T76: 0.022
A77: 21 Huelva | B77: 130 | C77: 140 | D77: 140 | H77: 130 | I77: 140 | J77: 140 | L77: 0.436 | M77: 0.476 | N77: 0.48 | R77: 0.436 | S77: 0.476 | T77: 0.48
A78: 23 Jaén | B78: 71 | C78: 176 | D78: 176 | H78: 71 | I78: 176 | J78: 176 | L78: 0.128 | M78: 0.317 | N78: 0.324 | R78: 0.128 | S78: 0.317 | T78: 0.324
A79: 29 Málaga | B79: 50 | C79: 73 | D79: 64 | E79: 13 | F79: 21 | G79: 20 | H79: 63 | I79: 94 | J79: 84 | L79: 0.1 | M79: 0.161 | N79: 0.154 | O79: 0.046 | P79: 0.074 | Q79: 0.07 | R79: 0.146 | S79: 0.235 | T79: 0.224
A80: 41 Sevilla | B80: 830 | C80: 225 | D80: 225 | E80: 60 | F80: 30 | G80: 30 | H80: 890 | I80: 255 | J80: 255 | L80: 2.988 | M80: 0.675 | N80: 0.675 | O80: 0.234 | P80: 0.102 | Q80: 0.09 | R80: 3.222 | S80: 0.777 | T80: 0.765
A81: ANDALUCIA | B81: 25645 | C81: 21488.95 | D81: 20574.65 | E81: 858 | F81: 864.89 | G81: 862.07 | H81: 26503 | I81: 22353.84 | J81: 21436.72 | L81: 83.036 | M81: 59.118 | N81: 67.347 | O81: 2.515 | P81: 2.254 | Q81: 2.536 | R81: 85.551 | S81: 61.372 | T81: 69.883
A83: 35 Palmas (Las) | B83: 1 | C83: 1 | D83: 1 | H83: 1 | I83: 1 | J83: 1 | L83: 0.001 | M83: 0.001 | N83: 0.001 | R83: 0.001 | S83: 0.001 | T83: 0.001
A84: 38 S. C. Tenerife | B84: 1 | H84: 1 | L84: 0.001 | R84: 0.001
A85: CANARIAS | B85: 2 | C85: 1 | D85: 1 | H85: 2 | I85: 1 | J85: 1 | L85: 0.002 | M85: 0.001 | N85: 0.001 | R85: 0.002 | S85: 0.001 | T85: 0.001
A88: ESPAÑA | B88: 71986 | C88: 31653.99 | D88: 31067.65 | E88: 1501 | F88: 1362.89 | G88: 1386.07 | H88: 37494 | I88: 33016.88 | J88: 32453.72 | L88: 102.68 | M88: 80.892 | N88: 88.624 | O88: 5.209 | P88: 4.309 | Q88: 4.69 | R88: 107.889 | S88: 85.201 | T88: 93.314
B96: 221 | C96: 231 | E96: 221 | F96: 231 | H96: 221 | I96: 231

Sheet Tra10no)
A1: AVANCES DE SUPERFICIE Y PRODUCCIÓN
A2: TRANQUILLÓN (MEZCLA DE TRIGO Y CENTENO) | J2: 2026 ABRIL
A3: SUPERFICIE CULTIVADA(*)
A4: PROVINCIAS | C4: SUPERFICIES (HA) | H4: PRODUCCIONES (1000 TM)
A5: Y
A6: CC-AA | C6: =E6-2 -> 2024 | D6: =E6-1 -> 2025 | E6: 2026 | F6: =E6 -> 2026 | H6: =J6-2 -> 2024 | I6: =J6-1 -> 2025 | J6: 2026 | K6: =J6 -> 2026
C7: DEFINITIVO | D7: PROVISIONAL | H7: DEFINITIVO | I7: PROVISIONAL
F8: =CONCATENATE(D6,"=100") -> 2025=100 | K8: =CONCATENATE(I6,"=100") -> 2025=100
A10: 15 A Coruña
A11: 27 Lugo | D11: 5.04 | I11: 0.015
A12: 32 Ourense
A13: 36 Pontevedra
A14: GALICIA | D14: 5.04 | I14: 0.015
A16: 33 P. DE ASTURIAS
A18: 39 CANTABRIA
A20: 1 Álava
A21: 20 Guipúzcoa
A22: 48 Vizcaya
A23: PAIS VASCO
A25: 31 NAVARRA
A27: 26 LA RIOJA
A29: 22 Huesca | C29: 10 | H29: 0.028
A30: 44 Teruel | C30: 5 | D30: 19 | E30: 19 | H30: 0.005 | I30: 0.049 | J30: 0.049
A31: 50 Zaragoza
A32: ARAGÓN | C32: 15 | D32: 19 | E32: 19 | F32: 100 | H32: 0.033 | I32: 0.049 | J32: 0.049 | K32: 100
A34: 8 Barcelona | D34: 1 | E34: 5 | I34: 0.001 | J34: 0.02
A35: 17 Girona | C35: 69 | H35: 0.214
A36: 25 Lleida
A37: 43 Tarragona
A38: CATALUÑA | C38: 69 | D38: 1 | E38: 5 | F38: 500 | H38: 0.214 | I38: 0.001 | J38: 0.02 | K38: 2000
A40: 7 BALEARES | C40: 3 | D40: 2 | H40: 0.003 | I40: 0.002
A42: 5 Ávila
A43: 9 Burgos
A44: 24 León
A45: 34 Palencia
A46: 37 Salamanca
A47: 40 Segovia
A48: 42 Soria
A49: 47 Valladolid
A50: 49 Zamora
A51: CASTILLA Y LEÓN
A53: 28 MADRID | C53: 16 | D53: 6 | E53: 6 | F53: 100 | H53: 0.021 | I53: 0.008 | J53: 0.01 | K53: 125
A55: 2 Albacete | C55: 364 | D55: 315 | E55: 300 | H55: 0.529 | I55: 0.394 | J55: 0.42
A56: 13 Ciudad Real | C56: 5884 | D56: 5576 | E56: 6130 | H56: 12.857 | I56: 13.15 | J56: 14.436
A57: 16 Cuenca | C57: 22 | D57: 17 | E57: 34 | H57: 0.053 | I57: 0.042 | J57: 0.08
A58: 19 Guadalajara | C58: 2 | D58: 2 | H58: 0.002 | I58: 0.006
A59: 45 Toledo | C59: 956 | D59: 806 | E59: 806 | H59: 1.139 | I59: 2.37 | J59: 2.37
A60: CASTILLA-MANCHA | C60: 7228 | D60: 6716 | E60: 7270 | F60: 108.2489577 | H60: 14.58 | I60: 15.962 | J60: 17.306 | K60: 108.4199975
A62: 3 Alicante
A63: 12 Castellón
A64: 46 Valencia
A65: C. VALENCIANA
A67: 30 R. DE MURCIA
A69: 6 Badajoz | C69: 3537 | D69: 3732 | E69: 3516 | H69: 7.274 | I69: 7.496 | J69: 5.72
A70: 10 Cáceres | C70: 121 | D70: 181 | E70: 200 | H70: 0.211 | I70: 0.295 | J70: 0.325
A71: EXTREMADURA | C71: 3658 | D71: 3913 | E71: 3716 | F71: 94.96549962 | H71: 7.485 | I71: 7.791 | J71: 6.045 | K71: 77.58952638
A73: 4 Almería
A74: 11 Cádiz | C74: 2869 | D74: 2760.84 | E74: 1854.42 | H74: 2.939 | I74: 2.825 | J74: 1.918
A75: 14 Córdoba | C75: 22480 | D75: 18900 | E75: 18900 | H75: 78.68 | I75: 56.7 | J75: 66.15
A76: 18 Granada | D76: 28 | E76: 27.3 | I76: 0.042 | J76: 0.022
A77: 21 Huelva | C77: 130 | D77: 140 | E77: 140 | H77: 0.436 | I77: 0.476 | J77: 0.48
A78: 23 Jaén | C78: 71 | D78: 176 | E78: 176 | H78: 0.128 | I78: 0.317 | J78: 0.324
A79: 29 Málaga | C79: 63 | D79: 94 | E79: 84 | H79: 0.146 | I79: 0.235 | J79: 0.224
A80: 41 Sevilla | C80: 890 | D80: 255 | E80: 255 | H80: 3.222 | I80: 0.777 | J80: 0.765
A81: ANDALUCÍA | C81: 26503 | D81: 22353.84 | E81: 21436.72 | F81: 95.89725971 | H81: 85.551 | I81: 61.372 | J81: 69.883 | K81: 113.8678876
A83: 35 Palmas (Las) | C83: 1 | D83: 1 | E83: 1 | H83: 0.001 | I83: 0.001 | J83: 0.001
A84: 38 S. C. Tenerife | C84: 1 | H84: 0.001
A85: CANARIAS | C85: 2 | D85: 1 | E85: 1 | F85: 100 | H85: 0.002 | I85: 0.001 | J85: 0.001 | K85: 100
A88: ESPAÑA | C88: 37494 | D88: 33016.88 | E88: 32453.72 | F88: 98.29432702 | H88: 107.889 | I88: 85.201 | J88: 93.314 | K88: 109.5221887
A91: (*)Tipo de Superficie de mes/año solicitado

Sheet Cen11lón-SRT
A1: AVANCES DE SUPERFICIE Y PRODUCCIÓN
A2: CENTENO Y TRANQUILLÓN S/R/T | K2: 2026 ABRIL
A3: SUPERFICIE CULTIVADA(*)
A4: PROVINCIAS | B4: SUPERFICIES (HA) | E4: SUPERFICIES (HA) | H4: SUPERFICIES (HA) | L4: PRODUCCIONES (1000 TM) | O4: PRODUCCIONES (1000 TM) | R4: PRODUCCIONES (1000 TM)
A5: Y | B5: SECANO | E5: REGADIO | H5: TOTAL | L5: SECANO | O5: REGADIO | R5: TOTAL
A6: CC-AA | B6: =J6-2 -> 2024 | C6: =J6-1 -> 2025 | D6: =J6 -> 2026 | E6: =J6-2 -> 2024 | F6: =J6-1 -> 2025 | G6: =J6 -> 2026 | H6: =J6-2 -> 2024 | I6: =J6-1 -> 2025 | J6: 2026 | L6: =T6-2 -> 2024 | M6: =T6-1 -> 2025 | N6: =T6 -> 2026 | O6: =T6-2 -> 2024 | P6: =T6-1 -> 2025 | Q6: =T6 -> 2026 | R6: =T6-2 -> 2024 | S6: =T6-1 -> 2025 | T6: 2026
B7: DEFINITIVO | C7: PROVISIONAL | D7: PROVISIONAL | E7: DEFINITIVO | F7: PROVISIONAL | H7: DEFINITIVO | I7: PROVISIONAL | L7: DEFINITIVO | M7: PROVISIONAL | O7: DEFINITIVO | P7: PROVISIONAL | R7: DEFINITIVO | S7: PROVISIONAL
A10: 15 Coruña (La) | B10: 112 | C10: 106.08 | D10: 66.91 | H10: 112 | I10: 106.08 | J10: 66.91 | L10: 0.367 | M10: 0.222 | N10: 0.176 | R10: 0.367 | S10: 0.222 | T10: 0.176
A11: 27 Lugo | B11: 417 | C11: 468.72 | D11: 230.22 | H11: 417 | I11: 468.72 | J11: 230.22 | L11: 1.422 | M11: 2.35 | N11: 0.66 | R11: 1.423 | S11: 2.35 | T11: 0.66
A12: 32 Orense | B12: 3585 | C12: 2950.59 | D12: 2502.73 | H12: 3585 | I12: 2950.59 | J12: 2502.73 | L12: 13.766 | M12: 8.748 | N12: 7.859 | R12: 13.767 | S12: 8.748 | T12: 7.859
A13: 36 Pontevedra | B13: 40 | C13: 15.3 | D13: 21.35 | H13: 40 | I13: 15.3 | J13: 21.35 | L13: 0.176 | M13: 0.058 | N13: 0.053 | R13: 0.176 | S13: 0.058 | T13: 0.053
A14: GALICIA | B14: 4154 | C14: 3540.69 | D14: 2821.21 | H14: 4154 | I14: 3540.69 | J14: 2821.21 | L14: 15.731 | M14: 11.378 | N14: 8.748 | R14: 15.733 | S14: 11.378 | T14: 8.748
A16: 33 P. DE ASTURIAS
A18: 39 CANTABRIA | B18: 30 | C18: 33 | D18: 23 | H18: 30 | I18: 33 | J18: 23 | L18: 0.028 | M18: 0.032 | N18: 0.036 | R18: 0.028 | S18: 0.032 | T18: 0.036
A20: 01 Alava | B20: 271 | C20: 262 | D20: 153 | H20: 271 | I20: 262 | J20: 153 | L20: 1.626 | M20: 1.31 | N20: 0.668 | R20: 1.626 | S20: 1.31 | T20: 0.668
A21: 20 Guipúzcoa
A22: 48 Vizcaya
A23: PAIS VASCO | B23: 271 | C23: 262 | D23: 153 | H23: 271 | I23: 262 | J23: 153 | L23: 1.626 | M23: 1.31 | N23: 0.668 | R23: 1.626 | S23: 1.31 | T23: 0.668
A25: 31 NAVARRA | B25: 159 | C25: 199 | D25: 131 | E25: 33 | F25: 45 | G25: 41 | H25: 192 | I25: 244 | J25: 172 | L25: 0.21 | M25: 0.388 | N25: 0.255 | O25: 0.072 | P25: 0.139 | Q25: 0.126 | R25: 0.282 | S25: 0.527 | T25: 0.381
A27: 26 LA RIOJA | B27: 148 | C27: 119 | D27: 133 | E27: 69 | F27: 10 | G27: 5 | H27: 217 | I27: 129 | J27: 138 | L27: 0.176 | M27: 0.3 | N27: 0.34 | O27: 0.214 | P27: 0.03 | Q27: 0.012 | R27: 0.39 | S27: 0.33 | T27: 0.352
A29: 22 Huesca | B29: 262 | C29: 115.9 | D29: 120 | E29: 50 | F29: 155.8 | G29: 160 | H29: 312 | I29: 271.7 | J29: 280 | L29: 0.339 | M29: 0.424 | N29: 0.3 | O29: 0.157 | P29: 0.653 | Q29: 0.608 | R29: 0.496 | S29: 1.077 | T29: 0.908
A30: 44 Teruel | B30: 3007 | C30: 3648 | D30: 6339 | E30: 165 | F30: 203 | G30: 213 | H30: 3172 | I30: 3851 | J30: 6552 | L30: 2.657 | M30: 8.269 | N30: 12.977 | O30: 0.449 | P30: 0.647 | Q30: 0.611 | R30: 3.106 | S30: 8.916 | T30: 13.588
A31: 50 Zaragoza | B31: 3908 | C31: 2817.71 | D31: 3134.06 | E31: 115 | F31: 63.44 | G31: 70.49 | H31: 4023 | I31: 2881.15 | J31: 3204.55 | L31: 5.745 | M31: 3.316 | N31: 3.689 | O31: 0.494 | P31: 0.243 | Q31: 0.27 | R31: 6.238 | S31: 3.56 | T31: 3.959
A32: ARAGON | B32: 7177 | C32: 6581.61 | D32: 9593.06 | E32: 330 | F32: 422.24 | G32: 443.49 | H32: 7507 | I32: 7003.85 | J32: 10036.55 | L32: 8.741 | M32: 12.009 | N32: 16.966 | O32: 1.1 | P32: 1.543 | Q32: 1.489 | R32: 9.84 | S32: 13.553 | T32: 18.455
A34: 08 Barcelona | B34: 146 | C34: 210 | D34: 66 | F34: 1 | G34: 5 | H34: 146 | I34: 211 | J34: 71 | L34: 0.199 | M34: 0.691 | N34: 0.2 | P34: 0.004 | Q34: 0.02 | R34: 0.199 | S34: 0.695 | T34: 0.22
A35: 17 Girona | B35: 264 | C35: 166 | D35: 744 | E35: 63 | F35: 78 | G35: 231 | H35: 327 | I35: 244 | J35: 975 | L35: 0.726 | M35: 0.364 | N35: 2.009 | O35: 0.235 | P35: 0.255 | Q35: 0.97 | R35: 0.961 | S35: 0.619 | T35: 2.979
A36: 25 Lleida | B36: 375 | C36: 610 | D36: 590 | E36: 270 | F36: 235 | G36: 245 | H36: 645 | I36: 845 | J36: 835 | L36: 0.785 | M36: 1.83 | N36: 1.95 | O36: 1.279 | P36: 1.786 | Q36: 1.5 | R36: 2.064 | S36: 3.616 | T36: 3.45
A37: 43 Tarragona | B37: 38 | C37: 96 | D37: 96 | E37: 11 | F37: 15 | G37: 7 | H37: 49 | I37: 111 | J37: 103 | L37: 0.019 | M37: 0.192 | N37: 0.25 | O37: 0.01 | P37: 0.04 | Q37: 0.02 | R37: 0.029 | S37: 0.232 | T37: 0.27
A38: CATALUÑA | B38: 823 | C38: 1082 | D38: 1496 | E38: 344 | F38: 329 | G38: 488 | H38: 1167 | I38: 1411 | J38: 1984 | L38: 1.729 | M38: 3.077 | N38: 4.409 | O38: 1.524 | P38: 2.085 | Q38: 2.51 | R38: 3.253 | S38: 5.162 | T38: 6.919
A40: 07 BALEARES | B40: 6 | C40: 5 | D40: 10 | H40: 6 | I40: 5 | J40: 10 | L40: 0.005 | M40: 0.005 | N40: 0.009 | R40: 0.005 | S40: 0.005 | T40: 0.009
A42: 05 Avila | B42: 8183 | C42: 8978 | D42: 9878 | E42: 76 | F42: 37 | G42: 40 | H42: 8259 | I42: 9015 | J42: 9918 | L42: 10.139 | M42: 20.156 | N42: 15.805 | O42: 0.187 | P42: 0.147 | Q42: 0.152 | R42: 10.326 | S42: 20.303 | T42: 15.957
A43: 09 Burgos | B43: 3535 | C43: 2927 | D43: 2937 | E43: 322 | F43: 332 | G43: 323 | H43: 3857 | I43: 3259 | J43: 3260 | L43: 11.425 | M43: 10.871 | N43: 8.274 | O43: 1.55 | P43: 1.583 | Q43: 1.542 | R43: 12.975 | S43: 12.454 | T43: 9.816
A44: 24 León | B44: 8647 | C44: 8839 | D44: 9000 | E44: 1376 | F44: 1270 | G44: 1000 | H44: 10023 | I44: 10109 | J44: 10000 | L44: 23.347 | M44: 24.042 | N44: 18.9 | O44: 4.266 | P44: 4.115 | Q44: 3.1 | R44: 27.613 | S44: 28.157 | T44: 22
A45: 34 Palencia | B45: 14049 | C45: 11285 | D45: 10970 | E45: 532 | F45: 609 | G45: 585 | H45: 14581 | I45: 11894 | J45: 11555 | L45: 42.793 | M45: 25.278 | N45: 27.941 | O45: 2.169 | P45: 1.885 | Q45: 1.571 | R45: 44.962 | S45: 27.163 | T45: 29.512
A46: 37 Salamanca | B46: 4444 | C46: 5094 | D46: 4000 | E46: 257 | F46: 361 | G46: 250 | H46: 4701 | I46: 5455 | J46: 4250 | L46: 11.554 | M46: 15.282 | N46: 10 | O46: 0.977 | P46: 1.372 | Q46: 0.95 | R46: 12.531 | S46: 16.654 | T46: 10.95
A47: 40 Segovia | B47: 5751 | C47: 8616 | D47: 8500 | E47: 361 | F47: 357 | G47: 500 | H47: 6112 | I47: 8973 | J47: 9000 | L47: 8.627 | M47: 29.829 | N47: 18.904 | O47: 1.372 | P47: 1.607 | Q47: 1.75 | R47: 9.999 | S47: 31.436 | T47: 20.654
A48: 42 Soria | B48: 11502 | C48: 9505 | D48: 9000 | E48: 221 | F48: 187 | G48: 150 | H48: 11723 | I48: 9692 | J48: 9150 | L48: 23.004 | M48: 23.763 | N48: 20.7 | O48: 0.774 | P48: 0.655 | Q48: 0.57 | R48: 23.778 | S48: 24.418 | T48: 21.27
A49: 47 Valladolid | B49: 6126 | C49: 5953 | D49: 5953 | E49: 1033 | F49: 1011 | G49: 1011 | H49: 7159 | I49: 6964 | J49: 6964 | L49: 16.902 | M49: 20.02 | N49: 13.126 | O49: 4.713 | P49: 4.7 | Q49: 4.348 | R49: 21.615 | S49: 24.72 | T49: 17.474
A50: 49 Zamora | B50: 2359 | C50: 5964 | D50: 2966 | E50: 481 | F50: 367 | G50: 330 | H50: 2840 | I50: 6331 | J50: 3296 | L50: 5.499 | M50: 12.328 | N50: 5.102 | O50: 1.84 | P50: 1.288 | Q50: 0.964 | R50: 7.339 | S50: 13.616 | T50: 6.066
A51: CASTILLA Y LEON | B51: 64596 | C51: 67161 | D51: 63204 | E51: 4659 | F51: 4531 | G51: 4189 | H51: 69255 | I51: 71692 | J51: 67393 | L51: 153.29 | M51: 181.569 | N51: 138.752 | O51: 17.848 | P51: 17.352 | Q51: 14.947 | R51: 171.138 | S51: 198.921 | T51: 153.699
A53: 28 MADRID | B53: 479 | C53: 732 | D53: 706 | E53: 28 | G53: 27 | H53: 507 | I53: 732 | J53: 733 | L53: 0.582 | M53: 0.828 | N53: 0.867 | O53: 0.091 | Q53: 0.093 | R53: 0.674 | S53: 0.828 | T53: 0.96
A55: 02 Albacete | B55: 1284 | C55: 1335 | D55: 1400 | E55: 107 | F55: 92 | G55: 90 | H55: 1391 | I55: 1427 | J55: 1490 | L55: 0.943 | M55: 1.822 | N55: 2.07 | O55: 0.525 | P55: 0.483 | Q55: 0.477 | R55: 1.469 | S55: 2.305 | T55: 2.547
A56: 13 Ciudad Real | B56: 6728 | C56: 6323 | D56: 7000 | E56: 581 | F56: 453 | G56: 530 | H56: 7309 | I56: 6776 | J56: 7530 | L56: 12.951 | M56: 13.361 | N56: 14.775 | O56: 2.401 | P56: 1.959 | Q56: 2.236 | R56: 15.352 | S56: 15.32 | T56: 17.011
A57: 16 Cuenca | B57: 428 | C57: 375 | D57: 504 | E57: 17 | F57: 23 | G57: 24 | H57: 445 | I57: 398 | J57: 528 | L57: 1.003 | M57: 0.938 | N57: 1.208 | O57: 0.065 | P57: 0.1 | Q57: 0.1 | R57: 1.068 | S57: 1.038 | T57: 1.308
A58: 19 Guadalajara | B58: 2110 | C58: 2110 | D58: 1740 | E58: 15 | F58: 15 | G58: 4 | H58: 2125 | I58: 2125 | J58: 1744 | L58: 5.906 | M58: 5.908 | N58: 4.872 | O58: 0.053 | P58: 0.057 | Q58: 0.015 | R58: 5.957 | S58: 5.965 | T58: 4.887
A59: 45 Toledo | B59: 7731 | C59: 6597 | D59: 6597 | E59: 157 | F59: 156 | G59: 156 | H59: 7888 | I59: 6753 | J59: 6753 | L59: 9.865 | M59: 13.471 | N59: 19.131 | O59: 0.529 | P59: 0.529 | Q59: 0.529 | R59: 10.395 | S59: 14 | T59: 19.66
A60: CASTILLA-MANCHA | B60: 18281 | C60: 16740 | D60: 17241 | E60: 877 | F60: 739 | G60: 804 | H60: 19158 | I60: 17479 | J60: 18045 | L60: 30.668 | M60: 35.5 | N60: 42.056 | O60: 3.573 | P60: 3.128 | Q60: 3.357 | R60: 34.241 | S60: 38.628 | T60: 45.413
A62: 03 Alicante | B62: 11 | C62: 10 | D62: 8 | E62: 2 | F62: 2 | G62: 2 | H62: 13 | I62: 12 | J62: 10 | L62: 0.001 | M62: 0.007 | N62: 0.007 | O62: 0.003 | P62: 0.003 | Q62: 0.003 | R62: 0.004 | S62: 0.01 | T62: 0.011
A63: 12 Castellón | B63: 290 | C63: 363 | D63: 363 | H63: 290 | I63: 363 | J63: 363 | L63: 0.036 | M63: 0.454 | N63: 0.454 | R63: 0.036 | S63: 0.454 | T63: 0.454
A64: 46 Valencia | B64: 56 | C64: 44 | D64: 49 | E64: 1 | F64: 36 | G64: 40 | H64: 57 | I64: 80 | J64: 89 | L64: 0.045 | M64: 0.109 | N64: 0.121 | O64: 0.005 | P64: 0.148 | Q64: 0.164 | R64: 0.05 | S64: 0.257 | T64: 0.285
A65: C. VALENCIANA | B65: 357 | C65: 417 | D65: 420 | E65: 3 | F65: 38 | G65: 42 | H65: 360 | I65: 455 | J65: 462 | L65: 0.082 | M65: 0.57 | N65: 0.582 | O65: 0.008 | P65: 0.151 | Q65: 0.167 | R65: 0.09 | S65: 0.721 | T65: 0.75
A67: 30 R. DE MURCIA | B67: 51 | C67: 51 | D67: 39 | E67: 1 | F67: 1 | G67: 1 | H67: 52 | I67: 52 | J67: 40 | L67: 0.046 | M67: 0.049 | N67: 0.056 | O67: 0.002 | P67: 0.001 | Q67: 0.001 | R67: 0.048 | S67: 0.05 | T67: 0.057
A69: 06 Badajoz | B69: 3515 | C69: 3712 | D69: 3506 | E69: 68 | F69: 53 | G69: 58 | H69: 3583 | I69: 3765 | J69: 3564 | L69: 7.171 | M69: 7.398 | N69: 5.664 | O69: 0.168 | P69: 0.138 | Q69: 0.118 | R69: 7.338 | S69: 7.536 | T69: 5.782
A70: 10 Cáceres | B70: 103 | C70: 148 | D70: 180 | E70: 65 | F70: 78 | G70: 70 | H70: 168 | I70: 226 | J70: 250 | L70: 0.152 | M70: 0.215 | N70: 0.252 | O70: 0.122 | P70: 0.13 | Q70: 0.131 | R70: 0.274 | S70: 0.345 | T70: 0.383
A71: EXTREMADURA | B71: 3618 | C71: 3860 | D71: 3686 | E71: 133 | F71: 131 | G71: 128 | H71: 3751 | I71: 3991 | J71: 3814 | L71: 7.323 | M71: 7.613 | N71: 5.916 | O71: 0.29 | P71: 0.268 | Q71: 0.249 | R71: 7.612 | S71: 7.881 | T71: 6.165
A73: 04 Almería | B73: 138 | C73: 117 | D73: 120 | E73: 1 | H73: 139 | I73: 117 | J73: 120 | M73: 0.295 | N73: 0.18 | S73: 0.295 | T73: 0.18
A74: 11 Cádiz | B74: 2641 | C74: 2575.18 | D74: 1670.58 | E74: 233 | F74: 213.89 | G74: 212.07 | H74: 2874 | I74: 2789.07 | J74: 1882.65 | L74: 2.646 | M74: 2.558 | N74: 1.699 | O74: 0.303 | P74: 0.278 | Q74: 0.276 | R74: 2.949 | S74: 2.836 | T74: 1.975
A75: 14 Córdoba | B75: 22193 | C75: 18592 | D75: 18592 | E75: 552 | F75: 613 | G75: 613 | H75: 22745 | I75: 19205 | J75: 19205 | L75: 77.276 | M75: 55.63 | N75: 64.78 | O75: 1.932 | P75: 1.833 | Q75: 2.132 | R75: 79.21 | S75: 57.463 | T75: 66.912
A76: 18 Granada | B76: 252 | C76: 330 | D76: 323.7 | E76: 7 | F76: 8 | G76: 5 | H76: 259 | I76: 338 | J76: 328.7 | L76: 0.036 | M76: 0.612 | N76: 0.256 | O76: 0.016 | P76: 0.02 | Q76: 0.012 | R76: 0.052 | S76: 0.632 | T76: 0.268
A77: 21 Huelva | B77: 132 | C77: 142 | D77: 142 | H77: 132 | I77: 142 | J77: 142 | L77: 0.439 | M77: 0.479 | N77: 0.483 | R77: 0.439 | S77: 0.479 | T77: 0.483
A78: 23 Jaén | B78: 71 | C78: 176 | D78: 176 | H78: 71 | I78: 176 | J78: 176 | L78: 0.128 | M78: 0.317 | N78: 0.324 | R78: 0.128 | S78: 0.317 | T78: 0.324
A79: 29 Málaga | B79: 50 | C79: 74 | D79: 65 | E79: 13 | F79: 21 | G79: 20 | H79: 63 | I79: 95 | J79: 85 | L79: 0.1 | M79: 0.164 | N79: 0.157 | O79: 0.046 | P79: 0.074 | Q79: 0.07 | R79: 0.146 | S79: 0.238 | T79: 0.227
A80: 41 Sevilla | B80: 841 | C80: 278 | D80: 278 | E80: 62 | F80: 37 | G80: 37 | H80: 903 | I80: 315 | J80: 315 | L80: 3.017 | M80: 0.813 | N80: 0.813 | O80: 0.24 | P80: 0.124 | Q80: 0.111 | R80: 3.257 | S80: 0.937 | T80: 0.924
A81: ANDALUCIA | B81: 26318 | C81: 22284.18 | D81: 21367.28 | E81: 868 | F81: 892.89 | G81: 887.07 | H81: 27186 | I81: 23177.07 | J81: 22254.35 | L81: 83.642 | M81: 60.868 | N81: 68.692 | O81: 2.537 | P81: 2.329 | Q81: 2.601 | R81: 86.181 | S81: 63.197 | T81: 71.293
A83: 35 Palmas (Las) | B83: 17 | C83: 17 | D83: 17 | E83: 1 | F83: 1 | G83: 1 | H83: 18 | I83: 18 | J83: 18 | L83: 0.01 | M83: 0.01 | N83: 0.01 | O83: 0.003 | P83: 0.003 | Q83: 0.003 | R83: 0.013 | S83: 0.013 | T83: 0.013
A84: 38 S. C. Tenerife | B84: 64 | E84: 2 | H84: 66 | L84: 0.042 | O84: 0.002 | R84: 0.044
A85: CANARIAS | B85: 81 | C85: 17 | D85: 17 | E85: 3 | F85: 1 | G85: 1 | H85: 84 | I85: 18 | J85: 18 | L85: 0.052 | M85: 0.01 | N85: 0.01 | O85: 0.005 | P85: 0.003 | Q85: 0.003 | R85: 0.057 | S85: 0.013 | T85: 0.013
A88: ESPAÑA | B88: 253098 | C88: 123084.48 | D88: 121040.55 | E88: 7348 | F88: 7140.13 | G88: 7056.56 | H88: 133897 | I88: 130224.61 | J88: 128097.11 | L88: 303.931 | M88: 315.506 | N88: 288.362 | O88: 27.264 | P88: 27.029 | Q88: 25.555 | R88: 331.198 | S88: 342.536 | T88: 313.918
B96: 221 | C96: 231 | E96: 221 | F96: 231 | H96: 221 | I96: 231

Sheet Cen11lón
A1: AVANCES DE SUPERFICIE Y PRODUCCIÓN
A2: CENTENO Y TRANQUILLÓN | J2: 2026 ABRIL
A3: SUPERFICIE CULTIVADA(*)
A4: PROVINCIAS | C4: SUPERFICIES (HA) | H4: PRODUCCIONES (1000 TM)
A5: Y
A6: CC-AA | C6: =E6-2 -> 2024 | D6: =E6-1 -> 2025 | E6: 2026 | F6: =E6 -> 2026 | H6: =J6-2 -> 2024 | I6: =J6-1 -> 2025 | J6: 2026 | K6: =J6 -> 2026
C7: DEFINITIVO | D7: PROVISIONAL | H7: DEFINITIVO | I7: PROVISIONAL
F8: =CONCATENATE(D6,"=100") -> 2025=100 | K8: =CONCATENATE(I6,"=100") -> 2025=100
A10: 15 A Coruña | C10: 112 | D10: 106.08 | E10: 66.91 | H10: 0.367 | I10: 0.222 | J10: 0.176
A11: 27 Lugo | C11: 417 | D11: 468.72 | E11: 230.22 | H11: 1.423 | I11: 2.35 | J11: 0.66
A12: 32 Ourense | C12: 3585 | D12: 2950.59 | E12: 2502.73 | H12: 13.767 | I12: 8.748 | J12: 7.859
A13: 36 Pontevedra | C13: 40 | D13: 15.3 | E13: 21.35 | H13: 0.176 | I13: 0.058 | J13: 0.053
A14: GALICIA | C14: 4154 | D14: 3540.69 | E14: 2821.21 | F14: 79.67966696 | H14: 15.733 | I14: 11.378 | J14: 8.748 | K14: 76.88521709
A16: 33 P. DE ASTURIAS
A18: 39 CANTABRIA | C18: 30 | D18: 33 | E18: 23 | F18: 69.6969697 | H18: 0.028 | I18: 0.032 | J18: 0.036 | K18: 112.5
A20: 1 Álava | C20: 271 | D20: 262 | E20: 153 | H20: 1.626 | I20: 1.31 | J20: 0.668
A21: 20 Guipúzcoa
A22: 48 Vizcaya
A23: PAIS VASCO | C23: 271 | D23: 262 | E23: 153 | F23: 58.39694656 | H23: 1.626 | I23: 1.31 | J23: 0.668 | K23: 50.99236641
A25: 31 NAVARRA | C25: 192 | D25: 244 | E25: 172 | F25: 70.49180328 | H25: 0.282 | I25: 0.527 | J25: 0.381 | K25: 72.29601518
A27: 26 LA RIOJA | C27: 217 | D27: 129 | E27: 138 | F27: 106.9767442 | H27: 0.39 | I27: 0.33 | J27: 0.352 | K27: 106.6666667
A29: 22 Huesca | C29: 312 | D29: 271.7 | E29: 280 | H29: 0.496 | I29: 1.077 | J29: 0.908
A30: 44 Teruel | C30: 3172 | D30: 3851 | E30: 6552 | H30: 3.106 | I30: 8.916 | J30: 13.588
A31: 50 Zaragoza | C31: 4023 | D31: 2881.15 | E31: 3204.55 | H31: 6.238 | I31: 3.56 | J31: 3.959
A32: ARAGÓN | C32: 7507 | D32: 7003.85 | E32: 10036.55 | F32: 143.3004705 | H32: 9.84 | I32: 13.553 | J32: 18.455 | K32: 136.1691138
A34: 8 Barcelona | C34: 146 | D34: 211 | E34: 71 | H34: 0.199 | I34: 0.695 | J34: 0.22
A35: 17 Girona | C35: 327 | D35: 244 | E35: 975 | H35: 0.961 | I35: 0.619 | J35: 2.979
A36: 25 Lleida | C36: 645 | D36: 845 | E36: 835 | H36: 2.064 | I36: 3.616 | J36: 3.45
A37: 43 Tarragona | C37: 49 | D37: 111 | E37: 103 | H37: 0.029 | I37: 0.232 | J37: 0.27
A38: CATALUÑA | C38: 1167 | D38: 1411 | E38: 1984 | F38: 140.6094968 | H38: 3.253 | I38: 5.162 | J38: 6.919 | K38: 134.0371949
A40: 7 BALEARES | C40: 6 | D40: 5 | E40: 10 | F40: 200 | H40: 0.005 | I40: 0.005 | J40: 0.009 | K40: 180
A42: 5 Ávila | C42: 8259 | D42: 9015 | E42: 9918 | H42: 10.326 | I42: 20.303 | J42: 15.957
A43: 9 Burgos | C43: 3857 | D43: 3259 | E43: 3260 | H43: 12.975 | I43: 12.454 | J43: 9.816
A44: 24 León | C44: 10023 | D44: 10109 | E44: 10000 | H44: 27.613 | I44: 28.157 | J44: 22
A45: 34 Palencia | C45: 14581 | D45: 11894 | E45: 11555 | H45: 44.962 | I45: 27.163 | J45: 29.512
A46: 37 Salamanca | C46: 4701 | D46: 5455 | E46: 4250 | H46: 12.531 | I46: 16.654 | J46: 10.95
A47: 40 Segovia | C47: 6112 | D47: 8973 | E47: 9000 | H47: 9.999 | I47: 31.436 | J47: 20.654
A48: 42 Soria | C48: 11723 | D48: 9692 | E48: 9150 | H48: 23.778 | I48: 24.418 | J48: 21.27
A49: 47 Valladolid | C49: 7159 | D49: 6964 | E49: 6964 | H49: 21.615 | I49: 24.72 | J49: 17.474
A50: 49 Zamora | C50: 2840 | D50: 6331 | E50: 3296 | H50: 7.339 | I50: 13.616 | J50: 6.066
A51: CASTILLA Y LEÓN | C51: 69255 | D51: 71692 | E51: 67393 | F51: 94.00351504 | H51: 171.138 | I51: 198.921 | J51: 153.699 | K51: 77.26635197
A53: 28 MADRID | C53: 507 | D53: 732 | E53: 733 | F53: 100.136612 | H53: 0.674 | I53: 0.828 | J53: 0.96 | K53: 115.942029
A55: 2 Albacete | C55: 1391 | D55: 1427 | E55: 1490 | H55: 1.469 | I55: 2.305 | J55: 2.547
A56: 13 Ciudad Real | C56: 7309 | D56: 6776 | E56: 7530 | H56: 15.352 | I56: 15.32 | J56: 17.011
A57: 16 Cuenca | C57: 445 | D57: 398 | E57: 528 | H57: 1.068 | I57: 1.038 | J57: 1.308
A58: 19 Guadalajara | C58: 2125 | D58: 2125 | E58: 1744 | H58: 5.957 | I58: 5.965 | J58: 4.887
A59: 45 Toledo | C59: 7888 | D59: 6753 | E59: 6753 | H59: 10.395 | I59: 14 | J59: 19.66
A60: CASTILLA-MANCHA | C60: 19158 | D60: 17479 | E60: 18045 | F60: 103.2381715 | H60: 34.241 | I60: 38.628 | J60: 45.413 | K60: 117.5649788
A62: 3 Alicante | C62: 13 | D62: 12 | E62: 10 | H62: 0.004 | I62: 0.01 | J62: 0.011
A63: 12 Castellón | C63: 290 | D63: 363 | E63: 363 | H63: 0.036 | I63: 0.454 | J63: 0.454
A64: 46 Valencia | C64: 57 | D64: 80 | E64: 89 | H64: 0.05 | I64: 0.257 | J64: 0.285
A65: C. VALENCIANA | C65: 360 | D65: 455 | E65: 462 | F65: 101.5384615 | H65: 0.09 | I65: 0.721 | J65: 0.75 | K65: 104.0221914
A67: 30 R. DE MURCIA | C67: 52 | D67: 52 | E67: 40 | F67: 76.92307692 | H67: 0.048 | I67: 0.05 | J67: 0.057 | K67: 114
A69: 6 Badajoz | C69: 3583 | D69: 3765 | E69: 3564 | H69: 7.338 | I69: 7.536 | J69: 5.782
A70: 10 Cáceres | C70: 168 | D70: 226 | E70: 250 | H70: 0.274 | I70: 0.345 | J70: 0.383
A71: EXTREMADURA | C71: 3751 | D71: 3991 | E71: 3814 | F71: 95.5650213 | H71: 7.612 | I71: 7.881 | J71: 6.165 | K71: 78.22611344
A73: 4 Almería | C73: 139 | D73: 117 | E73: 120 | I73: 0.295 | J73: 0.18
A74: 11 Cádiz | C74: 2874 | D74: 2789.07 | E74: 1882.65 | H74: 2.949 | I74: 2.836 | J74: 1.975
A75: 14 Córdoba | C75: 22745 | D75: 19205 | E75: 19205 | H75: 79.21 | I75: 57.463 | J75: 66.912
A76: 18 Granada | C76: 259 | D76: 338 | E76: 328.7 | H76: 0.052 | I76: 0.632 | J76: 0.268
A77: 21 Huelva | C77: 132 | D77: 142 | E77: 142 | H77: 0.439 | I77: 0.479 | J77: 0.483
A78: 23 Jaén | C78: 71 | D78: 176 | E78: 176 | H78: 0.128 | I78: 0.317 | J78: 0.324
A79: 29 Málaga | C79: 63 | D79: 95 | E79: 85 | H79: 0.146 | I79: 0.238 | J79: 0.227
A80: 41 Sevilla | C80: 903 | D80: 315 | E80: 315 | H80: 3.257 | I80: 0.937 | J80: 0.924
A81: ANDALUCÍA | C81: 27186 | D81: 23177.07 | E81: 22254.35 | F81: 96.01882378 | H81: 86.181 | I81: 63.197 | J81: 71.293 | K81: 112.8107347
A83: 35 Palmas (Las) | C83: 18 | D83: 18 | E83: 18 | H83: 0.013 | I83: 0.013 | J83: 0.013
A84: 38 S. C. Tenerife | C84: 66 | H84: 0.044
A85: CANARIAS | C85: 84 | D85: 18 | E85: 18 | F85: 100 | H85: 0.057 | I85: 0.013 | J85: 0.013 | K85: 100
A88: ESPAÑA | C88: 133897 | D88: 130224.61 | E88: 128097.11 | F88: 98.36628422 | H88: 331.198 | I88: 342.536 | J88: 313.918 | K88: 91.64525772
A91: (*)Tipo de Superficie de mes/año solicitado

Sheet Ceb12rno-SRT
A1: AVANCES DE SUPERFICIE Y PRODUCCIÓN
A2: CEBADA DE INVIERNO S/R/T | K2: 2026 ABRIL
A3: SUPERFICIE CULTIVADA(*)
A4: PROVINCIAS | B4: SUPERFICIES (HA) | E4: SUPERFICIES (HA) | H4: SUPERFICIES (HA) | L4: PRODUCCIONES (1000 TM) | O4: PRODUCCIONES (1000 TM) | R4: PRODUCCIONES (1000 TM)
A5: Y | B5: SECANO | E5: REGADIO | H5: TOTAL | L5: SECANO | O5: REGADIO | R5: TOTAL
A6: CC-AA | B6: =J6-2 -> 2024 | C6: =J6-1 -> 2025 | D6: =J6 -> 2026 | E6: =J6-2 -> 2024 | F6: =J6-1 -> 2025 | G6: =J6 -> 2026 | H6: =J6-2 -> 2024 | I6: =J6-1 -> 2025 | J6: 2026 | L6: =T6-2 -> 2024 | M6: =T6-1 -> 2025 | N6: =T6 -> 2026 | O6: =T6-2 -> 2024 | P6: =T6-1 -> 2025 | Q6: =T6 -> 2026 | R6: =T6-2 -> 2024 | S6: =T6-1 -> 2025 | T6: 2026
B7: DEFINITIVO | C7: PROVISIONAL | D7: PROVISIONAL | E7: DEFINITIVO | F7: PROVISIONAL | H7: DEFINITIVO | I7: PROVISIONAL | L7: DEFINITIVO | M7: PROVISIONAL | O7: DEFINITIVO | P7: PROVISIONAL | R7: DEFINITIVO | S7: PROVISIONAL
A10: 15 Coruña (La) | B10: 110 | C10: 31.35 | D10: 21.34 | H10: 110 | I10: 31.35 | J10: 21.34 | L10: 0.275 | M10: 0.158 | N10: 0.101 | R10: 0.275 | S10: 0.158 | T10: 0.101
A11: 27 Lugo | B11: 47 | C11: 73.1 | D11: 62.14 | H11: 47 | I11: 73.1 | J11: 62.14 | L11: 0.118 | M11: 0.26 | N11: 0.189 | R11: 0.118 | S11: 0.26 | T11: 0.189
A12: 32 Orense | B12: 588 | C12: 991.63 | D12: 1029.68 | H12: 588 | I12: 991.63 | J12: 1029.68 | L12: 2.593 | M12: 2.866 | N12: 1.225 | R12: 2.593 | S12: 2.866 | T12: 1.225
A13: 36 Pontevedra | B13: 27 | C13: 79.67 | D13: 38.38 | H13: 27 | I13: 79.67 | J13: 38.38 | L13: 0.119 | M13: 0.263 | N13: 0.143 | R13: 0.119 | S13: 0.263 | T13: 0.143
A14: GALICIA | B14: 772 | C14: 1175.75 | D14: 1151.54 | H14: 772 | I14: 1175.75 | J14: 1151.54 | L14: 3.105 | M14: 3.547 | N14: 1.658 | R14: 3.105 | S14: 3.547 | T14: 1.658
A16: 33 P. DE ASTURIAS
A18: 39 CANTABRIA
A20: 01 Alava | B20: 5462 | C20: 4133 | D20: 4011 | H20: 5462 | I20: 4133 | J20: 4011 | L20: 38.78 | M20: 22.732 | N20: 24.066 | R20: 38.78 | S20: 22.732 | T20: 24.066
A21: 20 Guipúzcoa
A22: 48 Vizcaya
A23: PAIS VASCO | B23: 5462 | C23: 4133 | D23: 4011 | H23: 5462 | I23: 4133 | J23: 4011 | L23: 38.78 | M23: 22.732 | N23: 24.066 | R23: 38.78 | S23: 22.732 | T23: 24.066
A25: 31 NAVARRA | B25: 59007 | C25: 57595 | D25: 59328 | E25: 11852 | F25: 11839 | G25: 11078 | H25: 70859 | I25: 69434 | J25: 70406 | L25: 276.91 | M25: 261.783 | N25: 269.634 | O25: 77.571 | P25: 66.845 | Q25: 62.555 | R25: 354.501 | S25: 328.628 | T25: 332.189
A27: 26 LA RIOJA | B27: 5239 | C27: 4295 | D27: 4490 | F27: 1451 | G27: 1358 | H27: 5239 | I27: 5746 | J27: 5848 | L27: 15.013 | M27: 24.446 | N27: 17.188 | P27: 7.734 | Q27: 6.575 | R27: 15.013 | S27: 32.18 | T27: 23.763
A29: 22 Huesca | B29: 75801 | C29: 92321.37 | D29: 92400 | E29: 52544 | F29: 55751.23 | G29: 56200 | H29: 128345 | I29: 148072.6 | J29: 148600 | L29: 295.093 | M29: 370.91 | N29: 360.36 | O29: 311.586 | P29: 372.217 | Q29: 309.1 | R29: 606.694 | S29: 743.127 | T29: 669.46
A30: 44 Teruel | B30: 52192 | C30: 81109 | D30: 86043 | E30: 8101 | F30: 8631 | G30: 8777 | H30: 60293 | I30: 89740 | J30: 94820 | L30: 49.202 | M30: 211.045 | N30: 201.495 | O30: 22.237 | P30: 34.014 | Q30: 31.756 | R30: 71.44 | S30: 245.059 | T30: 233.251
A31: 50 Zaragoza | B31: 126625 | C31: 124258.32 | D31: 137197.12 | E31: 29264 | F31: 21422.3 | G31: 24225.4 | H31: 155889 | I31: 145680.62 | J31: 161422.52 | L31: 208.931 | M31: 387.344 | N31: 428.45 | O31: 147.9 | P31: 131.02 | Q31: 147.609 | R31: 356.874 | S31: 518.364 | T31: 576.059
A32: ARAGON | B32: 254618 | C32: 297688.69 | D32: 315640.12 | E32: 89909 | F32: 85804.53 | G32: 89202.4 | H32: 344527 | I32: 383493.22 | J32: 404842.52 | L32: 553.226 | M32: 969.299 | N32: 990.305 | O32: 481.723 | P32: 537.251 | Q32: 488.465 | R32: 1035.008 | S32: 1506.55 | T32: 1478.77
A34: 08 Barcelona | B34: 30703 | C34: 33243 | D34: 32125 | E34: 668 | F34: 1003 | G34: 1056 | H34: 31371 | I34: 34246 | J34: 33181 | L34: 61.56 | M34: 138.732 | N34: 115.64 | O34: 3.403 | P34: 5.665 | Q34: 5.7 | R34: 64.968 | S34: 144.397 | T34: 121.34
A35: 17 Girona | B35: 15825 | C35: 13274 | D35: 12182 | E35: 2499 | F35: 4451 | G35: 4269 | H35: 18324 | I35: 17725 | J35: 16451 | L35: 32.22 | M35: 44.329 | N35: 45.042 | O35: 8.342 | P35: 17.523 | Q35: 18.352 | R35: 40.556 | S35: 61.852 | T35: 63.394
A36: 25 Lleida | B36: 67284 | C36: 75977 | D36: 74500 | E36: 32385 | F36: 29980 | G36: 29300 | H36: 99669 | I36: 105957 | J36: 103800 | L36: 145.67 | M36: 334.299 | N36: 340.33 | O36: 202.892 | P36: 206.872 | Q36: 201.1 | R36: 348.564 | S36: 541.171 | T36: 541.43
A37: 43 Tarragona | B37: 11232 | C37: 12167 | D37: 12400 | E37: 336 | F37: 288 | G37: 225 | H37: 11568 | I37: 12455 | J37: 12625 | L37: 13.801 | M37: 44.412 | N37: 51.17 | O37: 0.529 | P37: 1.354 | Q37: 1.004 | R37: 14.326 | S37: 45.766 | T37: 52.174
A38: CATALUÑA | B38: 125044 | C38: 134661 | D38: 131207 | E38: 35888 | F38: 35722 | G38: 34850 | H38: 160932 | I38: 170383 | J38: 166057 | L38: 253.251 | M38: 561.772 | N38: 552.182 | O38: 215.166 | P38: 231.414 | Q38: 226.156 | R38: 468.414 | S38: 793.186 | T38: 778.338
A40: 07 BALEARES | B40: 9046 | C40: 10000 | D40: 10210 | H40: 9046 | I40: 10000 | J40: 10210 | L40: 11.952 | M40: 13.2 | N40: 19 | R40: 11.953 | S40: 13.2 | T40: 19
A42: 05 Avila | B42: 34444 | C42: 40190 | D42: 40100 | E42: 1765 | F42: 1447 | G42: 1470 | H42: 36209 | I42: 41637 | J42: 41570 | L42: 63.067 | M42: 156.462 | N42: 86.574 | O42: 5.89 | P42: 6.533 | Q42: 6.317 | R42: 68.943 | S42: 162.995 | T42: 92.891
A43: 09 Burgos | B43: 128146 | C43: 139293 | D43: 130548 | E43: 4790 | F43: 5207 | G43: 5268 | H43: 132936 | I43: 144500 | J43: 135816 | L43: 662.13 | M43: 735.049 | N43: 488.511 | O43: 31.121 | P43: 34.272 | Q43: 34.605 | R43: 693.251 | S43: 769.321 | T43: 523.116
A44: 24 León | B44: 13794 | C44: 18118 | D44: 16000 | E44: 3920 | F44: 4196 | G44: 4000 | H44: 17714 | I44: 22314 | J44: 20000 | L44: 52.541 | M44: 75.371 | N44: 46.4 | O44: 20.384 | P44: 22.239 | Q44: 20.4 | R44: 72.925 | S44: 97.61 | T44: 66.8
A45: 34 Palencia | B45: 89344 | C45: 96282 | D45: 86822 | E45: 8959 | F45: 10429 | G45: 9388 | H45: 98303 | I45: 106711 | J45: 96210 | L45: 401.869 | M45: 491.327 | N45: 307.002 | O45: 52.374 | P45: 60.342 | Q45: 48.874 | R45: 454.244 | S45: 551.669 | T45: 355.876
A46: 37 Salamanca | B46: 24112 | C46: 25237 | D46: 23350 | E46: 2958 | F46: 4604 | G46: 3600 | H46: 27070 | I46: 29841 | J46: 26950 | L46: 78.364 | M46: 113.567 | N46: 74.72 | O46: 15.382 | P46: 23.941 | Q46: 18.72 | R46: 93.746 | S46: 137.508 | T46: 93.44
A47: 40 Segovia | B47: 47414 | C47: 59677 | D47: 57780 | E47: 2883 | F47: 3553 | G47: 2970 | H47: 50297 | I47: 63230 | J47: 60750 | L47: 122.802 | M47: 237.753 | N47: 144.854 | O47: 14.303 | P47: 17.765 | Q47: 12.014 | R47: 137.104 | S47: 255.518 | T47: 156.868
A48: 42 Soria | B48: 69422 | C48: 74171 | D48: 60000 | E48: 2853 | F48: 3080 | G48: 3000 | H48: 72275 | I48: 77251 | J48: 63000 | L48: 240.408 | M48: 289.415 | N48: 174 | O48: 13.694 | P48: 16.632 | Q48: 15 | R48: 254.102 | S48: 306.047 | T48: 189
A49: 47 Valladolid | B49: 125443 | C49: 135366 | D49: 135366 | E49: 20779 | F49: 25287 | G49: 25287 | H49: 146222 | I49: 160653 | J49: 160653 | L49: 513.062 | M49: 673.446 | N49: 410.024 | O49: 132.341 | P49: 177.009 | Q49: 133.364 | R49: 645.403 | S49: 850.455 | T49: 543.388
A50: 49 Zamora | B50: 51957 | C50: 57472 | D50: 50776 | E50: 8433 | F50: 9654 | G50: 8640 | H50: 60390 | I50: 67126 | J50: 59416 | L50: 192.085 | M50: 251.095 | N50: 169.49 | O50: 44.813 | P50: 67.578 | Q50: 46.215 | R50: 236.898 | S50: 318.673 | T50: 215.705
A51: CASTILLA Y LEON | B51: 584076 | C51: 645806 | D51: 600742 | E51: 57340 | F51: 67457 | G51: 63623 | H51: 641416 | I51: 713263 | J51: 664365 | L51: 2326.328 | M51: 3023.485 | N51: 1901.575 | O51: 330.302 | P51: 426.311 | Q51: 335.509 | R51: 2656.616 | S51: 3449.796 | T51: 2237.084
A53: 28 MADRID | B53: 32376 | C53: 33573 | D53: 33181 | E53: 3699 | F53: 3026 | G53: 3415 | H53: 36075 | I53: 36599 | J53: 36596 | L53: 85.894 | M53: 94.11 | N53: 80.739 | O53: 13.453 | P53: 11.446 | Q53: 12.845 | R53: 99.333 | S53: 105.555 | T53: 93.584
A55: 02 Albacete | B55: 34300 | C55: 33895 | D55: 34340 | E55: 750 | F55: 750 | G55: 750 | H55: 35050 | I55: 34645 | J55: 35090 | L55: 37.034 | M55: 76 | N55: 86.674 | O55: 4.95 | P55: 5.175 | Q55: 5.22 | R55: 41.978 | S55: 81.175 | T55: 91.894
A56: 13 Ciudad Real | B56: 103049 | C56: 94021 | D56: 95700 | E56: 33738 | F56: 35343 | G56: 39000 | H56: 136787 | I56: 129364 | J56: 134700 | L56: 324.192 | M56: 306.508 | N56: 310.068 | O56: 170.714 | P56: 195.447 | Q56: 215.28 | R56: 494.907 | S56: 501.955 | T56: 525.348
A57: 16 Cuenca | B57: 222327 | C57: 211147 | D57: 230680 | E57: 7374 | F57: 7550 | G57: 8525 | H57: 229701 | I57: 218697 | J57: 239205 | L57: 680.401 | M57: 688.76 | N57: 742.502 | O57: 40.955 | P57: 41.802 | Q57: 46.86 | R57: 721.318 | S57: 730.562 | T57: 789.362
A58: 19 Guadalajara | B58: 75548 | C58: 75548 | D58: 80559 | E58: 2893 | F58: 2893 | G58: 116 | H58: 78441 | I58: 78441 | J58: 80675 | L58: 241.754 | M58: 264.419 | N58: 306.095 | O58: 14.465 | P58: 14.465 | Q58: 0.58 | R58: 256.218 | S58: 278.884 | T58: 306.675
A59: 45 Toledo | B59: 129600 | C59: 108648 | D59: 108648 | E59: 9704 | F59: 10876 | G59: 9876 | H59: 139304 | I59: 119524 | J59: 118524 | L59: 339.293 | M59: 328.095 | N59: 274.255 | O59: 45.405 | P59: 60.379 | Q59: 46.253 | R59: 384.672 | S59: 388.474 | T59: 320.508
A60: CASTILLA-MANCHA | B60: 564824 | C60: 523259 | D60: 549927 | E60: 54459 | F60: 57412 | G60: 58267 | H60: 619283 | I60: 580671 | J60: 608194 | L60: 1622.674 | M60: 1663.782 | N60: 1719.594 | O60: 276.489 | P60: 317.268 | Q60: 314.193 | R60: 1899.093 | S60: 1981.05 | T60: 2033.787
A62: 03 Alicante | B62: 1680 | C62: 1876 | D62: 1648.93 | E62: 587 | F62: 402 | G62: 361.71 | H62: 2267 | I62: 2278 | J62: 2010.64 | L62: 0.216 | M62: 2.426 | N62: 3.155 | O62: 1.137 | P62: 1.575 | Q62: 1.693 | R62: 1.354 | S62: 4.001 | T62: 4.848
A63: 12 Castellón | B63: 1432 | C63: 1874 | D63: 1874 | E63: 47 | F63: 47 | G63: 47 | H63: 1479 | I63: 1921 | J63: 1921 | L63: 0.186 | M63: 3.466 | N63: 3.466 | O63: 0.183 | P63: 0.183 | Q63: 0.183 | R63: 0.369 | S63: 3.649 | T63: 3.649
A64: 46 Valencia | B64: 6532 | C64: 5662 | D64: 6974 | E64: 472 | F64: 452 | G64: 586 | H64: 7004 | I64: 6114 | J64: 7560 | L64: 2.24 | M64: 16.703 | N64: 20.573 | O64: 1.915 | P64: 1.892 | Q64: 2.452 | R64: 4.155 | S64: 18.595 | T64: 23.025
A65: C. VALENCIANA | B65: 9644 | C65: 9412 | D65: 10496.93 | E65: 1106 | F65: 901 | G65: 994.71 | H65: 10750 | I65: 10313 | J65: 11491.64 | L65: 2.642 | M65: 22.595 | N65: 27.194 | O65: 3.235 | P65: 3.65 | Q65: 4.328 | R65: 5.878 | S65: 26.245 | T65: 31.522
A67: 30 R. DE MURCIA | B67: 15121 | C67: 15344 | D67: 18076 | E67: 1462 | F67: 1239 | G67: 1737 | H67: 16583 | I67: 16583 | J67: 19813 | L67: 15.812 | M67: 16.996 | N67: 19.545 | O67: 5.689 | P67: 4.86 | Q67: 5.006 | R67: 21.498 | S67: 21.856 | T67: 24.551
A69: 06 Badajoz | B69: 47707 | C69: 47560 | D69: 44650 | E69: 2710 | F69: 2674 | G69: 2850 | H69: 50417 | I69: 50234 | J69: 47500 | L69: 142.93 | M69: 112.595 | N69: 110.897 | O69: 10.558 | P69: 8.18 | Q69: 9.262 | R69: 153.487 | S69: 120.775 | T69: 120.159
A70: 10 Cáceres | B70: 305 | C70: 206 | D70: 500 | E70: 702 | F70: 351 | G70: 350 | H70: 1007 | I70: 557 | J70: 850 | L70: 0.444 | M70: 0.281 | N70: 0.732 | O70: 1.328 | P70: 0.621 | Q70: 0.665 | R70: 1.772 | S70: 0.902 | T70: 1.397
A71: EXTREMADURA | B71: 48012 | C71: 47766 | D71: 45150 | E71: 3412 | F71: 3025 | G71: 3200 | H71: 51424 | I71: 50791 | J71: 48350 | L71: 143.374 | M71: 112.876 | N71: 111.629 | O71: 11.886 | P71: 8.801 | Q71: 9.927 | R71: 155.259 | S71: 121.677 | T71: 121.556
A73: 04 Almería | B73: 8145 | C73: 6776 | D73: 6800 | E73: 206 | F73: 189 | G73: 200 | H73: 8351 | I73: 6965 | J73: 7000 | L73: 0.299 | M73: 17.398 | N73: 10.2 | O73: 0.414 | P73: 0.708 | Q73: 0.4 | R73: 0.713 | S73: 18.106 | T73: 10.6
A74: 11 Cádiz | B74: 8605 | C74: 10132.81 | D74: 8778.32 | E74: 616 | F74: 599.13 | G74: 595.86 | H74: 9221 | I74: 10731.94 | J74: 9374.18 | L74: 13.037 | M74: 29.472 | N74: 26.927 | O74: 1.502 | P74: 1.742 | Q74: 2.383 | R74: 14.543 | S74: 31.214 | T74: 29.31
A75: 14 Córdoba | B75: 18311 | C75: 18490 | D75: 18410 | E75: 1338 | F75: 780 | G75: 780 | H75: 19649 | I75: 19270 | J75: 19190 | L75: 61.159 | M75: 55.84 | N75: 49.222 | O75: 4.159 | P75: 2.259 | Q75: 2.053 | R75: 65.325 | S75: 58.099 | T75: 51.275
A76: 18 Granada | B76: 30223 | C76: 29857 | D76: 25790 | E76: 3749 | F76: 3561 | G76: 3435 | H76: 33972 | I76: 33418 | J76: 29225 | L76: 29.093 | M76: 60.749 | N76: 45.593 | O76: 9.121 | P76: 10.311 | Q76: 12.722 | R76: 38.206 | S76: 71.06 | T76: 58.315
A77: 21 Huelva | B77: 1104 | C77: 718 | D77: 718 | E77: 83 | F77: 32 | G77: 32 | H77: 1187 | I77: 750 | J77: 750 | L77: 3.312 | M77: 2.129 | N77: 2.144 | O77: 0.258 | P77: 0.106 | Q77: 0.128 | R77: 3.57 | S77: 2.235 | T77: 2.272
A78: 23 Jaén | B78: 5158 | C78: 4949 | D78: 4928 | E78: 551 | F78: 564 | G78: 564 | H78: 5709 | I78: 5513 | J78: 5492 | L78: 10.001 | M78: 9.596 | N78: 9.555 | O78: 1.399 | P78: 1.41 | Q78: 1.41 | R78: 11.4 | S78: 11.006 | T78: 10.965
A79: 29 Málaga | B79: 8785 | C79: 9494 | D79: 9707 | E79: 739 | F79: 968 | G79: 997 | H79: 9524 | I79: 10462 | J79: 10704 | L79: 26.32 | M79: 27.579 | N79: 29.678 | O79: 3.037 | P79: 4.07 | Q79: 4.985 | R79: 29.358 | S79: 31.649 | T79: 34.663
A80: 41 Sevilla | B80: 17400 | C80: 16180 | D80: 14300 | E80: 2580 | F80: 1320 | G80: 1100 | H80: 19980 | I80: 17500 | J80: 15400 | L80: 58.116 | M80: 44.98 | N80: 39.78 | O80: 9.727 | P80: 4.196 | Q80: 3.3 | R80: 67.842 | S80: 49.176 | T80: 43.08
A81: ANDALUCIA | B81: 97731 | C81: 96596.81 | D81: 89431.32 | E81: 9862 | F81: 8013.13 | G81: 7703.86 | H81: 107593 | I81: 104609.94 | J81: 97135.18 | L81: 201.337 | M81: 247.743 | N81: 213.099 | O81: 29.617 | P81: 24.802 | Q81: 27.381 | R81: 230.957 | S81: 272.545 | T81: 240.48
A83: 35 Palmas (Las) | B83: 22 | C83: 22 | D83: 22 | E83: 22 | F83: 22 | G83: 22 | H83: 44 | I83: 44 | J83: 44 | L83: 0.022 | M83: 0.022 | N83: 0.022 | O83: 0.057 | P83: 0.057 | Q83: 0.057 | R83: 0.079 | S83: 0.079 | T83: 0.079
A84: 38 S. C. Tenerife | B84: 47 | C84: 47 | D84: 47 | E84: 1 | F84: 1 | G84: 1 | H84: 48 | I84: 48 | J84: 48 | L84: 0.045 | M84: 0.045 | N84: 0.045 | O84: 0.001 | P84: 0.001 | Q84: 0.001 | R84: 0.046 | S84: 0.046 | T84: 0.046
A85: CANARIAS | B85: 69 | C85: 69 | D85: 69 | E85: 23 | F85: 23 | G85: 23 | H85: 92 | I85: 92 | J85: 92 | L85: 0.067 | M85: 0.067 | N85: 0.067 | O85: 0.058 | P85: 0.058 | Q85: 0.058 | R85: 0.125 | S85: 0.125 | T85: 0.125
A88: ESPAÑA | B88: 3622082 | C88: 1881374.25 | D88: 1873110.91 | E88: 269012 | F88: 275912.66 | G88: 275451.97 | H88: 2080053 | I88: 2157286.91 | J88: 2148562.88 | L88: 5550.365 | M88: 7038.433 | N88: 5947.475 | O88: 1445.189 | P88: 1640.44 | Q88: 1492.998 | R88: 6995.533 | S88: 8678.872 | T88: 7440.473
B96: 221 | C96: 231 | E96: 221 | F96: 231 | H96: 221 | I96: 231

Sheet Ceb12rno
A1: AVANCES DE SUPERFICIE Y PRODUCCIÓN
A2: CEBADA DE INVIERNO | J2: 2026 ABRIL
A3: SUPERFICIE CULTIVADA(*)
A4: PROVINCIAS | C4: SUPERFICIES (HA) | H4: PRODUCCIONES (1000 TM)
A5: Y
A6: CC-AA | C6: =E6-2 -> 2024 | D6: =E6-1 -> 2025 | E6: 2026 | F6: =E6 -> 2026 | H6: =J6-2 -> 2024 | I6: =J6-1 -> 2025 | J6: 2026 | K6: =J6 -> 2026
C7: DEFINITIVO | D7: PROVISIONAL | H7: DEFINITIVO | I7: PROVISIONAL
F8: =CONCATENATE(D6,"=100") -> 2025=100 | K8: =CONCATENATE(I6,"=100") -> 2025=100
A10: 15 A Coruña | C10: 110 | D10: 31.35 | E10: 21.34 | H10: 0.275 | I10: 0.158 | J10: 0.101
A11: 27 Lugo | C11: 47 | D11: 73.1 | E11: 62.14 | H11: 0.118 | I11: 0.26 | J11: 0.189
A12: 32 Ourense | C12: 588 | D12: 991.63 | E12: 1029.68 | H12: 2.593 | I12: 2.866 | J12: 1.225
A13: 36 Pontevedra | C13: 27 | D13: 79.67 | E13: 38.38 | H13: 0.119 | I13: 0.263 | J13: 0.143
A14: GALICIA | C14: 772 | D14: 1175.75 | E14: 1151.54 | F14: 97.94088879 | H14: 3.105 | I14: 3.547 | J14: 1.658 | K14: 46.74372709
A16: 33 P. DE ASTURIAS
A18: 39 CANTABRIA
A20: 1 Álava | C20: 5462 | D20: 4133 | E20: 4011 | H20: 38.78 | I20: 22.732 | J20: 24.066
A21: 20 Guipúzcoa
A22: 48 Vizcaya
A23: PAIS VASCO | C23: 5462 | D23: 4133 | E23: 4011 | F23: 97.04814904 | H23: 38.78 | I23: 22.732 | J23: 24.066 | K23: 105.8683794
A25: 31 NAVARRA | C25: 70859 | D25: 69434 | E25: 70406 | F25: 101.3998905 | H25: 354.501 | I25: 328.628 | J25: 332.189 | K25: 101.083596
A27: 26 LA RIOJA | C27: 5239 | D27: 5746 | E27: 5848 | F27: 101.7751479 | H27: 15.013 | I27: 32.18 | J27: 23.763 | K27: 73.84400249
A29: 22 Huesca | C29: 128345 | D29: 148072.6 | E29: 148600 | H29: 606.694 | I29: 743.127 | J29: 669.46
A30: 44 Teruel | C30: 60293 | D30: 89740 | E30: 94820 | H30: 71.44 | I30: 245.059 | J30: 233.251
A31: 50 Zaragoza | C31: 155889 | D31: 145680.62 | E31: 161422.52 | H31: 356.874 | I31: 518.364 | J31: 576.059
A32: ARAGÓN | C32: 344527 | D32: 383493.22 | E32: 404842.52 | F32: 105.5670606 | H32: 1035.008 | I32: 1506.55 | J32: 1478.77 | K32: 98.15605191
A34: 8 Barcelona | C34: 31371 | D34: 34246 | E34: 33181 | H34: 64.968 | I34: 144.397 | J34: 121.34
A35: 17 Girona | C35: 18324 | D35: 17725 | E35: 16451 | H35: 40.556 | I35: 61.852 | J35: 63.394
A36: 25 Lleida | C36: 99669 | D36: 105957 | E36: 103800 | H36: 348.564 | I36: 541.171 | J36: 541.43
A37: 43 Tarragona | C37: 11568 | D37: 12455 | E37: 12625 | H37: 14.326 | I37: 45.766 | J37: 52.174
A38: CATALUÑA | C38: 160932 | D38: 170383 | E38: 166057 | F38: 97.4610143 | H38: 468.414 | I38: 793.186 | J38: 778.338 | K38: 98.12805571
A40: 7 BALEARES | C40: 9046 | D40: 10000 | E40: 10210 | F40: 102.1 | H40: 11.953 | I40: 13.2 | J40: 19 | K40: 143.9393939
A42: 5 Ávila | C42: 36209 | D42: 41637 | E42: 41570 | H42: 68.943 | I42: 162.995 | J42: 92.891
A43: 9 Burgos | C43: 132936 | D43: 144500 | E43: 135816 | H43: 693.251 | I43: 769.321 | J43: 523.116
A44: 24 León | C44: 17714 | D44: 22314 | E44: 20000 | H44: 72.925 | I44: 97.61 | J44: 66.8
A45: 34 Palencia | C45: 98303 | D45: 106711 | E45: 96210 | H45: 454.244 | I45: 551.669 | J45: 355.876
A46: 37 Salamanca | C46: 27070 | D46: 29841 | E46: 26950 | H46: 93.746 | I46: 137.508 | J46: 93.44
A47: 40 Segovia | C47: 50297 | D47: 63230 | E47: 60750 | H47: 137.104 | I47: 255.518 | J47: 156.868
A48: 42 Soria | C48: 72275 | D48: 77251 | E48: 63000 | H48: 254.102 | I48: 306.047 | J48: 189
A49: 47 Valladolid | C49: 146222 | D49: 160653 | E49: 160653 | H49: 645.403 | I49: 850.455 | J49: 543.388
A50: 49 Zamora | C50: 60390 | D50: 67126 | E50: 59416 | H50: 236.898 | I50: 318.673 | J50: 215.705
A51: CASTILLA Y LEÓN | C51: 641416 | D51: 713263 | E51: 664365 | F51: 93.14446424 | H51: 2656.616 | I51: 3449.796 | J51: 2237.084 | K51: 64.84684892
A53: 28 MADRID | C53: 36075 | D53: 36599 | E53: 36596 | F53: 99.99180305 | H53: 99.333 | I53: 105.555 | J53: 93.584 | K53: 88.65899294
A55: 2 Albacete | C55: 35050 | D55: 34645 | E55: 35090 | H55: 41.978 | I55: 81.175 | J55: 91.894
A56: 13 Ciudad Real | C56: 136787 | D56: 129364 | E56: 134700 | H56: 494.907 | I56: 501.955 | J56: 525.348
A57: 16 Cuenca | C57: 229701 | D57: 218697 | E57: 239205 | H57: 721.318 | I57: 730.562 | J57: 789.362
A58: 19 Guadalajara | C58: 78441 | D58: 78441 | E58: 80675 | H58: 256.218 | I58: 278.884 | J58: 306.675
A59: 45 Toledo | C59: 139304 | D59: 119524 | E59: 118524 | H59: 384.672 | I59: 388.474 | J59: 320.508
A60: CASTILLA-MANCHA | C60: 619283 | D60: 580671 | E60: 608194 | F60: 104.7398613 | H60: 1899.093 | I60: 1981.05 | J60: 2033.787 | K60: 102.6620731
A62: 3 Alicante | C62: 2267 | D62: 2278 | E62: 2010.64 | H62: 1.354 | I62: 4.001 | J62: 4.848
A63: 12 Castellón | C63: 1479 | D63: 1921 | E63: 1921 | H63: 0.369 | I63: 3.649 | J63: 3.649
A64: 46 Valencia | C64: 7004 | D64: 6114 | E64: 7560 | H64: 4.155 | I64: 18.595 | J64: 23.025
A65: C. VALENCIANA | C65: 10750 | D65: 10313 | E65: 11491.64 | F65: 111.4286822 | H65: 5.878 | I65: 26.245 | J65: 31.522 | K65: 120.106687
A67: 30 R. DE MURCIA | C67: 16583 | D67: 16583 | E67: 19813 | F67: 119.4777784 | H67: 21.498 | I67: 21.856 | J67: 24.551 | K67: 112.3307101
A69: 6 Badajoz | C69: 50417 | D69: 50234 | E69: 47500 | H69: 153.487 | I69: 120.775 | J69: 120.159
A70: 10 Cáceres | C70: 1007 | D70: 557 | E70: 850 | H70: 1.772 | I70: 0.902 | J70: 1.397
A71: EXTREMADURA | C71: 51424 | D71: 50791 | E71: 48350 | F71: 95.19403044 | H71: 155.259 | I71: 121.677 | J71: 121.556 | K71: 99.90055639
A73: 4 Almería | C73: 8351 | D73: 6965 | E73: 7000 | H73: 0.713 | I73: 18.106 | J73: 10.6
A74: 11 Cádiz | C74: 9221 | D74: 10731.94 | E74: 9374.18 | H74: 14.543 | I74: 31.214 | J74: 29.31
A75: 14 Córdoba | C75: 19649 | D75: 19270 | E75: 19190 | H75: 65.325 | I75: 58.099 | J75: 51.275
A76: 18 Granada | C76: 33972 | D76: 33418 | E76: 29225 | H76: 38.206 | I76: 71.06 | J76: 58.315
A77: 21 Huelva | C77: 1187 | D77: 750 | E77: 750 | H77: 3.57 | I77: 2.235 | J77: 2.272
A78: 23 Jaén | C78: 5709 | D78: 5513 | E78: 5492 | H78: 11.4 | I78: 11.006 | J78: 10.965
A79: 29 Málaga | C79: 9524 | D79: 10462 | E79: 10704 | H79: 29.358 | I79: 31.649 | J79: 34.663
A80: 41 Sevilla | C80: 19980 | D80: 17500 | E80: 15400 | H80: 67.842 | I80: 49.176 | J80: 43.08
A81: ANDALUCÍA | C81: 107593 | D81: 104609.94 | E81: 97135.18 | F81: 92.85463695 | H81: 230.957 | I81: 272.545 | J81: 240.48 | K81: 88.23497037
A83: 35 Palmas (Las) | C83: 44 | D83: 44 | E83: 44 | H83: 0.079 | I83: 0.079 | J83: 0.079
A84: 38 S. C. Tenerife | C84: 48 | D84: 48 | E84: 48 | H84: 0.046 | I84: 0.046 | J84: 0.046
A85: CANARIAS | C85: 92 | D85: 92 | E85: 92 | F85: 100 | H85: 0.125 | I85: 0.125 | J85: 0.125 | K85: 100
A88: ESPAÑA | C88: 2080053 | D88: 2157286.91 | E88: 2148562.88 | F88: 99.59560177 | H88: 6995.533 | I88: 8678.872 | J88: 7440.473 | K88: 85.73087609
A91: (*)Tipo de Superficie de mes/año solicitado

Sheet Ceb13rno-SRT
A1: AVANCES DE SUPERFICIE Y PRODUCCIÓN
A2: CEBADA 2C DE INVIERNO S/R/T | K2: 2026 ABRIL
A3: SUPERFICIE CULTIVADA(*)
A4: PROVINCIAS | B4: SUPERFICIES (HA) | E4: SUPERFICIES (HA) | H4: SUPERFICIES (HA) | L4: PRODUCCIONES (1000 TM) | O4: PRODUCCIONES (1000 TM) | R4: PRODUCCIONES (1000 TM)
A5: Y | B5: SECANO | E5: REGADIO | H5: TOTAL | L5: SECANO | O5: REGADIO | R5: TOTAL
A6: CC-AA | B6: =J6-2 -> 2024 | C6: =J6-1 -> 2025 | D6: =J6 -> 2026 | E6: =J6-2 -> 2024 | F6: =J6-1 -> 2025 | G6: =J6 -> 2026 | H6: =J6-2 -> 2024 | I6: =J6-1 -> 2025 | J6: 2026 | L6: =T6-2 -> 2024 | M6: =T6-1 -> 2025 | N6: =T6 -> 2026 | O6: =T6-2 -> 2024 | P6: =T6-1 -> 2025 | Q6: =T6 -> 2026 | R6: =T6-2 -> 2024 | S6: =T6-1 -> 2025 | T6: 2026
B7: DEFINITIVO | C7: PROVISIONAL | D7: PROVISIONAL | E7: DEFINITIVO | F7: PROVISIONAL | H7: DEFINITIVO | I7: PROVISIONAL | L7: DEFINITIVO | M7: PROVISIONAL | O7: DEFINITIVO | P7: PROVISIONAL | R7: DEFINITIVO | S7: PROVISIONAL
A10: 15 Coruña (La) | B10: 110 | C10: 31.35 | D10: 21.34 | H10: 110 | I10: 31.35 | J10: 21.34 | L10: 0.275 | M10: 0.158 | N10: 0.101 | R10: 0.275 | S10: 0.158 | T10: 0.101
A11: 27 Lugo | B11: 47 | C11: 73.1 | D11: 62.14 | H11: 47 | I11: 73.1 | J11: 62.14 | L11: 0.118 | M11: 0.26 | N11: 0.189 | R11: 0.118 | S11: 0.26 | T11: 0.189
A12: 32 Orense | B12: 578 | C12: 991.63 | D12: 1029.68 | H12: 578 | I12: 991.63 | J12: 1029.68 | L12: 2.549 | M12: 2.866 | N12: 1.225 | R12: 2.549 | S12: 2.866 | T12: 1.225
A13: 36 Pontevedra | B13: 27 | C13: 79.67 | D13: 38.38 | H13: 27 | I13: 79.67 | J13: 38.38 | L13: 0.119 | M13: 0.263 | N13: 0.143 | R13: 0.119 | S13: 0.263 | T13: 0.143
A14: GALICIA | B14: 762 | C14: 1175.75 | D14: 1151.54 | H14: 762 | I14: 1175.75 | J14: 1151.54 | L14: 3.061 | M14: 3.547 | N14: 1.658 | R14: 3.061 | S14: 3.547 | T14: 1.658
A16: 33 P. DE ASTURIAS
A18: 39 CANTABRIA
A20: 01 Alava | B20: 5462 | C20: 4133 | D20: 4011 | H20: 5462 | I20: 4133 | J20: 4011 | L20: 38.78 | M20: 22.732 | N20: 24.066 | R20: 38.78 | S20: 22.732 | T20: 24.066
A21: 20 Guipúzcoa
A22: 48 Vizcaya
A23: PAIS VASCO | B23: 5462 | C23: 4133 | D23: 4011 | H23: 5462 | I23: 4133 | J23: 4011 | L23: 38.78 | M23: 22.732 | N23: 24.066 | R23: 38.78 | S23: 22.732 | T23: 24.066
A25: 31 NAVARRA | B25: 58845 | C25: 57520 | D25: 59328 | E25: 11847 | F25: 11834 | G25: 11078 | H25: 70692 | I25: 69354 | J25: 70406 | L25: 276.209 | M25: 261.408 | N25: 269.634 | O25: 77.539 | P25: 66.82 | Q25: 62.555 | R25: 353.748 | S25: 328.228 | T25: 332.189
A27: 26 LA RIOJA | B27: 5239 | C27: 4295 | D27: 4490 | F27: 1451 | G27: 1358 | H27: 5239 | I27: 5746 | J27: 5848 | L27: 15.013 | M27: 24.446 | N27: 17.188 | P27: 7.734 | Q27: 6.575 | R27: 15.013 | S27: 32.18 | T27: 23.763
A29: 22 Huesca | B29: 74170 | C29: 90471.55 | D29: 90500 | E29: 51413 | F29: 54635.91 | G29: 55000 | H29: 125583 | I29: 145107.46 | J29: 145500 | L29: 289.04 | M29: 363.696 | N29: 352.95 | O29: 304.879 | P29: 364.968 | Q29: 302.5 | R29: 593.92 | S29: 728.664 | T29: 655.45
A30: 44 Teruel | B30: 50194 | C30: 79541 | D30: 84322 | E30: 7900 | F30: 8465 | G30: 8601 | H30: 58094 | I30: 88006 | J30: 92923 | L30: 47.401 | M30: 206.965 | N30: 197.465 | O30: 21.686 | P30: 33.36 | Q30: 31.131 | R30: 69.087 | S30: 240.325 | T30: 228.596
A31: 50 Zaragoza | B31: 122038 | C31: 121825.35 | D31: 135010.19 | E31: 28204 | F31: 20876.94 | G31: 23136.92 | H31: 150242 | I31: 142702.29 | J31: 158147.11 | L31: 203.803 | M31: 382.775 | N31: 424.171 | O31: 143.276 | P31: 128.31 | Q31: 142.199 | R31: 347.08 | S31: 511.085 | T31: 566.37
A32: ARAGON | B32: 246402 | C32: 291837.9 | D32: 309832.19 | E32: 87517 | F32: 83977.85 | G32: 86737.92 | H32: 333919 | I32: 375815.75 | J32: 396570.11 | L32: 540.244 | M32: 953.436 | N32: 974.586 | O32: 469.841 | P32: 526.638 | Q32: 475.83 | R32: 1010.087 | S32: 1480.074 | T32: 1450.416
A34: 08 Barcelona | B34: 30608 | C34: 33133 | D34: 32025 | E34: 655 | F34: 1003 | G34: 1046 | H34: 31263 | I34: 34136 | J34: 33071 | L34: 61.338 | M34: 138.306 | N34: 115.29 | O34: 3.34 | P34: 5.665 | Q34: 5.65 | R34: 64.678 | S34: 143.971 | T34: 120.94
A35: 17 Girona | B35: 15780 | C35: 13234 | D35: 12135 | E35: 2487 | F35: 4438 | G35: 4265 | H35: 18267 | I35: 17672 | J35: 16400 | L35: 32.128 | M35: 44.209 | N35: 44.9 | O35: 8.302 | P35: 17.481 | Q35: 18.34 | R35: 40.43 | S35: 61.69 | T35: 63.239
A36: 25 Lleida | B36: 67224 | C36: 75917 | D36: 74428 | E36: 32239 | F36: 29880 | G36: 29210 | H36: 99463 | I36: 105797 | J36: 103638 | L36: 145.607 | M36: 334.035 | N36: 340 | O36: 201.881 | P36: 206.172 | Q36: 200.5 | R36: 347.488 | S36: 540.207 | T36: 540.5
A37: 43 Tarragona | B37: 11198 | C37: 12129 | D37: 12331 | E37: 335 | F37: 287 | G37: 224 | H37: 11533 | I37: 12416 | J37: 12555 | L37: 13.758 | M37: 44.27 | N37: 51 | O37: 0.524 | P37: 1.349 | Q37: 1 | R37: 14.282 | S37: 45.619 | T37: 52
A38: CATALUÑA | B38: 124810 | C38: 134413 | D38: 130919 | E38: 35716 | F38: 35608 | G38: 34745 | H38: 160526 | I38: 170021 | J38: 165664 | L38: 252.831 | M38: 560.82 | N38: 551.19 | O38: 214.047 | P38: 230.667 | Q38: 225.49 | R38: 466.878 | S38: 791.487 | T38: 776.679
A40: 07 BALEARES | B40: 350 | C40: 800 | D40: 710 | H40: 350 | I40: 800 | J40: 710 | L40: 0.473 | M40: 0.8 | N40: 1.3 | R40: 0.473 | S40: 0.8 | T40: 1.3
A42: 05 Avila | B42: 32834 | C42: 38370 | D42: 38300 | E42: 1717 | F42: 1429 | G42: 1450 | H42: 34551 | I42: 39799 | J42: 39750 | L42: 59.856 | M42: 149.95 | N42: 82.92 | O42: 5.726 | P42: 6.459 | Q42: 6.235 | R42: 65.582 | S42: 156.409 | T42: 89.155
A43: 09 Burgos | B43: 123415 | C43: 139293 | D43: 130548 | E43: 4790 | F43: 5207 | G43: 5268 | H43: 128205 | I43: 144500 | J43: 135816 | L43: 637.685 | M43: 735.049 | N43: 488.511 | O43: 31.121 | P43: 34.272 | Q43: 34.605 | R43: 668.806 | S43: 769.321 | T43: 523.116
A44: 24 León | B44: 12794 | C44: 16862 | D44: 14800 | E44: 3920 | F44: 4196 | G44: 4000 | H44: 16714 | I44: 21058 | J44: 18800 | L44: 48.732 | M44: 70.146 | N44: 42.92 | O44: 20.384 | P44: 22.239 | Q44: 20.4 | R44: 69.116 | S44: 92.385 | T44: 63.32
A45: 34 Palencia | B45: 86264 | C45: 95744 | D45: 86314 | E45: 8685 | F45: 10424 | G45: 9383 | H45: 94949 | I45: 106168 | J45: 95697 | L45: 388.015 | M45: 488.582 | N45: 305.206 | O45: 51.276 | P45: 60.313 | Q45: 48.848 | R45: 439.292 | S45: 548.895 | T45: 354.054
A46: 37 Salamanca | B46: 23512 | C46: 24887 | D46: 23000 | E46: 2958 | F46: 4604 | G46: 3600 | H46: 26470 | I46: 29491 | J46: 26600 | L46: 76.414 | M46: 111.992 | N46: 73.6 | O46: 15.382 | P46: 23.941 | Q46: 18.72 | R46: 91.796 | S46: 135.933 | T46: 92.32
A47: 40 Segovia | B47: 42714 | C47: 55677 | D47: 54780 | E47: 2583 | F47: 3553 | G47: 2970 | H47: 45297 | I47: 59230 | J47: 57750 | L47: 110.629 | M47: 221.817 | N47: 137.333 | O47: 12.814 | P47: 17.765 | Q47: 12.014 | R47: 123.443 | S47: 239.582 | T47: 149.347
A48: 42 Soria | B48: 64422 | C48: 71171 | D48: 57500 | E48: 2803 | F48: 3060 | G48: 2985 | H48: 67225 | I48: 74231 | J48: 60485 | L48: 223.093 | M48: 277.709 | N48: 166.75 | O48: 13.454 | P48: 16.524 | Q48: 14.925 | R48: 236.547 | S48: 294.233 | T48: 181.675
A49: 47 Valladolid | B49: 123943 | C49: 134366 | D49: 134366 | E49: 20529 | F49: 25112 | G49: 25112 | H49: 144472 | I49: 159478 | J49: 159478 | L49: 506.927 | M49: 668.471 | N49: 406.995 | O49: 130.749 | P49: 175.784 | Q49: 132.441 | R49: 637.676 | S49: 844.255 | T49: 539.436
A50: 49 Zamora | B50: 49431 | C50: 57472 | D50: 50776 | E50: 8021 | F50: 9654 | G50: 8640 | H50: 57452 | I50: 67126 | J50: 59416 | L50: 182.746 | M50: 251.095 | N50: 169.49 | O50: 42.624 | P50: 67.578 | Q50: 46.215 | R50: 225.37 | S50: 318.673 | T50: 215.705
A51: CASTILLA Y LEON | B51: 559329 | C51: 633842 | D51: 590384 | E51: 56006 | F51: 67239 | G51: 63408 | H51: 615335 | I51: 701081 | J51: 653792 | L51: 2234.097 | M51: 2974.811 | N51: 1873.725 | O51: 323.53 | P51: 424.875 | Q51: 334.403 | R51: 2557.628 | S51: 3399.686 | T51: 2208.128
A53: 28 MADRID | B53: 31380 | C53: 33238 | D53: 32849 | E53: 3587 | F53: 2996 | G53: 3381 | H53: 34967 | I53: 36234 | J53: 36230 | L53: 83.031 | M53: 93.132 | N53: 79.857 | O53: 13.05 | P53: 11.302 | Q53: 12.608 | R53: 96.082 | S53: 104.434 | T53: 92.465
A55: 02 Albacete | B55: 16300 | C55: 16115 | D55: 16483 | E55: 450 | F55: 450 | G55: 450 | H55: 16750 | I55: 16565 | J55: 16933 | L55: 16.508 | M55: 36.645 | N55: 42.032 | O55: 2.97 | P55: 3.1 | Q55: 3.15 | R55: 19.478 | S55: 39.745 | T55: 45.182
A56: 13 Ciudad Real | B56: 72134 | C56: 65815 | D56: 76560 | E56: 23617 | F56: 24740 | G56: 31200 | H56: 95751 | I56: 90555 | J56: 107760 | L56: 222.173 | M56: 210.608 | N56: 244.992 | O56: 118.085 | P56: 136.07 | Q56: 171.6 | R56: 340.258 | S56: 346.678 | T56: 416.592
A57: 16 Cuenca | B57: 206507 | C57: 194279 | D57: 208900 | E57: 6849 | F57: 6948 | G57: 7730 | H57: 213356 | I57: 201227 | J57: 216630 | L57: 630.491 | M57: 631.41 | N57: 668.45 | O57: 37.968 | P57: 38.492 | Q57: 42.49 | R57: 668.459 | S57: 669.902 | T57: 710.94
A58: 19 Guadalajara | B58: 72517 | C58: 72517 | D58: 75112 | E58: 2787 | F58: 2787 | G58: 6 | H58: 75304 | I58: 75304 | J58: 75118 | L58: 232.054 | M58: 253.81 | N58: 285.426 | O58: 13.935 | P58: 13.935 | Q58: 0.03 | R58: 245.989 | S58: 267.745 | T58: 285.456
A59: 45 Toledo | B59: 118055 | C59: 97891 | D59: 97891 | E59: 8671 | F59: 9681 | G59: 9681 | H59: 126726 | I59: 107572 | J59: 107572 | L59: 306.943 | M59: 293.673 | N59: 239.833 | O59: 40.754 | P59: 56.555 | Q59: 38.724 | R59: 347.697 | S59: 350.228 | T59: 278.557
A60: CASTILLA-MANCHA | B60: 485513 | C60: 446617 | D60: 474946 | E60: 42374 | F60: 44606 | G60: 49067 | H60: 527887 | I60: 491223 | J60: 524013 | L60: 1408.169 | M60: 1426.146 | N60: 1480.733 | O60: 213.712 | P60: 248.152 | Q60: 255.994 | R60: 1621.881 | S60: 1674.298 | T60: 1736.727
A62: 03 Alicante | B62: 1507 | C62: 1782 | D62: 1566.93 | E62: 526 | F62: 382 | G62: 343.71 | H62: 2033 | I62: 2164 | J62: 1910.64 | L62: 0.196 | M62: 2.305 | N62: 2.998 | O62: 1.011 | P62: 1.496 | Q62: 1.608 | R62: 1.207 | S62: 3.801 | T62: 4.606
A63: 12 Castellón | B63: 1408 | C63: 1850 | D63: 1850 | E63: 47 | F63: 47 | G63: 47 | H63: 1455 | I63: 1897 | J63: 1897 | L63: 0.183 | M63: 3.423 | N63: 3.423 | O63: 0.183 | P63: 0.183 | Q63: 0.183 | R63: 0.366 | S63: 3.606 | T63: 3.606
A64: 46 Valencia | B64: 6254 | C64: 5421 | D64: 6677 | E64: 457 | F64: 438 | G64: 568 | H64: 6711 | I64: 5859 | J64: 7245 | L64: 2.128 | M64: 15.992 | N64: 19.697 | O64: 1.854 | P64: 1.833 | Q64: 2.377 | R64: 3.982 | S64: 17.825 | T64: 22.074
A65: C. VALENCIANA | B65: 9169 | C65: 9053 | D65: 10093.93 | E65: 1030 | F65: 867 | G65: 958.71 | H65: 10199 | I65: 9920 | J65: 11052.64 | L65: 2.507 | M65: 21.72 | N65: 26.118 | O65: 3.048 | P65: 3.512 | Q65: 4.168 | R65: 5.555 | S65: 25.232 | T65: 30.286
A67: 30 R. DE MURCIA | B67: 6979 | C67: 7084 | D67: 7340 | E67: 516 | F67: 411 | G67: 629 | H67: 7495 | I67: 7495 | J67: 7969 | L67: 6.167 | M67: 6.588 | N67: 7.576 | O67: 1.507 | P67: 1.2 | Q67: 1.236 | R67: 7.674 | S67: 7.788 | T67: 8.812
A69: 06 Badajoz | B69: 44967 | C69: 45875 | D69: 43225 | E69: 2710 | F69: 2674 | G69: 2850 | H69: 47677 | I69: 48549 | J69: 46075 | L69: 135.89 | M69: 107.948 | N69: 108.062 | O69: 10.558 | P69: 8.18 | Q69: 9.262 | R69: 146.448 | S69: 116.128 | T69: 117.324
A70: 10 Cáceres | B70: 227 | C70: 121 | D70: 400 | E70: 702 | F70: 351 | G70: 350 | H70: 929 | I70: 472 | J70: 750 | L70: 0.347 | M70: 0.165 | N70: 0.612 | O70: 1.328 | P70: 0.621 | Q70: 0.665 | R70: 1.675 | S70: 0.786 | T70: 1.277
A71: EXTREMADURA | B71: 45194 | C71: 45996 | D71: 43625 | E71: 3412 | F71: 3025 | G71: 3200 | H71: 48606 | I71: 49021 | J71: 46825 | L71: 136.237 | M71: 108.113 | N71: 108.674 | O71: 11.886 | P71: 8.801 | Q71: 9.927 | R71: 148.123 | S71: 116.914 | T71: 118.601
A73: 04 Almería
A74: 11 Cádiz | B74: 8026 | C74: 9264.81 | D74: 8418.64 | E74: 580 | F74: 551 | G74: 595.86 | H74: 8606 | I74: 9815.81 | J74: 9014.5 | L74: 12.151 | M74: 26.868 | N74: 25.817 | O74: 1.378 | P74: 1.598 | Q74: 2.383 | R74: 13.529 | S74: 28.466 | T74: 28.2
A75: 14 Córdoba | B75: 5846 | C75: 4930 | D75: 4850 | E75: 1048 | F75: 530 | G75: 530 | H75: 6894 | I75: 5460 | J75: 5380 | L75: 17.538 | M75: 13.804 | N75: 12.61 | O75: 3.144 | P75: 1.484 | Q75: 1.378 | R75: 20.682 | S75: 15.288 | T75: 13.988
A76: 18 Granada | B76: 27335 | C76: 27004 | D76: 22050 | E76: 3517 | F76: 3534 | G76: 3010 | H76: 30852 | I76: 30538 | J76: 25060 | L76: 26.547 | M76: 56.925 | N76: 41.079 | O76: 8.369 | P76: 10.284 | Q76: 11.315 | R76: 34.916 | S76: 67.209 | T76: 52.394
A77: 21 Huelva | B77: 994 | C77: 668 | D77: 668 | E77: 83 | F77: 32 | G77: 32 | H77: 1077 | I77: 700 | J77: 700 | L77: 2.982 | M77: 1.994 | N77: 2.004 | O77: 0.258 | P77: 0.106 | Q77: 0.128 | R77: 3.24 | S77: 2.1 | T77: 2.132
A78: 23 Jaén | B78: 3146 | C78: 3019 | D78: 3006 | E78: 336 | F78: 344 | G78: 344 | H78: 3482 | I78: 3363 | J78: 3350 | L78: 5.977 | M78: 5.736 | N78: 5.711 | O78: 0.84 | P78: 0.86 | Q78: 0.86 | R78: 6.817 | S78: 6.596 | T78: 6.571
A79: 29 Málaga | B79: 8435 | C79: 9094 | D79: 9210 | E79: 589 | F79: 818 | G79: 847 | H79: 9024 | I79: 9912 | J79: 10057 | L79: 25.305 | M79: 26.339 | N79: 28.286 | O79: 2.415 | P79: 3.44 | Q79: 4.235 | R79: 27.72 | S79: 29.779 | T79: 32.521
A80: 41 Sevilla | B80: 15660 | C80: 14560 | D80: 13000 | E80: 2320 | F80: 1180 | G80: 1000 | H80: 17980 | I80: 15740 | J80: 14000 | L80: 53.244 | M80: 40.768 | N80: 36.4 | O80: 8.816 | P80: 3.776 | Q80: 3 | R80: 62.06 | S80: 44.544 | T80: 39.4
A81: ANDALUCIA | B81: 69442 | C81: 68539.81 | D81: 61202.64 | E81: 8473 | F81: 6989 | G81: 6358.86 | H81: 77915 | I81: 75528.81 | J81: 67561.5 | L81: 143.744 | M81: 172.434 | N81: 151.907 | O81: 25.22 | P81: 21.548 | Q81: 23.299 | R81: 168.964 | S81: 193.982 | T81: 175.206
A83: 35 Palmas (Las) | B83: 22 | C83: 22 | D83: 22 | E83: 22 | F83: 22 | G83: 22 | H83: 44 | I83: 44 | J83: 44 | L83: 0.022 | M83: 0.022 | N83: 0.022 | O83: 0.057 | P83: 0.057 | Q83: 0.057 | R83: 0.079 | S83: 0.079 | T83: 0.079
A84: 38 S. C. Tenerife | B84: 47 | C84: 47 | D84: 47 | E84: 1 | F84: 1 | G84: 1 | H84: 48 | I84: 48 | J84: 48 | L84: 0.045 | M84: 0.045 | N84: 0.045 | O84: 0.001 | P84: 0.001 | Q84: 0.001 | R84: 0.046 | S84: 0.046 | T84: 0.046
A85: CANARIAS | B85: 69 | C85: 69 | D85: 69 | E85: 23 | F85: 23 | G85: 23 | H85: 92 | I85: 92 | J85: 92 | L85: 0.067 | M85: 0.067 | N85: 0.067 | O85: 0.058 | P85: 0.058 | Q85: 0.058 | R85: 0.125 | S85: 0.125 | T85: 0.125
A88: ESPAÑA | B88: 3297890 | C88: 1738613.46 | D88: 1730951.3 | E88: 250501 | F88: 259026.85 | G88: 260944.49 | H88: 1899446 | I88: 1997640.31 | J88: 1991895.79 | L88: 5140.63 | M88: 6630.2 | N88: 5568.279 | O88: 1353.438 | P88: 1551.307 | Q88: 1412.143 | R88: 6494.072 | S88: 8181.507 | T88: 6980.421
B96: 221 | C96: 231 | E96: 221 | F96: 231 | H96: 221 | I96: 231

Sheet Ceb13rno
A1: AVANCES DE SUPERFICIE Y PRODUCCIÓN
A2: CEBADA 2C DE INVIERNO | J2: 2026 ABRIL
A3: SUPERFICIE CULTIVADA(*)
A4: PROVINCIAS | C4: SUPERFICIES (HA) | H4: PRODUCCIONES (1000 TM)
A5: Y
A6: CC-AA | C6: =E6-2 -> 2024 | D6: =E6-1 -> 2025 | E6: 2026 | F6: =E6 -> 2026 | H6: =J6-2 -> 2024 | I6: =J6-1 -> 2025 | J6: 2026 | K6: =J6 -> 2026
C7: DEFINITIVO | D7: PROVISIONAL | H7: DEFINITIVO | I7: PROVISIONAL
F8: =CONCATENATE(D6,"=100") -> 2025=100 | K8: =CONCATENATE(I6,"=100") -> 2025=100
A10: 15 A Coruña | C10: 110 | D10: 31.35 | E10: 21.34 | H10: 0.275 | I10: 0.158 | J10: 0.101
A11: 27 Lugo | C11: 47 | D11: 73.1 | E11: 62.14 | H11: 0.118 | I11: 0.26 | J11: 0.189
A12: 32 Ourense | C12: 578 | D12: 991.63 | E12: 1029.68 | H12: 2.549 | I12: 2.866 | J12: 1.225
A13: 36 Pontevedra | C13: 27 | D13: 79.67 | E13: 38.38 | H13: 0.119 | I13: 0.263 | J13: 0.143
A14: GALICIA | C14: 762 | D14: 1175.75 | E14: 1151.54 | F14: 97.94088879 | H14: 3.061 | I14: 3.547 | J14: 1.658 | K14: 46.74372709
A16: 33 P. DE ASTURIAS
A18: 39 CANTABRIA
A20: 1 Álava | C20: 5462 | D20: 4133 | E20: 4011 | H20: 38.78 | I20: 22.732 | J20: 24.066
A21: 20 Guipúzcoa
A22: 48 Vizcaya
A23: PAIS VASCO | C23: 5462 | D23: 4133 | E23: 4011 | F23: 97.04814904 | H23: 38.78 | I23: 22.732 | J23: 24.066 | K23: 105.8683794
A25: 31 NAVARRA | C25: 70692 | D25: 69354 | E25: 70406 | F25: 101.5168556 | H25: 353.748 | I25: 328.228 | J25: 332.189 | K25: 101.2067831
A27: 26 LA RIOJA | C27: 5239 | D27: 5746 | E27: 5848 | F27: 101.7751479 | H27: 15.013 | I27: 32.18 | J27: 23.763 | K27: 73.84400249
A29: 22 Huesca | C29: 125583 | D29: 145107.46 | E29: 145500 | H29: 593.92 | I29: 728.664 | J29: 655.45
A30: 44 Teruel | C30: 58094 | D30: 88006 | E30: 92923 | H30: 69.087 | I30: 240.325 | J30: 228.596
A31: 50 Zaragoza | C31: 150242 | D31: 142702.29 | E31: 158147.11 | H31: 347.08 | I31: 511.085 | J31: 566.37
A32: ARAGÓN | C32: 333919 | D32: 375815.75 | E32: 396570.11 | F32: 105.5224828 | H32: 1010.087 | I32: 1480.074 | J32: 1450.416 | K32: 97.99618127
A34: 8 Barcelona | C34: 31263 | D34: 34136 | E34: 33071 | H34: 64.678 | I34: 143.971 | J34: 120.94
A35: 17 Girona | C35: 18267 | D35: 17672 | E35: 16400 | H35: 40.43 | I35: 61.69 | J35: 63.239
A36: 25 Lleida | C36: 99463 | D36: 105797 | E36: 103638 | H36: 347.488 | I36: 540.207 | J36: 540.5
A37: 43 Tarragona | C37: 11533 | D37: 12416 | E37: 12555 | H37: 14.282 | I37: 45.619 | J37: 52
A38: CATALUÑA | C38: 160526 | D38: 170021 | E38: 165664 | F38: 97.43737538 | H38: 466.878 | I38: 791.487 | J38: 776.679 | K38: 98.12909119
A40: 7 BALEARES | C40: 350 | D40: 800 | E40: 710 | F40: 88.75 | H40: 0.473 | I40: 0.8 | J40: 1.3 | K40: 162.5
A42: 5 Ávila | C42: 34551 | D42: 39799 | E42: 39750 | H42: 65.582 | I42: 156.409 | J42: 89.155
A43: 9 Burgos | C43: 128205 | D43: 144500 | E43: 135816 | H43: 668.806 | I43: 769.321 | J43: 523.116
A44: 24 León | C44: 16714 | D44: 21058 | E44: 18800 | H44: 69.116 | I44: 92.385 | J44: 63.32
A45: 34 Palencia | C45: 94949 | D45: 106168 | E45: 95697 | H45: 439.292 | I45: 548.895 | J45: 354.054
A46: 37 Salamanca | C46: 26470 | D46: 29491 | E46: 26600 | H46: 91.796 | I46: 135.933 | J46: 92.32
A47: 40 Segovia | C47: 45297 | D47: 59230 | E47: 57750 | H47: 123.443 | I47: 239.582 | J47: 149.347
A48: 42 Soria | C48: 67225 | D48: 74231 | E48: 60485 | H48: 236.547 | I48: 294.233 | J48: 181.675
A49: 47 Valladolid | C49: 144472 | D49: 159478 | E49: 159478 | H49: 637.676 | I49: 844.255 | J49: 539.436
A50: 49 Zamora | C50: 57452 | D50: 67126 | E50: 59416 | H50: 225.37 | I50: 318.673 | J50: 215.705
A51: CASTILLA Y LEÓN | C51: 615335 | D51: 701081 | E51: 653792 | F51: 93.25484502 | H51: 2557.628 | I51: 3399.686 | J51: 2208.128 | K51: 64.95093959
A53: 28 MADRID | C53: 34967 | D53: 36234 | E53: 36230 | F53: 99.98896064 | H53: 96.082 | I53: 104.434 | J53: 92.465 | K53: 88.53917307
A55: 2 Albacete | C55: 16750 | D55: 16565 | E55: 16933 | H55: 19.478 | I55: 39.745 | J55: 45.182
A56: 13 Ciudad Real | C56: 95751 | D56: 90555 | E56: 107760 | H56: 340.258 | I56: 346.678 | J56: 416.592
A57: 16 Cuenca | C57: 213356 | D57: 201227 | E57: 216630 | H57: 668.459 | I57: 669.902 | J57: 710.94
A58: 19 Guadalajara | C58: 75304 | D58: 75304 | E58: 75118 | H58: 245.989 | I58: 267.745 | J58: 285.456
A59: 45 Toledo | C59: 126726 | D59: 107572 | E59: 107572 | H59: 347.697 | I59: 350.228 | J59: 278.557
A60: CASTILLA-MANCHA | C60: 527887 | D60: 491223 | E60: 524013 | F60: 106.675176 | H60: 1621.881 | I60: 1674.298 | J60: 1736.727 | K60: 103.7286672
A62: 3 Alicante | C62: 2033 | D62: 2164 | E62: 1910.64 | H62: 1.207 | I62: 3.801 | J62: 4.606
A63: 12 Castellón | C63: 1455 | D63: 1897 | E63: 1897 | H63: 0.366 | I63: 3.606 | J63: 3.606
A64: 46 Valencia | C64: 6711 | D64: 5859 | E64: 7245 | H64: 3.982 | I64: 17.825 | J64: 22.074
A65: C. VALENCIANA | C65: 10199 | D65: 9920 | E65: 11052.64 | F65: 111.4177419 | H65: 5.555 | I65: 25.232 | J65: 30.286 | K65: 120.0301205
A67: 30 R. DE MURCIA | C67: 7495 | D67: 7495 | E67: 7969 | F67: 106.3242161 | H67: 7.674 | I67: 7.788 | J67: 8.812 | K67: 113.1484335
A69: 6 Badajoz | C69: 47677 | D69: 48549 | E69: 46075 | H69: 146.448 | I69: 116.128 | J69: 117.324
A70: 10 Cáceres | C70: 929 | D70: 472 | E70: 750 | H70: 1.675 | I70: 0.786 | J70: 1.277
A71: EXTREMADURA | C71: 48606 | D71: 49021 | E71: 46825 | F71: 95.52028722 | H71: 148.123 | I71: 116.914 | J71: 118.601 | K71: 101.442941
A73: 4 Almería
A74: 11 Cádiz | C74: 8606 | D74: 9815.81 | E74: 9014.5 | H74: 13.529 | I74: 28.466 | J74: 28.2
A75: 14 Córdoba | C75: 6894 | D75: 5460 | E75: 5380 | H75: 20.682 | I75: 15.288 | J75: 13.988
A76: 18 Granada | C76: 30852 | D76: 30538 | E76: 25060 | H76: 34.916 | I76: 67.209 | J76: 52.394
A77: 21 Huelva | C77: 1077 | D77: 700 | E77: 700 | H77: 3.24 | I77: 2.1 | J77: 2.132
A78: 23 Jaén | C78: 3482 | D78: 3363 | E78: 3350 | H78: 6.817 | I78: 6.596 | J78: 6.571
A79: 29 Málaga | C79: 9024 | D79: 9912 | E79: 10057 | H79: 27.72 | I79: 29.779 | J79: 32.521
A80: 41 Sevilla | C80: 17980 | D80: 15740 | E80: 14000 | H80: 62.06 | I80: 44.544 | J80: 39.4
A81: ANDALUCÍA | C81: 77915 | D81: 75528.81 | E81: 67561.5 | F81: 89.4512968 | H81: 168.964 | I81: 193.982 | J81: 175.206 | K81: 90.32075141
A83: 35 Palmas (Las) | C83: 44 | D83: 44 | E83: 44 | H83: 0.079 | I83: 0.079 | J83: 0.079
A84: 38 S. C. Tenerife | C84: 48 | D84: 48 | E84: 48 | H84: 0.046 | I84: 0.046 | J84: 0.046
A85: CANARIAS | C85: 92 | D85: 92 | E85: 92 | F85: 100 | H85: 0.125 | I85: 0.125 | J85: 0.125 | K85: 100
A88: ESPAÑA | C88: 1899446 | D88: 1997640.31 | E88: 1991895.79 | F88: 99.71243472 | H88: 6494.072 | I88: 8181.507 | J88: 6980.421 | K88: 85.31950165
A91: (*)Tipo de Superficie de mes/año solicitado

Sheet Ceb14rno-SRT
A1: AVANCES DE SUPERFICIE Y PRODUCCIÓN
A2: CEBADA 6C DE INVIERNO S/R/T | K2: 2026 ABRIL
A3: SUPERFICIE CULTIVADA(*)
A4: PROVINCIAS | B4: SUPERFICIES (HA) | E4: SUPERFICIES (HA) | H4: SUPERFICIES (HA) | L4: PRODUCCIONES (1000 TM) | O4: PRODUCCIONES (1000 TM) | R4: PRODUCCIONES (1000 TM)
A5: Y | B5: SECANO | E5: REGADIO | H5: TOTAL | L5: SECANO | O5: REGADIO | R5: TOTAL
A6: CC-AA | B6: =J6-2 -> 2024 | C6: =J6-1 -> 2025 | D6: =J6 -> 2026 | E6: =J6-2 -> 2024 | F6: =J6-1 -> 2025 | G6: =J6 -> 2026 | H6: =J6-2 -> 2024 | I6: =J6-1 -> 2025 | J6: 2026 | L6: =T6-2 -> 2024 | M6: =T6-1 -> 2025 | N6: =T6 -> 2026 | O6: =T6-2 -> 2024 | P6: =T6-1 -> 2025 | Q6: =T6 -> 2026 | R6: =T6-2 -> 2024 | S6: =T6-1 -> 2025 | T6: 2026
B7: DEFINITIVO | C7: PROVISIONAL | D7: PROVISIONAL | E7: DEFINITIVO | F7: PROVISIONAL | H7: DEFINITIVO | I7: PROVISIONAL | L7: DEFINITIVO | M7: PROVISIONAL | O7: DEFINITIVO | P7: PROVISIONAL | R7: DEFINITIVO | S7: PROVISIONAL
A10: 15 Coruña (La)
A11: 27 Lugo
A12: 32 Orense | B12: 10 | H12: 10 | L12: 0.044 | R12: 0.044
A13: 36 Pontevedra
A14: GALICIA | B14: 10 | H14: 10 | L14: 0.044 | R14: 0.044
A16: 33 P. DE ASTURIAS
A18: 39 CANTABRIA
A20: 01 Alava
A21: 20 Guipúzcoa
A22: 48 Vizcaya
A23: PAIS VASCO
A25: 31 NAVARRA | B25: 162 | C25: 75 | E25: 5 | F25: 5 | H25: 167 | I25: 80 | L25: 0.727 | M25: 0.375 | O25: 0.026 | P25: 0.025 | R25: 0.753 | S25: 0.4
A27: 26 LA RIOJA
A29: 22 Huesca | B29: 1631 | C29: 1849.82 | D29: 1900 | E29: 1131 | F29: 1115.32 | G29: 1200 | H29: 2762 | I29: 2965.14 | J29: 3100 | L29: 6.067 | M29: 7.214 | N29: 7.41 | O29: 6.707 | P29: 7.25 | Q29: 6.6 | R29: 12.774 | S29: 14.464 | T29: 14.01
A30: 44 Teruel | B30: 1998 | C30: 1568 | D30: 1721 | E30: 201 | F30: 166 | G30: 176 | H30: 2199 | I30: 1734 | J30: 1897 | L30: 1.801 | M30: 4.08 | N30: 4.03 | O30: 0.552 | P30: 0.654 | Q30: 0.625 | R30: 2.353 | S30: 4.734 | T30: 4.655
A31: 50 Zaragoza | B31: 4587 | C31: 2432.97 | D31: 2186.93 | E31: 1060 | F31: 545.36 | G31: 1088.48 | H31: 5647 | I31: 2978.33 | J31: 3275.41 | L31: 5.183 | M31: 4.569 | N31: 4.279 | O31: 4.611 | P31: 2.71 | Q31: 5.41 | R31: 9.794 | S31: 7.28 | T31: 9.689
A32: ARAGON | B32: 8216 | C32: 5850.79 | D32: 5807.93 | E32: 2392 | F32: 1826.68 | G32: 2464.48 | H32: 10608 | I32: 7677.47 | J32: 8272.41 | L32: 13.051 | M32: 15.863 | N32: 15.719 | O32: 11.87 | P32: 10.614 | Q32: 12.635 | R32: 24.921 | S32: 26.478 | T32: 28.354
A34: 08 Barcelona | B34: 95 | C34: 110 | D34: 100 | E34: 13 | G34: 10 | H34: 108 | I34: 110 | J34: 110 | L34: 0.227 | M34: 0.426 | N34: 0.35 | O34: 0.063 | Q34: 0.05 | R34: 0.29 | S34: 0.426 | T34: 0.4
A35: 17 Girona | B35: 45 | C35: 40 | D35: 47 | E35: 12 | F35: 13 | G35: 4 | H35: 57 | I35: 53 | J35: 51 | L35: 0.086 | M35: 0.12 | N35: 0.143 | O35: 0.039 | P35: 0.042 | Q35: 0.012 | R35: 0.126 | S35: 0.162 | T35: 0.155
A36: 25 Lleida | B36: 60 | C36: 60 | D36: 72 | E36: 146 | F36: 100 | G36: 90 | H36: 206 | I36: 160 | J36: 162 | L36: 0.072 | M36: 0.264 | N36: 0.33 | O36: 1.004 | P36: 0.7 | Q36: 0.6 | R36: 1.076 | S36: 0.964 | T36: 0.93
A37: 43 Tarragona | B37: 34 | C37: 38 | D37: 69 | E37: 1 | F37: 1 | G37: 1 | H37: 35 | I37: 39 | J37: 70 | L37: 0.039 | M37: 0.142 | N37: 0.17 | O37: 0.005 | P37: 0.005 | Q37: 0.004 | R37: 0.044 | S37: 0.147 | T37: 0.174
A38: CATALUÑA | B38: 234 | C38: 248 | D38: 288 | E38: 172 | F38: 114 | G38: 105 | H38: 406 | I38: 362 | J38: 393 | L38: 0.424 | M38: 0.952 | N38: 0.993 | O38: 1.111 | P38: 0.747 | Q38: 0.666 | R38: 1.536 | S38: 1.699 | T38: 1.659
A40: 07 BALEARES | B40: 8696 | C40: 9200 | D40: 9500 | H40: 8696 | I40: 9200 | J40: 9500 | L40: 11.479 | M40: 12.4 | N40: 17.7 | R40: 11.48 | S40: 12.4 | T40: 17.7
A42: 05 Avila | B42: 1610 | C42: 1820 | D42: 1800 | E42: 48 | F42: 18 | G42: 20 | H42: 1658 | I42: 1838 | J42: 1820 | L42: 3.197 | M42: 6.512 | N42: 3.654 | O42: 0.163 | P42: 0.074 | Q42: 0.082 | R42: 3.361 | S42: 6.586 | T42: 3.736
A43: 09 Burgos | B43: 4731 | H43: 4731 | L43: 24.445 | R43: 24.445
A44: 24 León | B44: 1000 | C44: 1256 | D44: 1200 | H44: 1000 | I44: 1256 | J44: 1200 | L44: 3.809 | M44: 5.225 | N44: 3.48 | R44: 3.809 | S44: 5.225 | T44: 3.48
A45: 34 Palencia | B45: 3080 | C45: 538 | D45: 508 | E45: 274 | F45: 5 | G45: 5 | H45: 3354 | I45: 543 | J45: 513 | L45: 13.854 | M45: 2.745 | N45: 1.796 | O45: 1.098 | P45: 0.029 | Q45: 0.026 | R45: 14.952 | S45: 2.774 | T45: 1.822
A46: 37 Salamanca | B46: 600 | C46: 350 | D46: 350 | H46: 600 | I46: 350 | J46: 350 | L46: 1.95 | M46: 1.575 | N46: 1.12 | R46: 1.95 | S46: 1.575 | T46: 1.12
A47: 40 Segovia | B47: 4700 | C47: 4000 | D47: 3000 | E47: 300 | H47: 5000 | I47: 4000 | J47: 3000 | L47: 12.173 | M47: 15.936 | N47: 7.521 | O47: 1.488 | R47: 13.661 | S47: 15.936 | T47: 7.521
A48: 42 Soria | B48: 5000 | C48: 3000 | D48: 2500 | E48: 50 | F48: 20 | G48: 15 | H48: 5050 | I48: 3020 | J48: 2515 | L48: 17.315 | M48: 11.706 | N48: 7.25 | O48: 0.24 | P48: 0.108 | Q48: 0.075 | R48: 17.555 | S48: 11.814 | T48: 7.325
A49: 47 Valladolid | B49: 1500 | C49: 1000 | D49: 1000 | E49: 250 | F49: 175 | G49: 175 | H49: 1750 | I49: 1175 | J49: 1175 | L49: 6.135 | M49: 4.975 | N49: 3.029 | O49: 1.592 | P49: 1.225 | Q49: 0.923 | R49: 7.727 | S49: 6.2 | T49: 3.952
A50: 49 Zamora | B50: 2526 | E50: 412 | H50: 2938 | L50: 9.339 | O50: 2.189 | R50: 11.528
A51: CASTILLA Y LEON | B51: 24747 | C51: 11964 | D51: 10358 | E51: 1334 | F51: 218 | G51: 215 | H51: 26081 | I51: 12182 | J51: 10573 | L51: 92.217 | M51: 48.674 | N51: 27.85 | O51: 6.77 | P51: 1.436 | Q51: 1.106 | R51: 98.988 | S51: 50.11 | T51: 28.956
A53: 28 MADRID | B53: 996 | C53: 335 | D53: 332 | E53: 112 | F53: 30 | G53: 34 | H53: 1108 | I53: 365 | J53: 366 | L53: 2.848 | M53: 0.978 | N53: 0.882 | O53: 0.403 | P53: 0.143 | Q53: 0.237 | R53: 3.251 | S53: 1.121 | T53: 1.118
A55: 02 Albacete | B55: 18000 | C55: 17780 | D55: 17857 | E55: 300 | F55: 300 | G55: 300 | H55: 18300 | I55: 18080 | J55: 18157 | L55: 20.52 | M55: 39.355 | N55: 44.642 | O55: 1.98 | P55: 2.075 | Q55: 2.07 | R55: 22.5 | S55: 41.43 | T55: 46.712
A56: 13 Ciudad Real | B56: 30915 | C56: 28206 | D56: 19140 | E56: 10121 | F56: 10603 | G56: 7800 | H56: 41036 | I56: 38809 | J56: 26940 | L56: 102.02 | M56: 95.9 | N56: 65.076 | O56: 52.629 | P56: 59.377 | Q56: 43.68 | R56: 154.649 | S56: 155.277 | T56: 108.756
A57: 16 Cuenca | B57: 15820 | C57: 16868 | D57: 21780 | E57: 525 | F57: 602 | G57: 795 | H57: 16345 | I57: 17470 | J57: 22575 | L57: 49.875 | M57: 57.35 | N57: 74.052 | O57: 2.984 | P57: 3.31 | Q57: 4.37 | R57: 52.859 | S57: 60.66 | T57: 78.422
A58: 19 Guadalajara | B58: 3031 | C58: 3031 | D58: 5447 | E58: 106 | F58: 106 | G58: 110 | H58: 3137 | I58: 3137 | J58: 5557 | L58: 9.699 | M58: 10.609 | N58: 20.669 | O58: 0.53 | P58: 0.53 | Q58: 0.55 | R58: 10.229 | S58: 11.139 | T58: 21.219
A59: 45 Toledo | B59: 11545 | C59: 10757 | D59: 10757 | E59: 1033 | F59: 1195 | G59: 195 | H59: 12578 | I59: 11952 | J59: 10952 | L59: 32.326 | M59: 34.422 | N59: 34.422 | O59: 4.649 | P59: 3.824 | Q59: 7.529 | R59: 36.975 | S59: 38.246 | T59: 41.951
A60: CASTILLA-MANCHA | B60: 79311 | C60: 76642 | D60: 74981 | E60: 12085 | F60: 12806 | G60: 9200 | H60: 91396 | I60: 89448 | J60: 84181 | L60: 214.44 | M60: 237.636 | N60: 238.861 | O60: 62.772 | P60: 69.116 | Q60: 58.199 | R60: 277.212 | S60: 306.752 | T60: 297.06
A62: 03 Alicante | B62: 173 | C62: 94 | D62: 82 | E62: 61 | F62: 20 | G62: 18 | H62: 234 | I62: 114 | J62: 100 | L62: 0.02 | M62: 0.121 | N62: 0.158 | O62: 0.127 | P62: 0.079 | Q62: 0.085 | R62: 0.147 | S62: 0.2 | T62: 0.242
A63: 12 Castellón | B63: 24 | C63: 24 | D63: 24 | H63: 24 | I63: 24 | J63: 24 | L63: 0.003 | M63: 0.043 | N63: 0.043 | R63: 0.003 | S63: 0.043 | T63: 0.043
A64: 46 Valencia | B64: 278 | C64: 241 | D64: 297 | E64: 15 | F64: 14 | G64: 18 | H64: 293 | I64: 255 | J64: 315 | L64: 0.112 | M64: 0.711 | N64: 0.876 | O64: 0.061 | P64: 0.059 | Q64: 0.075 | R64: 0.173 | S64: 0.77 | T64: 0.951
A65: C. VALENCIANA | B65: 475 | C65: 359 | D65: 403 | E65: 76 | F65: 34 | G65: 36 | H65: 551 | I65: 393 | J65: 439 | L65: 0.135 | M65: 0.875 | N65: 1.077 | O65: 0.188 | P65: 0.138 | Q65: 0.16 | R65: 0.323 | S65: 1.013 | T65: 1.236
A67: 30 R. DE MURCIA | B67: 8142 | C67: 8260 | D67: 10736 | E67: 946 | F67: 828 | G67: 1108 | H67: 9088 | I67: 9088 | J67: 11844 | L67: 9.643 | M67: 10.408 | N67: 11.969 | O67: 4.181 | P67: 3.66 | Q67: 3.77 | R67: 13.824 | S67: 14.067 | T67: 15.738
A69: 06 Badajoz | B69: 2740 | C69: 1685 | D69: 1425 | H69: 2740 | I69: 1685 | J69: 1425 | L69: 7.039 | M69: 4.647 | N69: 2.835 | R69: 7.039 | S69: 4.647 | T69: 2.835
A70: 10 Cáceres | B70: 78 | C70: 85 | D70: 100 | H70: 78 | I70: 85 | J70: 100 | L70: 0.097 | M70: 0.116 | N70: 0.12 | R70: 0.097 | S70: 0.116 | T70: 0.12
A71: EXTREMADURA | B71: 2818 | C71: 1770 | D71: 1525 | H71: 2818 | I71: 1770 | J71: 1525 | L71: 7.136 | M71: 4.763 | N71: 2.955 | R71: 7.136 | S71: 4.763 | T71: 2.955
A73: 04 Almería | B73: 8145 | C73: 6776 | D73: 6800 | E73: 206 | F73: 189 | G73: 200 | H73: 8351 | I73: 6965 | J73: 7000 | L73: 0.299 | M73: 17.398 | N73: 10.2 | O73: 0.414 | P73: 0.708 | Q73: 0.4 | R73: 0.713 | S73: 18.106 | T73: 10.6
A74: 11 Cádiz | B74: 579 | C74: 868 | D74: 359.68 | E74: 36 | F74: 48 | H74: 615 | I74: 916 | J74: 359.68 | L74: 0.889 | M74: 2.604 | N74: 1.11 | O74: 0.125 | P74: 0.144 | R74: 1.014 | S74: 2.748 | T74: 1.11
